Workbook

Sheet Cover Sheet
C2: Model Details
C4: Model Name: | D4: TasNetworks (Public Lighting Model)
C6: Created By:
C7: Phone Number:
C8: Email: | D8: Esther.Pither@tasnetworks.com.au
C10: Date:
C12: Customer Details:
B20: Model Description/Scope
B22: Model Description
B24: This is a street lighting pricing model which works out the pricing for indiviual contract and public lights and estimates the total revenue build up for street lighting in $Real 2019-20. The output from this model can be compared to the PTRM (building block model), so accordingly a pricing approach could be proposed to AER.
B29: Scope/Disclaimer

Sheet Model Structure (hidden)
B9: Model Overview
B11: Legend
B20: Model Structure

Sheet Model Information
B2: Process information
B3: Public lighting includes many parts that have different life cycles which also vary depending on the light type. The main parts in a light are as follow:
B5: o Light Bracket - most lights have a bracket which allows the luminaire to be attached to a power pole, this is capital expenditure. There are some lights that are on private piles that do not require brackets, these poles and built in brackets are not the responsibility of TasNetworks. Brackets are assumed to have a life cycle of 40 years
B9: o Luminaire - The luminaire is the light fitting that the lamp is within and is a capital expenditure. Luminaires are assumed to have a life cycle of 20 years
B12: o Lamp - Within the luminaire is a lamp that requires replacement depending on the light type. Normal lights have a life cycle of 4.5 years on average therefore the replacement program is every 4 years as opex expenditure. LED lights are the exception as they last 20 years and are replaced when the luminaire requires replacing.
B16: o PE Cell - Public lights are switched on and off using PE Cells which in the last 30 years have replaced overhead switch wires as a new technology. They are replaced either with the lamp on after 10 year as opex.
B19: o Installation Cost - The TasNetworks POW has inbuilt unit prices for both opex and capex installation costs of public lights. These prices have been used for luminaire /Bracket capex installation excluding the material proportion plus actual materials from the warehouse prices. The same method has been used for Opex maintenance (Lamp & PE Cell replacement), using the POW unit rate net of materials plus actual materials for the individual light type. The 2 unit rates are determined using the Major/minor allocation of the light.
B25: Public lighting prices have previously used the annuity method rather than a RAB method. The annuity method is more accurate and produces more cost reflective prices compared to the RAB method which has some unreliable data. The opening RAB data was estimated by the business therefore its accuracy is unknown, because of this the PTRM output is used as a indicator test for the Annuity method.
B32: Assumptions
B33: Brackets
B34: A sample base for brackets has been sourced from the thread leader which aligns the light type with bracket type and cost. This sample base of 10,000 out of a total of 40,000+ lights is assumed to represent the whole fleet of brackets.
B37: Of the 40,000+ public lights there are a number of private poles for the public light that do not require a bracket. The public lighting asset management plan has the total number of brackets in the fleet (not down to type assigned to light type for costing). Therefore the cost of the brackets is weighted so that only the total number of brackets are recovered.
B41: Lamps
B42: Lamps have a assumed life cycle of 4.5 years therefore they are replaced within the POW after 4 years. LEDs do not require a lamp replacement within the 20 year life cycle of the luminaire.
B45: PE Cells
B46: There are two types of PE Cells and it is assumed that major lights have the more expensive cell installed while the minor lights have the smaller and cheaper PE Cell.
B49: PE Cells have a assumed 10 year life therefore to align with the 4 year lamp replacement program they are replaced after 8 years however with LED's they are replaced after 10 years.
B52: Installation and maintenance cost
B53: The POW assumption about what lights are major and minor for work to be completed is based on lights less than or greater than 100 watts. This results in a higher cost associated with the major lights due to higher costs performing maintenance and installation.
B56: It is assumed that the cost of performing a Lamp replacement is the same doing the PE Cell at the same time or only PE cell.
B59: It is assumed that the cost of performing a luminaire installation/replacement is the same doing the Brackett at the same time
B62: Other assumptions
B63: It is assumed that contract prices for materials are to remain consistent with current prices.
B66: Where a warehouse price is not available due to the light type is obsolete the previous determination prices have been indexed.
B69: Indirect capex that is not included in the unit price build up is included in the annuity calculation and assumed to have a 40 year life given it is work on the street lights that have the same life.
B72: Private contract lights are owned by client and TasNetworks just performs maintenance on the light. Capital replacements are the responsibility of the owner.
B75: New Technology - minor lighting is assumed the same as our current latest technology (LED 14W), Major lighting for LED technology has not been trialled, the equivalent LED technology to our 150W and 250W sodium vapour is a 160W LED, maintenance cycles are unknown so have assumed to be the same as the current 250W sodium vapour.

Sheet Smoothed Prices with Price Path
B1: $2018-19 base data
P3: THIS TAKES 18/19 SMOOTHED PRICES ADDS CPI | AL3: THIS TAKES 18/19 SMOOTHED PRICES and multiplys by no.days in year/100 to convert $s into cents | AW3: THIS TAKES nominal and multiplys by no days in year/100
B4: Private Contract Lights
F5: Adjustment ('A') | K5: Adjustment ('A')
C6: Adjustment CL | D6: -10 | E6: 1 | F6: 1 | G6: 1 | H6: 1 | I6: -5 | J6: 1.25 | K6: 1.25 | L6: 1.25 | M6: 1.25
C7: Adjustment PL | D7: -16 | E7: 1.5 | F7: 1.5 | G7: 1.5 | H7: 1.5 | I7: -8 | J7: 2 | K7: 2 | L7: 2 | M7: 2
D8: X Factor | I8: X Factor | O8: Days | P8: ='Master Data'!K28 -> 366 | Q8: ='Master Data'!L28 -> 365 | R8: ='Master Data'!M28 -> 365 | S8: ='Master Data'!N28 -> 365 | T8: ='Master Data'!O28 -> 366 | U8: ='Master Data'!P28 -> 365 | V8: ='Master Data'!Q28 -> 365 | W8: ='Master Data'!R28 -> 365 | X8: ='Master Data'!S28 -> 366 | Y8: ='Master Data'!T28 -> 365
D9: =P148 -> 0.01038102901 | I9: =U148 -> 0.001673445752 | O9: CPI | P9: ='Master Data'!K39 -> 1.0245 | Q9: ='Master Data'!L39 -> 1.04960025 | R9: ='Master Data'!M39 -> 1.075315456 | S9: ='Master Data'!N39 -> 1.101660685 | T9: ='Master Data'!O39 -> 1.128651372 | U9: ='Master Data'!P39 -> 1.15630333 | V9: ='Master Data'!Q39 -> 1.184632762 | W9: ='Master Data'!R39 -> 1.213656264 | X9: ='Master Data'!S39 -> 1.243390843 | Y9: ='Master Data'!T39 -> 1.273853919 | AL9: =HLOOKUP(AL11,'Master Data'!$B$25:$P$28,4,FALSE) -> 366 | AM9: =HLOOKUP(AM11,'Master Data'!$B$25:$P$28,4,FALSE) -> 365 | AN9: =HLOOKUP(AN11,'Master Data'!$B$25:$P$28,4,FALSE) -> 365 | AO9: =HLOOKUP(AO11,'Master Data'!$B$25:$P$28,4,FALSE) -> 365 | AP9: =HLOOKUP(AP11,'Master Data'!$B$25:$P$28,4,FALSE) -> 366 | AQ9: =HLOOKUP(AQ11,'Master Data'!$B$25:$T$28,4,FALSE) -> 365 | AR9: =HLOOKUP(AR11,'Master Data'!$B$25:$T$28,4,FALSE) -> 365 | AS9: =HLOOKUP(AS11,'Master Data'!$B$25:$T$28,4,FALSE) -> 365 | AT9: =HLOOKUP(AT11,'Master Data'!$B$25:$T$28,4,FALSE) -> 366 | AU9: =HLOOKUP(AU11,'Master Data'!$B$25:$T$28,4,FALSE) -> 365 | AW9: =HLOOKUP(AW11,'Master Data'!$B$25:$P$28,4,FALSE) -> 366 | AX9: =HLOOKUP(AX11,'Master Data'!$B$25:$P$28,4,FALSE) -> 365 | AY9: =HLOOKUP(AY11,'Master Data'!$B$25:$P$28,4,FALSE) -> 365 | AZ9: =HLOOKUP(AZ11,'Master Data'!$B$25:$P$28,4,FALSE) -> 365 | BA9: =HLOOKUP(BA11,'Master Data'!$B$25:$P$28,4,FALSE) -> 366 | BB9: =HLOOKUP(BB11,'Master Data'!$B$25:$T$28,4,FALSE) -> 365 | BC9: =HLOOKUP(BC11,'Master Data'!$B$25:$T$28,4,FALSE) -> 365 | BD9: =HLOOKUP(BD11,'Master Data'!$B$25:$T$28,4,FALSE) -> 365 | BE9: =HLOOKUP(BE11,'Master Data'!$B$25:$T$28,4,FALSE) -> 366 | BF9: =HLOOKUP(BF11,'Master Data'!$B$25:$T$28,4,FALSE) -> 365
B10: Private Contract Lights | D10: Price (cents) per Light per day Real 2018/19 Smoothed | I10: Price (cents) per Light per day Real 2018/19 Smoothed | P10: Price (cents) per Light per day Nominal Smoothed | AA10: Volumes | AL10: Smooth Real 2018/19 Cost Dollars Per Year | AW10: Smooth Nominal Cost Dollars Per Year | BI10: Revenue Real Real Dollars Per Year | BU10: Revenue Nominal Dollars Per Year | BZ10: Revenue Nominal Dollars Per Year
C11: Offered / No Longer Offered / NA | D11: ='Master Data'!K$34 -> 2019-20 | E11: ='Master Data'!L$34 -> 2020-21 | F11: ='Master Data'!M$34 -> 2021-22 | G11: ='Master Data'!N$34 -> 2022-23 | H11: ='Master Data'!O$34 -> 2023-24 | I11: ='Master Data'!P$34 -> 2024-25 | J11: ='Master Data'!Q$34 -> 2025-26 | K11: ='Master Data'!R$34 -> 2026-27 | L11: ='Master Data'!S$34 -> 2027-28 | M11: ='Master Data'!T$34 -> 2028-29 | P11: ='Master Data'!K$34 -> 2019-20 | Q11: ='Master Data'!L$34 -> 2020-21 | R11: ='Master Data'!M$34 -> 2021-22 | S11: ='Master Data'!N$34 -> 2022-23 | T11: ='Master Data'!O$34 -> 2023-24 | U11: ='Master Data'!P$34 -> 2024-25 | V11: ='Master Data'!Q$34 -> 2025-26 | W11: ='Master Data'!R$34 -> 2026-27 | X11: ='Master Data'!S$34 -> 2027-28 | Y11: ='Master Data'!T$34 -> 2028-29 | AA11: ='Master Data'!K$34 -> 2019-20 | AB11: ='Master Data'!L$34 -> 2020-21 | AC11: ='Master Data'!M$34 -> 2021-22 | AD11: ='Master Data'!N$34 -> 2022-23 | AE11: ='Master Data'!O$34 -> 2023-24 | AF11: ='Master Data'!P$34 -> 2024-25 | AG11: ='Master Data'!Q$34 -> 2025-26 | AH11: ='Master Data'!R$34 -> 2026-27 | AI11: ='Master Data'!S$34 -> 2027-28 | AJ11: ='Master Data'!T$34 -> 2028-29 | AL11: ='Master Data'!K$34 -> 2019-20 | AM11: ='Master Data'!L$34 -> 2020-21 | AN11: ='Master Data'!M$34 -> 2021-22 | AO11: ='Master Data'!N$34 -> 2022-23 | AP11: ='Master Data'!O$34 -> 2023-24 | AQ11: ='Master Data'!P$34 -> 2024-25 | AR11: ='Master Data'!Q$34 -> 2025-26 | AS11: ='Master Data'!R$34 -> 2026-27 | AT11: ='Master Data'!S$34 -> 2027-28 | AU11: ='Master Data'!T$34 -> 2028-29 | AW11: ='Master Data'!K$34 -> 2019-20 | AX11: ='Master Data'!L$34 -> 2020-21 | AY11: ='Master Data'!M$34 -> 2021-22 | AZ11: ='Master Data'!N$34 -> 2022-23 | BA11: ='Master Data'!O$34 -> 2023-24 | BB11: ='Master Data'!P$34 -> 2024-25 | BC11: ='Master Data'!Q$34 -> 2025-26 | BD11: ='Master Data'!R$34 -> 2026-27 | BE11: ='Master Data'!S$34 -> 2027-28 | BF11: ='Master Data'!T$34 -> 2028-29 | BI11: ='Master Data'!K$34 -> 2019-20 | BJ11: ='Master Data'!L$34 -> 2020-21 | BK11: ='Master Data'!M$34 -> 2021-22 | BL11: ='Master Data'!N$34 -> 2022-23 | BM11: ='Master Data'!O$34 -> 2023-24 | BN11: ='Master Data'!P$34 -> 2024-25 | BO11: ='Master Data'!Q$34 -> 2025-26 | BP11: ='Master Data'!R$34 -> 2026-27 | BQ11: ='Master Data'!S$34 -> 2027-28 | BR11: ='Master Data'!T$34 -> 2028-29 | BU11: ='Master Data'!K$34 -> 2019-20 | BV11: ='Master Data'!L$34 -> 2020-21 | BW11: ='Master Data'!M$34 -> 2021-22 | BX11: ='Master Data'!N$34 -> 2022-23 | BY11: ='Master Data'!O$34 -> 2023-24 | BZ11: ='Master Data'!P$34 -> 2024-25 | CA11: ='Master Data'!Q$34 -> 2025-26 | CB11: ='Master Data'!R$34 -> 2026-27 | CC11: ='Master Data'!S$34 -> 2027-28 | CD11: ='Master Data'!T$34 -> 2028-29
B12: =Inputs!$C69 -> 32W Compact Fluorescent | C12: Old light no volumes | D12: =IF($C12="NA","",'Smoothed Prices'!D12+$D$6) -> 20.04369298 | E12: =IF($C12="NA","",D12*(1+D$9)+$E$6) -> 21.25176714 | F12: =IF($C12="NA","",E12*(1+D$9)+$F$6) -> 22.47238235 | G12: =IF($C12="NA","",F12*(1+D$9)+$G$6) -> 23.70566881 | H12: =IF($C12="NA","",G12*(1+D$9)+$H$6) -> 24.95175804 | I12: =IF($C12="NA","",'Smoothed Prices'!I12+$I$6) -> 26.31079166 | J12: =IF($C12="NA","",I12*(1+I$9)+$J$6) -> 27.60482134 | K12: =IF($C12="NA","",J12*(1+I$9)+$K$6) -> 28.90101651 | L12: =IF($C12="NA","",K12*(1+I$9)+$L$6) -> 30.19938079 | M12: =IF($C12="NA","",L12*(1+I$9)+$M$6) -> 31.49991782 | P12: =IF($C12="NA","",D12*P$9) -> 20.53476346 | Q12: =IF($C12="NA","",E12*Q$9) -> 22.30586011 | R12: =IF($C12="NA","",F12*R$9) -> 24.16490008 | S12: =IF($C12="NA","",G12*S$9) -> 26.11560333 | T12: =IF($C12="NA","",H12*T$9) -> 28.16183594 | U12: =IF($C12="NA","",I12*U$9) -> 30.42325601 | V12: =IF($C12="NA","",J12*V$9) -> 32.70157574 | W12: =IF($C12="NA","",K12*W$9) -> 35.07589974 | X12: =IF($C12="NA","",L12*X$9) -> 37.54963354 | Y12: =IF($C12="NA","",M12*Y$9) -> 40.12629375 | AA12: =IFERROR(VLOOKUP($B12,Volumes!$B$4:$H$33,MATCH(AA$11,Volumes!$B$4:$H$4,0),FALSE),0) -> 0 | AB12: =IFERROR(VLOOKUP($B12,Volumes!$B$4:$H$33,MATCH(AB$11,Volumes!$B$4:$H$4,0),FALSE),0) -> 0 | AC12: =IFERROR(VLOOKUP($B12,Volumes!$B$4:$H$33,MATCH(AC$11,Volumes!$B$4:$H$4,0),FALSE),0) -> 0 | AD12: =IFERROR(VLOOKUP($B12,Volumes!$B$4:$H$33,MATCH(AD$11,Volumes!$B$4:$H$4,0),FALSE),0) -> 0 | AE12: =IFERROR(VLOOKUP($B12,Volumes!$B$4:$H$33,MATCH(AE$11,Volumes!$B$4:$H$4,0),FALSE),0) -> 0 | AF12: =IFERROR(VLOOKUP($B12,Volumes!$B$4:$M$33,MATCH(AF$11,Volumes!$B$4:$M$4,0),FALSE),0) -> 0 | AG12: =IFERROR(VLOOKUP($B12,Volumes!$B$4:$M$33,MATCH(AG$11,Volumes!$B$4:$M$4,0),FALSE),0) -> 0 | AH12: =IFERROR(VLOOKUP($B12,Volumes!$B$4:$M$33,MATCH(AH$11,Volumes!$B$4:$M$4,0),FALSE),0) -> 0 | AI12: =IFERROR(VLOOKUP($B12,Volumes!$B$4:$M$33,MATCH(AI$11,Volumes!$B$4:$M$4,0),FALSE),0) -> 0 | AJ12: =IFERROR(VLOOKUP($B12,Volumes!$B$4:$M$33,MATCH(AJ$11,Volumes!$B$4:$M$4,0),FALSE),0) -> 0 | AL12: =IF($C12="NA","",(D12*AL$9)/100) -> 73.35991632 | AM12: =IF($C12="NA","",(E12*AM$9)/100) -> 77.56895007 | AN12: =IF($C12="NA","",(F12*AN$9)/100) -> 82.02419559 | AO12: =IF($C12="NA","",(G12*AO$9)/100) -> 86.52569114 | AP12: =IF($C12="NA","",(H12*AP$9)/100) -> 91.32343443 | AQ12: =IF($C12="NA","",(I12*AQ$9)/100) -> 96.03438955 | AR12: =IF($C12="NA","",(J12*AR$9)/100) -> 100.7575979 | AS12: =IF($C12="NA","",(K12*AS$9)/100) -> 105.4887103 | AT12: =IF($C12="NA","",(L12*AT$9)/100) -> 110.5297337 | AU12: =IF($C12="NA","",(M12*AU$9)/100) -> 114.9747 | AW12: =IF($C12="NA","",(P12*AW$9)/100) -> 75.15723427 | AX12: =IF($C12="NA","",(Q12*AX$9)/100) -> 81.41638938 | AY12: =IF($C12="NA","",(R12*AY$9)/100) -> 88.20188529 | AZ12: =IF($C12="NA","",(S12*AZ$9)/100) -> 95.32195216 | BA12: =IF($C12="NA","",(T12*BA$9)/100) -> 103.0723195 | BB12: =IF($C12="NA","",(U12*BB$9)/100) -> 111.0448844 | BC12: =IF($C12="NA","",(V12*BC$9)/100) -> 119.3607515 | BD12: =IF($C12="NA","",(W12*BD$9)/100) -> 128.027034 | BE12: =IF($C12="NA","",(X12*BE$9)/100) -> 137.4316588 | BF12: =IF($C12="NA","",(Y12*BF$9)/100) -> 146.4609722 | BI12: =IFERROR(AL12*AA12,0) -> 0 | BJ12: =IFERROR(AM12*AB12,0) -> 0 | BK12: =IFERROR(AN12*AC12,0) -> 0 | BL12: =IFERROR(AO12*AD12,0) -> 0 | BM12: =IFERROR(AP12*AE12,0) -> 0 | BN12: =IFERROR(AQ12*AF12,0) -> 0 | BO12: =IFERROR(AR12*AG12,0) -> 0 | BP12: =IFERROR(AS12*AH12,0) -> 0 | BQ12: =IFERROR(AT12*AI12,0) -> 0 | BR12: =IFERROR(AU12*AJ12,0) -> 0 | BU12: =IFERROR(AW12*AA12,0) -> 0 | BV12: =IFERROR(AX12*AB12,0) -> 0 | BW12: =IFERROR(AY12*AC12,0) -> 0 | BX12: =IFERROR(AZ12*AD12,0) -> 0 | BY12: =IFERROR(BA12*AE12,0) -> 0 | BZ12: =IFERROR(BB12*AF12,0) -> 0 | CA12: =IFERROR(BC12*AG12,0) -> 0 | CB12: =IFERROR(BD12*AH12,0) -> 0 | CC12: =IFERROR(BE12*AI12,0) -> 0 | CD12: =IFERROR(BF12*AJ12,0) -> 0
B13: =Inputs!$C70 -> 42W Compact Fluorescent | C13: Old light no volumes | D13: =IF($C13="NA","",'Smoothed Prices'!D13+$D$6) -> 20.04369298 | E13: =IF($C13="NA","",D13*(1+D$9)+$E$6) -> 21.25176714 | F13: =IF($C13="NA","",E13*(1+D$9)+$F$6) -> 22.47238235 | G13: =IF($C13="NA","",F13*(1+D$9)+$G$6) -> 23.70566881 | H13: =IF($C13="NA","",G13*(1+D$9)+$H$6) -> 24.95175804 | I13: =IF($C13="NA","",'Smoothed Prices'!I13+$I$6) -> 26.31079166 | J13: =IF($C13="NA","",I13*(1+I$9)+$J$6) -> 27.60482134 | K13: =IF($C13="NA","",J13*(1+I$9)+$K$6) -> 28.90101651 | L13: =IF($C13="NA","",K13*(1+I$9)+$L$6) -> 30.19938079 | M13: =IF($C13="NA","",L13*(1+I$9)+$M$6) -> 31.49991782 | P13: 20.53476346 | Q13: 22.30586011 | R13: 24.16490008 | S13: 26.11560333 | T13: 28.16183594 | U13: 30.42325601 | V13: 32.70157574 | W13: 35.07589974 | X13: 37.54963354 | Y13: 40.12629375 | AA13: =IFERROR(VLOOKUP($B13,Volumes!$B$4:$H$33,MATCH(AA$11,Volumes!$B$4:$H$4,0),FALSE),0) -> 0 | AB13: =IFERROR(VLOOKUP($B13,Volumes!$B$4:$H$33,MATCH(AB$11,Volumes!$B$4:$H$4,0),FALSE),0) -> 0 | AC13: =IFERROR(VLOOKUP($B13,Volumes!$B$4:$H$33,MATCH(AC$11,Volumes!$B$4:$H$4,0),FALSE),0) -> 0 | AD13: =IFERROR(VLOOKUP($B13,Volumes!$B$4:$H$33,MATCH(AD$11,Volumes!$B$4:$H$4,0),FALSE),0) -> 0 | AE13: =IFERROR(VLOOKUP($B13,Volumes!$B$4:$H$33,MATCH(AE$11,Volumes!$B$4:$H$4,0),FALSE),0) -> 0 | AF13: =IFERROR(VLOOKUP($B13,Volumes!$B$4:$M$33,MATCH(AF$11,Volumes!$B$4:$M$4,0),FALSE),0) -> 0 | AG13: =IFERROR(VLOOKUP($B13,Volumes!$B$4:$M$33,MATCH(AG$11,Volumes!$B$4:$M$4,0),FALSE),0) -> 0 | AH13: =IFERROR(VLOOKUP($B13,Volumes!$B$4:$M$33,MATCH(AH$11,Volumes!$B$4:$M$4,0),FALSE),0) -> 0 | AI13: =IFERROR(VLOOKUP($B13,Volumes!$B$4:$M$33,MATCH(AI$11,Volumes!$B$4:$M$4,0),FALSE),0) -> 0 | AJ13: =IFERROR(VLOOKUP($B13,Volumes!$B$4:$M$33,MATCH(AJ$11,Volumes!$B$4:$M$4,0),FALSE),0) -> 0 | AL13: 73.35991632 | AM13: 77.56895007 | AN13: 82.02419559 | AO13: 86.52569114 | AP13: 91.32343443 | AQ13: 96.03438955 | AR13: 100.7575979 | AS13: 105.4887103 | AT13: 110.5297337 | AU13: 114.9747 | AW13: 75.15723427 | AX13: 81.41638938 | AY13: 88.20188529 | AZ13: 95.32195216 | BA13: 103.0723195 | BB13: 111.0448844 | BC13: 119.3607515 | BD13: 128.027034 | BE13: 137.4316588 | BF13: 146.4609722 | BI13: 0 | BJ13: 0 | BK13: 0 | BL13: 0 | BM13: 0 | BN13: 0 | BO13: 0 | BP13: 0 | BQ13: 0 | BR13: 0 | BU13: 0 | BV13: 0 | BW13: 0 | BX13: 0 | BY13: 0 | BZ13: 0 | CA13: 0 | CB13: 0 | CC13: 0 | CD13: 0
B14: =Inputs!$C71 -> 42W Compact Fluorescent - Bottom Pole Entry | C14: Old light no volumes | D14: =IF($C14="NA","",'Smoothed Prices'!D14+$D$6) -> 20.04369298 | E14: =IF($C14="NA","",D14*(1+D$9)+$E$6) -> 21.25176714 | F14: 22.47238235 | G14: 23.70566881 | H14: 24.95175804 | I14: =IF($C14="NA","",'Smoothed Prices'!I14+$I$6) -> 26.31079166 | J14: 27.60482134 | K14: 28.90101651 | L14: 30.19938079 | M14: 31.49991782 | P14: 20.53476346 | Q14: 22.30586011 | R14: 24.16490008 | S14: 26.11560333 | T14: 28.16183594 | U14: 30.42325601 | V14: 32.70157574 | W14: 35.07589974 | X14: 37.54963354 | Y14: 40.12629375 | AA14: =IFERROR(VLOOKUP($B14,Volumes!$B$4:$H$33,MATCH(AA$11,Volumes!$B$4:$H$4,0),FALSE),0) -> 0 | AB14: =IFERROR(VLOOKUP($B14,Volumes!$B$4:$H$33,MATCH(AB$11,Volumes!$B$4:$H$4,0),FALSE),0) -> 0 | AC14: =IFERROR(VLOOKUP($B14,Volumes!$B$4:$H$33,MATCH(AC$11,Volumes!$B$4:$H$4,0),FALSE),0) -> 0 | AD14: =IFERROR(VLOOKUP($B14,Volumes!$B$4:$H$33,MATCH(AD$11,Volumes!$B$4:$H$4,0),FALSE),0) -> 0 | AE14: =IFERROR(VLOOKUP($B14,Volumes!$B$4:$H$33,MATCH(AE$11,Volumes!$B$4:$H$4,0),FALSE),0) -> 0 | AF14: =IFERROR(VLOOKUP($B14,Volumes!$B$4:$M$33,MATCH(AF$11,Volumes!$B$4:$M$4,0),FALSE),0) -> 0 | AG14: =IFERROR(VLOOKUP($B14,Volumes!$B$4:$M$33,MATCH(AG$11,Volumes!$B$4:$M$4,0),FALSE),0) -> 0 | AH14: =IFERROR(VLOOKUP($B14,Volumes!$B$4:$M$33,MATCH(AH$11,Volumes!$B$4:$M$4,0),FALSE),0) -> 0 | AI14: =IFERROR(VLOOKUP($B14,Volumes!$B$4:$M$33,MATCH(AI$11,Volumes!$B$4:$M$4,0),FALSE),0) -> 0 | AJ14: =IFERROR(VLOOKUP($B14,Volumes!$B$4:$M$33,MATCH(AJ$11,Volumes!$B$4:$M$4,0),FALSE),0) -> 0 | AL14: 73.35991632 | AM14: 77.56895007 | AN14: 82.02419559 | AO14: 86.52569114 | AP14: 91.32343443 | AQ14: 96.03438955 | AR14: 100.7575979 | AS14: 105.4887103 | AT14: 110.5297337 | AU14: 114.9747 | AW14: 75.15723427 | AX14: 81.41638938 | AY14: 88.20188529 | AZ14: 95.32195216 | BA14: 103.0723195 | BB14: 111.0448844 | BC14: 119.3607515 | BD14: 128.027034 | BE14: 137.4316588 | BF14: 146.4609722 | BI14: 0 | BJ14: 0 | BK14: 0 | BL14: 0 | BM14: 0 | BN14: 0 | BO14: 0 | BP14: 0 | BQ14: 0 | BR14: 0 | BU14: 0 | BV14: 0 | BW14: 0 | BX14: 0 | BY14: 0 | BZ14: 0 | CA14: 0 | CB14: 0 | CC14: 0 | CD14: 0
B15: =Inputs!$C72 -> 2x24W Compact Fluorescent | C15: Old light no volumes | D15: =IF($C15="NA","",'Smoothed Prices'!D15+$D$6) -> 20.35857238 | E15: 21.56991531 | F15: 22.79383323 | G15: 24.03045667 | H15: 25.27991754 | I15: =IF($C15="NA","",'Smoothed Prices'!I15+$I$6) -> 26.63895116 | J15: 27.93353 | K15: 29.23027524 | L15: 30.52919052 | M15: 31.83027947 | P15: 20.85735741 | Q15: 22.6397885 | R15: 24.51056118 | S15: 26.47340935 | T15: 28.53221361 | U15: 30.80270793 | V15: 33.09097479 | W15: 35.47550666 | X15: 37.95971594 | Y15: 40.54712623 | AA15: =IFERROR(VLOOKUP($B15,Volumes!$B$4:$H$33,MATCH(AA$11,Volumes!$B$4:$H$4,0),FALSE),0) -> 0 | AB15: =IFERROR(VLOOKUP($B15,Volumes!$B$4:$H$33,MATCH(AB$11,Volumes!$B$4:$H$4,0),FALSE),0) -> 0 | AC15: =IFERROR(VLOOKUP($B15,Volumes!$B$4:$H$33,MATCH(AC$11,Volumes!$B$4:$H$4,0),FALSE),0) -> 0 | AD15: =IFERROR(VLOOKUP($B15,Volumes!$B$4:$H$33,MATCH(AD$11,Volumes!$B$4:$H$4,0),FALSE),0) -> 0 | AE15: =IFERROR(VLOOKUP($B15,Volumes!$B$4:$H$33,MATCH(AE$11,Volumes!$B$4:$H$4,0),FALSE),0) -> 0 | AF15: =IFERROR(VLOOKUP($B15,Volumes!$B$4:$M$33,MATCH(AF$11,Volumes!$B$4:$M$4,0),FALSE),0) -> 0 | AG15: =IFERROR(VLOOKUP($B15,Volumes!$B$4:$M$33,MATCH(AG$11,Volumes!$B$4:$M$4,0),FALSE),0) -> 0 | AH15: =IFERROR(VLOOKUP($B15,Volumes!$B$4:$M$33,MATCH(AH$11,Volumes!$B$4:$M$4,0),FALSE),0) -> 0 | AI15: =IFERROR(VLOOKUP($B15,Volumes!$B$4:$M$33,MATCH(AI$11,Volumes!$B$4:$M$4,0),FALSE),0) -> 0 | AJ15: =IFERROR(VLOOKUP($B15,Volumes!$B$4:$M$33,MATCH(AJ$11,Volumes!$B$4:$M$4,0),FALSE),0) -> 0 | AL15: 74.51237492 | AM15: 78.73019089 | AN15: 83.19749129 | AO15: 87.71116686 | AP15: 92.5244982 | AQ15: 97.23217172 | AR15: 101.9573845 | AS15: 106.6905046 | AT15: 111.7368373 | AU15: 116.1805201 | AW15: 76.3379281 | AX15: 82.63522804 | AY15: 89.46354829 | AZ15: 96.62794414 | BA15: 104.4279018 | BB15: 112.429884 | BC15: 120.782058 | BD15: 129.4855993 | BE15: 138.9325603 | BF15: 147.9970107 | BI15: 0 | BJ15: 0 | BK15: 0 | BL15: 0 | BM15: 0 | BN15: 0 | BO15: 0 | BP15: 0 | BQ15: 0 | BR15: 0 | BU15: 0 | BV15: 0 | BW15: 0 | BX15: 0 | BY15: 0 | BZ15: 0 | CA15: 0 | CB15: 0 | CC15: 0 | CD15: 0
B16: =Inputs!$C73 -> 1x20W Fluorescent | C16: Obsolete, no new Connections | D16: =IF($C16="NA","",'Smoothed Prices'!D16+$D$6) -> 20.01745303 | E16: 21.22525479 | F16: 22.44559478 | G16: 23.67860315 | H16: 24.92441142 | I16: =IF($C16="NA","",'Smoothed Prices'!I16+$I$6) -> 26.28344503 | J16: 27.57742895 | K16: 28.87357828 | L16: 30.17189665 | M16: 31.47238768 | P16: 20.50788063 | Q16: 22.27803274 | R16: 24.13609499 | S16: 26.08578616 | T16: 28.13097113 | U16: 30.39163502 | V16: 32.66912582 | W16: 35.04259916 | X16: 37.51546001 | Y16: 40.09122438 | AA16: =IFERROR(VLOOKUP($B16,Volumes!$B$4:$H$33,MATCH(AA$11,Volumes!$B$4:$H$4,0),FALSE),0) -> 0 | AB16: =IFERROR(VLOOKUP($B16,Volumes!$B$4:$H$33,MATCH(AB$11,Volumes!$B$4:$H$4,0),FALSE),0) -> 0 | AC16: =IFERROR(VLOOKUP($B16,Volumes!$B$4:$H$33,MATCH(AC$11,Volumes!$B$4:$H$4,0),FALSE),0) -> 0 | AD16: =IFERROR(VLOOKUP($B16,Volumes!$B$4:$H$33,MATCH(AD$11,Volumes!$B$4:$H$4,0),FALSE),0) -> 0 | AE16: =IFERROR(VLOOKUP($B16,Volumes!$B$4:$H$33,MATCH(AE$11,Volumes!$B$4:$H$4,0),FALSE),0) -> 0 | AF16: =IFERROR(VLOOKUP($B16,Volumes!$B$4:$M$33,MATCH(AF$11,Volumes!$B$4:$M$4,0),FALSE),0) -> 0 | AG16: =IFERROR(VLOOKUP($B16,Volumes!$B$4:$M$33,MATCH(AG$11,Volumes!$B$4:$M$4,0),FALSE),0) -> 0 | AH16: =IFERROR(VLOOKUP($B16,Volumes!$B$4:$M$33,MATCH(AH$11,Volumes!$B$4:$M$4,0),FALSE),0) -> 0 | AI16: =IFERROR(VLOOKUP($B16,Volumes!$B$4:$M$33,MATCH(AI$11,Volumes!$B$4:$M$4,0),FALSE),0) -> 0 | AJ16: =IFERROR(VLOOKUP($B16,Volumes!$B$4:$M$33,MATCH(AJ$11,Volumes!$B$4:$M$4,0),FALSE),0) -> 0 | AL16: 73.2638781 | AM16: 77.47218 | AN16: 81.92642095 | AO16: 86.4269015 | AP16: 91.22334579 | AQ16: 95.93457437 | AR16: 100.6576157 | AS16: 105.3885607 | AT16: 110.4291417 | AU16: 114.874215 | AW16: 75.05884312 | AX16: 81.3148195 | AY16: 88.09674671 | AZ16: 95.21311949 | BA16: 102.9593543 | BB16: 110.9294678 | BC16: 119.2423093 | BD16: 127.9054869 | BE16: 137.3065836 | BF16: 146.332969 | BI16: 0 | BJ16: 0 | BK16: 0 | BL16: 0 | BM16: 0 | BN16: 0 | BO16: 0 | BP16: 0 | BQ16: 0 | BR16: 0 | BU16: 0 | BV16: 0 | BW16: 0 | BX16: 0 | BY16: 0 | BZ16: 0 | CA16: 0 | CB16: 0 | CC16: 0 | CD16: 0
B17: =Inputs!$C74 -> 1x40W Fluorescent | C17: Obsolete, no new Connections | D17: =IF($C17="NA","",'Smoothed Prices'!D17+$D$6) -> 20.0363458 | E17: 21.24434368 | F17: 22.46488183 | G17: 23.69809042 | H17: 24.94410099 | I17: =IF($C17="NA","",'Smoothed Prices'!I17+$I$6) -> 26.3031346 | J17: 27.59715147 | K17: 28.89333381 | L17: 30.19168523 | M17: 31.49220938 | P17: 20.52723627 | Q17: 22.29806844 | R17: 24.15683466 | S17: 26.10725452 | T17: 28.15319379 | U17: 30.41440214 | V17: 32.69248976 | W17: 35.06657558 | X17: 37.54006495 | Y17: 40.11647432 | AA17: =IFERROR(VLOOKUP($B17,Volumes!$B$4:$H$33,MATCH(AA$11,Volumes!$B$4:$H$4,0),FALSE),0) -> 0 | AB17: =IFERROR(VLOOKUP($B17,Volumes!$B$4:$H$33,MATCH(AB$11,Volumes!$B$4:$H$4,0),FALSE),0) -> 0 | AC17: =IFERROR(VLOOKUP($B17,Volumes!$B$4:$H$33,MATCH(AC$11,Volumes!$B$4:$H$4,0),FALSE),0) -> 0 | AD17: =IFERROR(VLOOKUP($B17,Volumes!$B$4:$H$33,MATCH(AD$11,Volumes!$B$4:$H$4,0),FALSE),0) -> 0 | AE17: =IFERROR(VLOOKUP($B17,Volumes!$B$4:$H$33,MATCH(AE$11,Volumes!$B$4:$H$4,0),FALSE),0) -> 0 | AF17: =IFERROR(VLOOKUP($B17,Volumes!$B$4:$M$33,MATCH(AF$11,Volumes!$B$4:$M$4,0),FALSE),0) -> 0 | AG17: =IFERROR(VLOOKUP($B17,Volumes!$B$4:$M$33,MATCH(AG$11,Volumes!$B$4:$M$4,0),FALSE),0) -> 0 | AH17: =IFERROR(VLOOKUP($B17,Volumes!$B$4:$M$33,MATCH(AH$11,Volumes!$B$4:$M$4,0),FALSE),0) -> 0 | AI17: =IFERROR(VLOOKUP($B17,Volumes!$B$4:$M$33,MATCH(AI$11,Volumes!$B$4:$M$4,0),FALSE),0) -> 0 | AJ17: =IFERROR(VLOOKUP($B17,Volumes!$B$4:$M$33,MATCH(AJ$11,Volumes!$B$4:$M$4,0),FALSE),0) -> 0 | AL17: 73.33302562 | AM17: 77.54185445 | AN17: 81.99681869 | AO17: 86.49803004 | AP17: 91.29540961 | AQ17: 96.0064413 | AR17: 100.7296029 | AS17: 105.4606684 | AT17: 110.501568 | AU17: 114.9465642 | AW17: 75.12968475 | AX17: 81.38794982 | AY17: 88.17244649 | AZ17: 95.29147901 | BA17: 103.0406893 | BB17: 111.0125678 | BC17: 119.3275876 | BD17: 127.9930009 | BE17: 137.3966377 | BF17: 146.4251313 | BI17: 0 | BJ17: 0 | BK17: 0 | BL17: 0 | BM17: 0 | BN17: 0 | BO17: 0 | BP17: 0 | BQ17: 0 | BR17: 0 | BU17: 0 | BV17: 0 | BW17: 0 | BX17: 0 | BY17: 0 | BZ17: 0 | CA17: 0 | CB17: 0 | CC17: 0 | CD17: 0
B18: =Inputs!$C75 -> 2x20W Fluorescent | C18: Obsolete, no new Connections | D18: =IF($C18="NA","",'Smoothed Prices'!D18+$D$6) -> 20.30714208 | E18: 21.51795111 | F18: 22.74132959 | G18: 23.97740799 | H18: 25.22631816 | I18: =IF($C18="NA","",'Smoothed Prices'!I18+$I$6) -> 26.58535177 | J18: 27.87984092 | K18: 29.17649632 | L18: 30.4753216 | M18: 31.7763204 | P18: 20.80466706 | Q18: 22.58524687 | R18: 24.4541032 | S18: 26.4149677 | T18: 28.47171859 | U18: 30.74073079 | V18: 33.02737294 | W18: 35.41023753 | X18: 37.89273581 | Y18: 40.47839026 | AA18: =IFERROR(VLOOKUP($B18,Volumes!$B$4:$H$33,MATCH(AA$11,Volumes!$B$4:$H$4,0),FALSE),0) -> 0 | AB18: =IFERROR(VLOOKUP($B18,Volumes!$B$4:$H$33,MATCH(AB$11,Volumes!$B$4:$H$4,0),FALSE),0) -> 0 | AC18: =IFERROR(VLOOKUP($B18,Volumes!$B$4:$H$33,MATCH(AC$11,Volumes!$B$4:$H$4,0),FALSE),0) -> 0 | AD18: =IFERROR(VLOOKUP($B18,Volumes!$B$4:$H$33,MATCH(AD$11,Volumes!$B$4:$H$4,0),FALSE),0) -> 0 | AE18: =IFERROR(VLOOKUP($B18,Volumes!$B$4:$H$33,MATCH(AE$11,Volumes!$B$4:$H$4,0),FALSE),0) -> 0 | AF18: =IFERROR(VLOOKUP($B18,Volumes!$B$4:$M$33,MATCH(AF$11,Volumes!$B$4:$M$4,0),FALSE),0) -> 0 | AG18: =IFERROR(VLOOKUP($B18,Volumes!$B$4:$M$33,MATCH(AG$11,Volumes!$B$4:$M$4,0),FALSE),0) -> 0 | AH18: =IFERROR(VLOOKUP($B18,Volumes!$B$4:$M$33,MATCH(AH$11,Volumes!$B$4:$M$4,0),FALSE),0) -> 0 | AI18: =IFERROR(VLOOKUP($B18,Volumes!$B$4:$M$33,MATCH(AI$11,Volumes!$B$4:$M$4,0),FALSE),0) -> 0 | AJ18: =IFERROR(VLOOKUP($B18,Volumes!$B$4:$M$33,MATCH(AJ$11,Volumes!$B$4:$M$4,0),FALSE),0) -> 0 | AL18: 74.32414001 | AM18: 78.54052156 | AN18: 83.00585299 | AO18: 87.51753916 | AP18: 92.32832445 | AQ18: 97.03653397 | AR18: 101.7614193 | AS18: 106.4942116 | AT18: 111.5396771 | AU18: 115.9835695 | AW18: 76.14508144 | AX18: 82.43615106 | AY18: 89.25747667 | AZ18: 96.41463212 | BA18: 104.20649 | BB18: 112.2036674 | BC18: 120.5499112 | BD18: 129.247367 | BE18: 138.6874131 | BF18: 147.7461244 | BI18: 0 | BJ18: 0 | BK18: 0 | BL18: 0 | BM18: 0 | BN18: 0 | BO18: 0 | BP18: 0 | BQ18: 0 | BR18: 0 | BU18: 0 | BV18: 0 | BW18: 0 | BX18: 0 | BY18: 0 | BZ18: 0 | CA18: 0 | CB18: 0 | CC18: 0 | CD18: 0
B19: =Inputs!$C76 -> 2x24W Fluorescent | C19: Old light no volumes | D19: =IF($C19="NA","",'Smoothed Prices'!D19+$D$6) -> 20.140256 | E19: 21.34933258 | F19: 22.57096062 | G19: 23.80527042 | H19: 25.05239362 | I19: =IF($C19="NA","",'Smoothed Prices'!I19+$I$6) -> 26.41142724 | J19: 27.70562533 | K19: 29.00198919 | L19: 30.30052244 | M19: 31.60122873 | P19: 20.63369227 | Q19: 22.40826481 | R19: 24.27090282 | S19: 26.22533051 | T19: 28.27541842 | U19: 30.53962127 | V19: 32.82099145 | W19: 35.19844586 | X19: 37.67539214 | Y19: 40.25534904 | AA19: =IFERROR(VLOOKUP($B19,Volumes!$B$4:$H$33,MATCH(AA$11,Volumes!$B$4:$H$4,0),FALSE),0) -> 0 | AB19: =IFERROR(VLOOKUP($B19,Volumes!$B$4:$H$33,MATCH(AB$11,Volumes!$B$4:$H$4,0),FALSE),0) -> 0 | AC19: =IFERROR(VLOOKUP($B19,Volumes!$B$4:$H$33,MATCH(AC$11,Volumes!$B$4:$H$4,0),FALSE),0) -> 0 | AD19: =IFERROR(VLOOKUP($B19,Volumes!$B$4:$H$33,MATCH(AD$11,Volumes!$B$4:$H$4,0),FALSE),0) -> 0 | AE19: =IFERROR(VLOOKUP($B19,Volumes!$B$4:$H$33,MATCH(AE$11,Volumes!$B$4:$H$4,0),FALSE),0) -> 0 | AF19: =IFERROR(VLOOKUP($B19,Volumes!$B$4:$M$33,MATCH(AF$11,Volumes!$B$4:$M$4,0),FALSE),0) -> 0 | AG19: =IFERROR(VLOOKUP($B19,Volumes!$B$4:$M$33,MATCH(AG$11,Volumes!$B$4:$M$4,0),FALSE),0) -> 0 | AH19: =IFERROR(VLOOKUP($B19,Volumes!$B$4:$M$33,MATCH(AH$11,Volumes!$B$4:$M$4,0),FALSE),0) -> 0 | AI19: =IFERROR(VLOOKUP($B19,Volumes!$B$4:$M$33,MATCH(AI$11,Volumes!$B$4:$M$4,0),FALSE),0) -> 0 | AJ19: =IFERROR(VLOOKUP($B19,Volumes!$B$4:$M$33,MATCH(AJ$11,Volumes!$B$4:$M$4,0),FALSE),0) -> 0 | AL19: 73.71333696 | AM19: 77.92506392 | AN19: 82.38400627 | AO19: 86.88923703 | AP19: 91.69176066 | AQ19: 96.40170942 | AR19: 101.1255324 | AS19: 105.8572605 | AT19: 110.8999121 | AU19: 115.3444848 | AW19: 75.51931371 | AX19: 81.79016657 | AY19: 88.58879528 | AZ19: 95.72245637 | BA19: 103.4880314 | BB19: 111.4696176 | BC19: 119.7966188 | BD19: 128.4743274 | BE19: 137.8919352 | BF19: 146.932024 | BI19: 0 | BJ19: 0 | BK19: 0 | BL19: 0 | BM19: 0 | BN19: 0 | BO19: 0 | BP19: 0 | BQ19: 0 | BR19: 0 | BU19: 0 | BV19: 0 | BW19: 0 | BX19: 0 | BY19: 0 | BZ19: 0 | CA19: 0 | CB19: 0 | CC19: 0 | CD19: 0
B20: =Inputs!$C77 -> T5 Fluorescent 2 x 24W | C20: Old light no volumes | D20: =IF($C20="NA","",'Smoothed Prices'!D20+$D$6) -> 20.30714208 | E20: 21.51795111 | F20: 22.74132959 | G20: 23.97740799 | H20: 25.22631816 | I20: =IF($C20="NA","",'Smoothed Prices'!I20+$I$6) -> 26.58535177 | J20: 27.87984092 | K20: 29.17649632 | L20: 30.4753216 | M20: 31.7763204 | P20: 20.80466706 | Q20: 22.58524687 | R20: 24.4541032 | S20: 26.4149677 | T20: 28.47171859 | U20: 30.74073079 | V20: 33.02737294 | W20: 35.41023753 | X20: 37.89273581 | Y20: 40.47839026 | AA20: =IFERROR(VLOOKUP($B20,Volumes!$B$4:$H$33,MATCH(AA$11,Volumes!$B$4:$H$4,0),FALSE),0) -> 0 | AB20: =IFERROR(VLOOKUP($B20,Volumes!$B$4:$H$33,MATCH(AB$11,Volumes!$B$4:$H$4,0),FALSE),0) -> 0 | AC20: =IFERROR(VLOOKUP($B20,Volumes!$B$4:$H$33,MATCH(AC$11,Volumes!$B$4:$H$4,0),FALSE),0) -> 0 | AD20: =IFERROR(VLOOKUP($B20,Volumes!$B$4:$H$33,MATCH(AD$11,Volumes!$B$4:$H$4,0),FALSE),0) -> 0 | AE20: =IFERROR(VLOOKUP($B20,Volumes!$B$4:$H$33,MATCH(AE$11,Volumes!$B$4:$H$4,0),FALSE),0) -> 0 | AF20: =IFERROR(VLOOKUP($B20,Volumes!$B$4:$M$33,MATCH(AF$11,Volumes!$B$4:$M$4,0),FALSE),0) -> 0 | AG20: =IFERROR(VLOOKUP($B20,Volumes!$B$4:$M$33,MATCH(AG$11,Volumes!$B$4:$M$4,0),FALSE),0) -> 0 | AH20: =IFERROR(VLOOKUP($B20,Volumes!$B$4:$M$33,MATCH(AH$11,Volumes!$B$4:$M$4,0),FALSE),0) -> 0 | AI20: =IFERROR(VLOOKUP($B20,Volumes!$B$4:$M$33,MATCH(AI$11,Volumes!$B$4:$M$4,0),FALSE),0) -> 0 | AJ20: =IFERROR(VLOOKUP($B20,Volumes!$B$4:$M$33,MATCH(AJ$11,Volumes!$B$4:$M$4,0),FALSE),0) -> 0 | AL20: 74.32414001 | AM20: 78.54052156 | AN20: 83.00585299 | AO20: 87.51753916 | AP20: 92.32832445 | AQ20: 97.03653397 | AR20: 101.7614193 | AS20: 106.4942116 | AT20: 111.5396771 | AU20: 115.9835695 | AW20: 76.14508144 | AX20: 82.43615106 | AY20: 89.25747667 | AZ20: 96.41463212 | BA20: 104.20649 | BB20: 112.2036674 | BC20: 120.5499112 | BD20: 129.247367 | BE20: 138.6874131 | BF20: 147.7461244 | BI20: 0 | BJ20: 0 | BK20: 0 | BL20: 0 | BM20: 0 | BN20: 0 | BO20: 0 | BP20: 0 | BQ20: 0 | BR20: 0 | BU20: 0 | BV20: 0 | BW20: 0 | BX20: 0 | BY20: 0 | BZ20: 0 | CA20: 0 | CB20: 0 | CC20: 0 | CD20: 0
B21: =Inputs!$C78 -> 20 Fluorescent 1X20FL | C21: Old light no volumes | D21: =IF($C21="NA","",'Smoothed Prices'!D21+$D$6) -> 20.01745303 | E21: 21.22525479 | F21: 22.44559478 | G21: 23.67860315 | H21: 24.92441142 | I21: =IF($C21="NA","",'Smoothed Prices'!I21+$I$6) -> 26.28344503 | J21: 27.57742895 | K21: 28.87357828 | L21: 30.17189665 | M21: 31.47238768 | P21: 20.50788063 | Q21: 22.27803274 | R21: 24.13609499 | S21: 26.08578616 | T21: 28.13097113 | U21: 30.39163502 | V21: 32.66912582 | W21: 35.04259916 | X21: 37.51546001 | Y21: 40.09122438 | AA21: =IFERROR(VLOOKUP($B21,Volumes!$B$4:$H$33,MATCH(AA$11,Volumes!$B$4:$H$4,0),FALSE),0) -> 0 | AB21: =IFERROR(VLOOKUP($B21,Volumes!$B$4:$H$33,MATCH(AB$11,Volumes!$B$4:$H$4,0),FALSE),0) -> 0 | AC21: =IFERROR(VLOOKUP($B21,Volumes!$B$4:$H$33,MATCH(AC$11,Volumes!$B$4:$H$4,0),FALSE),0) -> 0 | AD21: =IFERROR(VLOOKUP($B21,Volumes!$B$4:$H$33,MATCH(AD$11,Volumes!$B$4:$H$4,0),FALSE),0) -> 0 | AE21: =IFERROR(VLOOKUP($B21,Volumes!$B$4:$H$33,MATCH(AE$11,Volumes!$B$4:$H$4,0),FALSE),0) -> 0 | AF21: =IFERROR(VLOOKUP($B21,Volumes!$B$4:$M$33,MATCH(AF$11,Volumes!$B$4:$M$4,0),FALSE),0) -> 0 | AG21: =IFERROR(VLOOKUP($B21,Volumes!$B$4:$M$33,MATCH(AG$11,Volumes!$B$4:$M$4,0),FALSE),0) -> 0 | AH21: =IFERROR(VLOOKUP($B21,Volumes!$B$4:$M$33,MATCH(AH$11,Volumes!$B$4:$M$4,0),FALSE),0) -> 0 | AI21: =IFERROR(VLOOKUP($B21,Volumes!$B$4:$M$33,MATCH(AI$11,Volumes!$B$4:$M$4,0),FALSE),0) -> 0 | AJ21: =IFERROR(VLOOKUP($B21,Volumes!$B$4:$M$33,MATCH(AJ$11,Volumes!$B$4:$M$4,0),FALSE),0) -> 0 | AL21: 73.2638781 | AM21: 77.47218 | AN21: 81.92642095 | AO21: 86.4269015 | AP21: 91.22334579 | AQ21: 95.93457437 | AR21: 100.6576157 | AS21: 105.3885607 | AT21: 110.4291417 | AU21: 114.874215 | AW21: 75.05884312 | AX21: 81.3148195 | AY21: 88.09674671 | AZ21: 95.21311949 | BA21: 102.9593543 | BB21: 110.9294678 | BC21: 119.2423093 | BD21: 127.9054869 | BE21: 137.3065836 | BF21: 146.332969 | BI21: 0 | BJ21: 0 | BK21: 0 | BL21: 0 | BM21: 0 | BN21: 0 | BO21: 0 | BP21: 0 | BQ21: 0 | BR21: 0 | BU21: 0 | BV21: 0 | BW21: 0 | BX21: 0 | BY21: 0 | BZ21: 0 | CA21: 0 | CB21: 0 | CC21: 0 | CD21: 0
B22: =Inputs!$C79 -> 2x40W Fluorescent | C22: Obsolete, no new Connections | D22: =IF($C22="NA","",'Smoothed Prices'!D22+$D$6) -> 20.34492761 | E22: 21.55612889 | F22: 22.77990369 | G22: 24.01638253 | H22: 25.2656973 | I22: =IF($C22="NA","",'Smoothed Prices'!I22+$I$6) -> 26.62473091 | J22: 27.91928595 | K22: 29.21600736 | L22: 30.51489877 | M22: 31.8159638 | P22: 20.84337833 | Q22: 22.62531827 | R22: 24.49558253 | S22: 26.45790443 | T22: 28.51616391 | U22: 30.78626502 | V22: 33.07410083 | W22: 35.45819036 | X22: 37.9419457 | Y22: 40.52889015 | AA22: =IFERROR(VLOOKUP($B22,Volumes!$B$4:$H$33,MATCH(AA$11,Volumes!$B$4:$H$4,0),FALSE),0) -> 0 | AB22: =IFERROR(VLOOKUP($B22,Volumes!$B$4:$H$33,MATCH(AB$11,Volumes!$B$4:$H$4,0),FALSE),0) -> 0 | AC22: =IFERROR(VLOOKUP($B22,Volumes!$B$4:$H$33,MATCH(AC$11,Volumes!$B$4:$H$4,0),FALSE),0) -> 0 | AD22: =IFERROR(VLOOKUP($B22,Volumes!$B$4:$H$33,MATCH(AD$11,Volumes!$B$4:$H$4,0),FALSE),0) -> 0 | AE22: =IFERROR(VLOOKUP($B22,Volumes!$B$4:$H$33,MATCH(AE$11,Volumes!$B$4:$H$4,0),FALSE),0) -> 0 | AF22: =IFERROR(VLOOKUP($B22,Volumes!$B$4:$M$33,MATCH(AF$11,Volumes!$B$4:$M$4,0),FALSE),0) -> 0 | AG22: =IFERROR(VLOOKUP($B22,Volumes!$B$4:$M$33,MATCH(AG$11,Volumes!$B$4:$M$4,0),FALSE),0) -> 0 | AH22: =IFERROR(VLOOKUP($B22,Volumes!$B$4:$M$33,MATCH(AH$11,Volumes!$B$4:$M$4,0),FALSE),0) -> 0 | AI22: =IFERROR(VLOOKUP($B22,Volumes!$B$4:$M$33,MATCH(AI$11,Volumes!$B$4:$M$4,0),FALSE),0) -> 0 | AJ22: =IFERROR(VLOOKUP($B22,Volumes!$B$4:$M$33,MATCH(AJ$11,Volumes!$B$4:$M$4,0),FALSE),0) -> 0 | AL22: 74.46243505 | AM22: 78.67987046 | AN22: 83.14664847 | AO22: 87.65979624 | AP22: 92.4724521 | AQ22: 97.18026783 | AR22: 101.9053937 | AS22: 106.6384269 | AT22: 111.6845295 | AU22: 116.1282679 | AW22: 76.2867647 | AX22: 82.5824117 | AY22: 89.40887623 | AZ22: 96.57135116 | BA22: 104.3691599 | BB22: 112.3698673 | BC22: 120.720468 | BD22: 129.4223948 | BE22: 138.8675213 | BF22: 147.9304491 | BI22: 0 | BJ22: 0 | BK22: 0 | BL22: 0 | BM22: 0 | BN22: 0 | BO22: 0 | BP22: 0 | BQ22: 0 | BR22: 0 | BU22: 0 | BV22: 0 | BW22: 0 | BX22: 0 | BY22: 0 | BZ22: 0 | CA22: 0 | CB22: 0 | CC22: 0 | CD22: 0
B23: =Inputs!$C80 -> 3x40W Fluorescent | C23: Obsolete, no new Connections | D23: =IF($C23="NA","",'Smoothed Prices'!D23+$D$6) -> 24.06785169 | E23: 25.31770076 | F23: 26.58052455 | G23: 27.85645774 | H23: 29.14563644 | I23: =IF($C23="NA","",'Smoothed Prices'!I23+$I$6) -> 30.50467005 | J23: 31.80571796 | K23: 33.10894311 | L23: 34.41434913 | M23: 35.72193967 | P23: 24.65751406 | Q23: 26.57346505 | R23: 28.58244888 | S23: 30.68836431 | T23: 32.89526254 | U23: 35.27265157 | V23: 37.67809551 | W23: 40.18287621 | X23: 42.79048657 | Y23: 45.50453283 | AA23: =IFERROR(VLOOKUP($B23,Volumes!$B$4:$H$33,MATCH(AA$11,Volumes!$B$4:$H$4,0),FALSE),0) -> 0 | AB23: =IFERROR(VLOOKUP($B23,Volumes!$B$4:$H$33,MATCH(AB$11,Volumes!$B$4:$H$4,0),FALSE),0) -> 0 | AC23: =IFERROR(VLOOKUP($B23,Volumes!$B$4:$H$33,MATCH(AC$11,Volumes!$B$4:$H$4,0),FALSE),0) -> 0 | AD23: =IFERROR(VLOOKUP($B23,Volumes!$B$4:$H$33,MATCH(AD$11,Volumes!$B$4:$H$4,0),FALSE),0) -> 0 | AE23: =IFERROR(VLOOKUP($B23,Volumes!$B$4:$H$33,MATCH(AE$11,Volumes!$B$4:$H$4,0),FALSE),0) -> 0 | AF23: =IFERROR(VLOOKUP($B23,Volumes!$B$4:$M$33,MATCH(AF$11,Volumes!$B$4:$M$4,0),FALSE),0) -> 0 | AG23: =IFERROR(VLOOKUP($B23,Volumes!$B$4:$M$33,MATCH(AG$11,Volumes!$B$4:$M$4,0),FALSE),0) -> 0 | AH23: =IFERROR(VLOOKUP($B23,Volumes!$B$4:$M$33,MATCH(AH$11,Volumes!$B$4:$M$4,0),FALSE),0) -> 0 | AI23: =IFERROR(VLOOKUP($B23,Volumes!$B$4:$M$33,MATCH(AI$11,Volumes!$B$4:$M$4,0),FALSE),0) -> 0 | AJ23: =IFERROR(VLOOKUP($B23,Volumes!$B$4:$M$33,MATCH(AJ$11,Volumes!$B$4:$M$4,0),FALSE),0) -> 0 | AL23: 88.0883372 | AM23: 92.40960777 | AN23: 97.01891459 | AO23: 101.6760708 | AP23: 106.6730294 | AQ23: 111.3420457 | AR23: 116.0908706 | AS23: 120.8476423 | AT23: 125.9565178 | AU23: 130.3850798 | AW23: 90.24650146 | AX23: 96.99314742 | AY23: 104.3259384 | AZ23: 112.0125297 | BA23: 120.3966609 | BB23: 128.7451782 | BC23: 137.5250486 | BD23: 146.6674982 | BE23: 156.6131808 | BF23: 166.0915448 | BI23: 0 | BJ23: 0 | BK23: 0 | BL23: 0 | BM23: 0 | BN23: 0 | BO23: 0 | BP23: 0 | BQ23: 0 | BR23: 0 | BU23: 0 | BV23: 0 | BW23: 0 | BX23: 0 | BY23: 0 | BZ23: 0 | CA23: 0 | CB23: 0 | CC23: 0 | CD23: 0
B24: =Inputs!$C81 -> 4x20 Fluorescent | C24: Old light no volumes | D24: =IF($C24="NA","",'Smoothed Prices'!D24+$D$6) -> 20.88652017 | E24: 22.10334374 | F24: 23.3327992 | G24: 24.57501766 | H24: 25.83013163 | I24: =IF($C24="NA","",'Smoothed Prices'!I24+$I$6) -> 27.18916525 | J24: 28.48466484 | K24: 29.78233238 | L24: 31.0821715 | M24: 32.38418583 | P24: 21.39823992 | Q24: 23.19967512 | R24: 25.09011961 | S24: 27.07333079 | T24: 29.1532135 | U24: 31.43892232 | V24: 33.74386718 | W24: 36.14551427 | X24: 38.64728742 | Y24: 41.25272202 | AA24: =IFERROR(VLOOKUP($B24,Volumes!$B$4:$H$33,MATCH(AA$11,Volumes!$B$4:$H$4,0),FALSE),0) -> 0 | AB24: =IFERROR(VLOOKUP($B24,Volumes!$B$4:$H$33,MATCH(AB$11,Volumes!$B$4:$H$4,0),FALSE),0) -> 0 | AC24: =IFERROR(VLOOKUP($B24,Volumes!$B$4:$H$33,MATCH(AC$11,Volumes!$B$4:$H$4,0),FALSE),0) -> 0 | AD24: =IFERROR(VLOOKUP($B24,Volumes!$B$4:$H$33,MATCH(AD$11,Volumes!$B$4:$H$4,0),FALSE),0) -> 0 | AE24: =IFERROR(VLOOKUP($B24,Volumes!$B$4:$H$33,MATCH(AE$11,Volumes!$B$4:$H$4,0),FALSE),0) -> 0 | AF24: =IFERROR(VLOOKUP($B24,Volumes!$B$4:$M$33,MATCH(AF$11,Volumes!$B$4:$M$4,0),FALSE),0) -> 0 | AG24: =IFERROR(VLOOKUP($B24,Volumes!$B$4:$M$33,MATCH(AG$11,Volumes!$B$4:$M$4,0),FALSE),0) -> 0 | AH24: =IFERROR(VLOOKUP($B24,Volumes!$B$4:$M$33,MATCH(AH$11,Volumes!$B$4:$M$4,0),FALSE),0) -> 0 | AI24: =IFERROR(VLOOKUP($B24,Volumes!$B$4:$M$33,MATCH(AI$11,Volumes!$B$4:$M$4,0),FALSE),0) -> 0 | AJ24: =IFERROR(VLOOKUP($B24,Volumes!$B$4:$M$33,MATCH(AJ$11,Volumes!$B$4:$M$4,0),FALSE),0) -> 0 | AL24: 76.44466383 | AM24: 80.67720467 | AN24: 85.16471707 | AO24: 89.69881447 | AP24: 94.53828178 | AQ24: 99.24045316 | AR24: 103.9690267 | AS24: 108.7055132 | AT24: 113.7607477 | AU24: 118.2022783 | AW24: 78.3175581 | AX24: 84.67881419 | AY24: 91.57893658 | AZ24: 98.81765737 | BA24: 106.7007614 | BB24: 114.7520665 | BC24: 123.1651152 | BD24: 131.9311271 | BE24: 141.449072 | BF24: 150.5724354 | BI24: 0 | BJ24: 0 | BK24: 0 | BL24: 0 | BM24: 0 | BN24: 0 | BO24: 0 | BP24: 0 | BQ24: 0 | BR24: 0 | BU24: 0 | BV24: 0 | BW24: 0 | BX24: 0 | BY24: 0 | BZ24: 0 | CA24: 0 | CB24: 0 | CC24: 0 | CD24: 0
B25: =Inputs!$C82 -> 4x40W Fluorescent | C25: Obsolete, no new Connections | D25: =IF($C25="NA","",'Smoothed Prices'!D25+$D$6) -> 24.37538391 | E25: 25.62842547 | F25: 26.8944749 | G25: 28.17366723 | H25: 29.46613888 | I25: =IF($C25="NA","",'Smoothed Prices'!I25+$I$6) -> 30.8251725 | J25: 32.12675675 | K25: 33.43051914 | L25: 34.7364633 | M25: 36.04459288 | P25: 24.97258081 | Q25: 26.89960178 | R25: 28.92004455 | S25: 31.03782153 | T25: 33.25699806 | U25: 35.64324961 | V25: 38.05840858 | W25: 40.57315897 | X25: 43.19100038 | Y25: 45.91554589 | AA25: =IFERROR(VLOOKUP($B25,Volumes!$B$4:$H$33,MATCH(AA$11,Volumes!$B$4:$H$4,0),FALSE),0) -> 0 | AB25: =IFERROR(VLOOKUP($B25,Volumes!$B$4:$H$33,MATCH(AB$11,Volumes!$B$4:$H$4,0),FALSE),0) -> 0 | AC25: =IFERROR(VLOOKUP($B25,Volumes!$B$4:$H$33,MATCH(AC$11,Volumes!$B$4:$H$4,0),FALSE),0) -> 0 | AD25: =IFERROR(VLOOKUP($B25,Volumes!$B$4:$H$33,MATCH(AD$11,Volumes!$B$4:$H$4,0),FALSE),0) -> 0 | AE25: =IFERROR(VLOOKUP($B25,Volumes!$B$4:$H$33,MATCH(AE$11,Volumes!$B$4:$H$4,0),FALSE),0) -> 0 | AF25: =IFERROR(VLOOKUP($B25,Volumes!$B$4:$M$33,MATCH(AF$11,Volumes!$B$4:$M$4,0),FALSE),0) -> 0 | AG25: =IFERROR(VLOOKUP($B25,Volumes!$B$4:$M$33,MATCH(AG$11,Volumes!$B$4:$M$4,0),FALSE),0) -> 0 | AH25: =IFERROR(VLOOKUP($B25,Volumes!$B$4:$M$33,MATCH(AH$11,Volumes!$B$4:$M$4,0),FALSE),0) -> 0 | AI25: =IFERROR(VLOOKUP($B25,Volumes!$B$4:$M$33,MATCH(AI$11,Volumes!$B$4:$M$4,0),FALSE),0) -> 0 | AJ25: =IFERROR(VLOOKUP($B25,Volumes!$B$4:$M$33,MATCH(AJ$11,Volumes!$B$4:$M$4,0),FALSE),0) -> 0 | AL25: 89.21390509 | AM25: 93.54375298 | AN25: 98.16483339 | AO25: 102.8338854 | AP25: 107.8460683 | AQ25: 112.5118796 | AR25: 117.2626621 | AS25: 122.0213948 | AT25: 127.1354557 | AU25: 131.562764 | AW25: 91.39964577 | AX25: 98.18354651 | AY25: 105.5581626 | AZ25: 113.2880486 | BA25: 121.7206129 | BB25: 130.0978611 | BC25: 138.9131913 | BD25: 148.0920303 | BE25: 158.0790614 | BF25: 167.5917425 | BI25: 0 | BJ25: 0 | BK25: 0 | BL25: 0 | BM25: 0 | BN25: 0 | BO25: 0 | BP25: 0 | BQ25: 0 | BR25: 0 | BU25: 0 | BV25: 0 | BW25: 0 | BX25: 0 | BY25: 0 | BZ25: 0 | CA25: 0 | CB25: 0 | CC25: 0 | CD25: 0
B26: =Inputs!$C83 -> 100W Sodium Vapour | C26: Old light no volumes | D26: =IF($C26="NA","",'Smoothed Prices'!D26+$D$6) -> 24.19065466 | E26: 25.44177855 | F26: 26.70589039 | G26: 27.98312501 | H26: 29.27361864 | I26: =IF($C26="NA","",'Smoothed Prices'!I26+$I$6) -> 30.63265226 | J26: 31.93391434 | K26: 33.23735401 | L26: 34.54297492 | M26: 35.85078072 | P26: 24.7833257 | Q26: 26.70369712 | R26: 28.7172567 | S26: 30.82790866 | T26: 33.03970983 | U26: 35.42063782 | V26: 37.82996114 | W26: 40.33872291 | X26: 42.95041871 | Y26: 45.6686575 | AA26: =IFERROR(VLOOKUP($B26,Volumes!$B$4:$H$33,MATCH(AA$11,Volumes!$B$4:$H$4,0),FALSE),0) -> 5 | AB26: =IFERROR(VLOOKUP($B26,Volumes!$B$4:$H$33,MATCH(AB$11,Volumes!$B$4:$H$4,0),FALSE),0) -> 5 | AC26: =IFERROR(VLOOKUP($B26,Volumes!$B$4:$H$33,MATCH(AC$11,Volumes!$B$4:$H$4,0),FALSE),0) -> 5 | AD26: =IFERROR(VLOOKUP($B26,Volumes!$B$4:$H$33,MATCH(AD$11,Volumes!$B$4:$H$4,0),FALSE),0) -> 5 | AE26: =IFERROR(VLOOKUP($B26,Volumes!$B$4:$H$33,MATCH(AE$11,Volumes!$B$4:$H$4,0),FALSE),0) -> 5 | AF26: =IFERROR(VLOOKUP($B26,Volumes!$B$4:$M$33,MATCH(AF$11,Volumes!$B$4:$M$4,0),FALSE),0) -> 5 | AG26: =IFERROR(VLOOKUP($B26,Volumes!$B$4:$M$33,MATCH(AG$11,Volumes!$B$4:$M$4,0),FALSE),0) -> 5 | AH26: =IFERROR(VLOOKUP($B26,Volumes!$B$4:$M$33,MATCH(AH$11,Volumes!$B$4:$M$4,0),FALSE),0) -> 5 | AI26: =IFERROR(VLOOKUP($B26,Volumes!$B$4:$M$33,MATCH(AI$11,Volumes!$B$4:$M$4,0),FALSE),0) -> 5 | AJ26: =IFERROR(VLOOKUP($B26,Volumes!$B$4:$M$33,MATCH(AJ$11,Volumes!$B$4:$M$4,0),FALSE),0) -> 5 | AL26: 88.53779605 | AM26: 92.86249169 | AN26: 97.47649991 | AO26: 102.1384063 | AP26: 107.1414442 | AQ26: 111.8091807 | AR26: 116.5587873 | AS26: 121.3163421 | AT26: 126.4272882 | AU26: 130.8553496 | AW26: 90.70697205 | AX26: 97.4684945 | AY26: 104.817987 | AZ26: 112.5218666 | BA26: 120.925338 | BB26: 129.285328 | BC26: 138.0793582 | BD26: 147.2363386 | BE26: 157.1985325 | BF26: 166.6905999 | BI26: 442.6889803 | BJ26: 464.3124585 | BK26: 487.3824996 | BL26: 510.6920314 | BM26: 535.7072212 | BN26: 559.0459037 | BO26: =IFERROR(AR26*AG26,0) -> 582.7939367 | BP26: 606.5817107 | BQ26: 632.1364411 | BR26: 654.2767481 | BU26: 453.5348603 | BV26: 487.3424725 | BW26: 524.0899348 | BX26: 562.6093331 | BY26: 604.6266899 | BZ26: 646.4266402 | CA26: 690.3967908 | CB26: 736.1816931 | CC26: 785.9926623 | CD26: 833.4529994
B27: =Inputs!$C84 -> 0 | C27: NA | D27: =IF($C27="NA","",'Smoothed Prices'!D27+$D$6) ->  | I27: =IF($C27="NA","",'Smoothed Prices'!I27+$I$6) ->  | AA27: =IFERROR(VLOOKUP($B27,Volumes!$B$4:$H$33,MATCH(AA$11,Volumes!$B$4:$H$4,0),FALSE),0) -> 0 | AB27: =IFERROR(VLOOKUP($B27,Volumes!$B$4:$H$33,MATCH(AB$11,Volumes!$B$4:$H$4,0),FALSE),0) -> 0 | AC27: =IFERROR(VLOOKUP($B27,Volumes!$B$4:$H$33,MATCH(AC$11,Volumes!$B$4:$H$4,0),FALSE),0) -> 0 | AD27: =IFERROR(VLOOKUP($B27,Volumes!$B$4:$H$33,MATCH(AD$11,Volumes!$B$4:$H$4,0),FALSE),0) -> 0 | AE27: =IFERROR(VLOOKUP($B27,Volumes!$B$4:$H$33,MATCH(AE$11,Volumes!$B$4:$H$4,0),FALSE),0) -> 0 | AF27: =IFERROR(VLOOKUP($B27,Volumes!$B$4:$M$33,MATCH(AF$11,Volumes!$B$4:$M$4,0),FALSE),0) -> 0 | AG27: =IFERROR(VLOOKUP($B27,Volumes!$B$4:$M$33,MATCH(AG$11,Volumes!$B$4:$M$4,0),FALSE),0) -> 0 | AH27: =IFERROR(VLOOKUP($B27,Volumes!$B$4:$M$33,MATCH(AH$11,Volumes!$B$4:$M$4,0),FALSE),0) -> 0 | AI27: =IFERROR(VLOOKUP($B27,Volumes!$B$4:$M$33,MATCH(AI$11,Volumes!$B$4:$M$4,0),FALSE),0) -> 0 | AJ27: =IFERROR(VLOOKUP($B27,Volumes!$B$4:$M$33,MATCH(AJ$11,Volumes!$B$4:$M$4,0),FALSE),0) -> 0 | BI27: 0 | BJ27: 0 | BK27: 0 | BL27: 0 | BM27: 0 | BN27: 0 | BO27: 0 | BP27: 0 | BQ27: 0 | BR27: 0 | BU27: 0 | BV27: 0 | BW27: 0 | BX27: 0 | BY27: 0 | BZ27: 0 | CA27: 0 | CB27: 0 | CC27: 0 | CD27: 0
B28: =Inputs!$C85 -> 150W Sodium Vapour | C28: Offered | D28: =IF($C28="NA","",'Smoothed Prices'!D28+$D$6) -> 24.18645627 | E28: 25.43753657 | F28: 26.70160438 | G28: 27.97879451 | H28: 29.26924318 | I28: =IF($C28="NA","",'Smoothed Prices'!I28+$I$6) -> 30.6282768 | J28: 31.92953156 | K28: 33.2329639 | L28: 34.53857746 | M28: 35.84637589 | P28: 24.77902445 | Q28: 26.69924474 | R28: 28.71264789 | S28: 30.82313791 | T28: 33.03477146 | U28: 35.41557846 | V28: 37.82476915 | W28: 40.33339482 | X28: 42.94495094 | Y28: 45.6630464 | AA28: =IFERROR(VLOOKUP($B28,Volumes!$B$4:$H$33,MATCH(AA$11,Volumes!$B$4:$H$4,0),FALSE),0) -> 163 | AB28: =IFERROR(VLOOKUP($B28,Volumes!$B$4:$H$33,MATCH(AB$11,Volumes!$B$4:$H$4,0),FALSE),0) -> 163 | AC28: =IFERROR(VLOOKUP($B28,Volumes!$B$4:$H$33,MATCH(AC$11,Volumes!$B$4:$H$4,0),FALSE),0) -> 163 | AD28: =IFERROR(VLOOKUP($B28,Volumes!$B$4:$H$33,MATCH(AD$11,Volumes!$B$4:$H$4,0),FALSE),0) -> 163 | AE28: =IFERROR(VLOOKUP($B28,Volumes!$B$4:$H$33,MATCH(AE$11,Volumes!$B$4:$H$4,0),FALSE),0) -> 163 | AF28: =IFERROR(VLOOKUP($B28,Volumes!$B$4:$M$33,MATCH(AF$11,Volumes!$B$4:$M$4,0),FALSE),0) -> 163 | AG28: =IFERROR(VLOOKUP($B28,Volumes!$B$4:$M$33,MATCH(AG$11,Volumes!$B$4:$M$4,0),FALSE),0) -> 163 | AH28: =IFERROR(VLOOKUP($B28,Volumes!$B$4:$M$33,MATCH(AH$11,Volumes!$B$4:$M$4,0),FALSE),0) -> 163 | AI28: =IFERROR(VLOOKUP($B28,Volumes!$B$4:$M$33,MATCH(AI$11,Volumes!$B$4:$M$4,0),FALSE),0) -> 163 | AJ28: =IFERROR(VLOOKUP($B28,Volumes!$B$4:$M$33,MATCH(AJ$11,Volumes!$B$4:$M$4,0),FALSE),0) -> 163 | AL28: 88.52242994 | AM28: 92.84700848 | AN28: 97.46085597 | AO28: 102.1225999 | AP28: 107.12543 | AQ28: 111.7932103 | AR28: 116.5427902 | AS28: 121.3003182 | AT28: 126.4111935 | AU28: 130.839272 | AW28: 90.69122947 | AX28: 97.45224332 | AY28: 104.8011648 | AZ28: 112.5044534 | BA28: 120.9072636 | BB28: 129.2668614 | BC28: 138.0604074 | BD28: 147.2168911 | BE28: 157.1785204 | BF28: 166.6701194 | BI28: 14429.15608 | BJ28: 15134.06238 | BK28: 15886.11952 | BL28: 16645.98379 | BM28: 17461.4451 | BN28: 18222.29328 | BO28: 18996.4748 | BP28: 19771.95187 | BQ28: 20605.02454 | BR28: 21326.80134 | BU28: 14782.6704 | BV28: 15884.71566 | BW28: 17082.58986 | BX28: 18338.2259 | BY28: 19707.88396 | BZ28: 21070.4984 | CA28: 22503.84641 | CB28: 23996.35325 | CC28: 25620.09883 | CD28: 27167.22946
B29: =Inputs!$C86 -> 0 | C29: NA | D29: =IF($C29="NA","",'Smoothed Prices'!D29+$D$6) ->  | I29: =IF($C29="NA","",'Smoothed Prices'!I29+$I$6) ->  | AA29: =IFERROR(VLOOKUP($B29,Volumes!$B$4:$H$33,MATCH(AA$11,Volumes!$B$4:$H$4,0),FALSE),0) -> 0 | AB29: =IFERROR(VLOOKUP($B29,Volumes!$B$4:$H$33,MATCH(AB$11,Volumes!$B$4:$H$4,0),FALSE),0) -> 0 | AC29: =IFERROR(VLOOKUP($B29,Volumes!$B$4:$H$33,MATCH(AC$11,Volumes!$B$4:$H$4,0),FALSE),0) -> 0 | AD29: =IFERROR(VLOOKUP($B29,Volumes!$B$4:$H$33,MATCH(AD$11,Volumes!$B$4:$H$4,0),FALSE),0) -> 0 | AE29: =IFERROR(VLOOKUP($B29,Volumes!$B$4:$H$33,MATCH(AE$11,Volumes!$B$4:$H$4,0),FALSE),0) -> 0 | AF29: =IFERROR(VLOOKUP($B29,Volumes!$B$4:$M$33,MATCH(AF$11,Volumes!$B$4:$M$4,0),FALSE),0) -> 0 | AG29: =IFERROR(VLOOKUP($B29,Volumes!$B$4:$M$33,MATCH(AG$11,Volumes!$B$4:$M$4,0),FALSE),0) -> 0 | AH29: =IFERROR(VLOOKUP($B29,Volumes!$B$4:$M$33,MATCH(AH$11,Volumes!$B$4:$M$4,0),FALSE),0) -> 0 | AI29: =IFERROR(VLOOKUP($B29,Volumes!$B$4:$M$33,MATCH(AI$11,Volumes!$B$4:$M$4,0),FALSE),0) -> 0 | AJ29: =IFERROR(VLOOKUP($B29,Volumes!$B$4:$M$33,MATCH(AJ$11,Volumes!$B$4:$M$4,0),FALSE),0) -> 0 | BI29: =IFERROR(AL29*AA29,0) -> 0 | BJ29: =IFERROR(AM29*AB29,0) -> 0 | BK29: =IFERROR(AN29*AC29,0) -> 0 | BL29: =IFERROR(AO29*AD29,0) -> 0 | BM29: =IFERROR(AP29*AE29,0) -> 0 | BN29: =IFERROR(AQ29*AF29,0) -> 0 | BO29: =IFERROR(AR29*AG29,0) -> 0 | BP29: =IFERROR(AS29*AH29,0) -> 0 | BQ29: =IFERROR(AT29*AI29,0) -> 0 | BR29: =IFERROR(AU29*AJ29,0) -> 0 | BU29: 0 | BV29: 0 | BW29: 0 | BX29: 0 | BY29: 0 | BZ29: 0 | CA29: 0 | CB29: 0 | CC29: 0 | CD29: 0
B30: =Inputs!$C87 -> 0 | C30: NA | D30: =IF($C30="NA","",'Smoothed Prices'!D30+$D$6) ->  | I30: =IF($C30="NA","",'Smoothed Prices'!I30+$I$6) ->  | AA30: =IFERROR(VLOOKUP($B30,Volumes!$B$4:$H$33,MATCH(AA$11,Volumes!$B$4:$H$4,0),FALSE),0) -> 0 | AB30: =IFERROR(VLOOKUP($B30,Volumes!$B$4:$H$33,MATCH(AB$11,Volumes!$B$4:$H$4,0),FALSE),0) -> 0 | AC30: =IFERROR(VLOOKUP($B30,Volumes!$B$4:$H$33,MATCH(AC$11,Volumes!$B$4:$H$4,0),FALSE),0) -> 0 | AD30: =IFERROR(VLOOKUP($B30,Volumes!$B$4:$H$33,MATCH(AD$11,Volumes!$B$4:$H$4,0),FALSE),0) -> 0 | AE30: =IFERROR(VLOOKUP($B30,Volumes!$B$4:$H$33,MATCH(AE$11,Volumes!$B$4:$H$4,0),FALSE),0) -> 0 | AF30: =IFERROR(VLOOKUP($B30,Volumes!$B$4:$M$33,MATCH(AF$11,Volumes!$B$4:$M$4,0),FALSE),0) -> 0 | AG30: =IFERROR(VLOOKUP($B30,Volumes!$B$4:$M$33,MATCH(AG$11,Volumes!$B$4:$M$4,0),FALSE),0) -> 0 | AH30: =IFERROR(VLOOKUP($B30,Volumes!$B$4:$M$33,MATCH(AH$11,Volumes!$B$4:$M$4,0),FALSE),0) -> 0 | AI30: =IFERROR(VLOOKUP($B30,Volumes!$B$4:$M$33,MATCH(AI$11,Volumes!$B$4:$M$4,0),FALSE),0) -> 0 | AJ30: =IFERROR(VLOOKUP($B30,Volumes!$B$4:$M$33,MATCH(AJ$11,Volumes!$B$4:$M$4,0),FALSE),0) -> 0 | BI30: 0 | BJ30: 0 | BK30: 0 | BL30: 0 | BM30: 0 | BN30: 0 | BO30: 0 | BP30: 0 | BQ30: 0 | BR30: 0 | BU30: 0 | BV30: 0 | BW30: 0 | BX30: 0 | BY30: 0 | BZ30: 0 | CA30: 0 | CB30: 0 | CC30: 0 | CD30: 0
B31: =Inputs!$C88 -> 0 | C31: NA | D31: =IF($C31="NA","",'Smoothed Prices'!D31+$D$6) ->  | I31: =IF($C31="NA","",'Smoothed Prices'!I31+$I$6) ->  | AA31: =IFERROR(VLOOKUP($B31,Volumes!$B$4:$H$33,MATCH(AA$11,Volumes!$B$4:$H$4,0),FALSE),0) -> 0 | AB31: =IFERROR(VLOOKUP($B31,Volumes!$B$4:$H$33,MATCH(AB$11,Volumes!$B$4:$H$4,0),FALSE),0) -> 0 | AC31: =IFERROR(VLOOKUP($B31,Volumes!$B$4:$H$33,MATCH(AC$11,Volumes!$B$4:$H$4,0),FALSE),0) -> 0 | AD31: =IFERROR(VLOOKUP($B31,Volumes!$B$4:$H$33,MATCH(AD$11,Volumes!$B$4:$H$4,0),FALSE),0) -> 0 | AE31: =IFERROR(VLOOKUP($B31,Volumes!$B$4:$H$33,MATCH(AE$11,Volumes!$B$4:$H$4,0),FALSE),0) -> 0 | AF31: =IFERROR(VLOOKUP($B31,Volumes!$B$4:$M$33,MATCH(AF$11,Volumes!$B$4:$M$4,0),FALSE),0) -> 0 | AG31: =IFERROR(VLOOKUP($B31,Volumes!$B$4:$M$33,MATCH(AG$11,Volumes!$B$4:$M$4,0),FALSE),0) -> 0 | AH31: =IFERROR(VLOOKUP($B31,Volumes!$B$4:$M$33,MATCH(AH$11,Volumes!$B$4:$M$4,0),FALSE),0) -> 0 | AI31: =IFERROR(VLOOKUP($B31,Volumes!$B$4:$M$33,MATCH(AI$11,Volumes!$B$4:$M$4,0),FALSE),0) -> 0 | AJ31: =IFERROR(VLOOKUP($B31,Volumes!$B$4:$M$33,MATCH(AJ$11,Volumes!$B$4:$M$4,0),FALSE),0) -> 0 | BI31: 0 | BJ31: 0 | BK31: 0 | BL31: 0 | BM31: 0 | BN31: 0 | BO31: 0 | BP31: 0 | BQ31: 0 | BR31: 0 | BU31: 0 | BV31: 0 | BW31: 0 | BX31: 0 | BY31: 0 | BZ31: 0 | CA31: 0 | CB31: 0 | CC31: 0 | CD31: 0
B32: =Inputs!$C89 -> 250W Sodium Vapour | C32: Offered | D32: =IF($C32="NA","",'Smoothed Prices'!D32+$D$6) -> 24.31660642 | E32: 25.56903781 | F32: 26.83447074 | G32: 28.11304016 | H32: 29.40488244 | I32: =IF($C32="NA","",'Smoothed Prices'!I32+$I$6) -> 30.76391606 | J32: 32.0653978 | K32: 33.36905751 | L32: 34.67489881 | M32: 35.98292538 | P32: 24.91236328 | Q32: 26.83726848 | R32: 28.85552114 | S32: 30.97103107 | T32: 33.1878609 | U32: 35.57241859 | V32: 37.98572076 | W32: 40.49856568 | X32: 43.11445166 | Y32: 45.83699049 | AA32: =IFERROR(VLOOKUP($B32,Volumes!$B$4:$H$33,MATCH(AA$11,Volumes!$B$4:$H$4,0),FALSE),0) -> 165 | AB32: =IFERROR(VLOOKUP($B32,Volumes!$B$4:$H$33,MATCH(AB$11,Volumes!$B$4:$H$4,0),FALSE),0) -> 165 | AC32: =IFERROR(VLOOKUP($B32,Volumes!$B$4:$H$33,MATCH(AC$11,Volumes!$B$4:$H$4,0),FALSE),0) -> 165 | AD32: =IFERROR(VLOOKUP($B32,Volumes!$B$4:$H$33,MATCH(AD$11,Volumes!$B$4:$H$4,0),FALSE),0) -> 165 | AE32: =IFERROR(VLOOKUP($B32,Volumes!$B$4:$H$33,MATCH(AE$11,Volumes!$B$4:$H$4,0),FALSE),0) -> 165 | AF32: =IFERROR(VLOOKUP($B32,Volumes!$B$4:$M$33,MATCH(AF$11,Volumes!$B$4:$M$4,0),FALSE),0) -> 165 | AG32: =IFERROR(VLOOKUP($B32,Volumes!$B$4:$M$33,MATCH(AG$11,Volumes!$B$4:$M$4,0),FALSE),0) -> 165 | AH32: =IFERROR(VLOOKUP($B32,Volumes!$B$4:$M$33,MATCH(AH$11,Volumes!$B$4:$M$4,0),FALSE),0) -> 165 | AI32: =IFERROR(VLOOKUP($B32,Volumes!$B$4:$M$33,MATCH(AI$11,Volumes!$B$4:$M$4,0),FALSE),0) -> 165 | AJ32: =IFERROR(VLOOKUP($B32,Volumes!$B$4:$M$33,MATCH(AJ$11,Volumes!$B$4:$M$4,0),FALSE),0) -> 165 | AL32: 88.99877949 | AM32: 93.32698802 | AN32: 97.94581819 | AO32: 102.6125966 | AP32: 107.6218697 | AQ32: 112.2882936 | AR32: 117.038702 | AS32: 121.7970599 | AT32: 126.9101297 | AU32: 131.3376776 | AW32: 91.17924959 | AX32: 97.95602996 | AY32: 105.3226522 | AZ32: 113.0442634 | BA32: 121.4675709 | BB32: 129.8393278 | BC32: 138.6478808 | BD32: 147.8197647 | BE32: 157.7988931 | BF32: 167.3050153 | BI32: 14684.79862 | BJ32: 15398.95302 | BK32: 16161.06 | BL32: 16931.07843 | BM32: 17757.60851 | BN32: 18527.56845 | BO32: 19311.38583 | BP32: 20096.51488 | BQ32: 20940.17139 | BR32: 21670.71681 | BU32: 15044.57618 | BV32: 16162.74494 | BW32: 17378.23761 | BX32: 18652.30346 | BY32: 20042.1492 | BZ32: 21423.48909 | CA32: 22876.90033 | CB32: 24390.26118 | CC32: 26036.81736 | CD32: 27605.32752
B33: =Inputs!$C90 -> 0 | C33: NA | D33: =IF($C33="NA","",'Smoothed Prices'!D33+$D$6) ->  | I33: =IF($C33="NA","",'Smoothed Prices'!I33+$I$6) ->  | AA33: =IFERROR(VLOOKUP($B33,Volumes!$B$4:$H$33,MATCH(AA$11,Volumes!$B$4:$H$4,0),FALSE),0) -> 0 | AB33: =IFERROR(VLOOKUP($B33,Volumes!$B$4:$H$33,MATCH(AB$11,Volumes!$B$4:$H$4,0),FALSE),0) -> 0 | AC33: =IFERROR(VLOOKUP($B33,Volumes!$B$4:$H$33,MATCH(AC$11,Volumes!$B$4:$H$4,0),FALSE),0) -> 0 | AD33: =IFERROR(VLOOKUP($B33,Volumes!$B$4:$H$33,MATCH(AD$11,Volumes!$B$4:$H$4,0),FALSE),0) -> 0 | AE33: =IFERROR(VLOOKUP($B33,Volumes!$B$4:$H$33,MATCH(AE$11,Volumes!$B$4:$H$4,0),FALSE),0) -> 0 | AF33: =IFERROR(VLOOKUP($B33,Volumes!$B$4:$M$33,MATCH(AF$11,Volumes!$B$4:$M$4,0),FALSE),0) -> 0 | AG33: =IFERROR(VLOOKUP($B33,Volumes!$B$4:$M$33,MATCH(AG$11,Volumes!$B$4:$M$4,0),FALSE),0) -> 0 | AH33: =IFERROR(VLOOKUP($B33,Volumes!$B$4:$M$33,MATCH(AH$11,Volumes!$B$4:$M$4,0),FALSE),0) -> 0 | AI33: =IFERROR(VLOOKUP($B33,Volumes!$B$4:$M$33,MATCH(AI$11,Volumes!$B$4:$M$4,0),FALSE),0) -> 0 | AJ33: =IFERROR(VLOOKUP($B33,Volumes!$B$4:$M$33,MATCH(AJ$11,Volumes!$B$4:$M$4,0),FALSE),0) -> 0 | BI33: 0 | BJ33: 0 | BK33: 0 | BL33: 0 | BM33: 0 | BN33: 0 | BO33: 0 | BP33: 0 | BQ33: 0 | BR33: 0 | BU33: 0 | BV33: 0 | BW33: 0 | BX33: 0 | BY33: 0 | BZ33: 0 | CA33: 0 | CB33: 0 | CC33: 0 | CD33: 0
B34: =Inputs!$C91 -> 0 | C34: NA | D34: =IF($C34="NA","",'Smoothed Prices'!D34+$D$6) ->  | I34: =IF($C34="NA","",'Smoothed Prices'!I34+$I$6) ->  | AA34: =IFERROR(VLOOKUP($B34,Volumes!$B$4:$H$33,MATCH(AA$11,Volumes!$B$4:$H$4,0),FALSE),0) -> 0 | AB34: =IFERROR(VLOOKUP($B34,Volumes!$B$4:$H$33,MATCH(AB$11,Volumes!$B$4:$H$4,0),FALSE),0) -> 0 | AC34: =IFERROR(VLOOKUP($B34,Volumes!$B$4:$H$33,MATCH(AC$11,Volumes!$B$4:$H$4,0),FALSE),0) -> 0 | AD34: =IFERROR(VLOOKUP($B34,Volumes!$B$4:$H$33,MATCH(AD$11,Volumes!$B$4:$H$4,0),FALSE),0) -> 0 | AE34: =IFERROR(VLOOKUP($B34,Volumes!$B$4:$H$33,MATCH(AE$11,Volumes!$B$4:$H$4,0),FALSE),0) -> 0 | AF34: =IFERROR(VLOOKUP($B34,Volumes!$B$4:$M$33,MATCH(AF$11,Volumes!$B$4:$M$4,0),FALSE),0) -> 0 | AG34: =IFERROR(VLOOKUP($B34,Volumes!$B$4:$M$33,MATCH(AG$11,Volumes!$B$4:$M$4,0),FALSE),0) -> 0 | AH34: =IFERROR(VLOOKUP($B34,Volumes!$B$4:$M$33,MATCH(AH$11,Volumes!$B$4:$M$4,0),FALSE),0) -> 0 | AI34: =IFERROR(VLOOKUP($B34,Volumes!$B$4:$M$33,MATCH(AI$11,Volumes!$B$4:$M$4,0),FALSE),0) -> 0 | AJ34: =IFERROR(VLOOKUP($B34,Volumes!$B$4:$M$33,MATCH(AJ$11,Volumes!$B$4:$M$4,0),FALSE),0) -> 0 | BI34: 0 | BJ34: 0 | BK34: 0 | BL34: 0 | BM34: 0 | BN34: 0 | BO34: 0 | BP34: 0 | BQ34: 0 | BR34: 0 | BU34: 0 | BV34: 0 | BW34: 0 | BX34: 0 | BY34: 0 | BZ34: 0 | CA34: 0 | CB34: 0 | CC34: 0 | CD34: 0
B35: =Inputs!$C92 -> 0 | C35: NA | D35: =IF($C35="NA","",'Smoothed Prices'!D35+$D$6) ->  | I35: =IF($C35="NA","",'Smoothed Prices'!I35+$I$6) ->  | AA35: =IFERROR(VLOOKUP($B35,Volumes!$B$4:$H$33,MATCH(AA$11,Volumes!$B$4:$H$4,0),FALSE),0) -> 0 | AB35: =IFERROR(VLOOKUP($B35,Volumes!$B$4:$H$33,MATCH(AB$11,Volumes!$B$4:$H$4,0),FALSE),0) -> 0 | AC35: =IFERROR(VLOOKUP($B35,Volumes!$B$4:$H$33,MATCH(AC$11,Volumes!$B$4:$H$4,0),FALSE),0) -> 0 | AD35: =IFERROR(VLOOKUP($B35,Volumes!$B$4:$H$33,MATCH(AD$11,Volumes!$B$4:$H$4,0),FALSE),0) -> 0 | AE35: =IFERROR(VLOOKUP($B35,Volumes!$B$4:$H$33,MATCH(AE$11,Volumes!$B$4:$H$4,0),FALSE),0) -> 0 | AF35: =IFERROR(VLOOKUP($B35,Volumes!$B$4:$M$33,MATCH(AF$11,Volumes!$B$4:$M$4,0),FALSE),0) -> 0 | AG35: =IFERROR(VLOOKUP($B35,Volumes!$B$4:$M$33,MATCH(AG$11,Volumes!$B$4:$M$4,0),FALSE),0) -> 0 | AH35: =IFERROR(VLOOKUP($B35,Volumes!$B$4:$M$33,MATCH(AH$11,Volumes!$B$4:$M$4,0),FALSE),0) -> 0 | AI35: =IFERROR(VLOOKUP($B35,Volumes!$B$4:$M$33,MATCH(AI$11,Volumes!$B$4:$M$4,0),FALSE),0) -> 0 | AJ35: =IFERROR(VLOOKUP($B35,Volumes!$B$4:$M$33,MATCH(AJ$11,Volumes!$B$4:$M$4,0),FALSE),0) -> 0 | BI35: 0 | BJ35: 0 | BK35: 0 | BL35: 0 | BM35: 0 | BN35: 0 | BO35: 0 | BP35: 0 | BQ35: 0 | BR35: 0 | BU35: 0 | BV35: 0 | BW35: 0 | BX35: 0 | BY35: 0 | BZ35: 0 | CA35: 0 | CB35: 0 | CC35: 0 | CD35: 0
B36: =Inputs!$C93 -> 250W Sodium Vapour - Flood Light | C36: Old light no volumes | D36: =IF($C36="NA","",'Smoothed Prices'!D36+$D$6) -> 24.31660642 | E36: 25.56903781 | F36: 26.83447074 | G36: 28.11304016 | H36: 29.40488244 | I36: =IF($C36="NA","",'Smoothed Prices'!I36+$I$6) -> 30.76391606 | J36: 32.0653978 | K36: 33.36905751 | L36: 34.67489881 | M36: 35.98292538 | P36: 24.91236328 | Q36: 26.83726848 | R36: 28.85552114 | S36: 30.97103107 | T36: 33.1878609 | U36: 35.57241859 | V36: 37.98572076 | W36: 40.49856568 | X36: 43.11445166 | Y36: 45.83699049 | AA36: =IFERROR(VLOOKUP($B36,Volumes!$B$4:$H$33,MATCH(AA$11,Volumes!$B$4:$H$4,0),FALSE),0) -> 0 | AB36: =IFERROR(VLOOKUP($B36,Volumes!$B$4:$H$33,MATCH(AB$11,Volumes!$B$4:$H$4,0),FALSE),0) -> 0 | AC36: =IFERROR(VLOOKUP($B36,Volumes!$B$4:$H$33,MATCH(AC$11,Volumes!$B$4:$H$4,0),FALSE),0) -> 0 | AD36: =IFERROR(VLOOKUP($B36,Volumes!$B$4:$H$33,MATCH(AD$11,Volumes!$B$4:$H$4,0),FALSE),0) -> 0 | AE36: =IFERROR(VLOOKUP($B36,Volumes!$B$4:$H$33,MATCH(AE$11,Volumes!$B$4:$H$4,0),FALSE),0) -> 0 | AF36: =IFERROR(VLOOKUP($B36,Volumes!$B$4:$M$33,MATCH(AF$11,Volumes!$B$4:$M$4,0),FALSE),0) -> 0 | AG36: =IFERROR(VLOOKUP($B36,Volumes!$B$4:$M$33,MATCH(AG$11,Volumes!$B$4:$M$4,0),FALSE),0) -> 0 | AH36: =IFERROR(VLOOKUP($B36,Volumes!$B$4:$M$33,MATCH(AH$11,Volumes!$B$4:$M$4,0),FALSE),0) -> 0 | AI36: =IFERROR(VLOOKUP($B36,Volumes!$B$4:$M$33,MATCH(AI$11,Volumes!$B$4:$M$4,0),FALSE),0) -> 0 | AJ36: =IFERROR(VLOOKUP($B36,Volumes!$B$4:$M$33,MATCH(AJ$11,Volumes!$B$4:$M$4,0),FALSE),0) -> 0 | AL36: 88.99877949 | AM36: 93.32698802 | AN36: 97.94581819 | AO36: 102.6125966 | AP36: 107.6218697 | AQ36: 112.2882936 | AR36: 117.038702 | AS36: 121.7970599 | AT36: 126.9101297 | AU36: 131.3376776 | AW36: 91.17924959 | AX36: 97.95602996 | AY36: 105.3226522 | AZ36: 113.0442634 | BA36: 121.4675709 | BB36: 129.8393278 | BC36: 138.6478808 | BD36: 147.8197647 | BE36: 157.7988931 | BF36: 167.3050153 | BI36: 0 | BJ36: 0 | BK36: 0 | BL36: 0 | BM36: 0 | BN36: 0 | BO36: 0 | BP36: 0 | BQ36: 0 | BR36: 0 | BU36: 0 | BV36: 0 | BW36: 0 | BX36: 0 | BY36: 0 | BZ36: 0 | CA36: 0 | CB36: 0 | CC36: 0 | CD36: 0
B37: =Inputs!$C94 -> 400W Sodium Vapour | C37: Offered | D37: =IF($C37="NA","",'Smoothed Prices'!D37+$D$6) -> 24.36068953 | E37: 25.61357856 | F37: 26.87947386 | G37: 28.15851046 | H37: 29.45082477 | I37: =IF($C37="NA","",'Smoothed Prices'!I37+$I$6) -> 30.80985839 | J37: 32.11141701 | K37: 33.41515373 | L37: 34.72107218 | M37: 36.02917601 | P37: 24.95752643 | Q37: 26.88401846 | R37: 28.90391369 | S37: 31.02112391 | T37: 33.23971377 | U37: 35.62554186 | V37: 38.04023662 | W37: 40.55451065 | X37: 43.1718632 | Y37: 45.89590704 | AA37: =IFERROR(VLOOKUP($B37,Volumes!$B$4:$H$33,MATCH(AA$11,Volumes!$B$4:$H$4,0),FALSE),0) -> 104 | AB37: =IFERROR(VLOOKUP($B37,Volumes!$B$4:$H$33,MATCH(AB$11,Volumes!$B$4:$H$4,0),FALSE),0) -> 104 | AC37: =IFERROR(VLOOKUP($B37,Volumes!$B$4:$H$33,MATCH(AC$11,Volumes!$B$4:$H$4,0),FALSE),0) -> 104 | AD37: =IFERROR(VLOOKUP($B37,Volumes!$B$4:$H$33,MATCH(AD$11,Volumes!$B$4:$H$4,0),FALSE),0) -> 104 | AE37: =IFERROR(VLOOKUP($B37,Volumes!$B$4:$H$33,MATCH(AE$11,Volumes!$B$4:$H$4,0),FALSE),0) -> 104 | AF37: =IFERROR(VLOOKUP($B37,Volumes!$B$4:$M$33,MATCH(AF$11,Volumes!$B$4:$M$4,0),FALSE),0) -> 104 | AG37: =IFERROR(VLOOKUP($B37,Volumes!$B$4:$M$33,MATCH(AG$11,Volumes!$B$4:$M$4,0),FALSE),0) -> 104 | AH37: =IFERROR(VLOOKUP($B37,Volumes!$B$4:$M$33,MATCH(AH$11,Volumes!$B$4:$M$4,0),FALSE),0) -> 104 | AI37: =IFERROR(VLOOKUP($B37,Volumes!$B$4:$M$33,MATCH(AI$11,Volumes!$B$4:$M$4,0),FALSE),0) -> 104 | AJ37: =IFERROR(VLOOKUP($B37,Volumes!$B$4:$M$33,MATCH(AJ$11,Volumes!$B$4:$M$4,0),FALSE),0) -> 104 | AL37: 89.16012369 | AM37: 93.48956174 | AN37: 98.11007959 | AO37: 102.7785632 | AP37: 107.7900187 | AQ37: 112.4559831 | AR37: 117.2066721 | AS37: 121.9653111 | AT37: 127.0791242 | AU37: 131.5064924 | AW37: 91.34454672 | AX37: 98.12666737 | AY37: 105.499285 | AZ37: 113.2271023 | BA37: 121.6573524 | BB37: 130.0332278 | BC37: 138.8468637 | BD37: 148.0239639 | BE37: 158.0090193 | BF37: 167.5200607 | BI37: 9272.652864 | BJ37: 9722.914421 | BK37: 10203.44828 | BL37: 10688.97057 | BM37: 11210.16194 | BN37: 11695.42224 | BO37: 12189.4939 | BP37: 12684.39236 | BQ37: 13216.22891 | BR37: 13676.67521 | BU37: 9499.832859 | BV37: 10205.17341 | BW37: 10971.92564 | BX37: 11775.61864 | BY37: 12652.36465 | BZ37: 13523.45569 | CA37: 14440.07382 | CB37: 15394.49224 | CC37: 16432.93801 | CD37: 17422.08631
B38: =Inputs!$C95 -> 0 | C38: NA | D38: =IF($C38="NA","",'Smoothed Prices'!D38+$D$6) ->  | I38: =IF($C38="NA","",'Smoothed Prices'!I38+$I$6) ->  | AA38: =IFERROR(VLOOKUP($B38,Volumes!$B$4:$H$33,MATCH(AA$11,Volumes!$B$4:$H$4,0),FALSE),0) -> 0 | AB38: =IFERROR(VLOOKUP($B38,Volumes!$B$4:$H$33,MATCH(AB$11,Volumes!$B$4:$H$4,0),FALSE),0) -> 0 | AC38: =IFERROR(VLOOKUP($B38,Volumes!$B$4:$H$33,MATCH(AC$11,Volumes!$B$4:$H$4,0),FALSE),0) -> 0 | AD38: =IFERROR(VLOOKUP($B38,Volumes!$B$4:$H$33,MATCH(AD$11,Volumes!$B$4:$H$4,0),FALSE),0) -> 0 | AE38: =IFERROR(VLOOKUP($B38,Volumes!$B$4:$H$33,MATCH(AE$11,Volumes!$B$4:$H$4,0),FALSE),0) -> 0 | AF38: =IFERROR(VLOOKUP($B38,Volumes!$B$4:$M$33,MATCH(AF$11,Volumes!$B$4:$M$4,0),FALSE),0) -> 0 | AG38: =IFERROR(VLOOKUP($B38,Volumes!$B$4:$M$33,MATCH(AG$11,Volumes!$B$4:$M$4,0),FALSE),0) -> 0 | AH38: =IFERROR(VLOOKUP($B38,Volumes!$B$4:$M$33,MATCH(AH$11,Volumes!$B$4:$M$4,0),FALSE),0) -> 0 | AI38: =IFERROR(VLOOKUP($B38,Volumes!$B$4:$M$33,MATCH(AI$11,Volumes!$B$4:$M$4,0),FALSE),0) -> 0 | AJ38: =IFERROR(VLOOKUP($B38,Volumes!$B$4:$M$33,MATCH(AJ$11,Volumes!$B$4:$M$4,0),FALSE),0) -> 0 | BI38: 0 | BJ38: 0 | BK38: 0 | BL38: 0 | BM38: 0 | BN38: 0 | BO38: 0 | BP38: 0 | BQ38: 0 | BR38: 0 | BU38: 0 | BV38: 0 | BW38: 0 | BX38: 0 | BY38: 0 | BZ38: 0 | CA38: 0 | CB38: 0 | CC38: 0 | CD38: 0
B39: =Inputs!$C96 -> 400W Sodium Vapour - Flood Light | C39: Old light no volumes | D39: =IF($C39="NA","",'Smoothed Prices'!D39+$D$6) -> 24.36068953 | E39: 25.61357856 | F39: 26.87947386 | G39: 28.15851046 | H39: 29.45082477 | I39: =IF($C39="NA","",'Smoothed Prices'!I39+$I$6) -> 30.80985839 | J39: 32.11141701 | K39: 33.41515373 | L39: 34.72107218 | M39: 36.02917601 | P39: 24.95752643 | Q39: 26.88401846 | R39: 28.90391369 | S39: 31.02112391 | T39: 33.23971377 | U39: 35.62554186 | V39: 38.04023662 | W39: 40.55451065 | X39: 43.1718632 | Y39: 45.89590704 | AA39: =IFERROR(VLOOKUP($B39,Volumes!$B$4:$H$33,MATCH(AA$11,Volumes!$B$4:$H$4,0),FALSE),0) -> 0 | AB39: =IFERROR(VLOOKUP($B39,Volumes!$B$4:$H$33,MATCH(AB$11,Volumes!$B$4:$H$4,0),FALSE),0) -> 0 | AC39: =IFERROR(VLOOKUP($B39,Volumes!$B$4:$H$33,MATCH(AC$11,Volumes!$B$4:$H$4,0),FALSE),0) -> 0 | AD39: =IFERROR(VLOOKUP($B39,Volumes!$B$4:$H$33,MATCH(AD$11,Volumes!$B$4:$H$4,0),FALSE),0) -> 0 | AE39: =IFERROR(VLOOKUP($B39,Volumes!$B$4:$H$33,MATCH(AE$11,Volumes!$B$4:$H$4,0),FALSE),0) -> 0 | AF39: =IFERROR(VLOOKUP($B39,Volumes!$B$4:$M$33,MATCH(AF$11,Volumes!$B$4:$M$4,0),FALSE),0) -> 0 | AG39: =IFERROR(VLOOKUP($B39,Volumes!$B$4:$M$33,MATCH(AG$11,Volumes!$B$4:$M$4,0),FALSE),0) -> 0 | AH39: =IFERROR(VLOOKUP($B39,Volumes!$B$4:$M$33,MATCH(AH$11,Volumes!$B$4:$M$4,0),FALSE),0) -> 0 | AI39: =IFERROR(VLOOKUP($B39,Volumes!$B$4:$M$33,MATCH(AI$11,Volumes!$B$4:$M$4,0),FALSE),0) -> 0 | AJ39: =IFERROR(VLOOKUP($B39,Volumes!$B$4:$M$33,MATCH(AJ$11,Volumes!$B$4:$M$4,0),FALSE),0) -> 0 | AL39: 89.16012369 | AM39: 93.48956174 | AN39: 98.11007959 | AO39: 102.7785632 | AP39: 107.7900187 | AQ39: 112.4559831 | AR39: 117.2066721 | AS39: 121.9653111 | AT39: 127.0791242 | AU39: 131.5064924 | AW39: 91.34454672 | AX39: 98.12666737 | AY39: 105.499285 | AZ39: 113.2271023 | BA39: 121.6573524 | BB39: 130.0332278 | BC39: 138.8468637 | BD39: 148.0239639 | BE39: 158.0090193 | BF39: 167.5200607 | BI39: 0 | BJ39: 0 | BK39: 0 | BL39: 0 | BM39: 0 | BN39: 0 | BO39: 0 | BP39: 0 | BQ39: 0 | BR39: 0 | BU39: 0 | BV39: 0 | BW39: 0 | BX39: 0 | BY39: 0 | BZ39: 0 | CA39: 0 | CB39: 0 | CC39: 0 | CD39: 0
B40: =Inputs!$C97 -> 70W Sodium Vapour | C40: Offered | D40: =IF($C40="NA","",'Smoothed Prices'!D40+$D$6) -> 20.25046379 | E40: 21.46068444 | F40: 22.68346843 | G40: 23.91894617 | H40: 25.16724945 | I40: =IF($C40="NA","",'Smoothed Prices'!I40+$I$6) -> 26.52628306 | J40: 27.82067336 | K40: 29.11722975 | L40: 30.41595585 | M40: 31.7168553 | P40: 20.74660015 | Q40: 22.52513975 | R40: 24.3918842 | S40: 26.35056262 | T40: 28.40505061 | U40: 30.67242944 | V40: 32.95728111 | W40: 35.33830828 | X40: 37.81892098 | Y40: 40.40264041 | AA40: =IFERROR(VLOOKUP($B40,Volumes!$B$4:$H$33,MATCH(AA$11,Volumes!$B$4:$H$4,0),FALSE),0) -> 73 | AB40: =IFERROR(VLOOKUP($B40,Volumes!$B$4:$H$33,MATCH(AB$11,Volumes!$B$4:$H$4,0),FALSE),0) -> 73 | AC40: =IFERROR(VLOOKUP($B40,Volumes!$B$4:$H$33,MATCH(AC$11,Volumes!$B$4:$H$4,0),FALSE),0) -> 73 | AD40: =IFERROR(VLOOKUP($B40,Volumes!$B$4:$H$33,MATCH(AD$11,Volumes!$B$4:$H$4,0),FALSE),0) -> 73 | AE40: =IFERROR(VLOOKUP($B40,Volumes!$B$4:$H$33,MATCH(AE$11,Volumes!$B$4:$H$4,0),FALSE),0) -> 73 | AF40: =IFERROR(VLOOKUP($B40,Volumes!$B$4:$M$33,MATCH(AF$11,Volumes!$B$4:$M$4,0),FALSE),0) -> 73 | AG40: =IFERROR(VLOOKUP($B40,Volumes!$B$4:$M$33,MATCH(AG$11,Volumes!$B$4:$M$4,0),FALSE),0) -> 73 | AH40: =IFERROR(VLOOKUP($B40,Volumes!$B$4:$M$33,MATCH(AH$11,Volumes!$B$4:$M$4,0),FALSE),0) -> 73 | AI40: =IFERROR(VLOOKUP($B40,Volumes!$B$4:$M$33,MATCH(AI$11,Volumes!$B$4:$M$4,0),FALSE),0) -> 73 | AJ40: =IFERROR(VLOOKUP($B40,Volumes!$B$4:$M$33,MATCH(AJ$11,Volumes!$B$4:$M$4,0),FALSE),0) -> 73 | AL40: 74.11669747 | AM40: 78.33149821 | AN40: 82.79465976 | AO40: 87.30415353 | AP40: 92.11213297 | AQ40: 96.82093318 | AR40: 101.5454578 | AS40: 106.2778886 | AT40: 111.3223984 | AU40: 115.7665219 | AW40: 75.93255655 | AX40: 82.2167601 | AY40: 89.03037733 | AZ40: 96.17955356 | BA40: 103.9624852 | BB40: 111.9543675 | BC40: 120.2940761 | BD40: 128.9848252 | BE40: 138.4172508 | BF40: 147.4696375 | BI40: 5410.518915 | BJ40: 5718.199369 | BK40: 6044.010163 | BL40: 6373.203208 | BM40: 6724.185707 | BN40: 7067.928122 | BO40: 7412.818416 | BP40: 7758.285866 | BQ40: 8126.535084 | BR40: 8450.956095 | BU40: 5543.076628 | BV40: 6001.823488 | BW40: 6499.217545 | BX40: 7021.10741 | BY40: 7589.261421 | BZ40: 8172.668825 | CA40: 8781.467553 | CB40: 9415.892242 | CC40: 10104.45931 | CD40: 10765.28354
B41: =Inputs!$C98 -> 0 | C41: NA | D41: =IF($C41="NA","",'Smoothed Prices'!D41+$D$6) ->  | I41: =IF($C41="NA","",'Smoothed Prices'!I41+$I$6) ->  | AA41: =IFERROR(VLOOKUP($B41,Volumes!$B$4:$H$33,MATCH(AA$11,Volumes!$B$4:$H$4,0),FALSE),0) -> 0 | AB41: =IFERROR(VLOOKUP($B41,Volumes!$B$4:$H$33,MATCH(AB$11,Volumes!$B$4:$H$4,0),FALSE),0) -> 0 | AC41: =IFERROR(VLOOKUP($B41,Volumes!$B$4:$H$33,MATCH(AC$11,Volumes!$B$4:$H$4,0),FALSE),0) -> 0 | AD41: =IFERROR(VLOOKUP($B41,Volumes!$B$4:$H$33,MATCH(AD$11,Volumes!$B$4:$H$4,0),FALSE),0) -> 0 | AE41: =IFERROR(VLOOKUP($B41,Volumes!$B$4:$H$33,MATCH(AE$11,Volumes!$B$4:$H$4,0),FALSE),0) -> 0 | AF41: =IFERROR(VLOOKUP($B41,Volumes!$B$4:$M$33,MATCH(AF$11,Volumes!$B$4:$M$4,0),FALSE),0) -> 0 | AG41: =IFERROR(VLOOKUP($B41,Volumes!$B$4:$M$33,MATCH(AG$11,Volumes!$B$4:$M$4,0),FALSE),0) -> 0 | AH41: =IFERROR(VLOOKUP($B41,Volumes!$B$4:$M$33,MATCH(AH$11,Volumes!$B$4:$M$4,0),FALSE),0) -> 0 | AI41: =IFERROR(VLOOKUP($B41,Volumes!$B$4:$M$33,MATCH(AI$11,Volumes!$B$4:$M$4,0),FALSE),0) -> 0 | AJ41: =IFERROR(VLOOKUP($B41,Volumes!$B$4:$M$33,MATCH(AJ$11,Volumes!$B$4:$M$4,0),FALSE),0) -> 0 | BI41: 0 | BJ41: 0 | BK41: 0 | BL41: 0 | BM41: 0 | BN41: 0 | BO41: 0 | BP41: 0 | BQ41: 0 | BR41: 0 | BU41: 0 | BV41: 0 | BW41: 0 | BX41: 0 | BY41: 0 | BZ41: 0 | CA41: 0 | CB41: 0 | CC41: 0 | CD41: 0
B42: =Inputs!$C99 -> 100W Incandescent | C42: Obsolete, no new Connections | D42: =IF($C42="NA","",'Smoothed Prices'!D42+$D$6) -> 23.26595883 | E42: 24.50748342 | F42: 25.76189632 | G42: 27.02933131 | H42: 28.30992358 | I42: =IF($C42="NA","",'Smoothed Prices'!I42+$I$6) -> 29.6689572 | J42: 30.96860659 | K42: 32.27043087 | L42: 33.57443369 | M42: 34.88061868 | P42: 23.83597482 | Q42: 25.72306072 | R42: 27.70216529 | S42: 29.77715164 | T42: 31.95203408 | U42: 34.30631401 | V42: 36.68642595 | W42: 39.16521058 | X42: 41.7461434 | Y42: 44.43281279 | AA42: =IFERROR(VLOOKUP($B42,Volumes!$B$4:$H$33,MATCH(AA$11,Volumes!$B$4:$H$4,0),FALSE),0) -> 0 | AB42: =IFERROR(VLOOKUP($B42,Volumes!$B$4:$H$33,MATCH(AB$11,Volumes!$B$4:$H$4,0),FALSE),0) -> 0 | AC42: =IFERROR(VLOOKUP($B42,Volumes!$B$4:$H$33,MATCH(AC$11,Volumes!$B$4:$H$4,0),FALSE),0) -> 0 | AD42: =IFERROR(VLOOKUP($B42,Volumes!$B$4:$H$33,MATCH(AD$11,Volumes!$B$4:$H$4,0),FALSE),0) -> 0 | AE42: =IFERROR(VLOOKUP($B42,Volumes!$B$4:$H$33,MATCH(AE$11,Volumes!$B$4:$H$4,0),FALSE),0) -> 0 | AF42: =IFERROR(VLOOKUP($B42,Volumes!$B$4:$M$33,MATCH(AF$11,Volumes!$B$4:$M$4,0),FALSE),0) -> 0 | AG42: =IFERROR(VLOOKUP($B42,Volumes!$B$4:$M$33,MATCH(AG$11,Volumes!$B$4:$M$4,0),FALSE),0) -> 0 | AH42: =IFERROR(VLOOKUP($B42,Volumes!$B$4:$M$33,MATCH(AH$11,Volumes!$B$4:$M$4,0),FALSE),0) -> 0 | AI42: =IFERROR(VLOOKUP($B42,Volumes!$B$4:$M$33,MATCH(AI$11,Volumes!$B$4:$M$4,0),FALSE),0) -> 0 | AJ42: =IFERROR(VLOOKUP($B42,Volumes!$B$4:$M$33,MATCH(AJ$11,Volumes!$B$4:$M$4,0),FALSE),0) -> 0 | AL42: 85.1534093 | AM42: 89.45231448 | AN42: 94.03092155 | AO42: 98.65705928 | AP42: 103.6143203 | AQ42: 108.2916938 | AR42: 113.035414 | AS42: 117.7870727 | AT42: 122.8824273 | AU42: 127.3142582 | AW42: 87.23966783 | AX42: 93.88917164 | AY42: 101.1129033 | AZ42: 108.6866035 | BA42: 116.9444447 | BB42: 125.2180461 | BC42: 133.9054547 | BD42: 142.9530186 | BE42: 152.7908848 | BF42: 162.1797667 | BI42: 0 | BJ42: 0 | BK42: 0 | BL42: 0 | BM42: 0 | BN42: 0 | BO42: 0 | BP42: 0 | BQ42: 0 | BR42: 0 | BU42: 0 | BV42: 0 | BW42: 0 | BX42: 0 | BY42: 0 | BZ42: 0 | CA42: 0 | CB42: 0 | CC42: 0 | CD42: 0
B43: =Inputs!$C100 -> 60W Incandescent | C43: Obsolete, no new Connections | D43: =IF($C43="NA","",'Smoothed Prices'!D43+$D$6) -> 19.85161655 | E43: 21.05769676 | F43: 22.27629732 | G43: 23.50754821 | H43: 24.75158075 | I43: =IF($C43="NA","",'Smoothed Prices'!I43+$I$6) -> 26.11061436 | J43: 27.40430906 | K43: 28.70016868 | L43: 29.99819686 | M43: 31.29839721 | P43: 20.33798116 | Q43: 22.10216378 | R43: 23.95404681 | S43: 25.89734166 | T43: 27.93590556 | U43: 30.19179034 | V43: 32.46404233 | W43: 34.83213951 | X43: 37.29948328 | Y43: 39.86958594 | AA43: =IFERROR(VLOOKUP($B43,Volumes!$B$4:$H$33,MATCH(AA$11,Volumes!$B$4:$H$4,0),FALSE),0) -> 0 | AB43: =IFERROR(VLOOKUP($B43,Volumes!$B$4:$H$33,MATCH(AB$11,Volumes!$B$4:$H$4,0),FALSE),0) -> 0 | AC43: =IFERROR(VLOOKUP($B43,Volumes!$B$4:$H$33,MATCH(AC$11,Volumes!$B$4:$H$4,0),FALSE),0) -> 0 | AD43: =IFERROR(VLOOKUP($B43,Volumes!$B$4:$H$33,MATCH(AD$11,Volumes!$B$4:$H$4,0),FALSE),0) -> 0 | AE43: =IFERROR(VLOOKUP($B43,Volumes!$B$4:$H$33,MATCH(AE$11,Volumes!$B$4:$H$4,0),FALSE),0) -> 0 | AF43: =IFERROR(VLOOKUP($B43,Volumes!$B$4:$M$33,MATCH(AF$11,Volumes!$B$4:$M$4,0),FALSE),0) -> 0 | AG43: =IFERROR(VLOOKUP($B43,Volumes!$B$4:$M$33,MATCH(AG$11,Volumes!$B$4:$M$4,0),FALSE),0) -> 0 | AH43: =IFERROR(VLOOKUP($B43,Volumes!$B$4:$M$33,MATCH(AH$11,Volumes!$B$4:$M$4,0),FALSE),0) -> 0 | AI43: =IFERROR(VLOOKUP($B43,Volumes!$B$4:$M$33,MATCH(AI$11,Volumes!$B$4:$M$4,0),FALSE),0) -> 0 | AJ43: =IFERROR(VLOOKUP($B43,Volumes!$B$4:$M$33,MATCH(AJ$11,Volumes!$B$4:$M$4,0),FALSE),0) -> 0 | AL43: 72.65691658 | AM43: 76.86059317 | AN43: 81.30848522 | AO43: 85.80255096 | AP43: 90.59078554 | AQ43: 95.30374243 | AR43: 100.0257281 | AS43: 104.7556157 | AT43: 109.7934005 | AU43: 114.2391498 | AW43: 74.43701103 | AX43: 80.6728978 | AY43: 87.43227087 | AZ43: 94.52529705 | BA43: 102.2454143 | BB43: 110.2000347 | BC43: 118.4937545 | BD43: 127.1373092 | BE43: 136.5161088 | BF43: 145.5239887 | BI43: 0 | BJ43: 0 | BK43: 0 | BL43: 0 | BM43: 0 | BN43: 0 | BO43: 0 | BP43: 0 | BQ43: 0 | BR43: 0 | BU43: 0 | BV43: 0 | BW43: 0 | BX43: 0 | BY43: 0 | BZ43: 0 | CA43: 0 | CB43: 0 | CC43: 0 | CD43: 0
B44: =Inputs!$C101 -> 18W LED | C44: Offered | D44: =IF($C44="NA","",'Smoothed Prices'!D44+$D$6) -> 14.45563326 | E44: 15.60569761 | F44: 16.76770081 | G44: 17.9417668 | H44: 19.1280208 | I44: =IF($C44="NA","",'Smoothed Prices'!I44+$I$6) -> 20.48705442 | J44: 21.77133839 | K44: 23.05777154 | L44: 24.34635747 | M44: 25.63709978 | P44: =IF($C44="NA","",D44*P$9) -> 14.80979628 | Q44: =IF($C44="NA","",E44*Q$9) -> 16.37974411 | R44: =IF($C44="NA","",F44*R$9) -> 18.03056785 | S44: =IF($C44="NA","",G44*S$9) -> 19.7657391 | T44: =IF($C44="NA","",H44*T$9) -> 21.58886691 | U44: =IF($C44="NA","",I44*U$9) -> 23.68924925 | V44: =IF($C44="NA","",J44*V$9) -> 25.79104073 | W44: =IF($C44="NA","",K44*W$9) -> 27.98420888 | X44: =IF($C44="NA","",L44*X$9) -> 30.27203794 | Y44: =IF($C44="NA","",M44*Y$9) -> 32.65792002 | AA44: =IFERROR(VLOOKUP($B44,Volumes!$B$4:$H$33,MATCH(AA$11,Volumes!$B$4:$H$4,0),FALSE),0) -> 4980 | AB44: =IFERROR(VLOOKUP($B44,Volumes!$B$4:$H$33,MATCH(AB$11,Volumes!$B$4:$H$4,0),FALSE),0) -> 4980 | AC44: =IFERROR(VLOOKUP($B44,Volumes!$B$4:$H$33,MATCH(AC$11,Volumes!$B$4:$H$4,0),FALSE),0) -> 4980 | AD44: =IFERROR(VLOOKUP($B44,Volumes!$B$4:$H$33,MATCH(AD$11,Volumes!$B$4:$H$4,0),FALSE),0) -> 4980 | AE44: =IFERROR(VLOOKUP($B44,Volumes!$B$4:$H$33,MATCH(AE$11,Volumes!$B$4:$H$4,0),FALSE),0) -> 4980 | AF44: =IFERROR(VLOOKUP($B44,Volumes!$B$4:$M$33,MATCH(AF$11,Volumes!$B$4:$M$4,0),FALSE),0) -> 4980 | AG44: =IFERROR(VLOOKUP($B44,Volumes!$B$4:$M$33,MATCH(AG$11,Volumes!$B$4:$M$4,0),FALSE),0) -> 4980 | AH44: =IFERROR(VLOOKUP($B44,Volumes!$B$4:$M$33,MATCH(AH$11,Volumes!$B$4:$M$4,0),FALSE),0) -> 4980 | AI44: =IFERROR(VLOOKUP($B44,Volumes!$B$4:$M$33,MATCH(AI$11,Volumes!$B$4:$M$4,0),FALSE),0) -> 4980 | AJ44: =IFERROR(VLOOKUP($B44,Volumes!$B$4:$M$33,MATCH(AJ$11,Volumes!$B$4:$M$4,0),FALSE),0) -> 4980 | AL44: =IF($C44="NA","",(D44*AL$9)/100) -> 52.90761774 | AM44: =IF($C44="NA","",(E44*AM$9)/100) -> 56.96079628 | AN44: =IF($C44="NA","",(F44*AN$9)/100) -> 61.20210796 | AO44: =IF($C44="NA","",(G44*AO$9)/100) -> 65.48744882 | AP44: =IF($C44="NA","",(H44*AP$9)/100) -> 70.00855613 | AQ44: =IF($C44="NA","",(I44*AQ$9)/100) -> 74.77774862 | AR44: =IF($C44="NA","",(J44*AR$9)/100) -> 79.46538513 | AS44: =IF($C44="NA","",(K44*AS$9)/100) -> 84.16086614 | AT44: =IF($C44="NA","",(L44*AT$9)/100) -> 89.10766836 | AU44: =IF($C44="NA","",(M44*AU$9)/100) -> 93.57541421 | AW44: =IF($C44="NA","",(P44*AW$9)/100) -> 54.20385438 | AX44: =IF($C44="NA","",(Q44*AX$9)/100) -> 59.78606602 | AY44: =IF($C44="NA","",(R44*AY$9)/100) -> 65.81157264 | AZ44: =IF($C44="NA","",(S44*AZ$9)/100) -> 72.14494771 | BA44: =IF($C44="NA","",(T44*BA$9)/100) -> 79.0152529 | BB44: =IF($C44="NA","",(U44*BB$9)/100) -> 86.46575975 | BC44: =IF($C44="NA","",(V44*BC$9)/100) -> 94.13729865 | BD44: =IF($C44="NA","",(W44*BD$9)/100) -> 102.1423624 | BE44: =IF($C44="NA","",(X44*BE$9)/100) -> 110.7956589 | BF44: =IF($C44="NA","",(Y44*BF$9)/100) -> 119.2014081 | BI44: 263479.9364 | BJ44: 283664.7655 | BK44: 304786.4976 | BL44: 326127.4951 | BM44: 348642.6095 | BN44: 372393.1881 | BO44: 395737.6179 | BP44: 419121.1134 | BQ44: 443756.1884 | BR44: 466005.5628 | BU44: =IFERROR(AW44*AA44,0) -> 269935.1948 | BV44: =IFERROR(AX44*AB44,0) -> 297734.6088 | BW44: =IFERROR(AY44*AC44,0) -> 327741.6317 | BX44: =IFERROR(AZ44*AD44,0) -> 359281.8396 | BY44: =IFERROR(BA44*AE44,0) -> 393495.9594 | BZ44: =IFERROR(BB44*AF44,0) -> 430599.4836 | CA44: =IFERROR(BC44*AG44,0) -> 468803.7473 | CB44: =IFERROR(BD44*AH44,0) -> 508668.9648 | CC44: =IFERROR(BE44*AI44,0) -> 551762.3812 | CD44: =IFERROR(BF44*AJ44,0) -> 593623.0122
B45: =Inputs!$C102 -> 18W LED Decorative - Bottom Pole Entry | C45: Not Offered | D45: =IF($C45="NA","",'Smoothed Prices'!D45+$D$6) -> 14.45563326 | E45: 15.60569761 | F45: 16.76770081 | G45: 17.9417668 | H45: 19.1280208 | I45: =IF($C45="NA","",'Smoothed Prices'!I45+$I$6) -> 20.48705442 | J45: 21.77133839 | K45: 23.05777154 | L45: 24.34635747 | M45: 25.63709978 | P45: 14.80979628 | Q45: 16.37974411 | R45: 18.03056785 | S45: 19.7657391 | T45: 21.58886691 | U45: 23.68924925 | V45: 25.79104073 | W45: 27.98420888 | X45: 30.27203794 | Y45: 32.65792002 | AA45: =IFERROR(VLOOKUP($B45,Volumes!$B$4:$H$33,MATCH(AA$11,Volumes!$B$4:$H$4,0),FALSE),0) -> 0 | AB45: =IFERROR(VLOOKUP($B45,Volumes!$B$4:$H$33,MATCH(AB$11,Volumes!$B$4:$H$4,0),FALSE),0) -> 0 | AC45: =IFERROR(VLOOKUP($B45,Volumes!$B$4:$H$33,MATCH(AC$11,Volumes!$B$4:$H$4,0),FALSE),0) -> 0 | AD45: =IFERROR(VLOOKUP($B45,Volumes!$B$4:$H$33,MATCH(AD$11,Volumes!$B$4:$H$4,0),FALSE),0) -> 0 | AE45: =IFERROR(VLOOKUP($B45,Volumes!$B$4:$H$33,MATCH(AE$11,Volumes!$B$4:$H$4,0),FALSE),0) -> 0 | AF45: =IFERROR(VLOOKUP($B45,Volumes!$B$4:$M$33,MATCH(AF$11,Volumes!$B$4:$M$4,0),FALSE),0) -> 0 | AG45: =IFERROR(VLOOKUP($B45,Volumes!$B$4:$M$33,MATCH(AG$11,Volumes!$B$4:$M$4,0),FALSE),0) -> 0 | AH45: =IFERROR(VLOOKUP($B45,Volumes!$B$4:$M$33,MATCH(AH$11,Volumes!$B$4:$M$4,0),FALSE),0) -> 0 | AI45: =IFERROR(VLOOKUP($B45,Volumes!$B$4:$M$33,MATCH(AI$11,Volumes!$B$4:$M$4,0),FALSE),0) -> 0 | AJ45: =IFERROR(VLOOKUP($B45,Volumes!$B$4:$M$33,MATCH(AJ$11,Volumes!$B$4:$M$4,0),FALSE),0) -> 0 | AL45: 52.90761774 | AM45: 56.96079628 | AN45: 61.20210796 | AO45: 65.48744882 | AP45: 70.00855613 | AQ45: 74.77774862 | AR45: 79.46538513 | AS45: 84.16086614 | AT45: 89.10766836 | AU45: 93.57541421 | AW45: 54.20385438 | AX45: 59.78606602 | AY45: 65.81157264 | AZ45: 72.14494771 | BA45: 79.0152529 | BB45: 86.46575975 | BC45: 94.13729865 | BD45: 102.1423624 | BE45: 110.7956589 | BF45: 119.2014081 | BI45: 0 | BJ45: 0 | BK45: 0 | BL45: 0 | BM45: 0 | BN45: 0 | BO45: 0 | BP45: 0 | BQ45: 0 | BR45: 0 | BU45: 0 | BV45: 0 | BW45: 0 | BX45: 0 | BY45: 0 | BZ45: 0 | CA45: 0 | CB45: 0 | CC45: 0 | CD45: 0
B46: =Inputs!$C103 -> 18W LED Decorative - Side Entry | C46: Not Offered | D46: =IF($C46="NA","",'Smoothed Prices'!D46+$D$6) -> 14.45563326 | E46: 15.60569761 | F46: 16.76770081 | G46: 17.9417668 | H46: 19.1280208 | I46: =IF($C46="NA","",'Smoothed Prices'!I46+$I$6) -> 20.48705442 | J46: 21.77133839 | K46: 23.05777154 | L46: 24.34635747 | M46: 25.63709978 | P46: 14.80979628 | Q46: 16.37974411 | R46: 18.03056785 | S46: 19.7657391 | T46: 21.58886691 | U46: 23.68924925 | V46: 25.79104073 | W46: 27.98420888 | X46: 30.27203794 | Y46: 32.65792002 | AA46: =IFERROR(VLOOKUP($B46,Volumes!$B$4:$H$33,MATCH(AA$11,Volumes!$B$4:$H$4,0),FALSE),0) -> 0 | AB46: =IFERROR(VLOOKUP($B46,Volumes!$B$4:$H$33,MATCH(AB$11,Volumes!$B$4:$H$4,0),FALSE),0) -> 0 | AC46: =IFERROR(VLOOKUP($B46,Volumes!$B$4:$H$33,MATCH(AC$11,Volumes!$B$4:$H$4,0),FALSE),0) -> 0 | AD46: =IFERROR(VLOOKUP($B46,Volumes!$B$4:$H$33,MATCH(AD$11,Volumes!$B$4:$H$4,0),FALSE),0) -> 0 | AE46: =IFERROR(VLOOKUP($B46,Volumes!$B$4:$H$33,MATCH(AE$11,Volumes!$B$4:$H$4,0),FALSE),0) -> 0 | AF46: =IFERROR(VLOOKUP($B46,Volumes!$B$4:$M$33,MATCH(AF$11,Volumes!$B$4:$M$4,0),FALSE),0) -> 0 | AG46: =IFERROR(VLOOKUP($B46,Volumes!$B$4:$M$33,MATCH(AG$11,Volumes!$B$4:$M$4,0),FALSE),0) -> 0 | AH46: =IFERROR(VLOOKUP($B46,Volumes!$B$4:$M$33,MATCH(AH$11,Volumes!$B$4:$M$4,0),FALSE),0) -> 0 | AI46: =IFERROR(VLOOKUP($B46,Volumes!$B$4:$M$33,MATCH(AI$11,Volumes!$B$4:$M$4,0),FALSE),0) -> 0 | AJ46: =IFERROR(VLOOKUP($B46,Volumes!$B$4:$M$33,MATCH(AJ$11,Volumes!$B$4:$M$4,0),FALSE),0) -> 0 | AL46: 52.90761774 | AM46: 56.96079628 | AN46: 61.20210796 | AO46: 65.48744882 | AP46: 70.00855613 | AQ46: 74.77774862 | AR46: 79.46538513 | AS46: 84.16086614 | AT46: 89.10766836 | AU46: 93.57541421 | AW46: 54.20385438 | AX46: 59.78606602 | AY46: 65.81157264 | AZ46: 72.14494771 | BA46: 79.0152529 | BB46: 86.46575975 | BC46: 94.13729865 | BD46: 102.1423624 | BE46: 110.7956589 | BF46: 119.2014081 | BI46: 0 | BJ46: 0 | BK46: 0 | BL46: 0 | BM46: 0 | BN46: 0 | BO46: 0 | BP46: 0 | BQ46: 0 | BR46: 0 | BU46: 0 | BV46: 0 | BW46: 0 | BX46: 0 | BY46: 0 | BZ46: 0 | CA46: 0 | CB46: 0 | CC46: 0 | CD46: 0
B47: =Inputs!$C104 -> 18W LED Decorative - Top Entry | C47: Not Offered | D47: =IF($C47="NA","",'Smoothed Prices'!D47+$D$6) -> 14.45563326 | E47: 15.60569761 | F47: 16.76770081 | G47: 17.9417668 | H47: 19.1280208 | I47: =IF($C47="NA","",'Smoothed Prices'!I47+$I$6) -> 20.48705442 | J47: 21.77133839 | K47: 23.05777154 | L47: 24.34635747 | M47: 25.63709978 | P47: 14.80979628 | Q47: 16.37974411 | R47: 18.03056785 | S47: 19.7657391 | T47: 21.58886691 | U47: 23.68924925 | V47: 25.79104073 | W47: 27.98420888 | X47: 30.27203794 | Y47: 32.65792002 | AA47: =IFERROR(VLOOKUP($B47,Volumes!$B$4:$H$33,MATCH(AA$11,Volumes!$B$4:$H$4,0),FALSE),0) -> 0 | AB47: =IFERROR(VLOOKUP($B47,Volumes!$B$4:$H$33,MATCH(AB$11,Volumes!$B$4:$H$4,0),FALSE),0) -> 0 | AC47: =IFERROR(VLOOKUP($B47,Volumes!$B$4:$H$33,MATCH(AC$11,Volumes!$B$4:$H$4,0),FALSE),0) -> 0 | AD47: =IFERROR(VLOOKUP($B47,Volumes!$B$4:$H$33,MATCH(AD$11,Volumes!$B$4:$H$4,0),FALSE),0) -> 0 | AE47: =IFERROR(VLOOKUP($B47,Volumes!$B$4:$H$33,MATCH(AE$11,Volumes!$B$4:$H$4,0),FALSE),0) -> 0 | AF47: =IFERROR(VLOOKUP($B47,Volumes!$B$4:$M$33,MATCH(AF$11,Volumes!$B$4:$M$4,0),FALSE),0) -> 0 | AG47: =IFERROR(VLOOKUP($B47,Volumes!$B$4:$M$33,MATCH(AG$11,Volumes!$B$4:$M$4,0),FALSE),0) -> 0 | AH47: =IFERROR(VLOOKUP($B47,Volumes!$B$4:$M$33,MATCH(AH$11,Volumes!$B$4:$M$4,0),FALSE),0) -> 0 | AI47: =IFERROR(VLOOKUP($B47,Volumes!$B$4:$M$33,MATCH(AI$11,Volumes!$B$4:$M$4,0),FALSE),0) -> 0 | AJ47: =IFERROR(VLOOKUP($B47,Volumes!$B$4:$M$33,MATCH(AJ$11,Volumes!$B$4:$M$4,0),FALSE),0) -> 0 | AL47: 52.90761774 | AM47: 56.96079628 | AN47: 61.20210796 | AO47: 65.48744882 | AP47: 70.00855613 | AQ47: 74.77774862 | AR47: 79.46538513 | AS47: 84.16086614 | AT47: 89.10766836 | AU47: 93.57541421 | AW47: 54.20385438 | AX47: 59.78606602 | AY47: 65.81157264 | AZ47: 72.14494771 | BA47: 79.0152529 | BB47: 86.46575975 | BC47: 94.13729865 | BD47: 102.1423624 | BE47: 110.7956589 | BF47: 119.2014081 | BI47: 0 | BJ47: 0 | BK47: 0 | BL47: 0 | BM47: 0 | BN47: 0 | BO47: 0 | BP47: 0 | BQ47: 0 | BR47: 0 | BU47: 0 | BV47: 0 | BW47: 0 | BX47: 0 | BY47: 0 | BZ47: 0 | CA47: 0 | CB47: 0 | CC47: 0 | CD47: 0
B48: =Inputs!$C105 -> 25W LED | C48: Offered | D48: =IF($C48="NA","",'Smoothed Prices'!D48+$D$6) -> 14.45563326 | E48: 15.60569761 | F48: 16.76770081 | G48: 17.9417668 | H48: 19.1280208 | I48: =IF($C48="NA","",'Smoothed Prices'!I48+$I$6) -> 20.48705442 | J48: 21.77133839 | K48: 23.05777154 | L48: 24.34635747 | M48: 25.63709978 | P48: 14.80979628 | Q48: 16.37974411 | R48: 18.03056785 | S48: 19.7657391 | T48: 21.58886691 | U48: 23.68924925 | V48: 25.79104073 | W48: 27.98420888 | X48: 30.27203794 | Y48: 32.65792002 | AA48: =IFERROR(VLOOKUP($B48,Volumes!$B$4:$H$33,MATCH(AA$11,Volumes!$B$4:$H$4,0),FALSE),0) -> 29 | AB48: =IFERROR(VLOOKUP($B48,Volumes!$B$4:$H$33,MATCH(AB$11,Volumes!$B$4:$H$4,0),FALSE),0) -> 29 | AC48: =IFERROR(VLOOKUP($B48,Volumes!$B$4:$H$33,MATCH(AC$11,Volumes!$B$4:$H$4,0),FALSE),0) -> 29 | AD48: =IFERROR(VLOOKUP($B48,Volumes!$B$4:$H$33,MATCH(AD$11,Volumes!$B$4:$H$4,0),FALSE),0) -> 29 | AE48: =IFERROR(VLOOKUP($B48,Volumes!$B$4:$H$33,MATCH(AE$11,Volumes!$B$4:$H$4,0),FALSE),0) -> 29 | AF48: =IFERROR(VLOOKUP($B48,Volumes!$B$4:$M$33,MATCH(AF$11,Volumes!$B$4:$M$4,0),FALSE),0) -> 29 | AG48: =IFERROR(VLOOKUP($B48,Volumes!$B$4:$M$33,MATCH(AG$11,Volumes!$B$4:$M$4,0),FALSE),0) -> 29 | AH48: =IFERROR(VLOOKUP($B48,Volumes!$B$4:$M$33,MATCH(AH$11,Volumes!$B$4:$M$4,0),FALSE),0) -> 29 | AI48: =IFERROR(VLOOKUP($B48,Volumes!$B$4:$M$33,MATCH(AI$11,Volumes!$B$4:$M$4,0),FALSE),0) -> 29 | AJ48: =IFERROR(VLOOKUP($B48,Volumes!$B$4:$M$33,MATCH(AJ$11,Volumes!$B$4:$M$4,0),FALSE),0) -> 29 | AL48: 52.90761774 | AM48: 56.96079628 | AN48: 61.20210796 | AO48: 65.48744882 | AP48: 70.00855613 | AQ48: 74.77774862 | AR48: 79.46538513 | AS48: 84.16086614 | AT48: 89.10766836 | AU48: 93.57541421 | AW48: 54.20385438 | AX48: 59.78606602 | AY48: 65.81157264 | AZ48: 72.14494771 | BA48: 79.0152529 | BB48: 86.46575975 | BC48: 94.13729865 | BD48: 102.1423624 | BE48: 110.7956589 | BF48: 119.2014081 | BI48: 1534.320915 | BJ48: 1651.863092 | BK48: 1774.861131 | BL48: 1899.136016 | BM48: 2030.248128 | BN48: 2168.55471 | BO48: 2304.496169 | BP48: 2440.665118 | BQ48: 2584.122382 | BR48: 2713.687012 | BU48: 1571.911777 | BV48: 1733.795915 | BW48: 1908.535606 | BX48: 2092.203484 | BY48: 2291.442334 | BZ48: 2507.507033 | CA48: 2729.981661 | CB48: 2962.12851 | CC48: 3213.074107 | CD48: 3456.840834
B49: =Inputs!$C106 -> 25W LED Decorative - Bottom Pole Entry | C49: Not Offered | D49: =IF($C49="NA","",'Smoothed Prices'!D49+$D$6) -> 14.45563326 | E49: 15.60569761 | F49: 16.76770081 | G49: 17.9417668 | H49: 19.1280208 | I49: =IF($C49="NA","",'Smoothed Prices'!I49+$I$6) -> 20.48705442 | J49: 21.77133839 | K49: 23.05777154 | L49: 24.34635747 | M49: 25.63709978 | P49: 14.80979628 | Q49: 16.37974411 | R49: 18.03056785 | S49: 19.7657391 | T49: 21.58886691 | U49: 23.68924925 | V49: 25.79104073 | W49: 27.98420888 | X49: 30.27203794 | Y49: 32.65792002 | AA49: =IFERROR(VLOOKUP($B49,Volumes!$B$4:$H$33,MATCH(AA$11,Volumes!$B$4:$H$4,0),FALSE),0) -> 0 | AB49: =IFERROR(VLOOKUP($B49,Volumes!$B$4:$H$33,MATCH(AB$11,Volumes!$B$4:$H$4,0),FALSE),0) -> 0 | AC49: =IFERROR(VLOOKUP($B49,Volumes!$B$4:$H$33,MATCH(AC$11,Volumes!$B$4:$H$4,0),FALSE),0) -> 0 | AD49: =IFERROR(VLOOKUP($B49,Volumes!$B$4:$H$33,MATCH(AD$11,Volumes!$B$4:$H$4,0),FALSE),0) -> 0 | AE49: =IFERROR(VLOOKUP($B49,Volumes!$B$4:$H$33,MATCH(AE$11,Volumes!$B$4:$H$4,0),FALSE),0) -> 0 | AF49: =IFERROR(VLOOKUP($B49,Volumes!$B$4:$M$33,MATCH(AF$11,Volumes!$B$4:$M$4,0),FALSE),0) -> 0 | AG49: =IFERROR(VLOOKUP($B49,Volumes!$B$4:$M$33,MATCH(AG$11,Volumes!$B$4:$M$4,0),FALSE),0) -> 0 | AH49: =IFERROR(VLOOKUP($B49,Volumes!$B$4:$M$33,MATCH(AH$11,Volumes!$B$4:$M$4,0),FALSE),0) -> 0 | AI49: =IFERROR(VLOOKUP($B49,Volumes!$B$4:$M$33,MATCH(AI$11,Volumes!$B$4:$M$4,0),FALSE),0) -> 0 | AJ49: =IFERROR(VLOOKUP($B49,Volumes!$B$4:$M$33,MATCH(AJ$11,Volumes!$B$4:$M$4,0),FALSE),0) -> 0 | AL49: 52.90761774 | AM49: 56.96079628 | AN49: 61.20210796 | AO49: 65.48744882 | AP49: 70.00855613 | AQ49: 74.77774862 | AR49: 79.46538513 | AS49: 84.16086614 | AT49: 89.10766836 | AU49: 93.57541421 | AW49: 54.20385438 | AX49: 59.78606602 | AY49: 65.81157264 | AZ49: 72.14494771 | BA49: 79.0152529 | BB49: 86.46575975 | BC49: 94.13729865 | BD49: 102.1423624 | BE49: 110.7956589 | BF49: 119.2014081 | BI49: 0 | BJ49: 0 | BK49: 0 | BL49: 0 | BM49: 0 | BN49: 0 | BO49: 0 | BP49: 0 | BQ49: 0 | BR49: 0 | BU49: 0 | BV49: 0 | BW49: 0 | BX49: 0 | BY49: 0 | BZ49: 0 | CA49: 0 | CB49: 0 | CC49: 0 | CD49: 0
B50: =Inputs!$C107 -> 25W LED Decorative - Side Entry | C50: Not Offered | D50: =IF($C50="NA","",'Smoothed Prices'!D50+$D$6) -> 14.45563326 | E50: 15.60569761 | F50: 16.76770081 | G50: 17.9417668 | H50: 19.1280208 | I50: =IF($C50="NA","",'Smoothed Prices'!I50+$I$6) -> 20.48705442 | J50: 21.77133839 | K50: 23.05777154 | L50: 24.34635747 | M50: 25.63709978 | P50: 14.80979628 | Q50: 16.37974411 | R50: 18.03056785 | S50: 19.7657391 | T50: 21.58886691 | U50: 23.68924925 | V50: 25.79104073 | W50: 27.98420888 | X50: 30.27203794 | Y50: 32.65792002 | AA50: =IFERROR(VLOOKUP($B50,Volumes!$B$4:$H$33,MATCH(AA$11,Volumes!$B$4:$H$4,0),FALSE),0) -> 0 | AB50: =IFERROR(VLOOKUP($B50,Volumes!$B$4:$H$33,MATCH(AB$11,Volumes!$B$4:$H$4,0),FALSE),0) -> 0 | AC50: =IFERROR(VLOOKUP($B50,Volumes!$B$4:$H$33,MATCH(AC$11,Volumes!$B$4:$H$4,0),FALSE),0) -> 0 | AD50: =IFERROR(VLOOKUP($B50,Volumes!$B$4:$H$33,MATCH(AD$11,Volumes!$B$4:$H$4,0),FALSE),0) -> 0 | AE50: =IFERROR(VLOOKUP($B50,Volumes!$B$4:$H$33,MATCH(AE$11,Volumes!$B$4:$H$4,0),FALSE),0) -> 0 | AF50: =IFERROR(VLOOKUP($B50,Volumes!$B$4:$M$33,MATCH(AF$11,Volumes!$B$4:$M$4,0),FALSE),0) -> 0 | AG50: =IFERROR(VLOOKUP($B50,Volumes!$B$4:$M$33,MATCH(AG$11,Volumes!$B$4:$M$4,0),FALSE),0) -> 0 | AH50: =IFERROR(VLOOKUP($B50,Volumes!$B$4:$M$33,MATCH(AH$11,Volumes!$B$4:$M$4,0),FALSE),0) -> 0 | AI50: =IFERROR(VLOOKUP($B50,Volumes!$B$4:$M$33,MATCH(AI$11,Volumes!$B$4:$M$4,0),FALSE),0) -> 0 | AJ50: =IFERROR(VLOOKUP($B50,Volumes!$B$4:$M$33,MATCH(AJ$11,Volumes!$B$4:$M$4,0),FALSE),0) -> 0 | AL50: 52.90761774 | AM50: 56.96079628 | AN50: 61.20210796 | AO50: 65.48744882 | AP50: 70.00855613 | AQ50: 74.77774862 | AR50: 79.46538513 | AS50: 84.16086614 | AT50: 89.10766836 | AU50: 93.57541421 | AW50: 54.20385438 | AX50: 59.78606602 | AY50: 65.81157264 | AZ50: 72.14494771 | BA50: 79.0152529 | BB50: 86.46575975 | BC50: 94.13729865 | BD50: 102.1423624 | BE50: 110.7956589 | BF50: 119.2014081 | BI50: 0 | BJ50: 0 | BK50: 0 | BL50: 0 | BM50: 0 | BN50: 0 | BO50: 0 | BP50: 0 | BQ50: 0 | BR50: 0 | BU50: 0 | BV50: 0 | BW50: 0 | BX50: 0 | BY50: 0 | BZ50: 0 | CA50: 0 | CB50: 0 | CC50: 0 | CD50: 0
B51: =Inputs!$C108 -> 25W LED Decorative - Top Entry | C51: Not Offered | D51: =IF($C51="NA","",'Smoothed Prices'!D51+$D$6) -> 14.45563326 | E51: 15.60569761 | F51: 16.76770081 | G51: 17.9417668 | H51: 19.1280208 | I51: =IF($C51="NA","",'Smoothed Prices'!I51+$I$6) -> 20.48705442 | J51: 21.77133839 | K51: 23.05777154 | L51: 24.34635747 | M51: 25.63709978 | P51: 14.80979628 | Q51: 16.37974411 | R51: 18.03056785 | S51: 19.7657391 | T51: 21.58886691 | U51: 23.68924925 | V51: 25.79104073 | W51: 27.98420888 | X51: 30.27203794 | Y51: 32.65792002 | AA51: =IFERROR(VLOOKUP($B51,Volumes!$B$4:$H$33,MATCH(AA$11,Volumes!$B$4:$H$4,0),FALSE),0) -> 0 | AB51: =IFERROR(VLOOKUP($B51,Volumes!$B$4:$H$33,MATCH(AB$11,Volumes!$B$4:$H$4,0),FALSE),0) -> 0 | AC51: =IFERROR(VLOOKUP($B51,Volumes!$B$4:$H$33,MATCH(AC$11,Volumes!$B$4:$H$4,0),FALSE),0) -> 0 | AD51: =IFERROR(VLOOKUP($B51,Volumes!$B$4:$H$33,MATCH(AD$11,Volumes!$B$4:$H$4,0),FALSE),0) -> 0 | AE51: =IFERROR(VLOOKUP($B51,Volumes!$B$4:$H$33,MATCH(AE$11,Volumes!$B$4:$H$4,0),FALSE),0) -> 0 | AF51: =IFERROR(VLOOKUP($B51,Volumes!$B$4:$M$33,MATCH(AF$11,Volumes!$B$4:$M$4,0),FALSE),0) -> 0 | AG51: =IFERROR(VLOOKUP($B51,Volumes!$B$4:$M$33,MATCH(AG$11,Volumes!$B$4:$M$4,0),FALSE),0) -> 0 | AH51: =IFERROR(VLOOKUP($B51,Volumes!$B$4:$M$33,MATCH(AH$11,Volumes!$B$4:$M$4,0),FALSE),0) -> 0 | AI51: =IFERROR(VLOOKUP($B51,Volumes!$B$4:$M$33,MATCH(AI$11,Volumes!$B$4:$M$4,0),FALSE),0) -> 0 | AJ51: =IFERROR(VLOOKUP($B51,Volumes!$B$4:$M$33,MATCH(AJ$11,Volumes!$B$4:$M$4,0),FALSE),0) -> 0 | AL51: 52.90761774 | AM51: 56.96079628 | AN51: 61.20210796 | AO51: 65.48744882 | AP51: 70.00855613 | AQ51: 74.77774862 | AR51: 79.46538513 | AS51: 84.16086614 | AT51: 89.10766836 | AU51: 93.57541421 | AW51: 54.20385438 | AX51: 59.78606602 | AY51: 65.81157264 | AZ51: 72.14494771 | BA51: 79.0152529 | BB51: 86.46575975 | BC51: 94.13729865 | BD51: 102.1423624 | BE51: 110.7956589 | BF51: 119.2014081 | BI51: 0 | BJ51: 0 | BK51: 0 | BL51: 0 | BM51: 0 | BN51: 0 | BO51: 0 | BP51: 0 | BQ51: 0 | BR51: 0 | BU51: 0 | BV51: 0 | BW51: 0 | BX51: 0 | BY51: 0 | BZ51: 0 | CA51: 0 | CB51: 0 | CC51: 0 | CD51: 0
B52: =Inputs!$C109 -> 30W LED | C52: Offered | D52: =IF($C52="NA","",'Smoothed Prices'!D52+$D$6) -> 14.45563326 | E52: 15.60569761 | F52: 16.76770081 | G52: 17.9417668 | H52: 19.1280208 | I52: =IF($C52="NA","",'Smoothed Prices'!I52+$I$6) -> 20.48705442 | J52: 21.77133839 | K52: 23.05777154 | L52: 24.34635747 | M52: 25.63709978 | P52: 14.80979628 | Q52: 16.37974411 | R52: 18.03056785 | S52: 19.7657391 | T52: 21.58886691 | U52: 23.68924925 | V52: 25.79104073 | W52: 27.98420888 | X52: 30.27203794 | Y52: 32.65792002 | AA52: =IFERROR(VLOOKUP($B52,Volumes!$B$4:$H$33,MATCH(AA$11,Volumes!$B$4:$H$4,0),FALSE),0) -> 32 | AB52: =IFERROR(VLOOKUP($B52,Volumes!$B$4:$H$33,MATCH(AB$11,Volumes!$B$4:$H$4,0),FALSE),0) -> 32 | AC52: =IFERROR(VLOOKUP($B52,Volumes!$B$4:$H$33,MATCH(AC$11,Volumes!$B$4:$H$4,0),FALSE),0) -> 32 | AD52: =IFERROR(VLOOKUP($B52,Volumes!$B$4:$H$33,MATCH(AD$11,Volumes!$B$4:$H$4,0),FALSE),0) -> 32 | AE52: =IFERROR(VLOOKUP($B52,Volumes!$B$4:$H$33,MATCH(AE$11,Volumes!$B$4:$H$4,0),FALSE),0) -> 32 | AF52: =IFERROR(VLOOKUP($B52,Volumes!$B$4:$M$33,MATCH(AF$11,Volumes!$B$4:$M$4,0),FALSE),0) -> 32 | AG52: =IFERROR(VLOOKUP($B52,Volumes!$B$4:$M$33,MATCH(AG$11,Volumes!$B$4:$M$4,0),FALSE),0) -> 32 | AH52: =IFERROR(VLOOKUP($B52,Volumes!$B$4:$M$33,MATCH(AH$11,Volumes!$B$4:$M$4,0),FALSE),0) -> 32 | AI52: =IFERROR(VLOOKUP($B52,Volumes!$B$4:$M$33,MATCH(AI$11,Volumes!$B$4:$M$4,0),FALSE),0) -> 32 | AJ52: =IFERROR(VLOOKUP($B52,Volumes!$B$4:$M$33,MATCH(AJ$11,Volumes!$B$4:$M$4,0),FALSE),0) -> 32 | AL52: 52.90761774 | AM52: 56.96079628 | AN52: 61.20210796 | AO52: 65.48744882 | AP52: 70.00855613 | AQ52: 74.77774862 | AR52: 79.46538513 | AS52: 84.16086614 | AT52: 89.10766836 | AU52: 93.57541421 | AW52: 54.20385438 | AX52: 59.78606602 | AY52: 65.81157264 | AZ52: 72.14494771 | BA52: 79.0152529 | BB52: 86.46575975 | BC52: 94.13729865 | BD52: 102.1423624 | BE52: 110.7956589 | BF52: 119.2014081 | BI52: 1693.043768 | BJ52: 1822.745481 | BK52: 1958.467455 | BL52: 2095.598362 | BM52: 2240.273796 | BN52: 2392.887956 | BO52: 2542.892324 | BP52: 2693.147716 | BQ52: 2851.445387 | BR52: 2994.413255 | BU52: 1734.52334 | BV52: 1913.154113 | BW52: 2105.970324 | BX52: 2308.638327 | BY52: 2528.488093 | BZ52: 2766.904312 | CA52: 3012.393557 | CB52: 3268.555597 | CC52: 3545.461084 | CD52: 3814.445058
B53: =Inputs!$C110 -> 88 LED Light | C53: Not Offered | D53: =IF($C53="NA","",'Smoothed Prices'!D53+$D$6) -> 14.45563326 | E53: 15.60569761 | F53: 16.76770081 | G53: 17.9417668 | H53: 19.1280208 | I53: =IF($C53="NA","",'Smoothed Prices'!I53+$I$6) -> 20.48705442 | J53: 21.77133839 | K53: 23.05777154 | L53: 24.34635747 | M53: 25.63709978 | P53: 14.80979628 | Q53: 16.37974411 | R53: 18.03056785 | S53: 19.7657391 | T53: 21.58886691 | U53: 23.68924925 | V53: 25.79104073 | W53: 27.98420888 | X53: 30.27203794 | Y53: 32.65792002 | AA53: =IFERROR(VLOOKUP($B53,Volumes!$B$4:$H$33,MATCH(AA$11,Volumes!$B$4:$H$4,0),FALSE),0) -> 0 | AB53: =IFERROR(VLOOKUP($B53,Volumes!$B$4:$H$33,MATCH(AB$11,Volumes!$B$4:$H$4,0),FALSE),0) -> 0 | AC53: =IFERROR(VLOOKUP($B53,Volumes!$B$4:$H$33,MATCH(AC$11,Volumes!$B$4:$H$4,0),FALSE),0) -> 0 | AD53: =IFERROR(VLOOKUP($B53,Volumes!$B$4:$H$33,MATCH(AD$11,Volumes!$B$4:$H$4,0),FALSE),0) -> 0 | AE53: =IFERROR(VLOOKUP($B53,Volumes!$B$4:$H$33,MATCH(AE$11,Volumes!$B$4:$H$4,0),FALSE),0) -> 0 | AF53: =IFERROR(VLOOKUP($B53,Volumes!$B$4:$M$33,MATCH(AF$11,Volumes!$B$4:$M$4,0),FALSE),0) -> 0 | AG53: =IFERROR(VLOOKUP($B53,Volumes!$B$4:$M$33,MATCH(AG$11,Volumes!$B$4:$M$4,0),FALSE),0) -> 0 | AH53: =IFERROR(VLOOKUP($B53,Volumes!$B$4:$M$33,MATCH(AH$11,Volumes!$B$4:$M$4,0),FALSE),0) -> 0 | AI53: =IFERROR(VLOOKUP($B53,Volumes!$B$4:$M$33,MATCH(AI$11,Volumes!$B$4:$M$4,0),FALSE),0) -> 0 | AJ53: =IFERROR(VLOOKUP($B53,Volumes!$B$4:$M$33,MATCH(AJ$11,Volumes!$B$4:$M$4,0),FALSE),0) -> 0 | AL53: 52.90761774 | AM53: 56.96079628 | AN53: 61.20210796 | AO53: 65.48744882 | AP53: 70.00855613 | AQ53: 74.77774862 | AR53: 79.46538513 | AS53: 84.16086614 | AT53: 89.10766836 | AU53: 93.57541421 | AW53: 54.20385438 | AX53: 59.78606602 | AY53: 65.81157264 | AZ53: 72.14494771 | BA53: 79.0152529 | BB53: 86.46575975 | BC53: 94.13729865 | BD53: 102.1423624 | BE53: 110.7956589 | BF53: 119.2014081 | BI53: 0 | BJ53: 0 | BK53: 0 | BL53: 0 | BM53: 0 | BN53: 0 | BO53: 0 | BP53: 0 | BQ53: 0 | BR53: 0 | BU53: 0 | BV53: 0 | BW53: 0 | BX53: 0 | BY53: 0 | BZ53: 0 | CA53: 0 | CB53: 0 | CC53: 0 | CD53: 0
B54: =Inputs!$C111 -> 100W Metal Halide | C54: Offered | D54: =IF($C54="NA","",'Smoothed Prices'!D54+$D$6) -> 24.18750586 | E54: 25.43859706 | F54: 26.70267588 | G54: 27.97987713 | H54: 29.27033705 | I54: =IF($C54="NA","",'Smoothed Prices'!I54+$I$6) -> 30.62937066 | J54: 31.93062725 | K54: 33.23406143 | L54: 34.53967683 | M54: 35.8474771 | P54: 24.78009976 | Q54: 26.70035784 | R54: 28.71380009 | S54: 30.8243306 | T54: 33.03600606 | U54: 35.4168433 | V54: 37.82606715 | W54: 40.33472684 | X54: 42.94631788 | Y54: 45.66444918 | AA54: =IFERROR(VLOOKUP($B54,Volumes!$B$4:$H$33,MATCH(AA$11,Volumes!$B$4:$H$4,0),FALSE),0) -> 5 | AB54: =IFERROR(VLOOKUP($B54,Volumes!$B$4:$H$33,MATCH(AB$11,Volumes!$B$4:$H$4,0),FALSE),0) -> 5 | AC54: =IFERROR(VLOOKUP($B54,Volumes!$B$4:$H$33,MATCH(AC$11,Volumes!$B$4:$H$4,0),FALSE),0) -> 5 | AD54: =IFERROR(VLOOKUP($B54,Volumes!$B$4:$H$33,MATCH(AD$11,Volumes!$B$4:$H$4,0),FALSE),0) -> 5 | AE54: =IFERROR(VLOOKUP($B54,Volumes!$B$4:$H$33,MATCH(AE$11,Volumes!$B$4:$H$4,0),FALSE),0) -> 5 | AF54: =IFERROR(VLOOKUP($B54,Volumes!$B$4:$M$33,MATCH(AF$11,Volumes!$B$4:$M$4,0),FALSE),0) -> 5 | AG54: =IFERROR(VLOOKUP($B54,Volumes!$B$4:$M$33,MATCH(AG$11,Volumes!$B$4:$M$4,0),FALSE),0) -> 5 | AH54: =IFERROR(VLOOKUP($B54,Volumes!$B$4:$M$33,MATCH(AH$11,Volumes!$B$4:$M$4,0),FALSE),0) -> 5 | AI54: =IFERROR(VLOOKUP($B54,Volumes!$B$4:$M$33,MATCH(AI$11,Volumes!$B$4:$M$4,0),FALSE),0) -> 5 | AJ54: =IFERROR(VLOOKUP($B54,Volumes!$B$4:$M$33,MATCH(AJ$11,Volumes!$B$4:$M$4,0),FALSE),0) -> 5 | AL54: 88.52627146 | AM54: 92.85087929 | AN54: 97.46476696 | AO54: 102.1265515 | AP54: 107.1294336 | AQ54: 111.7972029 | AR54: 116.5467895 | AS54: 121.3043242 | AT54: 126.4152172 | AU54: 130.8432914 | AW54: 90.69516512 | AX54: 97.45630611 | AY54: 104.8053703 | AZ54: 112.5088067 | BA54: 120.9117822 | BB54: 129.271478 | BC54: 138.0651451 | BD54: 147.221753 | BE54: 157.1835234 | BF54: 166.6752395 | BI54: 442.6313573 | BJ54: 464.2543964 | BK54: 487.3238348 | BL54: 510.6327577 | BM54: 535.647168 | BN54: 558.9860146 | BO54: 582.7339474 | BP54: 606.521621 | BQ54: 632.0760859 | BR54: 654.2164571 | BU54: 453.4758256 | BV54: 487.2815306 | BW54: 524.0268517 | BX54: 562.5440335 | BY54: 604.5589108 | BZ54: 646.3573902 | CA54: 690.3257255 | CB54: 736.1087649 | CC54: 785.9176172 | CD54: 833.3761974
B55: =Inputs!$C112 -> 150W Metal Halide | C55: Offered | D55: =IF($C55="NA","",'Smoothed Prices'!D55+$D$6) -> 24.33130079 | E55: 25.58388473 | F55: 26.84947178 | G55: 28.12819692 | H55: 29.42019655 | I55: =IF($C55="NA","",'Smoothed Prices'!I55+$I$6) -> 30.77923017 | J55: 32.08073754 | K55: 33.38442291 | L55: 34.69028993 | M55: 35.99834225 | P55: 24.92741766 | Q55: 26.85285181 | R55: 28.87165199 | S55: 30.98772869 | T55: 33.20514519 | U55: 35.59012634 | V55: 38.00389271 | W55: 40.517214 | X55: 43.13358884 | Y55: 45.85662934 | AA55: =IFERROR(VLOOKUP($B55,Volumes!$B$4:$H$33,MATCH(AA$11,Volumes!$B$4:$H$4,0),FALSE),0) -> 27 | AB55: =IFERROR(VLOOKUP($B55,Volumes!$B$4:$H$33,MATCH(AB$11,Volumes!$B$4:$H$4,0),FALSE),0) -> 27 | AC55: =IFERROR(VLOOKUP($B55,Volumes!$B$4:$H$33,MATCH(AC$11,Volumes!$B$4:$H$4,0),FALSE),0) -> 27 | AD55: =IFERROR(VLOOKUP($B55,Volumes!$B$4:$H$33,MATCH(AD$11,Volumes!$B$4:$H$4,0),FALSE),0) -> 27 | AE55: =IFERROR(VLOOKUP($B55,Volumes!$B$4:$H$33,MATCH(AE$11,Volumes!$B$4:$H$4,0),FALSE),0) -> 27 | AF55: =IFERROR(VLOOKUP($B55,Volumes!$B$4:$M$33,MATCH(AF$11,Volumes!$B$4:$M$4,0),FALSE),0) -> 27 | AG55: =IFERROR(VLOOKUP($B55,Volumes!$B$4:$M$33,MATCH(AG$11,Volumes!$B$4:$M$4,0),FALSE),0) -> 27 | AH55: =IFERROR(VLOOKUP($B55,Volumes!$B$4:$M$33,MATCH(AH$11,Volumes!$B$4:$M$4,0),FALSE),0) -> 27 | AI55: =IFERROR(VLOOKUP($B55,Volumes!$B$4:$M$33,MATCH(AI$11,Volumes!$B$4:$M$4,0),FALSE),0) -> 27 | AJ55: =IFERROR(VLOOKUP($B55,Volumes!$B$4:$M$33,MATCH(AJ$11,Volumes!$B$4:$M$4,0),FALSE),0) -> 27 | AL55: 89.05256089 | AM55: 93.38117926 | AN55: 98.00057199 | AO55: 102.6679188 | AP55: 107.6779194 | AQ55: 112.3441901 | AR55: 117.094692 | AS55: 121.8531436 | AT55: 126.9664612 | AU55: 131.3939492 | AW55: 91.23434863 | AX55: 98.0129091 | AY55: 105.3815298 | AZ55: 113.1052097 | BA55: 121.5308314 | BB55: 129.9039612 | BC55: 138.7142084 | BD55: 147.8878311 | BE55: 157.8689352 | BF55: 167.3766971 | BI55: 2404.419144 | BJ55: 2521.29184 | BK55: 2646.015444 | BL55: 2772.033807 | BM55: 2907.303823 | BN55: 3033.293133 | BO55: 3161.556685 | BP55: 3290.034878 | BQ55: 3428.094451 | BR55: 3547.636629 | BU55: 2463.327413 | BV55: 2646.348546 | BW55: 2845.301304 | BX55: 3053.840662 | BY55: 3281.332448 | BZ55: 3507.406951 | CA55: 3745.283627 | CB55: 3992.97144 | CC55: 4262.461249 | CD55: 4519.170822
B56: =Inputs!$C113 -> 250W Metal Halide | C56: Offered | D56: =IF($C56="NA","",'Smoothed Prices'!D56+$D$6) -> 24.33130079 | E56: 25.58388473 | F56: 26.84947178 | G56: 28.12819692 | H56: 29.42019655 | I56: =IF($C56="NA","",'Smoothed Prices'!I56+$I$6) -> 30.77923017 | J56: 32.08073754 | K56: 33.38442291 | L56: 34.69028993 | M56: 35.99834225 | P56: 24.92741766 | Q56: 26.85285181 | R56: 28.87165199 | S56: 30.98772869 | T56: 33.20514519 | U56: 35.59012634 | V56: 38.00389271 | W56: 40.517214 | X56: 43.13358884 | Y56: 45.85662934 | AA56: =IFERROR(VLOOKUP($B56,Volumes!$B$4:$H$33,MATCH(AA$11,Volumes!$B$4:$H$4,0),FALSE),0) -> 40 | AB56: =IFERROR(VLOOKUP($B56,Volumes!$B$4:$H$33,MATCH(AB$11,Volumes!$B$4:$H$4,0),FALSE),0) -> 40 | AC56: =IFERROR(VLOOKUP($B56,Volumes!$B$4:$H$33,MATCH(AC$11,Volumes!$B$4:$H$4,0),FALSE),0) -> 40 | AD56: =IFERROR(VLOOKUP($B56,Volumes!$B$4:$H$33,MATCH(AD$11,Volumes!$B$4:$H$4,0),FALSE),0) -> 40 | AE56: =IFERROR(VLOOKUP($B56,Volumes!$B$4:$H$33,MATCH(AE$11,Volumes!$B$4:$H$4,0),FALSE),0) -> 40 | AF56: =IFERROR(VLOOKUP($B56,Volumes!$B$4:$M$33,MATCH(AF$11,Volumes!$B$4:$M$4,0),FALSE),0) -> 40 | AG56: =IFERROR(VLOOKUP($B56,Volumes!$B$4:$M$33,MATCH(AG$11,Volumes!$B$4:$M$4,0),FALSE),0) -> 40 | AH56: =IFERROR(VLOOKUP($B56,Volumes!$B$4:$M$33,MATCH(AH$11,Volumes!$B$4:$M$4,0),FALSE),0) -> 40 | AI56: =IFERROR(VLOOKUP($B56,Volumes!$B$4:$M$33,MATCH(AI$11,Volumes!$B$4:$M$4,0),FALSE),0) -> 40 | AJ56: =IFERROR(VLOOKUP($B56,Volumes!$B$4:$M$33,MATCH(AJ$11,Volumes!$B$4:$M$4,0),FALSE),0) -> 40 | AL56: 89.05256089 | AM56: 93.38117926 | AN56: 98.00057199 | AO56: 102.6679188 | AP56: 107.6779194 | AQ56: 112.3441901 | AR56: 117.094692 | AS56: 121.8531436 | AT56: 126.9664612 | AU56: 131.3939492 | AW56: 91.23434863 | AX56: 98.0129091 | AY56: 105.3815298 | AZ56: 113.1052097 | BA56: 121.5308314 | BB56: 129.9039612 | BC56: 138.7142084 | BD56: 147.8878311 | BE56: 157.8689352 | BF56: 167.3766971 | BI56: 3562.102436 | BJ56: 3735.24717 | BK56: 3920.02288 | BL56: 4106.716751 | BM56: 4307.116775 | BN56: 4493.767605 | BO56: 4683.787681 | BP56: 4874.125745 | BQ56: 5078.658446 | BR56: 5255.757969 | BU56: 3649.373945 | BV56: 3920.516364 | BW56: 4215.261191 | BX56: 4524.208388 | BY56: 4861.233256 | BZ56: 5196.158446 | CA56: 5548.568336 | CB56: 5915.513245 | CC56: 6314.757407 | CD56: 6695.067884
B57: =Inputs!$C114 -> 400W Metal Halide | C57: Offered | D57: =IF($C57="NA","",'Smoothed Prices'!D57+$D$6) -> 25.01878748 | E57: 26.27850823 | F57: 27.55130619 | G57: 28.8373171 | H57: 30.13667813 | I57: =IF($C57="NA","",'Smoothed Prices'!I57+$I$6) -> 31.49571174 | J57: 32.79841811 | K57: 34.10330448 | L57: 35.41037451 | M57: 36.71963185 | P57: 25.63174777 | Q57: 27.58192881 | R57: 29.62634538 | S57: 31.7689385 | T57: 34.0138031 | U57: 36.41859637 | V57: 38.85408062 | W57: 41.38968912 | X57: 44.02893541 | Y57: 46.77544692 | AA57: =IFERROR(VLOOKUP($B57,Volumes!$B$4:$H$33,MATCH(AA$11,Volumes!$B$4:$H$4,0),FALSE),0) -> 9 | AB57: =IFERROR(VLOOKUP($B57,Volumes!$B$4:$H$33,MATCH(AB$11,Volumes!$B$4:$H$4,0),FALSE),0) -> 9 | AC57: =IFERROR(VLOOKUP($B57,Volumes!$B$4:$H$33,MATCH(AC$11,Volumes!$B$4:$H$4,0),FALSE),0) -> 9 | AD57: =IFERROR(VLOOKUP($B57,Volumes!$B$4:$H$33,MATCH(AD$11,Volumes!$B$4:$H$4,0),FALSE),0) -> 9 | AE57: =IFERROR(VLOOKUP($B57,Volumes!$B$4:$H$33,MATCH(AE$11,Volumes!$B$4:$H$4,0),FALSE),0) -> 9 | AF57: =IFERROR(VLOOKUP($B57,Volumes!$B$4:$M$33,MATCH(AF$11,Volumes!$B$4:$M$4,0),FALSE),0) -> 9 | AG57: =IFERROR(VLOOKUP($B57,Volumes!$B$4:$M$33,MATCH(AG$11,Volumes!$B$4:$M$4,0),FALSE),0) -> 9 | AH57: =IFERROR(VLOOKUP($B57,Volumes!$B$4:$M$33,MATCH(AH$11,Volumes!$B$4:$M$4,0),FALSE),0) -> 9 | AI57: =IFERROR(VLOOKUP($B57,Volumes!$B$4:$M$33,MATCH(AI$11,Volumes!$B$4:$M$4,0),FALSE),0) -> 9 | AJ57: =IFERROR(VLOOKUP($B57,Volumes!$B$4:$M$33,MATCH(AJ$11,Volumes!$B$4:$M$4,0),FALSE),0) -> 9 | AL57: 91.56876216 | AM57: 95.91655506 | AN57: 100.5622676 | AO57: 105.2562074 | AP57: 110.3002419 | AQ57: 114.9593479 | AR57: 119.7142261 | AS57: 124.4770613 | AT57: 129.6019707 | AU57: 134.0266563 | AW57: 93.81219684 | AX57: 100.6740402 | AY57: 108.1361607 | AZ57: 115.9566255 | BA57: 124.4905193 | BB57: 132.9278768 | BC57: 141.8173943 | BD57: 151.0723653 | BE57: 161.1459036 | BF57: 170.7303813 | BI57: 824.1188595 | BJ57: 863.2489955 | BK57: 905.0604084 | BL57: 947.3058667 | BM57: 992.7021774 | BN57: 1034.634131 | BO57: 1077.428035 | BP57: 1120.293552 | BQ57: 1166.417736 | BR57: 1206.239906 | BU57: 844.3097715 | BV57: 906.0663615 | BW57: 973.2254459 | BX57: 1043.60963 | BY57: 1120.414674 | BZ57: 1196.350891 | CA57: 1276.356548 | CB57: 1359.651288 | CC57: 1450.313132 | CD57: 1536.573431
B58: =Inputs!$C115 -> 70W Metal Halide | C58: Old light no volumes | D58: =IF($C58="NA","",'Smoothed Prices'!D58+$D$6) -> 20.75427083 | E58: 21.96972151 | F58: 23.19778983 | G58: 24.43860676 | H58: 25.69230464 | I58: =IF($C58="NA","",'Smoothed Prices'!I58+$I$6) -> 27.05133826 | J58: 28.34660721 | K58: 29.64404372 | L58: 30.94365142 | M58: 32.24543394 | P58: 21.26275046 | Q58: 23.05942519 | R58: 24.94494195 | S58: 26.92305226 | T58: 28.99765488 | U58: 31.27955252 | V58: 33.58031958 | W58: 35.97767936 | X58: 38.47505282 | Y58: 41.07597238 | AA58: =IFERROR(VLOOKUP($B58,Volumes!$B$4:$H$33,MATCH(AA$11,Volumes!$B$4:$H$4,0),FALSE),0) -> 0 | AB58: =IFERROR(VLOOKUP($B58,Volumes!$B$4:$H$33,MATCH(AB$11,Volumes!$B$4:$H$4,0),FALSE),0) -> 0 | AC58: =IFERROR(VLOOKUP($B58,Volumes!$B$4:$H$33,MATCH(AC$11,Volumes!$B$4:$H$4,0),FALSE),0) -> 0 | AD58: =IFERROR(VLOOKUP($B58,Volumes!$B$4:$H$33,MATCH(AD$11,Volumes!$B$4:$H$4,0),FALSE),0) -> 0 | AE58: =IFERROR(VLOOKUP($B58,Volumes!$B$4:$H$33,MATCH(AE$11,Volumes!$B$4:$H$4,0),FALSE),0) -> 0 | AF58: =IFERROR(VLOOKUP($B58,Volumes!$B$4:$M$33,MATCH(AF$11,Volumes!$B$4:$M$4,0),FALSE),0) -> 0 | AG58: =IFERROR(VLOOKUP($B58,Volumes!$B$4:$M$33,MATCH(AG$11,Volumes!$B$4:$M$4,0),FALSE),0) -> 0 | AH58: =IFERROR(VLOOKUP($B58,Volumes!$B$4:$M$33,MATCH(AH$11,Volumes!$B$4:$M$4,0),FALSE),0) -> 0 | AI58: =IFERROR(VLOOKUP($B58,Volumes!$B$4:$M$33,MATCH(AI$11,Volumes!$B$4:$M$4,0),FALSE),0) -> 0 | AJ58: =IFERROR(VLOOKUP($B58,Volumes!$B$4:$M$33,MATCH(AJ$11,Volumes!$B$4:$M$4,0),FALSE),0) -> 0 | AL58: 75.96063122 | AM58: 80.18948352 | AN58: 84.67193288 | AO58: 89.20091467 | AP58: 94.033835 | AQ58: 98.73738465 | AR58: 103.4651163 | AS58: 108.2007596 | AT58: 113.2537642 | AU58: 117.6958339 | AW58: 77.82166669 | AX58: 84.16690195 | AY58: 91.04903812 | AZ58: 98.26914074 | BA58: 106.1314168 | BB58: 114.1703667 | BC58: 122.5681665 | BD58: 131.3185297 | BE58: 140.8186933 | BF58: 149.9272992 | BI58: 0 | BJ58: 0 | BK58: 0 | BL58: 0 | BM58: 0 | BN58: 0 | BO58: 0 | BP58: 0 | BQ58: 0 | BR58: 0 | BU58: 0 | BV58: 0 | BW58: 0 | BX58: 0 | BY58: 0 | BZ58: 0 | CA58: 0 | CB58: 0 | CC58: 0 | CD58: 0
B59: =Inputs!$C116 -> 250W Metal Halide - Flood Light | C59: Old light no volumes | D59: =IF($C59="NA","",'Smoothed Prices'!D59+$D$6) -> 24.33130079 | E59: 25.58388473 | F59: 26.84947178 | G59: 28.12819692 | H59: 29.42019655 | I59: =IF($C59="NA","",'Smoothed Prices'!I59+$I$6) -> 30.77923017 | J59: 32.08073754 | K59: 33.38442291 | L59: 34.69028993 | M59: 35.99834225 | P59: 24.92741766 | Q59: 26.85285181 | R59: 28.87165199 | S59: 30.98772869 | T59: 33.20514519 | U59: 35.59012634 | V59: 38.00389271 | W59: 40.517214 | X59: 43.13358884 | Y59: 45.85662934 | AA59: =IFERROR(VLOOKUP($B59,Volumes!$B$4:$H$33,MATCH(AA$11,Volumes!$B$4:$H$4,0),FALSE),0) -> 0 | AB59: =IFERROR(VLOOKUP($B59,Volumes!$B$4:$H$33,MATCH(AB$11,Volumes!$B$4:$H$4,0),FALSE),0) -> 0 | AC59: =IFERROR(VLOOKUP($B59,Volumes!$B$4:$H$33,MATCH(AC$11,Volumes!$B$4:$H$4,0),FALSE),0) -> 0 | AD59: =IFERROR(VLOOKUP($B59,Volumes!$B$4:$H$33,MATCH(AD$11,Volumes!$B$4:$H$4,0),FALSE),0) -> 0 | AE59: =IFERROR(VLOOKUP($B59,Volumes!$B$4:$H$33,MATCH(AE$11,Volumes!$B$4:$H$4,0),FALSE),0) -> 0 | AF59: =IFERROR(VLOOKUP($B59,Volumes!$B$4:$M$33,MATCH(AF$11,Volumes!$B$4:$M$4,0),FALSE),0) -> 0 | AG59: =IFERROR(VLOOKUP($B59,Volumes!$B$4:$M$33,MATCH(AG$11,Volumes!$B$4:$M$4,0),FALSE),0) -> 0 | AH59: =IFERROR(VLOOKUP($B59,Volumes!$B$4:$M$33,MATCH(AH$11,Volumes!$B$4:$M$4,0),FALSE),0) -> 0 | AI59: =IFERROR(VLOOKUP($B59,Volumes!$B$4:$M$33,MATCH(AI$11,Volumes!$B$4:$M$4,0),FALSE),0) -> 0 | AJ59: =IFERROR(VLOOKUP($B59,Volumes!$B$4:$M$33,MATCH(AJ$11,Volumes!$B$4:$M$4,0),FALSE),0) -> 0 | AL59: 89.05256089 | AM59: 93.38117926 | AN59: 98.00057199 | AO59: 102.6679188 | AP59: 107.6779194 | AQ59: 112.3441901 | AR59: 117.094692 | AS59: 121.8531436 | AT59: 126.9664612 | AU59: 131.3939492 | AW59: 91.23434863 | AX59: 98.0129091 | AY59: 105.3815298 | AZ59: 113.1052097 | BA59: 121.5308314 | BB59: 129.9039612 | BC59: 138.7142084 | BD59: 147.8878311 | BE59: 157.8689352 | BF59: 167.3766971 | BI59: 0 | BJ59: 0 | BK59: 0 | BL59: 0 | BM59: 0 | BN59: 0 | BO59: 0 | BP59: 0 | BQ59: 0 | BR59: 0 | BU59: 0 | BV59: 0 | BW59: 0 | BX59: 0 | BY59: 0 | BZ59: 0 | CA59: 0 | CB59: 0 | CC59: 0 | CD59: 0
B60: =Inputs!$C117 -> 400W Metal Halide - Flood Light | C60: Old light no volumes | D60: =IF($C60="NA","",'Smoothed Prices'!D60+$D$6) -> 25.01878748 | E60: 26.27850823 | F60: 27.55130619 | G60: 28.8373171 | H60: 30.13667813 | I60: =IF($C60="NA","",'Smoothed Prices'!I60+$I$6) -> 31.49571174 | J60: 32.79841811 | K60: 34.10330448 | L60: 35.41037451 | M60: 36.71963185 | P60: 25.63174777 | Q60: 27.58192881 | R60: 29.62634538 | S60: 31.7689385 | T60: 34.0138031 | U60: 36.41859637 | V60: 38.85408062 | W60: 41.38968912 | X60: 44.02893541 | Y60: 46.77544692 | AA60: =IFERROR(VLOOKUP($B60,Volumes!$B$4:$H$33,MATCH(AA$11,Volumes!$B$4:$H$4,0),FALSE),0) -> 0 | AB60: =IFERROR(VLOOKUP($B60,Volumes!$B$4:$H$33,MATCH(AB$11,Volumes!$B$4:$H$4,0),FALSE),0) -> 0 | AC60: =IFERROR(VLOOKUP($B60,Volumes!$B$4:$H$33,MATCH(AC$11,Volumes!$B$4:$H$4,0),FALSE),0) -> 0 | AD60: =IFERROR(VLOOKUP($B60,Volumes!$B$4:$H$33,MATCH(AD$11,Volumes!$B$4:$H$4,0),FALSE),0) -> 0 | AE60: =IFERROR(VLOOKUP($B60,Volumes!$B$4:$H$33,MATCH(AE$11,Volumes!$B$4:$H$4,0),FALSE),0) -> 0 | AF60: =IFERROR(VLOOKUP($B60,Volumes!$B$4:$M$33,MATCH(AF$11,Volumes!$B$4:$M$4,0),FALSE),0) -> 0 | AG60: =IFERROR(VLOOKUP($B60,Volumes!$B$4:$M$33,MATCH(AG$11,Volumes!$B$4:$M$4,0),FALSE),0) -> 0 | AH60: =IFERROR(VLOOKUP($B60,Volumes!$B$4:$M$33,MATCH(AH$11,Volumes!$B$4:$M$4,0),FALSE),0) -> 0 | AI60: =IFERROR(VLOOKUP($B60,Volumes!$B$4:$M$33,MATCH(AI$11,Volumes!$B$4:$M$4,0),FALSE),0) -> 0 | AJ60: =IFERROR(VLOOKUP($B60,Volumes!$B$4:$M$33,MATCH(AJ$11,Volumes!$B$4:$M$4,0),FALSE),0) -> 0 | AL60: 91.56876216 | AM60: 95.91655506 | AN60: 100.5622676 | AO60: 105.2562074 | AP60: 110.3002419 | AQ60: 114.9593479 | AR60: 119.7142261 | AS60: 124.4770613 | AT60: 129.6019707 | AU60: 134.0266563 | AW60: 93.81219684 | AX60: 100.6740402 | AY60: 108.1361607 | AZ60: 115.9566255 | BA60: 124.4905193 | BB60: 132.9278768 | BC60: 141.8173943 | BD60: 151.0723653 | BE60: 161.1459036 | BF60: 170.7303813 | BI60: 0 | BJ60: 0 | BK60: 0 | BL60: 0 | BM60: 0 | BN60: 0 | BO60: 0 | BP60: 0 | BQ60: 0 | BR60: 0 | BU60: 0 | BV60: 0 | BW60: 0 | BX60: 0 | BY60: 0 | BZ60: 0 | CA60: 0 | CB60: 0 | CC60: 0 | CD60: 0
B61: =Inputs!$C118 -> 125W Mercury Vapour | C61: Obsolete, no new Connections | D61: =IF($C61="NA","",'Smoothed Prices'!D61+$D$6) -> 23.29954596 | E61: 24.54141922 | F61: 25.79618441 | G61: 27.06397535 | H61: 28.34492726 | I61: =IF($C61="NA","",'Smoothed Prices'!I61+$I$6) -> 29.70396088 | J61: 31.00366884 | K61: 32.3055518 | L61: 33.60961339 | M61: 34.91585725 | P61: 23.87038484 | Q61: 25.75867975 | R61: 27.7390358 | S61: 29.81531762 | T61: 31.99154103 | U61: 34.34678888 | V61: 36.72796185 | W61: 39.20783532 | X61: 41.78988552 | Y61: 44.47770158 | AA61: =IFERROR(VLOOKUP($B61,Volumes!$B$4:$H$33,MATCH(AA$11,Volumes!$B$4:$H$4,0),FALSE),0) -> 314 | AB61: =IFERROR(VLOOKUP($B61,Volumes!$B$4:$H$33,MATCH(AB$11,Volumes!$B$4:$H$4,0),FALSE),0) -> 307 | AC61: =IFERROR(VLOOKUP($B61,Volumes!$B$4:$H$33,MATCH(AC$11,Volumes!$B$4:$H$4,0),FALSE),0) -> 301 | AD61: =IFERROR(VLOOKUP($B61,Volumes!$B$4:$H$33,MATCH(AD$11,Volumes!$B$4:$H$4,0),FALSE),0) -> 295 | AE61: =IFERROR(VLOOKUP($B61,Volumes!$B$4:$H$33,MATCH(AE$11,Volumes!$B$4:$H$4,0),FALSE),0) -> 289 | AF61: =IFERROR(VLOOKUP($B61,Volumes!$B$4:$M$33,MATCH(AF$11,Volumes!$B$4:$M$4,0),FALSE),0) -> 289 | AG61: =IFERROR(VLOOKUP($B61,Volumes!$B$4:$M$33,MATCH(AG$11,Volumes!$B$4:$M$4,0),FALSE),0) -> 289 | AH61: =IFERROR(VLOOKUP($B61,Volumes!$B$4:$M$33,MATCH(AH$11,Volumes!$B$4:$M$4,0),FALSE),0) -> 289 | AI61: =IFERROR(VLOOKUP($B61,Volumes!$B$4:$M$33,MATCH(AI$11,Volumes!$B$4:$M$4,0),FALSE),0) -> 289 | AJ61: =IFERROR(VLOOKUP($B61,Volumes!$B$4:$M$33,MATCH(AJ$11,Volumes!$B$4:$M$4,0),FALSE),0) -> 289 | AL61: 85.27633822 | AM61: 89.57618017 | AN61: 94.15607309 | AO61: 98.78351002 | AP61: 103.7424338 | AQ61: 108.4194572 | AR61: 113.1633913 | AS61: 117.9152641 | AT61: 123.011185 | AU61: 127.442879 | AW61: 87.36560851 | AX61: 94.0191811 | AY61: 101.2474807 | AZ61: 108.8259093 | BA61: 117.0890402 | BB61: 125.3657794 | BC61: 134.0570607 | BD61: 143.1085989 | BE61: 152.950981 | BF61: 162.3436108 | BI61: 26776.7702 | BJ61: 27499.88731 | BK61: 28340.978 | BL61: 29141.13546 | BM61: 29981.56336 | BN61: 31333.22313 | BO61: 32704.22008 | BP61: 34077.51132 | BQ61: 35550.23247 | BR61: 36830.99203 | BU61: 27432.80107 | BV61: 28863.8886 | BW61: 30475.49169 | BX61: 32103.64324 | BY61: 33838.73261 | BZ61: 36230.71025 | CA61: 38742.49055 | CB61: 41358.38509 | CC61: 44202.83351 | CD61: 46917.30352
B62: =Inputs!$C119 -> 250W Mercury Vapour | C62: Obsolete, no new Connections | D62: =IF($C62="NA","",'Smoothed Prices'!D62+$D$6) -> 23.29954596 | E62: 24.54141922 | F62: 25.79618441 | G62: 27.06397535 | H62: 28.34492726 | I62: =IF($C62="NA","",'Smoothed Prices'!I62+$I$6) -> 29.70396088 | J62: 31.00366884 | K62: 32.3055518 | L62: 33.60961339 | M62: 34.91585725 | P62: 23.87038484 | Q62: 25.75867975 | R62: 27.7390358 | S62: 29.81531762 | T62: 31.99154103 | U62: 34.34678888 | V62: 36.72796185 | W62: 39.20783532 | X62: 41.78988552 | Y62: 44.47770158 | AA62: =IFERROR(VLOOKUP($B62,Volumes!$B$4:$H$33,MATCH(AA$11,Volumes!$B$4:$H$4,0),FALSE),0) -> 27 | AB62: =IFERROR(VLOOKUP($B62,Volumes!$B$4:$H$33,MATCH(AB$11,Volumes!$B$4:$H$4,0),FALSE),0) -> 27 | AC62: =IFERROR(VLOOKUP($B62,Volumes!$B$4:$H$33,MATCH(AC$11,Volumes!$B$4:$H$4,0),FALSE),0) -> 26 | AD62: =IFERROR(VLOOKUP($B62,Volumes!$B$4:$H$33,MATCH(AD$11,Volumes!$B$4:$H$4,0),FALSE),0) -> 26 | AE62: =IFERROR(VLOOKUP($B62,Volumes!$B$4:$H$33,MATCH(AE$11,Volumes!$B$4:$H$4,0),FALSE),0) -> 25 | AF62: =IFERROR(VLOOKUP($B62,Volumes!$B$4:$M$33,MATCH(AF$11,Volumes!$B$4:$M$4,0),FALSE),0) -> 25 | AG62: =IFERROR(VLOOKUP($B62,Volumes!$B$4:$M$33,MATCH(AG$11,Volumes!$B$4:$M$4,0),FALSE),0) -> 25 | AH62: =IFERROR(VLOOKUP($B62,Volumes!$B$4:$M$33,MATCH(AH$11,Volumes!$B$4:$M$4,0),FALSE),0) -> 25 | AI62: =IFERROR(VLOOKUP($B62,Volumes!$B$4:$M$33,MATCH(AI$11,Volumes!$B$4:$M$4,0),FALSE),0) -> 25 | AJ62: =IFERROR(VLOOKUP($B62,Volumes!$B$4:$M$33,MATCH(AJ$11,Volumes!$B$4:$M$4,0),FALSE),0) -> 25 | AL62: 85.27633822 | AM62: 89.57618017 | AN62: 94.15607309 | AO62: 98.78351002 | AP62: 103.7424338 | AQ62: 108.4194572 | AR62: 113.1633913 | AS62: 117.9152641 | AT62: 123.011185 | AU62: 127.442879 | AW62: 87.36560851 | AX62: 94.0191811 | AY62: 101.2474807 | AZ62: 108.8259093 | BA62: 117.0890402 | BB62: 125.3657794 | BC62: 134.0570607 | BD62: 143.1085989 | BE62: 152.950981 | BF62: 162.3436108 | BI62: 2302.461132 | BJ62: 2418.556865 | BK62: 2448.0579 | BL62: 2568.371261 | BM62: 2593.560844 | BN62: 2710.48643 | BO62: 2829.084782 | BP62: 2947.881602 | BQ62: 3075.279625 | BR62: 3186.071974 | BU62: 2358.87143 | BV62: 2538.51789 | BW62: 2632.434498 | BX62: 2829.473642 | BY62: 2927.226004 | BZ62: 3134.144485 | CA62: 3351.426519 | CB62: 3577.714973 | CC62: 3823.774525 | CD62: 4058.59027
B63: =Inputs!$C120 -> 0 | C63: NA | D63: =IF($C63="NA","",'Smoothed Prices'!D63+$D$6) ->  | I63: =IF($C63="NA","",'Smoothed Prices'!I63+$I$6) ->  | AA63: =IFERROR(VLOOKUP($B63,Volumes!$B$4:$H$33,MATCH(AA$11,Volumes!$B$4:$H$4,0),FALSE),0) -> 0 | AB63: =IFERROR(VLOOKUP($B63,Volumes!$B$4:$H$33,MATCH(AB$11,Volumes!$B$4:$H$4,0),FALSE),0) -> 0 | AC63: =IFERROR(VLOOKUP($B63,Volumes!$B$4:$H$33,MATCH(AC$11,Volumes!$B$4:$H$4,0),FALSE),0) -> 0 | AD63: =IFERROR(VLOOKUP($B63,Volumes!$B$4:$H$33,MATCH(AD$11,Volumes!$B$4:$H$4,0),FALSE),0) -> 0 | AE63: =IFERROR(VLOOKUP($B63,Volumes!$B$4:$H$33,MATCH(AE$11,Volumes!$B$4:$H$4,0),FALSE),0) -> 0 | AF63: =IFERROR(VLOOKUP($B63,Volumes!$B$4:$M$33,MATCH(AF$11,Volumes!$B$4:$M$4,0),FALSE),0) -> 0 | AG63: =IFERROR(VLOOKUP($B63,Volumes!$B$4:$M$33,MATCH(AG$11,Volumes!$B$4:$M$4,0),FALSE),0) -> 0 | AH63: =IFERROR(VLOOKUP($B63,Volumes!$B$4:$M$33,MATCH(AH$11,Volumes!$B$4:$M$4,0),FALSE),0) -> 0 | AI63: =IFERROR(VLOOKUP($B63,Volumes!$B$4:$M$33,MATCH(AI$11,Volumes!$B$4:$M$4,0),FALSE),0) -> 0 | AJ63: =IFERROR(VLOOKUP($B63,Volumes!$B$4:$M$33,MATCH(AJ$11,Volumes!$B$4:$M$4,0),FALSE),0) -> 0 | BI63: 0 | BJ63: 0 | BK63: 0 | BL63: 0 | BM63: 0 | BN63: 0 | BO63: 0 | BP63: 0 | BQ63: 0 | BR63: 0 | BU63: 0 | BV63: 0 | BW63: 0 | BX63: 0 | BY63: 0 | BZ63: 0 | CA63: 0 | CB63: 0 | CC63: 0 | CD63: 0
B64: =Inputs!$C121 -> 400W Mercury Vapour | C64: Obsolete, no new Connections | D64: =IF($C64="NA","",'Smoothed Prices'!D64+$D$6) -> 23.44963847 | E64: 24.69306985 | F64: 25.94940933 | G64: 27.2187909 | H64: 28.50134996 | I64: =IF($C64="NA","",'Smoothed Prices'!I64+$I$6) -> 29.86038357 | J64: 31.1603533 | K64: 32.46249846 | L64: 33.76682269 | M64: 35.07332964 | P64: 24.02415462 | Q64: 25.91785229 | R64: 27.90380093 | S64: 29.98587182 | T64: 32.16808772 | U64: 34.52766096 | V64: 36.91357539 | W64: 39.39831462 | X64: 41.98535813 | Y64: 44.6782984 | AA64: =IFERROR(VLOOKUP($B64,Volumes!$B$4:$H$33,MATCH(AA$11,Volumes!$B$4:$H$4,0),FALSE),0) -> 21 | AB64: =IFERROR(VLOOKUP($B64,Volumes!$B$4:$H$33,MATCH(AB$11,Volumes!$B$4:$H$4,0),FALSE),0) -> 20 | AC64: =IFERROR(VLOOKUP($B64,Volumes!$B$4:$H$33,MATCH(AC$11,Volumes!$B$4:$H$4,0),FALSE),0) -> 20 | AD64: =IFERROR(VLOOKUP($B64,Volumes!$B$4:$H$33,MATCH(AD$11,Volumes!$B$4:$H$4,0),FALSE),0) -> 20 | AE64: =IFERROR(VLOOKUP($B64,Volumes!$B$4:$H$33,MATCH(AE$11,Volumes!$B$4:$H$4,0),FALSE),0) -> 19 | AF64: =IFERROR(VLOOKUP($B64,Volumes!$B$4:$M$33,MATCH(AF$11,Volumes!$B$4:$M$4,0),FALSE),0) -> 19 | AG64: =IFERROR(VLOOKUP($B64,Volumes!$B$4:$M$33,MATCH(AG$11,Volumes!$B$4:$M$4,0),FALSE),0) -> 19 | AH64: =IFERROR(VLOOKUP($B64,Volumes!$B$4:$M$33,MATCH(AH$11,Volumes!$B$4:$M$4,0),FALSE),0) -> 19 | AI64: =IFERROR(VLOOKUP($B64,Volumes!$B$4:$M$33,MATCH(AI$11,Volumes!$B$4:$M$4,0),FALSE),0) -> 19 | AJ64: =IFERROR(VLOOKUP($B64,Volumes!$B$4:$M$33,MATCH(AJ$11,Volumes!$B$4:$M$4,0),FALSE),0) -> 19 | AL64: 85.82567682 | AM64: 90.12970496 | AN64: 94.71534404 | AO64: 99.34858678 | AP64: 104.3149408 | AQ64: 108.9904 | AR64: 113.7352896 | AS64: 118.4881194 | AT64: 123.5865711 | AU64: 128.0176532 | AW64: 87.9284059 | AX64: 94.60016086 | AY64: 101.8488734 | AZ64: 109.4484321 | BA64: 117.7352011 | BB64: 126.0259625 | BC64: 134.7345502 | BD64: 143.8038484 | BE64: 153.6664108 | BF64: 163.0757892 | BI64: 1802.339213 | BJ64: 1802.594099 | BK64: 1894.306881 | BL64: 1986.971736 | BM64: 1981.983876 | BN64: 2070.817601 | BO64: 2160.970502 | BP64: 2251.274268 | BQ64: 2348.14485 | BR64: 2432.335411 | BU64: 1846.496524 | BV64: 1892.003217 | BW64: 2036.977468 | BX64: 2188.968643 | BY64: 2236.96882 | BZ64: 2394.493288 | CA64: 2559.956453 | CB64: 2732.273119 | CC64: 2919.661804 | CD64: 3098.439994
B65: =Inputs!$C122 -> 50W Mercury Vapour | C65: Obsolete, no new Connections | D65: =IF($C65="NA","",'Smoothed Prices'!D65+$D$6) -> 19.91249323 | E65: 21.1192054 | F65: 22.33844449 | G65: 23.57034053 | H65: 24.81502492 | I65: =IF($C65="NA","",'Smoothed Prices'!I65+$I$6) -> 26.17405853 | J65: 27.4678594 | K65: 28.76382537 | L65: 30.06196007 | M65: 31.36226713 | P65: 20.40034932 | Q65: 22.16672327 | R65: 24.02087462 | S65: 25.96651749 | T65: 28.00751191 | U65: 30.26515105 | V65: 32.53932614 | W65: 34.90939685 | X65: 37.37876588 | Y65: 39.95094688 | AA65: =IFERROR(VLOOKUP($B65,Volumes!$B$4:$H$33,MATCH(AA$11,Volumes!$B$4:$H$4,0),FALSE),0) -> 181 | AB65: =IFERROR(VLOOKUP($B65,Volumes!$B$4:$H$33,MATCH(AB$11,Volumes!$B$4:$H$4,0),FALSE),0) -> 177 | AC65: =IFERROR(VLOOKUP($B65,Volumes!$B$4:$H$33,MATCH(AC$11,Volumes!$B$4:$H$4,0),FALSE),0) -> 174 | AD65: =IFERROR(VLOOKUP($B65,Volumes!$B$4:$H$33,MATCH(AD$11,Volumes!$B$4:$H$4,0),FALSE),0) -> 170 | AE65: =IFERROR(VLOOKUP($B65,Volumes!$B$4:$H$33,MATCH(AE$11,Volumes!$B$4:$H$4,0),FALSE),0) -> 167 | AF65: =IFERROR(VLOOKUP($B65,Volumes!$B$4:$M$33,MATCH(AF$11,Volumes!$B$4:$M$4,0),FALSE),0) -> 167 | AG65: =IFERROR(VLOOKUP($B65,Volumes!$B$4:$M$33,MATCH(AG$11,Volumes!$B$4:$M$4,0),FALSE),0) -> 167 | AH65: =IFERROR(VLOOKUP($B65,Volumes!$B$4:$M$33,MATCH(AH$11,Volumes!$B$4:$M$4,0),FALSE),0) -> 167 | AI65: =IFERROR(VLOOKUP($B65,Volumes!$B$4:$M$33,MATCH(AI$11,Volumes!$B$4:$M$4,0),FALSE),0) -> 167 | AJ65: =IFERROR(VLOOKUP($B65,Volumes!$B$4:$M$33,MATCH(AJ$11,Volumes!$B$4:$M$4,0),FALSE),0) -> 167 | AL65: 72.87972524 | AM65: 77.08509973 | AN65: 81.53532238 | AO65: 86.03174293 | AP65: 90.8229912 | AQ65: 95.53531365 | AR65: 100.2576868 | AS65: 104.9879626 | AT65: 110.0267739 | AU65: 114.472275 | AW65: 74.66527851 | AX65: 80.90853994 | AY65: 87.67619238 | AZ65: 94.77778883 | BA65: 102.5074936 | BB65: 110.4678013 | BC65: 118.7685404 | BD65: 127.4192985 | BE65: 136.8062831 | BF65: 145.8209561 | BI65: 13191.23027 | BJ65: 13644.06265 | BK65: 14187.14609 | BL65: 14625.3963 | BM65: 15167.43953 | BN65: 15954.39738 | BO65: 16743.0337 | BP65: 17532.98976 | BQ65: 18374.47124 | BR65: 19116.86993 | BU65: 13514.41541 | BV65: 14320.81157 | BW65: 15255.65747 | BX65: 16112.2241 | BY65: 17118.75143 | BZ65: 18448.12282 | CA65: 19834.34625 | CB65: 21279.02285 | CC65: 22846.64928 | CD65: 24352.09967
B66: =Inputs!$C123 -> 80W Mercury Vapour Art decorative | C66: Old light no volumes | D66: =IF($C66="NA","",'Smoothed Prices'!D66+$D$6) -> 19.88205489 | E66: 21.08845108 | F66: 22.3073709 | G66: 23.53894437 | H66: 24.78330283 | I66: =IF($C66="NA","",'Smoothed Prices'!I66+$I$6) -> 26.14233645 | J66: 27.43608423 | K66: 28.73199703 | L66: 30.03007847 | M66: 31.33033217 | P66: 20.36916524 | Q66: 22.13444353 | R66: 23.98746072 | S66: 25.93192957 | T66: 27.97170873 | U66: 30.22847069 | V66: 32.50168423 | W66: 34.87076818 | X66: 37.33912458 | Y66: 39.91026641 | AA66: =IFERROR(VLOOKUP($B66,Volumes!$B$4:$H$33,MATCH(AA$11,Volumes!$B$4:$H$4,0),FALSE),0) -> 0 | AB66: =IFERROR(VLOOKUP($B66,Volumes!$B$4:$H$33,MATCH(AB$11,Volumes!$B$4:$H$4,0),FALSE),0) -> 0 | AC66: =IFERROR(VLOOKUP($B66,Volumes!$B$4:$H$33,MATCH(AC$11,Volumes!$B$4:$H$4,0),FALSE),0) -> 0 | AD66: =IFERROR(VLOOKUP($B66,Volumes!$B$4:$H$33,MATCH(AD$11,Volumes!$B$4:$H$4,0),FALSE),0) -> 0 | AE66: =IFERROR(VLOOKUP($B66,Volumes!$B$4:$H$33,MATCH(AE$11,Volumes!$B$4:$H$4,0),FALSE),0) -> 0 | AF66: =IFERROR(VLOOKUP($B66,Volumes!$B$4:$M$33,MATCH(AF$11,Volumes!$B$4:$M$4,0),FALSE),0) -> 0 | AG66: =IFERROR(VLOOKUP($B66,Volumes!$B$4:$M$33,MATCH(AG$11,Volumes!$B$4:$M$4,0),FALSE),0) -> 0 | AH66: =IFERROR(VLOOKUP($B66,Volumes!$B$4:$M$33,MATCH(AH$11,Volumes!$B$4:$M$4,0),FALSE),0) -> 0 | AI66: =IFERROR(VLOOKUP($B66,Volumes!$B$4:$M$33,MATCH(AI$11,Volumes!$B$4:$M$4,0),FALSE),0) -> 0 | AJ66: =IFERROR(VLOOKUP($B66,Volumes!$B$4:$M$33,MATCH(AJ$11,Volumes!$B$4:$M$4,0),FALSE),0) -> 0 | AL66: 72.76832091 | AM66: 76.97284645 | AN66: 81.4219038 | AO66: 85.91714694 | AP66: 90.70688837 | AQ66: 95.41952804 | AR66: 100.1417074 | AS66: 104.8717892 | AT66: 109.9100872 | AU66: 114.3557124 | AW66: 74.55114477 | AX66: 80.79071887 | AY66: 87.55423162 | AZ66: 94.65154294 | BA66: 102.376454 | BB66: 110.333918 | BC66: 118.6311475 | BD66: 127.2783039 | BE66: 136.661196 | BF66: 145.6724724 | BI66: 0 | BJ66: 0 | BK66: 0 | BL66: 0 | BM66: 0 | BN66: 0 | BO66: 0 | BP66: 0 | BQ66: 0 | BR66: 0 | BU66: 0 | BV66: 0 | BW66: 0 | BX66: 0 | BY66: 0 | BZ66: 0 | CA66: 0 | CB66: 0 | CC66: 0 | CD66: 0
B67: =Inputs!$C124 -> 80W Mercury Vapour | C67: Obsolete, no new Connections | D67: =IF($C67="NA","",'Smoothed Prices'!D67+$D$6) -> 19.88205489 | E67: 21.08845108 | F67: 22.3073709 | G67: 23.53894437 | H67: 24.78330283 | I67: =IF($C67="NA","",'Smoothed Prices'!I67+$I$6) -> 26.14233645 | J67: 27.43608423 | K67: 28.73199703 | L67: 30.03007847 | M67: 31.33033217 | P67: 20.36916524 | Q67: 22.13444353 | R67: 23.98746072 | S67: 25.93192957 | T67: 27.97170873 | U67: 30.22847069 | V67: 32.50168423 | W67: 34.87076818 | X67: 37.33912458 | Y67: 39.91026641 | AA67: =IFERROR(VLOOKUP($B67,Volumes!$B$4:$H$33,MATCH(AA$11,Volumes!$B$4:$H$4,0),FALSE),0) -> 336 | AB67: =IFERROR(VLOOKUP($B67,Volumes!$B$4:$H$33,MATCH(AB$11,Volumes!$B$4:$H$4,0),FALSE),0) -> 330 | AC67: =IFERROR(VLOOKUP($B67,Volumes!$B$4:$H$33,MATCH(AC$11,Volumes!$B$4:$H$4,0),FALSE),0) -> 323 | AD67: =IFERROR(VLOOKUP($B67,Volumes!$B$4:$H$33,MATCH(AD$11,Volumes!$B$4:$H$4,0),FALSE),0) -> 316 | AE67: =IFERROR(VLOOKUP($B67,Volumes!$B$4:$H$33,MATCH(AE$11,Volumes!$B$4:$H$4,0),FALSE),0) -> 310 | AF67: =IFERROR(VLOOKUP($B67,Volumes!$B$4:$M$33,MATCH(AF$11,Volumes!$B$4:$M$4,0),FALSE),0) -> 310 | AG67: =IFERROR(VLOOKUP($B67,Volumes!$B$4:$M$33,MATCH(AG$11,Volumes!$B$4:$M$4,0),FALSE),0) -> 310 | AH67: =IFERROR(VLOOKUP($B67,Volumes!$B$4:$M$33,MATCH(AH$11,Volumes!$B$4:$M$4,0),FALSE),0) -> 310 | AI67: =IFERROR(VLOOKUP($B67,Volumes!$B$4:$M$33,MATCH(AI$11,Volumes!$B$4:$M$4,0),FALSE),0) -> 310 | AJ67: =IFERROR(VLOOKUP($B67,Volumes!$B$4:$M$33,MATCH(AJ$11,Volumes!$B$4:$M$4,0),FALSE),0) -> 310 | AL67: 72.76832091 | AM67: 76.97284645 | AN67: 81.4219038 | AO67: 85.91714694 | AP67: 90.70688837 | AQ67: 95.41952804 | AR67: 100.1417074 | AS67: 104.8717892 | AT67: 109.9100872 | AU67: 114.3557124 | AW67: 74.55114477 | AX67: 80.79071887 | AY67: 87.55423162 | AZ67: 94.65154294 | BA67: 102.376454 | BB67: 110.333918 | BC67: 118.6311475 | BD67: 127.2783039 | BE67: 136.661196 | BF67: 145.6724724 | BI67: 24450.15582 | BJ67: 25401.03933 | BK67: 26299.27493 | BL67: 27149.81843 | BM67: 28119.13539 | BN67: 29580.05369 | BO67: 31043.92931 | BP67: 32510.25464 | BQ67: 34072.12703 | BR67: 35450.27086 | BU67: 25049.18464 | BV67: 26660.93723 | BW67: 28280.01681 | BX67: 29909.88757 | BY67: 31736.70073 | BZ67: 34203.51459 | CA67: 36775.65571 | CB67: 39456.2742 | CC67: 42364.97075 | CD67: 45158.46644
B68: =Inputs!$C125 -> 14W LED | C68: Offered | D68: =IF($C68="NA","",'Smoothed Prices'!D68+$D$6) -> 14.61517216 | E68: 15.76689268 | F68: 16.93056925 | G68: 18.10632599 | H68: 19.29428828 | I68: =IF($C68="NA","",'Smoothed Prices'!I68+$I$6) -> 20.6533219 | J68: 21.93788411 | K68: 23.22459597 | L68: 24.51346107 | M68: 25.80448302 | P68: 14.97324388 | Q68: 16.5489345 | R68: 18.2057028 | S68: 19.94702748 | T68: 21.77652493 | U68: 23.88150489 | V68: 25.98833624 | W68: 28.18667639 | X68: 30.47981302 | Y68: 32.87114181 | AA68: =IFERROR(VLOOKUP($B68,Volumes!$B$4:$H$33,MATCH(AA$11,Volumes!$B$4:$H$4,0),FALSE),0) -> 6100 | AB68: =IFERROR(VLOOKUP($B68,Volumes!$B$4:$H$33,MATCH(AB$11,Volumes!$B$4:$H$4,0),FALSE),0) -> 7000 | AC68: =IFERROR(VLOOKUP($B68,Volumes!$B$4:$H$33,MATCH(AC$11,Volumes!$B$4:$H$4,0),FALSE),0) -> 7020 | AD68: =IFERROR(VLOOKUP($B68,Volumes!$B$4:$H$33,MATCH(AD$11,Volumes!$B$4:$H$4,0),FALSE),0) -> 7040 | AE68: =IFERROR(VLOOKUP($B68,Volumes!$B$4:$H$33,MATCH(AE$11,Volumes!$B$4:$H$4,0),FALSE),0) -> 7050 | AF68: =IFERROR(VLOOKUP($B68,Volumes!$B$4:$M$33,MATCH(AF$11,Volumes!$B$4:$M$4,0),FALSE),0) -> 7050 | AG68: =IFERROR(VLOOKUP($B68,Volumes!$B$4:$M$33,MATCH(AG$11,Volumes!$B$4:$M$4,0),FALSE),0) -> 7050 | AH68: =IFERROR(VLOOKUP($B68,Volumes!$B$4:$M$33,MATCH(AH$11,Volumes!$B$4:$M$4,0),FALSE),0) -> 7050 | AI68: =IFERROR(VLOOKUP($B68,Volumes!$B$4:$M$33,MATCH(AI$11,Volumes!$B$4:$M$4,0),FALSE),0) -> 7050 | AJ68: =IFERROR(VLOOKUP($B68,Volumes!$B$4:$M$33,MATCH(AJ$11,Volumes!$B$4:$M$4,0),FALSE),0) -> 7050 | AL68: 53.4915301 | AM68: 57.5491583 | AN68: 61.79657778 | AO68: 66.08808985 | AP68: 70.61709511 | AQ68: 75.38462492 | AR68: 80.073277 | AS68: 84.76977529 | AT68: 89.71926752 | AU68: 94.18636301 | AW68: 54.80207259 | AX68: 60.40361094 | AY68: 66.45081522 | AZ68: 72.80665032 | BA68: 79.70208125 | BB68: 87.16749284 | BC68: 94.85742728 | BD68: 102.8813688 | BE68: 111.5561157 | BF68: 119.9796676 | BI68: 326298.3336 | BJ68: 402844.1081 | BK68: 433811.976 | BL68: 465260.1525 | BM68: 497850.5205 | BN68: 531461.6057 | BO68: 564516.6029 | BP68: 597626.9158 | BQ68: 632520.836 | BR68: 664013.8592 | BU68: 334292.6428 | BV68: 422825.2766 | BW68: 466484.7229 | BX68: 512558.8182 | BY68: 561899.6728 | BZ68: 614530.8245 | CA68: 668744.8623 | CB68: 725313.6501 | CC68: 786470.6154 | CD68: 845856.6566
B69: =Inputs!$C126 -> New technology - Minor | C69: Offered | D69: =IF($C69="NA","",'Smoothed Prices'!D69+$D$6) -> 14.61517216 | E69: 15.76689268 | F69: 16.93056925 | G69: 18.10632599 | H69: 19.29428828 | I69: =IF($C69="NA","",'Smoothed Prices'!I69+$I$6) -> 20.6533219 | J69: 21.93788411 | K69: 23.22459597 | L69: 24.51346107 | M69: 25.80448302 | P69: 14.97324388 | Q69: 16.5489345 | R69: 18.2057028 | S69: 19.94702748 | T69: 21.77652493 | U69: 23.88150489 | V69: 25.98833624 | W69: 28.18667639 | X69: 30.47981302 | Y69: 32.87114181 | AA69: =IFERROR(VLOOKUP($B69,Volumes!$B$4:$H$33,MATCH(AA$11,Volumes!$B$4:$H$4,0),FALSE),0) -> 0 | AB69: =IFERROR(VLOOKUP($B69,Volumes!$B$4:$H$33,MATCH(AB$11,Volumes!$B$4:$H$4,0),FALSE),0) -> 0 | AC69: =IFERROR(VLOOKUP($B69,Volumes!$B$4:$H$33,MATCH(AC$11,Volumes!$B$4:$H$4,0),FALSE),0) -> 0 | AD69: =IFERROR(VLOOKUP($B69,Volumes!$B$4:$H$33,MATCH(AD$11,Volumes!$B$4:$H$4,0),FALSE),0) -> 0 | AE69: =IFERROR(VLOOKUP($B69,Volumes!$B$4:$H$33,MATCH(AE$11,Volumes!$B$4:$H$4,0),FALSE),0) -> 0 | AF69: =IFERROR(VLOOKUP($B69,Volumes!$B$4:$M$33,MATCH(AF$11,Volumes!$B$4:$M$4,0),FALSE),0) -> 0 | AG69: =IFERROR(VLOOKUP($B69,Volumes!$B$4:$M$33,MATCH(AG$11,Volumes!$B$4:$M$4,0),FALSE),0) -> 0 | AH69: =IFERROR(VLOOKUP($B69,Volumes!$B$4:$M$33,MATCH(AH$11,Volumes!$B$4:$M$4,0),FALSE),0) -> 0 | AI69: =IFERROR(VLOOKUP($B69,Volumes!$B$4:$M$33,MATCH(AI$11,Volumes!$B$4:$M$4,0),FALSE),0) -> 0 | AJ69: =IFERROR(VLOOKUP($B69,Volumes!$B$4:$M$33,MATCH(AJ$11,Volumes!$B$4:$M$4,0),FALSE),0) -> 0 | AL69: 53.4915301 | AM69: 57.5491583 | AN69: 61.79657778 | AO69: 66.08808985 | AP69: 70.61709511 | AQ69: 75.38462492 | AR69: 80.073277 | AS69: 84.76977529 | AT69: 89.71926752 | AU69: 94.18636301 | AW69: 54.80207259 | AX69: 60.40361094 | AY69: 66.45081522 | AZ69: 72.80665032 | BA69: 79.70208125 | BB69: 87.16749284 | BC69: 94.85742728 | BD69: 102.8813688 | BE69: 111.5561157 | BF69: 119.9796676 | BI69: 0 | BJ69: 0 | BK69: 0 | BL69: 0 | BM69: 0 | BN69: 0 | BO69: 0 | BP69: 0 | BQ69: 0 | BR69: 0 | BU69: 0 | BV69: 0 | BW69: 0 | BX69: 0 | BY69: 0 | BZ69: 0 | CA69: 0 | CB69: 0 | CC69: 0 | CD69: 0
B70: =Inputs!$C127 -> New technology - Major | C70: Offered | D70: =IF($C70="NA","",'Smoothed Prices'!D70+$D$6) -> 15.38872588 | E70: 16.54847669 | F70: 17.72026691 | G70: 18.90422151 | H70: 20.10046678 | I70: =IF($C70="NA","",'Smoothed Prices'!I70+$I$6) -> 21.4595004 | J70: 22.74541171 | K70: 24.03347492 | L70: 25.32369364 | M70: 26.61607146 | P70: 15.76574966 | Q70: 17.36928527 | R70: 19.05487689 | S70: 20.82603762 | T70: 22.6864194 | U70: 24.81369177 | V70: 26.94495989 | W70: 29.16837739 | X70: 31.48724878 | Y70: 33.90498693 | AA70: =IFERROR(VLOOKUP($B70,Volumes!$B$4:$H$33,MATCH(AA$11,Volumes!$B$4:$H$4,0),FALSE),0) -> 0 | AB70: =IFERROR(VLOOKUP($B70,Volumes!$B$4:$H$33,MATCH(AB$11,Volumes!$B$4:$H$4,0),FALSE),0) -> 0 | AC70: =IFERROR(VLOOKUP($B70,Volumes!$B$4:$H$33,MATCH(AC$11,Volumes!$B$4:$H$4,0),FALSE),0) -> 0 | AD70: =IFERROR(VLOOKUP($B70,Volumes!$B$4:$H$33,MATCH(AD$11,Volumes!$B$4:$H$4,0),FALSE),0) -> 0 | AE70: =IFERROR(VLOOKUP($B70,Volumes!$B$4:$H$33,MATCH(AE$11,Volumes!$B$4:$H$4,0),FALSE),0) -> 0 | AF70: =IFERROR(VLOOKUP($B70,Volumes!$B$4:$M$33,MATCH(AF$11,Volumes!$B$4:$M$4,0),FALSE),0) -> 0 | AG70: =IFERROR(VLOOKUP($B70,Volumes!$B$4:$M$33,MATCH(AG$11,Volumes!$B$4:$M$4,0),FALSE),0) -> 0 | AH70: =IFERROR(VLOOKUP($B70,Volumes!$B$4:$M$33,MATCH(AH$11,Volumes!$B$4:$M$4,0),FALSE),0) -> 0 | AI70: =IFERROR(VLOOKUP($B70,Volumes!$B$4:$M$33,MATCH(AI$11,Volumes!$B$4:$M$4,0),FALSE),0) -> 0 | AJ70: =IFERROR(VLOOKUP($B70,Volumes!$B$4:$M$33,MATCH(AJ$11,Volumes!$B$4:$M$4,0),FALSE),0) -> 0 | AL70: 56.32273672 | AM70: 60.40193992 | AN70: 64.67897421 | AO70: 69.00040852 | AP70: 73.56770843 | AQ70: 78.32717645 | AR70: 83.02075273 | AS70: 87.72218346 | AT70: 92.68471871 | AU70: 97.14866085 | AW70: 57.70264377 | AX70: 63.39789124 | AY70: 69.55030065 | AZ70: 76.0150373 | BA70: 83.03229502 | BB70: 90.56997498 | BC70: 98.3491036 | BD70: 106.4645775 | BE70: 115.2433305 | BF70: 123.7532023 | BI70: 0 | BJ70: 0 | BK70: 0 | BL70: 0 | BM70: 0 | BN70: 0 | BO70: 0 | BP70: 0 | BQ70: 0 | BR70: 0 | BU70: 0 | BV70: 0 | BW70: 0 | BX70: 0 | BY70: 0 | BZ70: 0 | CA70: 0 | CB70: 0 | CC70: 0 | CD70: 0
AA71: =SUM(AA12:AA70) -> 12611 | AB71: =SUM(AB12:AB70) -> 13493 | AC71: =SUM(AC12:AC70) -> 13496 | AD71: =SUM(AD12:AD70) -> 13499 | AE71: =SUM(AE12:AE70) -> 13492 | AF71: =SUM(AF12:AF70) -> 13492 | AG71: 13492 | AH71: 13492 | AI71: 13492 | AJ71: 13492 | BI71: =SUM(BI12:BI70) -> 713001.6785 | BJ71: 814772.1065 | BK71: 872242.0091 | BL71: 930340.6924 | BM71: 991039.2134 | BN71: 1055258.154 | BO71: 1118581.321 | BP71: 1182010.456 | BQ71: 1248958.19 | BR71: 1309187.34 | BU71: =SUM(BU12:BU70) -> 730470.2197 | BV71: 855185.0066 | BW71: 937935.3138 | BX71: 1024919.764 | BY71: 1118537.767 | BZ71: 1220198.517 | CA71: 1325108.079 | CB71: 1434554.395 | CC71: 1552943.177 | CD71: 1667713.423
AA72: =Volumes!D34=AA71 -> TRUE | AB72: =Volumes!E34=AB71 -> TRUE | AC72: =Volumes!F34=AC71 -> TRUE | AD72: =Volumes!G34=AD71 -> TRUE | AE72: =Volumes!H34=AE71 -> TRUE | AF72: =Volumes!I34=AF71 -> TRUE | AG72: =Volumes!J34=AG71 -> TRUE | AH72: =Volumes!K34=AH71 -> TRUE | AI72: =Volumes!L34=AI71 -> TRUE | AJ72: =Volumes!M34=AJ71 -> TRUE
B73: Public Road Lights
C74: Offered / No Longer Offered / NA | D74: ='Master Data'!K$34 -> 2019-20 | E74: ='Master Data'!L$34 -> 2020-21 | F74: ='Master Data'!M$34 -> 2021-22 | G74: ='Master Data'!N$34 -> 2022-23 | H74: ='Master Data'!O$34 -> 2023-24 | I74: ='Master Data'!P$34 -> 2024-25 | J74: ='Master Data'!Q$34 -> 2025-26 | K74: ='Master Data'!R$34 -> 2026-27 | L74: ='Master Data'!S$34 -> 2027-28 | M74: ='Master Data'!T$34 -> 2028-29 | P74: =P11 -> 2019-20 | Q74: 2020-21 | R74: 2021-22 | S74: 2022-23 | T74: 2023-24 | U74: 2024-25 | V74: 2025-26 | W74: 2026-27 | X74: 2027-28 | Y74: 2028-29 | AA74: =AA11 -> 2019-20 | AB74: =AB11 -> 2020-21 | AC74: =AC11 -> 2021-22 | AD74: =AD11 -> 2022-23 | AE74: =AE11 -> 2023-24 | AF74: =AF11 -> 2024-25 | AG74: 2025-26 | AH74: 2026-27 | AI74: 2027-28 | AJ74: 2028-29 | AL74: ='Master Data'!K$34 -> 2019-20 | AM74: ='Master Data'!L$34 -> 2020-21 | AN74: ='Master Data'!M$34 -> 2021-22 | AO74: ='Master Data'!N$34 -> 2022-23 | AP74: ='Master Data'!O$34 -> 2023-24 | AQ74: ='Master Data'!P$34 -> 2024-25 | AR74: ='Master Data'!Q$34 -> 2025-26 | AS74: ='Master Data'!R$34 -> 2026-27 | AT74: ='Master Data'!S$34 -> 2027-28 | AU74: ='Master Data'!T$34 -> 2028-29 | AW74: ='Master Data'!K$34 -> 2019-20 | AX74: ='Master Data'!L$34 -> 2020-21 | AY74: ='Master Data'!M$34 -> 2021-22 | AZ74: ='Master Data'!N$34 -> 2022-23 | BA74: ='Master Data'!O$34 -> 2023-24 | BB74: ='Master Data'!P$34 -> 2024-25 | BC74: ='Master Data'!Q$34 -> 2025-26 | BD74: ='Master Data'!R$34 -> 2026-27 | BE74: ='Master Data'!S$34 -> 2027-28 | BF74: ='Master Data'!T$34 -> 2028-29 | BI74: ='Master Data'!K$34 -> 2019-20 | BJ74: ='Master Data'!L$34 -> 2020-21 | BK74: ='Master Data'!M$34 -> 2021-22 | BL74: ='Master Data'!N$34 -> 2022-23 | BM74: ='Master Data'!O$34 -> 2023-24 | BN74: ='Master Data'!P$34 -> 2024-25 | BO74: ='Master Data'!Q$34 -> 2025-26 | BP74: ='Master Data'!R$34 -> 2026-27 | BQ74: ='Master Data'!S$34 -> 2027-28 | BR74: ='Master Data'!T$34 -> 2028-29 | BU74: ='Master Data'!K$34 -> 2019-20 | BV74: ='Master Data'!L$34 -> 2020-21 | BW74: ='Master Data'!M$34 -> 2021-22 | BX74: ='Master Data'!N$34 -> 2022-23 | BY74: ='Master Data'!O$34 -> 2023-24 | BZ74: ='Master Data'!P$34 -> 2024-25 | CA74: ='Master Data'!Q$34 -> 2025-26 | CB74: ='Master Data'!R$34 -> 2026-27 | CC74: ='Master Data'!S$34 -> 2027-28 | CD74: ='Master Data'!T$34 -> 2028-29
B75: =Inputs!$C69 -> 32W Compact Fluorescent | C75: No Longer Offered | D75: =IF($C75="NA","",'Smoothed Prices'!D75+$D$7) -> 38.66201394 | E75: =IF($C75="NA","",D75*(1+D$9)+$E$7) -> 40.56336542 | F75: =IF($C75="NA","",E75*(1+D$9)+$F$7) -> 42.4844549 | G75: =IF($C75="NA","",F75*(1+D$9)+$G$7) -> 44.42548726 | H75: =IF($C75="NA","",G75*(1+D$9)+$H$7) -> 46.38666953 | I75: =IF($C75="NA","",'Smoothed Prices'!I75+$I$7) -> 48.96739515 | J75: =IF($C75="NA","",I75*(1+I$9)+$J$7) -> 51.04933943 | K75: =IF($C75="NA","",J75*(1+I$9)+$K$7) -> 53.13476773 | L75: =IF($C75="NA","",K75*(1+I$9)+$L$7) -> 55.22368588 | M75: =IF($C75="NA","",L75*(1+I$9)+$M$7) -> 57.31609972 | P75: =IF($C75="NA","",D75*P$9) -> 39.60923328 | Q75: =IF($C75="NA","",E75*Q$9) -> 42.57531849 | R75: =IF($C75="NA","",F75*R$9) -> 45.684191 | S75: =IF($C75="NA","",G75*S$9) -> 48.94181271 | T75: =IF($C75="NA","",H75*T$9) -> 52.35437819 | U75: =IF($C75="NA","",I75*U$9) -> 56.62116208 | V75: =IF($C75="NA","",J75*V$9) -> 60.47471995 | W75: =IF($C75="NA","",K75*W$9) -> 64.48734371 | X75: =IF($C75="NA","",L75*X$9) -> 68.66462533 | Y75: =IF($C75="NA","",M75*Y$9) -> 73.01233823 | AA75: =IFERROR(VLOOKUP($B75,Volumes!$B$39:$H$81,MATCH(AA$11,Volumes!$B$4:$H$4,0),FALSE),0) -> 0 | AB75: =IFERROR(VLOOKUP($B75,Volumes!$B$39:$H$81,MATCH(AB$11,Volumes!$B$4:$H$4,0),FALSE),0) -> 0 | AC75: =IFERROR(VLOOKUP($B75,Volumes!$B$39:$H$81,MATCH(AC$11,Volumes!$B$4:$H$4,0),FALSE),0) -> 0 | AD75: =IFERROR(VLOOKUP($B75,Volumes!$B$39:$H$81,MATCH(AD$11,Volumes!$B$4:$H$4,0),FALSE),0) -> 0 | AE75: =IFERROR(VLOOKUP($B75,Volumes!$B$39:$H$81,MATCH(AE$11,Volumes!$B$4:$H$4,0),FALSE),0) -> 0 | AF75: =IFERROR(VLOOKUP($B75,Volumes!$B$39:$M$81,MATCH(AF$11,Volumes!$B$4:$M$4,0),FALSE),0) -> 0 | AG75: =IFERROR(VLOOKUP($B75,Volumes!$B$39:$M$81,MATCH(AG$11,Volumes!$B$4:$M$4,0),FALSE),0) -> 0 | AH75: =IFERROR(VLOOKUP($B75,Volumes!$B$39:$M$81,MATCH(AH$11,Volumes!$B$4:$M$4,0),FALSE),0) -> 0 | AI75: =IFERROR(VLOOKUP($B75,Volumes!$B$39:$M$81,MATCH(AI$11,Volumes!$B$4:$M$4,0),FALSE),0) -> 0 | AJ75: =IFERROR(VLOOKUP($B75,Volumes!$B$39:$M$81,MATCH(AJ$11,Volumes!$B$4:$M$4,0),FALSE),0) -> 0 | AL75: =IF($C75="NA","",(D75*AL$9)/100) -> 141.502971 | AM75: =IF($C75="NA","",(E75*AM$9)/100) -> 148.0562838 | AN75: =IF($C75="NA","",(F75*AN$9)/100) -> 155.0682604 | AO75: =IF($C75="NA","",(G75*AO$9)/100) -> 162.1530285 | AP75: =IF($C75="NA","",(H75*AP$9)/100) -> 169.7752105 | AQ75: =IF($C75="NA","",(I75*AQ$9)/100) -> 178.7309923 | AR75: =IF($C75="NA","",(J75*AR$9)/100) -> 186.3300889 | AS75: =IF($C75="NA","",(K75*AS$9)/100) -> 193.9419022 | AT75: =IF($C75="NA","",(L75*AT$9)/100) -> 202.1186903 | AU75: =IF($C75="NA","",(M75*AU$9)/100) -> 209.203764 | AW75: =IF($C75="NA","",(P75*AW$9)/100) -> 144.9697938 | AX75: =IF($C75="NA","",(Q75*AX$9)/100) -> 155.3999125 | AY75: =IF($C75="NA","",(R75*AY$9)/100) -> 166.7472971 | AZ75: =IF($C75="NA","",(S75*AZ$9)/100) -> 178.6376164 | BA75: =IF($C75="NA","",(T75*BA$9)/100) -> 191.6170242 | BB75: =IF($C75="NA","",(U75*BB$9)/100) -> 206.6672416 | BC75: =IF($C75="NA","",(V75*BC$9)/100) -> 220.7327278 | BD75: =IF($C75="NA","",(W75*BD$9)/100) -> 235.3788046 | BE75: =IF($C75="NA","",(X75*BE$9)/100) -> 251.3125287 | BF75: =IF($C75="NA","",(Y75*BF$9)/100) -> 266.4950345 | BI75: =IFERROR(AL75*AA75,0) -> 0 | BJ75: =IFERROR(AM75*AB75,0) -> 0 | BK75: =IFERROR(AN75*AC75,0) -> 0 | BL75: =IFERROR(AO75*AD75,0) -> 0 | BM75: =IFERROR(AP75*AE75,0) -> 0 | BN75: =IFERROR(AQ75*AF75,0) -> 0 | BO75: =IFERROR(AR75*AG75,0) -> 0 | BP75: =IFERROR(AS75*AH75,0) -> 0 | BQ75: =IFERROR(AT75*AI75,0) -> 0 | BR75: =IFERROR(AU75*AJ75,0) -> 0 | BU75: =IFERROR(AW75*AA75,0) -> 0 | BV75: =IFERROR(AX75*AB75,0) -> 0 | BW75: =IFERROR(AY75*AC75,0) -> 0 | BX75: =IFERROR(AZ75*AD75,0) -> 0 | BY75: =IFERROR(BA75*AE75,0) -> 0 | BZ75: =IFERROR(BB75*AF75,0) -> 0 | CA75: =IFERROR(BC75*AG75,0) -> 0 | CB75: =IFERROR(BD75*AH75,0) -> 0 | CC75: =IFERROR(BE75*AI75,0) -> 0 | CD75: =IFERROR(BF75*AJ75,0) -> 0
B76: =Inputs!$C70 -> 42W Compact Fluorescent | C76: Offered | D76: =IF($C76="NA","",'Smoothed Prices'!D76+$D$7) -> 38.68510509 | E76: =IF($C76="NA","",D76*(1+D$9)+$E$7) -> 40.58669629 | F76: =IF($C76="NA","",E76*(1+D$9)+$F$7) -> 42.50802796 | G76: =IF($C76="NA","",F76*(1+D$9)+$G$7) -> 44.44930503 | H76: =IF($C76="NA","",G76*(1+D$9)+$H$7) -> 46.41073456 | I76: =IF($C76="NA","",'Smoothed Prices'!I76+$I$7) -> 48.99146018 | J76: =IF($C76="NA","",I76*(1+I$9)+$J$7) -> 51.07344473 | K76: =IF($C76="NA","",J76*(1+I$9)+$K$7) -> 53.15891337 | L76: =IF($C76="NA","",K76*(1+I$9)+$L$7) -> 55.24787193 | M76: =IF($C76="NA","",L76*(1+I$9)+$M$7) -> 57.34032624 | P76: 39.63289017 | Q76: 42.59980657 | R76: 45.70953948 | S76: 48.96805182 | T76: 52.38153922 | U76: 56.64898855 | V76: 60.50327588 | W76: 64.51664822 | X76: 68.69469804 | Y76: 73.04319928 | AA76: =IFERROR(VLOOKUP($B76,Volumes!$B$39:$H$81,MATCH(AA$11,Volumes!$B$4:$H$4,0),FALSE),0) -> 4648 | AB76: =IFERROR(VLOOKUP($B76,Volumes!$B$39:$H$81,MATCH(AB$11,Volumes!$B$4:$H$4,0),FALSE),0) -> 4548 | AC76: =IFERROR(VLOOKUP($B76,Volumes!$B$39:$H$81,MATCH(AC$11,Volumes!$B$4:$H$4,0),FALSE),0) -> 4246 | AD76: =IFERROR(VLOOKUP($B76,Volumes!$B$39:$H$81,MATCH(AD$11,Volumes!$B$4:$H$4,0),FALSE),0) -> 4131 | AE76: =IFERROR(VLOOKUP($B76,Volumes!$B$39:$H$81,MATCH(AE$11,Volumes!$B$4:$H$4,0),FALSE),0) -> 3894 | AF76: =IFERROR(VLOOKUP($B76,Volumes!$B$39:$M$81,MATCH(AF$11,Volumes!$B$4:$M$4,0),FALSE),0) -> 3894 | AG76: =IFERROR(VLOOKUP($B76,Volumes!$B$39:$M$81,MATCH(AG$11,Volumes!$B$4:$M$4,0),FALSE),0) -> 3894 | AH76: =IFERROR(VLOOKUP($B76,Volumes!$B$39:$M$81,MATCH(AH$11,Volumes!$B$4:$M$4,0),FALSE),0) -> 3894 | AI76: =IFERROR(VLOOKUP($B76,Volumes!$B$39:$M$81,MATCH(AI$11,Volumes!$B$4:$M$4,0),FALSE),0) -> 3894 | AJ76: =IFERROR(VLOOKUP($B76,Volumes!$B$39:$M$81,MATCH(AJ$11,Volumes!$B$4:$M$4,0),FALSE),0) -> 3894 | AL76: 141.5874846 | AM76: 148.1414415 | AN76: 155.1543021 | AO76: 162.2399634 | AP76: 169.8632885 | AQ76: 178.8188297 | AR76: 186.4180733 | AS76: 194.0300338 | AT76: 202.2072112 | AU76: 209.2921908 | AW76: 145.056378 | AX76: 155.489294 | AY76: 166.8398191 | AZ76: 178.7333891 | BA76: 191.7164335 | BB76: 206.7688082 | BC76: 220.836957 | BD76: 235.485766 | BE76: 251.4225948 | BF76: 266.6076774 | BI76: 658098.6286 | BJ76: 673747.2758 | BK76: 658785.1665 | BL76: 670213.2887 | BM76: 661447.6454 | BN76: 696320.5227 | BO76: 725911.9773 | BP76: 755552.9516 | BQ76: 787394.8806 | BR76: 814983.7909 | BU76: 674222.045 | BV76: 707165.3091 | BW76: 708401.8719 | BX76: 738347.6306 | BY76: 746543.7922 | BZ76: 805157.7392 | CA76: 859939.1104 | CB76: 916981.5728 | CC76: 979039.5843 | CD76: 1038170.296
B77: =Inputs!$C71 -> 42W Compact Fluorescent - Bottom Pole Entry | C77: No Longer Offered | D77: =IF($C77="NA","",'Smoothed Prices'!D77+$D$7) -> 38.68510509 | E77: 40.58669629 | F77: 42.50802796 | G77: 44.44930503 | H77: 46.41073456 | I77: =IF($C77="NA","",'Smoothed Prices'!I77+$I$7) -> 48.99146018 | J77: 51.07344473 | K77: 53.15891337 | L77: 55.24787193 | M77: 57.34032624 | P77: 39.63289017 | Q77: 42.59980657 | R77: 45.70953948 | S77: 48.96805182 | T77: 52.38153922 | U77: 56.64898855 | V77: 60.50327588 | W77: 64.51664822 | X77: 68.69469804 | Y77: 73.04319928 | AA77: =IFERROR(VLOOKUP($B77,Volumes!$B$39:$H$81,MATCH(AA$11,Volumes!$B$4:$H$4,0),FALSE),0) -> 204 | AB77: =IFERROR(VLOOKUP($B77,Volumes!$B$39:$H$81,MATCH(AB$11,Volumes!$B$4:$H$4,0),FALSE),0) -> 204 | AC77: =IFERROR(VLOOKUP($B77,Volumes!$B$39:$H$81,MATCH(AC$11,Volumes!$B$4:$H$4,0),FALSE),0) -> 204 | AD77: =IFERROR(VLOOKUP($B77,Volumes!$B$39:$H$81,MATCH(AD$11,Volumes!$B$4:$H$4,0),FALSE),0) -> 204 | AE77: =IFERROR(VLOOKUP($B77,Volumes!$B$39:$H$81,MATCH(AE$11,Volumes!$B$4:$H$4,0),FALSE),0) -> 204 | AF77: =IFERROR(VLOOKUP($B77,Volumes!$B$39:$M$81,MATCH(AF$11,Volumes!$B$4:$M$4,0),FALSE),0) -> 204 | AG77: =IFERROR(VLOOKUP($B77,Volumes!$B$39:$M$81,MATCH(AG$11,Volumes!$B$4:$M$4,0),FALSE),0) -> 204 | AH77: =IFERROR(VLOOKUP($B77,Volumes!$B$39:$M$81,MATCH(AH$11,Volumes!$B$4:$M$4,0),FALSE),0) -> 204 | AI77: =IFERROR(VLOOKUP($B77,Volumes!$B$39:$M$81,MATCH(AI$11,Volumes!$B$4:$M$4,0),FALSE),0) -> 204 | AJ77: =IFERROR(VLOOKUP($B77,Volumes!$B$39:$M$81,MATCH(AJ$11,Volumes!$B$4:$M$4,0),FALSE),0) -> 204 | AL77: 141.5874846 | AM77: 148.1414415 | AN77: 155.1543021 | AO77: 162.2399634 | AP77: 169.8632885 | AQ77: 178.8188297 | AR77: 186.4180733 | AS77: 194.0300338 | AT77: 202.2072112 | AU77: 209.2921908 | AW77: 145.056378 | AX77: 155.489294 | AY77: 166.8398191 | AZ77: 178.7333891 | BA77: 191.7164335 | BB77: 206.7688082 | BC77: 220.836957 | BD77: 235.485766 | BE77: 251.4225948 | BF77: 266.6076774 | BI77: 28883.84687 | BJ77: 30220.85406 | BK77: 31651.47762 | BL77: 33096.95253 | BM77: 34652.11085 | BN77: 36479.04125 | BO77: 38029.28695 | BP77: 39582.12689 | BQ77: 41250.27109 | BR77: 42695.60692 | BU77: 29591.50111 | BV77: 31719.81597 | BW77: 34035.32309 | BX77: 36461.61139 | BY77: 39110.15244 | BZ77: 42180.83688 | CA77: 45050.73922 | CB77: 48039.09626 | CC77: 51290.20935 | CD77: 54387.96618
B78: =Inputs!$C72 -> 2x24W Compact Fluorescent | C78: Old light no volumes | D78: =IF($C78="NA","",'Smoothed Prices'!D78+$D$7) -> 39.29807032 | E78: 41.20602473 | F78: 43.13378567 | G78: 45.08155875 | H78: 47.04955172 | I78: =IF($C78="NA","",'Smoothed Prices'!I78+$I$7) -> 49.63027734 | J78: 51.71333091 | K78: 53.79987037 | L78: 55.88990153 | M78: 57.98343025 | P78: 40.26087304 | Q78: 43.24985386 | R78: 46.38242641 | S78: 49.66458088 | T78: 53.10254108 | U78: 57.38765496 | V78: 61.26130602 | W78: 65.2945497 | X78: 69.49299178 | Y78: 73.86241984 | AA78: =IFERROR(VLOOKUP($B78,Volumes!$B$39:$H$81,MATCH(AA$11,Volumes!$B$4:$H$4,0),FALSE),0) -> 0 | AB78: =IFERROR(VLOOKUP($B78,Volumes!$B$39:$H$81,MATCH(AB$11,Volumes!$B$4:$H$4,0),FALSE),0) -> 0 | AC78: =IFERROR(VLOOKUP($B78,Volumes!$B$39:$H$81,MATCH(AC$11,Volumes!$B$4:$H$4,0),FALSE),0) -> 0 | AD78: =IFERROR(VLOOKUP($B78,Volumes!$B$39:$H$81,MATCH(AD$11,Volumes!$B$4:$H$4,0),FALSE),0) -> 0 | AE78: =IFERROR(VLOOKUP($B78,Volumes!$B$39:$H$81,MATCH(AE$11,Volumes!$B$4:$H$4,0),FALSE),0) -> 0 | AF78: =IFERROR(VLOOKUP($B78,Volumes!$B$39:$M$81,MATCH(AF$11,Volumes!$B$4:$M$4,0),FALSE),0) -> 0 | AG78: =IFERROR(VLOOKUP($B78,Volumes!$B$39:$M$81,MATCH(AG$11,Volumes!$B$4:$M$4,0),FALSE),0) -> 0 | AH78: =IFERROR(VLOOKUP($B78,Volumes!$B$39:$M$81,MATCH(AH$11,Volumes!$B$4:$M$4,0),FALSE),0) -> 0 | AI78: =IFERROR(VLOOKUP($B78,Volumes!$B$39:$M$81,MATCH(AI$11,Volumes!$B$4:$M$4,0),FALSE),0) -> 0 | AJ78: =IFERROR(VLOOKUP($B78,Volumes!$B$39:$M$81,MATCH(AJ$11,Volumes!$B$4:$M$4,0),FALSE),0) -> 0 | AL78: 143.8309374 | AM78: 150.4019903 | AN78: 157.4383177 | AO78: 164.5476894 | AP78: 172.2013593 | AQ78: 181.1505123 | AR78: 188.7536578 | AS78: 196.3695268 | AT78: 204.5570396 | AU78: 211.6395204 | AW78: 147.3547953 | AX78: 157.8619666 | AY78: 169.2958564 | AZ78: 181.2757202 | BA78: 194.3553003 | BB78: 209.4649406 | BC78: 223.603767 | BD78: 238.3251064 | BE78: 254.3443499 | BF78: 269.5978324 | BI78: 0 | BJ78: 0 | BK78: 0 | BL78: 0 | BM78: 0 | BN78: 0 | BO78: 0 | BP78: 0 | BQ78: 0 | BR78: 0 | BU78: 0 | BV78: 0 | BW78: 0 | BX78: 0 | BY78: 0 | BZ78: 0 | CA78: 0 | CB78: 0 | CC78: 0 | CD78: 0
B79: =Inputs!$C73 -> 1x20W Fluorescent | C79: Old light no volumes | D79: =IF($C79="NA","",'Smoothed Prices'!D79+$D$7) -> 40.78430108 | E79: 42.70768409 | F79: 44.6510338 | G79: 46.61455748 | H79: 48.59846455 | I79: =IF($C79="NA","",'Smoothed Prices'!I79+$I$7) -> 51.17919017 | J79: 53.26483577 | K79: 55.35397158 | L79: 57.44660345 | M79: 59.54273723 | P79: 41.78351646 | Q79: 44.8259959 | R79: 48.01394678 | S79: 51.35342531 | T79: 54.85072367 | U79: 59.17866803 | V79: 63.0992695 | W79: 67.18069437 | X79: 71.42858069 | Y79: 75.84874914 | AA79: =IFERROR(VLOOKUP($B79,Volumes!$B$39:$H$81,MATCH(AA$11,Volumes!$B$4:$H$4,0),FALSE),0) -> 0 | AB79: =IFERROR(VLOOKUP($B79,Volumes!$B$39:$H$81,MATCH(AB$11,Volumes!$B$4:$H$4,0),FALSE),0) -> 0 | AC79: =IFERROR(VLOOKUP($B79,Volumes!$B$39:$H$81,MATCH(AC$11,Volumes!$B$4:$H$4,0),FALSE),0) -> 0 | AD79: =IFERROR(VLOOKUP($B79,Volumes!$B$39:$H$81,MATCH(AD$11,Volumes!$B$4:$H$4,0),FALSE),0) -> 0 | AE79: =IFERROR(VLOOKUP($B79,Volumes!$B$39:$H$81,MATCH(AE$11,Volumes!$B$4:$H$4,0),FALSE),0) -> 0 | AF79: =IFERROR(VLOOKUP($B79,Volumes!$B$39:$M$81,MATCH(AF$11,Volumes!$B$4:$M$4,0),FALSE),0) -> 0 | AG79: =IFERROR(VLOOKUP($B79,Volumes!$B$39:$M$81,MATCH(AG$11,Volumes!$B$4:$M$4,0),FALSE),0) -> 0 | AH79: =IFERROR(VLOOKUP($B79,Volumes!$B$39:$M$81,MATCH(AH$11,Volumes!$B$4:$M$4,0),FALSE),0) -> 0 | AI79: =IFERROR(VLOOKUP($B79,Volumes!$B$39:$M$81,MATCH(AI$11,Volumes!$B$4:$M$4,0),FALSE),0) -> 0 | AJ79: =IFERROR(VLOOKUP($B79,Volumes!$B$39:$M$81,MATCH(AJ$11,Volumes!$B$4:$M$4,0),FALSE),0) -> 0 | AL79: 149.270542 | AM79: 155.8830469 | AN79: 162.9762734 | AO79: 170.1431348 | AP79: 177.8703803 | AQ79: 186.8040441 | AR79: 194.4166506 | AS79: 202.0419963 | AT79: 210.2545686 | AU79: 217.3309909 | AW79: 152.9276702 | AX79: 163.614885 | AY79: 175.2509057 | AZ79: 187.4400024 | BA79: 200.7536486 | BB79: 216.0021383 | BC79: 230.3123337 | BD79: 245.2095345 | BE79: 261.4286053 | BF79: 276.8479344 | BI79: 0 | BJ79: 0 | BK79: 0 | BL79: 0 | BM79: 0 | BN79: 0 | BO79: 0 | BP79: 0 | BQ79: 0 | BR79: 0 | BU79: 0 | BV79: 0 | BW79: 0 | BX79: 0 | BY79: 0 | BZ79: 0 | CA79: 0 | CB79: 0 | CC79: 0 | CD79: 0
B80: =Inputs!$C74 -> 1x40W Fluorescent | C80: Old light no volumes | D80: =IF($C80="NA","",'Smoothed Prices'!D80+$D$7) -> 39.67907439 | E80: 41.59098401 | F80: 43.52274123 | G80: 45.47455207 | H80: 47.44662471 | I80: =IF($C80="NA","",'Smoothed Prices'!I80+$I$7) -> 50.02735033 | J80: 52.11106839 | K80: 54.19827343 | L80: 56.2889713 | M80: 58.38316784 | P80: 40.65121172 | Q80: 43.65390722 | R80: 46.80067633 | S80: 50.09752617 | T80: 53.55069806 | U80: 57.84679179 | V80: 61.73247886 | W80: 65.77807407 | X80: 69.98919148 | Y80: 74.37162714 | AA80: =IFERROR(VLOOKUP($B80,Volumes!$B$39:$H$81,MATCH(AA$11,Volumes!$B$4:$H$4,0),FALSE),0) -> 0 | AB80: =IFERROR(VLOOKUP($B80,Volumes!$B$39:$H$81,MATCH(AB$11,Volumes!$B$4:$H$4,0),FALSE),0) -> 0 | AC80: =IFERROR(VLOOKUP($B80,Volumes!$B$39:$H$81,MATCH(AC$11,Volumes!$B$4:$H$4,0),FALSE),0) -> 0 | AD80: =IFERROR(VLOOKUP($B80,Volumes!$B$39:$H$81,MATCH(AD$11,Volumes!$B$4:$H$4,0),FALSE),0) -> 0 | AE80: =IFERROR(VLOOKUP($B80,Volumes!$B$39:$H$81,MATCH(AE$11,Volumes!$B$4:$H$4,0),FALSE),0) -> 0 | AF80: =IFERROR(VLOOKUP($B80,Volumes!$B$39:$M$81,MATCH(AF$11,Volumes!$B$4:$M$4,0),FALSE),0) -> 0 | AG80: =IFERROR(VLOOKUP($B80,Volumes!$B$39:$M$81,MATCH(AG$11,Volumes!$B$4:$M$4,0),FALSE),0) -> 0 | AH80: =IFERROR(VLOOKUP($B80,Volumes!$B$39:$M$81,MATCH(AH$11,Volumes!$B$4:$M$4,0),FALSE),0) -> 0 | AI80: =IFERROR(VLOOKUP($B80,Volumes!$B$39:$M$81,MATCH(AI$11,Volumes!$B$4:$M$4,0),FALSE),0) -> 0 | AJ80: =IFERROR(VLOOKUP($B80,Volumes!$B$39:$M$81,MATCH(AJ$11,Volumes!$B$4:$M$4,0),FALSE),0) -> 0 | AL80: 145.2254123 | AM80: 151.8070917 | AN80: 158.8580055 | AO80: 165.982115 | AP80: 173.6546464 | AQ80: 182.5998287 | AR80: 190.2053996 | AS80: 197.823698 | AT80: 206.017635 | AU80: 213.0985626 | AW80: 148.7834349 | AX80: 159.3367614 | AY80: 170.8224686 | AZ80: 182.8559705 | BA80: 195.9955549 | BB80: 211.14079 | BC80: 225.3235478 | BD80: 240.0899704 | BE80: 256.1604408 | BF80: 271.456439 | BI80: 0 | BJ80: 0 | BK80: 0 | BL80: 0 | BM80: 0 | BN80: 0 | BO80: 0 | BP80: 0 | BQ80: 0 | BR80: 0 | BU80: 0 | BV80: 0 | BW80: 0 | BX80: 0 | BY80: 0 | BZ80: 0 | CA80: 0 | CB80: 0 | CC80: 0 | CD80: 0
B81: =Inputs!$C75 -> 2x20W Fluorescent | C81: Old light no volumes | D81: =IF($C81="NA","",'Smoothed Prices'!D81+$D$7) -> 41.07294053 | E81: 42.99931992 | F81: 44.9456971 | G81: 46.91227969 | H81: 48.89927743 | I81: =IF($C81="NA","",'Smoothed Prices'!I81+$I$7) -> 51.48000305 | J81: 53.56615204 | K81: 55.65579209 | L81: 57.74892904 | M81: 59.84556874 | P81: 42.07922757 | Q81: 45.13209693 | R81: 48.33080278 | S81: 51.68141417 | T81: 55.19023654 | U81: 59.52649896 | V81: 63.45621863 | W81: 67.54700072 | X81: 71.80448955 | Y81: 76.23451224 | AA81: =IFERROR(VLOOKUP($B81,Volumes!$B$39:$H$81,MATCH(AA$11,Volumes!$B$4:$H$4,0),FALSE),0) -> 0 | AB81: =IFERROR(VLOOKUP($B81,Volumes!$B$39:$H$81,MATCH(AB$11,Volumes!$B$4:$H$4,0),FALSE),0) -> 0 | AC81: =IFERROR(VLOOKUP($B81,Volumes!$B$39:$H$81,MATCH(AC$11,Volumes!$B$4:$H$4,0),FALSE),0) -> 0 | AD81: =IFERROR(VLOOKUP($B81,Volumes!$B$39:$H$81,MATCH(AD$11,Volumes!$B$4:$H$4,0),FALSE),0) -> 0 | AE81: =IFERROR(VLOOKUP($B81,Volumes!$B$39:$H$81,MATCH(AE$11,Volumes!$B$4:$H$4,0),FALSE),0) -> 0 | AF81: =IFERROR(VLOOKUP($B81,Volumes!$B$39:$M$81,MATCH(AF$11,Volumes!$B$4:$M$4,0),FALSE),0) -> 0 | AG81: =IFERROR(VLOOKUP($B81,Volumes!$B$39:$M$81,MATCH(AG$11,Volumes!$B$4:$M$4,0),FALSE),0) -> 0 | AH81: =IFERROR(VLOOKUP($B81,Volumes!$B$39:$M$81,MATCH(AH$11,Volumes!$B$4:$M$4,0),FALSE),0) -> 0 | AI81: =IFERROR(VLOOKUP($B81,Volumes!$B$39:$M$81,MATCH(AI$11,Volumes!$B$4:$M$4,0),FALSE),0) -> 0 | AJ81: =IFERROR(VLOOKUP($B81,Volumes!$B$39:$M$81,MATCH(AJ$11,Volumes!$B$4:$M$4,0),FALSE),0) -> 0 | AL81: 150.3269623 | AM81: 156.9475177 | AN81: 164.0517944 | AO81: 171.2298209 | AP81: 178.9713554 | AQ81: 187.9020111 | AR81: 195.5164549 | AS81: 203.1436411 | AT81: 211.3610803 | AU81: 218.4363259 | AW81: 154.0099729 | AX81: 164.7321538 | AY81: 176.4074302 | AZ81: 188.6371617 | BA81: 201.9962657 | BB81: 217.2717212 | BC81: 231.615198 | BD81: 246.5465526 | BE81: 262.8044318 | BF81: 278.2559697 | BI81: 0 | BJ81: 0 | BK81: 0 | BL81: 0 | BM81: 0 | BN81: 0 | BO81: 0 | BP81: 0 | BQ81: 0 | BR81: 0 | BU81: 0 | BV81: 0 | BW81: 0 | BX81: 0 | BY81: 0 | BZ81: 0 | CA81: 0 | CB81: 0 | CC81: 0 | CD81: 0
B82: =Inputs!$C76 -> 2x24W Fluorescent | C82: Old light no volumes | D82: =IF($C82="NA","",'Smoothed Prices'!D82+$D$7) -> 41.00996465 | E82: 42.93569028 | F82: 44.88140693 | G82: 46.84732212 | H82: 48.83364553 | I82: =IF($C82="NA","",'Smoothed Prices'!I82+$I$7) -> 51.41437115 | J82: 53.50041031 | K82: 55.58994034 | L82: 57.68296709 | M82: 59.77949641 | P82: 42.01470878 | Q82: 45.06531125 | R82: 48.26167056 | S82: 51.60985296 | T82: 55.116161 | U82: 59.45060857 | V82: 63.37833882 | W82: 67.46707933 | X82: 71.72247307 | Y82: 76.15034575 | AA82: =IFERROR(VLOOKUP($B82,Volumes!$B$39:$H$81,MATCH(AA$11,Volumes!$B$4:$H$4,0),FALSE),0) -> 0 | AB82: =IFERROR(VLOOKUP($B82,Volumes!$B$39:$H$81,MATCH(AB$11,Volumes!$B$4:$H$4,0),FALSE),0) -> 0 | AC82: =IFERROR(VLOOKUP($B82,Volumes!$B$39:$H$81,MATCH(AC$11,Volumes!$B$4:$H$4,0),FALSE),0) -> 0 | AD82: =IFERROR(VLOOKUP($B82,Volumes!$B$39:$H$81,MATCH(AD$11,Volumes!$B$4:$H$4,0),FALSE),0) -> 0 | AE82: =IFERROR(VLOOKUP($B82,Volumes!$B$39:$H$81,MATCH(AE$11,Volumes!$B$4:$H$4,0),FALSE),0) -> 0 | AF82: =IFERROR(VLOOKUP($B82,Volumes!$B$39:$M$81,MATCH(AF$11,Volumes!$B$4:$M$4,0),FALSE),0) -> 0 | AG82: =IFERROR(VLOOKUP($B82,Volumes!$B$39:$M$81,MATCH(AG$11,Volumes!$B$4:$M$4,0),FALSE),0) -> 0 | AH82: =IFERROR(VLOOKUP($B82,Volumes!$B$39:$M$81,MATCH(AH$11,Volumes!$B$4:$M$4,0),FALSE),0) -> 0 | AI82: =IFERROR(VLOOKUP($B82,Volumes!$B$39:$M$81,MATCH(AI$11,Volumes!$B$4:$M$4,0),FALSE),0) -> 0 | AJ82: =IFERROR(VLOOKUP($B82,Volumes!$B$39:$M$81,MATCH(AJ$11,Volumes!$B$4:$M$4,0),FALSE),0) -> 0 | AL82: 150.0964706 | AM82: 156.7152695 | AN82: 163.8171353 | AO82: 170.9927257 | AP82: 178.7311426 | AQ82: 187.6624547 | AR82: 195.2764976 | AS82: 202.9032822 | AT82: 211.1196596 | AU82: 218.1951619 | AW82: 153.7738341 | AX82: 164.4883861 | AY82: 176.1550976 | AZ82: 188.3759633 | BA82: 201.7251493 | BB82: 216.9947213 | BC82: 231.3309367 | BD82: 246.2548396 | BE82: 262.5042514 | BF82: 277.948762 | BI82: 0 | BJ82: 0 | BK82: 0 | BL82: 0 | BM82: 0 | BN82: 0 | BO82: 0 | BP82: 0 | BQ82: 0 | BR82: 0 | BU82: 0 | BV82: 0 | BW82: 0 | BX82: 0 | BY82: 0 | BZ82: 0 | CA82: 0 | CB82: 0 | CC82: 0 | CD82: 0
B83: =Inputs!$C77 -> T5 Fluorescent 2 x 24W | C83: Obsolete, no new Connections | D83: =IF($C83="NA","",'Smoothed Prices'!D83+$D$7) -> 41.07294053 | E83: 42.99931992 | F83: 44.9456971 | G83: 46.91227969 | H83: 48.89927743 | I83: =IF($C83="NA","",'Smoothed Prices'!I83+$I$7) -> 51.48000305 | J83: 53.56615204 | K83: 55.65579209 | L83: 57.74892904 | M83: 59.84556874 | P83: 42.07922757 | Q83: 45.13209693 | R83: 48.33080278 | S83: 51.68141417 | T83: 55.19023654 | U83: 59.52649896 | V83: 63.45621863 | W83: 67.54700072 | X83: 71.80448955 | Y83: 76.23451224 | AA83: =IFERROR(VLOOKUP($B83,Volumes!$B$39:$H$81,MATCH(AA$11,Volumes!$B$4:$H$4,0),FALSE),0) -> 83 | AB83: =IFERROR(VLOOKUP($B83,Volumes!$B$39:$H$81,MATCH(AB$11,Volumes!$B$4:$H$4,0),FALSE),0) -> 83 | AC83: =IFERROR(VLOOKUP($B83,Volumes!$B$39:$H$81,MATCH(AC$11,Volumes!$B$4:$H$4,0),FALSE),0) -> 83 | AD83: =IFERROR(VLOOKUP($B83,Volumes!$B$39:$H$81,MATCH(AD$11,Volumes!$B$4:$H$4,0),FALSE),0) -> 83 | AE83: =IFERROR(VLOOKUP($B83,Volumes!$B$39:$H$81,MATCH(AE$11,Volumes!$B$4:$H$4,0),FALSE),0) -> 83 | AF83: =IFERROR(VLOOKUP($B83,Volumes!$B$39:$M$81,MATCH(AF$11,Volumes!$B$4:$M$4,0),FALSE),0) -> 83 | AG83: =IFERROR(VLOOKUP($B83,Volumes!$B$39:$M$81,MATCH(AG$11,Volumes!$B$4:$M$4,0),FALSE),0) -> 83 | AH83: =IFERROR(VLOOKUP($B83,Volumes!$B$39:$M$81,MATCH(AH$11,Volumes!$B$4:$M$4,0),FALSE),0) -> 83 | AI83: =IFERROR(VLOOKUP($B83,Volumes!$B$39:$M$81,MATCH(AI$11,Volumes!$B$4:$M$4,0),FALSE),0) -> 83 | AJ83: =IFERROR(VLOOKUP($B83,Volumes!$B$39:$M$81,MATCH(AJ$11,Volumes!$B$4:$M$4,0),FALSE),0) -> 83 | AL83: 150.3269623 | AM83: 156.9475177 | AN83: 164.0517944 | AO83: 171.2298209 | AP83: 178.9713554 | AQ83: 187.9020111 | AR83: 195.5164549 | AS83: 203.1436411 | AT83: 211.3610803 | AU83: 218.4363259 | AW83: 154.0099729 | AX83: 164.7321538 | AY83: 176.4074302 | AZ83: 188.6371617 | BA83: 201.9962657 | BB83: 217.2717212 | BC83: 231.615198 | BD83: 246.5465526 | BE83: 262.8044318 | BF83: 278.2559697 | BI83: 12477.13787 | BJ83: 13026.64397 | BK83: 13616.29894 | BL83: 14212.07513 | BM83: 14854.6225 | BN83: 15595.86692 | BO83: 16227.86576 | BP83: 16860.92221 | BQ83: 17542.96966 | BR83: 18130.21505 | BU83: 12782.82775 | BV83: 13672.76877 | BW83: 14641.8167 | BX83: 15656.88442 | BY83: 16765.69005 | BZ83: 18033.55286 | CA83: 19224.06143 | CB83: 20463.36387 | CC83: 21812.76784 | CD83: 23095.24548
B84: =Inputs!$C78 -> 20 Fluorescent 1X20FL | C84: Old light no volumes | D84: =IF($C84="NA","",'Smoothed Prices'!D84+$D$7) -> 40.78430108 | E84: 42.70768409 | F84: =IF($C84="NA","",E84*(1+D$9)+$F$7) -> 44.6510338 | G84: =IF($C84="NA","",F84*(1+D$9)+$G$7) -> 46.61455748 | H84: =IF($C84="NA","",G84*(1+D$9)+$H$7) -> 48.59846455 | I84: =IF($C84="NA","",'Smoothed Prices'!I84+$I$7) -> 51.17919017 | J84: 53.26483577 | K84: =IF($C84="NA","",J84*(1+I$9)+$K$7) -> 55.35397158 | L84: =IF($C84="NA","",K84*(1+I$9)+$L$7) -> 57.44660345 | M84: =IF($C84="NA","",L84*(1+I$9)+$M$7) -> 59.54273723 | P84: 41.78351646 | Q84: 44.8259959 | R84: 48.01394678 | S84: 51.35342531 | T84: 54.85072367 | U84: 59.17866803 | V84: 63.0992695 | W84: 67.18069437 | X84: 71.42858069 | Y84: 75.84874914 | AA84: =IFERROR(VLOOKUP($B84,Volumes!$B$39:$H$81,MATCH(AA$11,Volumes!$B$4:$H$4,0),FALSE),0) -> 0 | AB84: =IFERROR(VLOOKUP($B84,Volumes!$B$39:$H$81,MATCH(AB$11,Volumes!$B$4:$H$4,0),FALSE),0) -> 0 | AC84: =IFERROR(VLOOKUP($B84,Volumes!$B$39:$H$81,MATCH(AC$11,Volumes!$B$4:$H$4,0),FALSE),0) -> 0 | AD84: =IFERROR(VLOOKUP($B84,Volumes!$B$39:$H$81,MATCH(AD$11,Volumes!$B$4:$H$4,0),FALSE),0) -> 0 | AE84: =IFERROR(VLOOKUP($B84,Volumes!$B$39:$H$81,MATCH(AE$11,Volumes!$B$4:$H$4,0),FALSE),0) -> 0 | AF84: =IFERROR(VLOOKUP($B84,Volumes!$B$39:$M$81,MATCH(AF$11,Volumes!$B$4:$M$4,0),FALSE),0) -> 0 | AG84: =IFERROR(VLOOKUP($B84,Volumes!$B$39:$M$81,MATCH(AG$11,Volumes!$B$4:$M$4,0),FALSE),0) -> 0 | AH84: =IFERROR(VLOOKUP($B84,Volumes!$B$39:$M$81,MATCH(AH$11,Volumes!$B$4:$M$4,0),FALSE),0) -> 0 | AI84: =IFERROR(VLOOKUP($B84,Volumes!$B$39:$M$81,MATCH(AI$11,Volumes!$B$4:$M$4,0),FALSE),0) -> 0 | AJ84: =IFERROR(VLOOKUP($B84,Volumes!$B$39:$M$81,MATCH(AJ$11,Volumes!$B$4:$M$4,0),FALSE),0) -> 0 | AL84: 149.270542 | AM84: 155.8830469 | AN84: 162.9762734 | AO84: 170.1431348 | AP84: 177.8703803 | AQ84: 186.8040441 | AR84: 194.4166506 | AS84: 202.0419963 | AT84: 210.2545686 | AU84: 217.3309909 | AW84: 152.9276702 | AX84: 163.614885 | AY84: 175.2509057 | AZ84: 187.4400024 | BA84: 200.7536486 | BB84: 216.0021383 | BC84: 230.3123337 | BD84: 245.2095345 | BE84: 261.4286053 | BF84: 276.8479344 | BI84: 0 | BJ84: 0 | BK84: 0 | BL84: 0 | BM84: 0 | BN84: 0 | BO84: 0 | BP84: 0 | BQ84: 0 | BR84: 0 | BU84: 0 | BV84: 0 | BW84: 0 | BX84: 0 | BY84: 0 | BZ84: 0 | CA84: 0 | CB84: 0 | CC84: 0 | CD84: 0
B85: =Inputs!$C79 -> 2x40W Fluorescent | C85: Old light no volumes | D85: =IF($C85="NA","",'Smoothed Prices'!D85+$D$7) -> 39.9866066 | E85: 41.90170873 | F85: 43.83669158 | G85: 45.79176155 | H85: 47.76712715 | I85: =IF($C85="NA","",'Smoothed Prices'!I85+$I$7) -> 50.34785277 | J85: 52.43210717 | K85: 54.51984946 | L85: 56.61108547 | M85: 58.70582105 | P85: 40.96627847 | Q85: 43.98004396 | R85: 47.138272 | S85: 50.44698339 | T85: 53.91243358 | U85: 58.21738983 | V85: 62.11279193 | W85: 66.16835683 | X85: 70.38970528 | Y85: 74.78264019 | AA85: =IFERROR(VLOOKUP($B85,Volumes!$B$39:$H$81,MATCH(AA$11,Volumes!$B$4:$H$4,0),FALSE),0) -> 0 | AB85: =IFERROR(VLOOKUP($B85,Volumes!$B$39:$H$81,MATCH(AB$11,Volumes!$B$4:$H$4,0),FALSE),0) -> 0 | AC85: =IFERROR(VLOOKUP($B85,Volumes!$B$39:$H$81,MATCH(AC$11,Volumes!$B$4:$H$4,0),FALSE),0) -> 0 | AD85: =IFERROR(VLOOKUP($B85,Volumes!$B$39:$H$81,MATCH(AD$11,Volumes!$B$4:$H$4,0),FALSE),0) -> 0 | AE85: =IFERROR(VLOOKUP($B85,Volumes!$B$39:$H$81,MATCH(AE$11,Volumes!$B$4:$H$4,0),FALSE),0) -> 0 | AF85: =IFERROR(VLOOKUP($B85,Volumes!$B$39:$M$81,MATCH(AF$11,Volumes!$B$4:$M$4,0),FALSE),0) -> 0 | AG85: =IFERROR(VLOOKUP($B85,Volumes!$B$39:$M$81,MATCH(AG$11,Volumes!$B$4:$M$4,0),FALSE),0) -> 0 | AH85: =IFERROR(VLOOKUP($B85,Volumes!$B$39:$M$81,MATCH(AH$11,Volumes!$B$4:$M$4,0),FALSE),0) -> 0 | AI85: =IFERROR(VLOOKUP($B85,Volumes!$B$39:$M$81,MATCH(AI$11,Volumes!$B$4:$M$4,0),FALSE),0) -> 0 | AJ85: =IFERROR(VLOOKUP($B85,Volumes!$B$39:$M$81,MATCH(AJ$11,Volumes!$B$4:$M$4,0),FALSE),0) -> 0 | AL85: 146.3509802 | AM85: 152.9412369 | AN85: 160.0039243 | AO85: 167.1399297 | AP85: 174.8276854 | AQ85: 183.7696626 | AR85: 191.3771912 | AS85: 198.9974505 | AT85: 207.1965728 | AU85: 214.2762468 | AW85: 149.9365792 | AX85: 160.5271604 | AY85: 172.0546928 | AZ85: 184.1314894 | BA85: 197.3195069 | BB85: 212.4934729 | BC85: 226.7116905 | BD85: 241.5145024 | BE85: 257.6263213 | BF85: 272.9566367 | BI85: 0 | BJ85: 0 | BK85: 0 | BL85: 0 | BM85: 0 | BN85: 0 | BO85: 0 | BP85: 0 | BQ85: 0 | BR85: 0 | BU85: 0 | BV85: 0 | BW85: 0 | BX85: 0 | BY85: 0 | BZ85: 0 | CA85: 0 | CB85: 0 | CC85: 0 | CD85: 0
B86: =Inputs!$C80 -> 3x40W Fluorescent | C86: Old light no volumes | D86: =IF($C86="NA","",'Smoothed Prices'!D86+$D$7) -> 46.85832467 | E86: 48.8447623 | F86: 50.85182119 | G86: 52.87971543 | H86: 54.92866129 | I86: =IF($C86="NA","",'Smoothed Prices'!I86+$I$7) -> 57.50938691 | J86: 59.60562574 | K86: 61.70537253 | L86: 63.80863312 | M86: 65.91541341 | P86: 48.00635363 | Q86: 51.26747472 | R86: 54.6817493 | S86: 58.25550351 | T86: 61.9953089 | U86: 66.4982956 | V86: 70.61077704 | W86: 74.88911192 | X86: 79.33907012 | Y86: 83.96660766 | AA86: =IFERROR(VLOOKUP($B86,Volumes!$B$39:$H$81,MATCH(AA$11,Volumes!$B$4:$H$4,0),FALSE),0) -> 0 | AB86: =IFERROR(VLOOKUP($B86,Volumes!$B$39:$H$81,MATCH(AB$11,Volumes!$B$4:$H$4,0),FALSE),0) -> 0 | AC86: =IFERROR(VLOOKUP($B86,Volumes!$B$39:$H$81,MATCH(AC$11,Volumes!$B$4:$H$4,0),FALSE),0) -> 0 | AD86: =IFERROR(VLOOKUP($B86,Volumes!$B$39:$H$81,MATCH(AD$11,Volumes!$B$4:$H$4,0),FALSE),0) -> 0 | AE86: =IFERROR(VLOOKUP($B86,Volumes!$B$39:$H$81,MATCH(AE$11,Volumes!$B$4:$H$4,0),FALSE),0) -> 0 | AF86: =IFERROR(VLOOKUP($B86,Volumes!$B$39:$M$81,MATCH(AF$11,Volumes!$B$4:$M$4,0),FALSE),0) -> 0 | AG86: =IFERROR(VLOOKUP($B86,Volumes!$B$39:$M$81,MATCH(AG$11,Volumes!$B$4:$M$4,0),FALSE),0) -> 0 | AH86: =IFERROR(VLOOKUP($B86,Volumes!$B$39:$M$81,MATCH(AH$11,Volumes!$B$4:$M$4,0),FALSE),0) -> 0 | AI86: =IFERROR(VLOOKUP($B86,Volumes!$B$39:$M$81,MATCH(AI$11,Volumes!$B$4:$M$4,0),FALSE),0) -> 0 | AJ86: =IFERROR(VLOOKUP($B86,Volumes!$B$39:$M$81,MATCH(AJ$11,Volumes!$B$4:$M$4,0),FALSE),0) -> 0 | AL86: 171.5014683 | AM86: 178.2833824 | AN86: 185.6091474 | AO86: 193.0109613 | AP86: 201.0389003 | AQ86: 209.9092622 | AR86: 217.560534 | AS86: 225.2246097 | AT86: 233.5395972 | AU86: 240.5912589 | AW86: 175.7032543 | AX86: 187.1262827 | AY86: 199.588385 | AZ86: 212.6325878 | BA86: 226.9028306 | BB86: 242.7187789 | BC86: 257.7293362 | BD86: 273.3452585 | BE86: 290.3809966 | BF86: 306.478118 | BI86: 0 | BJ86: 0 | BK86: 0 | BL86: 0 | BM86: 0 | BN86: 0 | BO86: 0 | BP86: 0 | BQ86: 0 | BR86: 0 | BU86: 0 | BV86: 0 | BW86: 0 | BX86: 0 | BY86: 0 | BZ86: 0 | CA86: 0 | CB86: 0 | CC86: 0 | CD86: 0
B87: =Inputs!$C81 -> 4x20 Fluorescent | C87: Old light no volumes | D87: =IF($C87="NA","",'Smoothed Prices'!D87+$D$7) -> 41.65231862 | E87: 43.58471255 | F87: 45.53716671 | G87: 47.50988936 | H87: 49.5030909 | I87: =IF($C87="NA","",'Smoothed Prices'!I87+$I$7) -> 52.08381652 | J87: 54.17097596 | K87: 56.26162815 | L87: 58.35577894 | M87: 60.45343417 | P87: 42.67280043 | Q87: 45.74652519 | R87: 48.9668192 | S87: 52.33977725 | T87: 55.87173145 | U87: 60.22469049 | V87: 64.17271286 | W87: 68.28227746 | X87: 72.55904116 | Y87: 77.008844 | AA87: =IFERROR(VLOOKUP($B87,Volumes!$B$39:$H$81,MATCH(AA$11,Volumes!$B$4:$H$4,0),FALSE),0) -> 0 | AB87: =IFERROR(VLOOKUP($B87,Volumes!$B$39:$H$81,MATCH(AB$11,Volumes!$B$4:$H$4,0),FALSE),0) -> 0 | AC87: =IFERROR(VLOOKUP($B87,Volumes!$B$39:$H$81,MATCH(AC$11,Volumes!$B$4:$H$4,0),FALSE),0) -> 0 | AD87: =IFERROR(VLOOKUP($B87,Volumes!$B$39:$H$81,MATCH(AD$11,Volumes!$B$4:$H$4,0),FALSE),0) -> 0 | AE87: =IFERROR(VLOOKUP($B87,Volumes!$B$39:$H$81,MATCH(AE$11,Volumes!$B$4:$H$4,0),FALSE),0) -> 0 | AF87: =IFERROR(VLOOKUP($B87,Volumes!$B$39:$M$81,MATCH(AF$11,Volumes!$B$4:$M$4,0),FALSE),0) -> 0 | AG87: =IFERROR(VLOOKUP($B87,Volumes!$B$39:$M$81,MATCH(AG$11,Volumes!$B$4:$M$4,0),FALSE),0) -> 0 | AH87: =IFERROR(VLOOKUP($B87,Volumes!$B$39:$M$81,MATCH(AH$11,Volumes!$B$4:$M$4,0),FALSE),0) -> 0 | AI87: =IFERROR(VLOOKUP($B87,Volumes!$B$39:$M$81,MATCH(AI$11,Volumes!$B$4:$M$4,0),FALSE),0) -> 0 | AJ87: =IFERROR(VLOOKUP($B87,Volumes!$B$39:$M$81,MATCH(AJ$11,Volumes!$B$4:$M$4,0),FALSE),0) -> 0 | AL87: 152.4474862 | AM87: 159.0842008 | AN87: 166.2106585 | AO87: 173.4110962 | AP87: 181.1813127 | AQ87: 190.1059303 | AR87: 197.7240623 | AS87: 205.3549428 | AT87: 213.5821509 | AU87: 220.6550347 | AW87: 156.1824496 | AX87: 166.9748169 | AY87: 178.7288901 | AZ87: 191.040187 | BA87: 204.4905371 | BB87: 219.8201203 | BC87: 234.230402 | BD87: 249.2303127 | BE87: 265.5660907 | BF87: 281.0822806 | BI87: 0 | BJ87: 0 | BK87: 0 | BL87: 0 | BM87: 0 | BN87: 0 | BO87: 0 | BP87: 0 | BQ87: 0 | BR87: 0 | BU87: 0 | BV87: 0 | BW87: 0 | BX87: 0 | BY87: 0 | BZ87: 0 | CA87: 0 | CB87: 0 | CC87: 0 | CD87: 0
B88: =Inputs!$C82 -> 4x40W Fluorescent | C88: Old light no volumes | D88: =IF($C88="NA","",'Smoothed Prices'!D88+$D$7) -> 48.28997634 | E88: 50.29127598 | F88: 52.31335118 | G88: 54.35641759 | H88: 56.42069314 | I88: =IF($C88="NA","",'Smoothed Prices'!I88+$I$7) -> 59.00141876 | J88: 61.10015443 | K88: 63.20240223 | L88: 65.30816802 | M88: 67.4174577 | P88: 49.47308076 | Q88: 52.78573584 | R88: 56.25335508 | S88: 59.88232823 | T88: 63.6792927 | U88: 68.223537 | V88: 72.38124469 | W88: 76.70599139 | X88: 81.20357808 | Y88: 85.87999267 | AA88: =IFERROR(VLOOKUP($B88,Volumes!$B$39:$H$81,MATCH(AA$11,Volumes!$B$4:$H$4,0),FALSE),0) -> 0 | AB88: =IFERROR(VLOOKUP($B88,Volumes!$B$39:$H$81,MATCH(AB$11,Volumes!$B$4:$H$4,0),FALSE),0) -> 0 | AC88: =IFERROR(VLOOKUP($B88,Volumes!$B$39:$H$81,MATCH(AC$11,Volumes!$B$4:$H$4,0),FALSE),0) -> 0 | AD88: =IFERROR(VLOOKUP($B88,Volumes!$B$39:$H$81,MATCH(AD$11,Volumes!$B$4:$H$4,0),FALSE),0) -> 0 | AE88: =IFERROR(VLOOKUP($B88,Volumes!$B$39:$H$81,MATCH(AE$11,Volumes!$B$4:$H$4,0),FALSE),0) -> 0 | AF88: =IFERROR(VLOOKUP($B88,Volumes!$B$39:$M$81,MATCH(AF$11,Volumes!$B$4:$M$4,0),FALSE),0) -> 0 | AG88: =IFERROR(VLOOKUP($B88,Volumes!$B$39:$M$81,MATCH(AG$11,Volumes!$B$4:$M$4,0),FALSE),0) -> 0 | AH88: =IFERROR(VLOOKUP($B88,Volumes!$B$39:$M$81,MATCH(AH$11,Volumes!$B$4:$M$4,0),FALSE),0) -> 0 | AI88: =IFERROR(VLOOKUP($B88,Volumes!$B$39:$M$81,MATCH(AI$11,Volumes!$B$4:$M$4,0),FALSE),0) -> 0 | AJ88: =IFERROR(VLOOKUP($B88,Volumes!$B$39:$M$81,MATCH(AJ$11,Volumes!$B$4:$M$4,0),FALSE),0) -> 0 | AL88: 176.7413134 | AM88: 183.5631573 | AN88: 190.9437318 | AO88: 198.4009242 | AP88: 206.4997369 | AQ88: 215.3551785 | AR88: 223.0155637 | AS88: 230.6887681 | AT88: 239.027895 | AU88: 246.0737206 | AW88: 181.0714756 | AX88: 192.6679358 | AY88: 205.324746 | AZ88: 218.570498 | BA88: 233.0662113 | BB88: 249.01591 | BC88: 264.1915431 | BD88: 279.9768686 | BE88: 297.2050958 | BF88: 313.4619732 | BI88: 0 | BJ88: 0 | BK88: 0 | BL88: 0 | BM88: 0 | BN88: 0 | BO88: 0 | BP88: 0 | BQ88: 0 | BR88: 0 | BU88: 0 | BV88: 0 | BW88: 0 | BX88: 0 | BY88: 0 | BZ88: 0 | CA88: 0 | CB88: 0 | CC88: 0 | CD88: 0
B89: =Inputs!$C83 -> 100W Sodium Vapour | C89: Offered | D89: =IF($C89="NA","",'Smoothed Prices'!D89+$D$7) -> 45.91683527 | E89: 47.89349927 | F89: 49.89068308 | G89: 51.9085997 | H89: 53.94746438 | I89: =IF($C89="NA","",'Smoothed Prices'!I89+$I$7) -> 56.52819 | J89: 58.62278686 | K89: 60.72088892 | L89: 62.82250203 | M89: 64.92763208 | P89: 47.04179774 | Q89: 50.26902881 | R89: 53.64822263 | S89: 57.1856635 | T89: 60.88787967 | U89: 65.36373435 | V89: 69.4464739 | W89: 73.69428722 | X89: 78.11292375 | Y89: 82.70831855 | AA89: =IFERROR(VLOOKUP($B89,Volumes!$B$39:$H$81,MATCH(AA$11,Volumes!$B$4:$H$4,0),FALSE),0) -> 444 | AB89: =IFERROR(VLOOKUP($B89,Volumes!$B$39:$H$81,MATCH(AB$11,Volumes!$B$4:$H$4,0),FALSE),0) -> 466 | AC89: =IFERROR(VLOOKUP($B89,Volumes!$B$39:$H$81,MATCH(AC$11,Volumes!$B$4:$H$4,0),FALSE),0) -> 490 | AD89: =IFERROR(VLOOKUP($B89,Volumes!$B$39:$H$81,MATCH(AD$11,Volumes!$B$4:$H$4,0),FALSE),0) -> 514 | AE89: =IFERROR(VLOOKUP($B89,Volumes!$B$39:$H$81,MATCH(AE$11,Volumes!$B$4:$H$4,0),FALSE),0) -> 540 | AF89: =IFERROR(VLOOKUP($B89,Volumes!$B$39:$M$81,MATCH(AF$11,Volumes!$B$4:$M$4,0),FALSE),0) -> 540 | AG89: =IFERROR(VLOOKUP($B89,Volumes!$B$39:$M$81,MATCH(AG$11,Volumes!$B$4:$M$4,0),FALSE),0) -> 540 | AH89: =IFERROR(VLOOKUP($B89,Volumes!$B$39:$M$81,MATCH(AH$11,Volumes!$B$4:$M$4,0),FALSE),0) -> 540 | AI89: =IFERROR(VLOOKUP($B89,Volumes!$B$39:$M$81,MATCH(AI$11,Volumes!$B$4:$M$4,0),FALSE),0) -> 540 | AJ89: =IFERROR(VLOOKUP($B89,Volumes!$B$39:$M$81,MATCH(AJ$11,Volumes!$B$4:$M$4,0),FALSE),0) -> 540 | AL89: 168.0556171 | AM89: 174.8112723 | AN89: 182.1009932 | AO89: 189.4663889 | AP89: 197.4477196 | AQ89: 206.3278935 | AR89: 213.9731721 | AS89: 221.6312445 | AT89: 229.9303574 | AU89: 236.9858571 | AW89: 172.1729797 | AX89: 183.4819551 | AY89: 195.8160126 | AZ89: 208.7276718 | BA89: 222.8496396 | BB89: 238.5776304 | BC89: 253.4796298 | BD89: 268.9841483 | BE89: 285.8933009 | BF89: 301.8853627 | BI89: 74616.69399 | BJ89: 81462.05291 | BK89: 89229.48668 | BL89: 97385.72391 | BM89: 106621.7686 | BN89: 111417.0625 | BO89: 115545.5129 | BP89: 119680.8721 | BQ89: 124162.393 | BR89: 127972.3628 | BU89: 76444.80299 | BV89: 85502.5911 | BW89: 95949.84617 | BX89: 107286.0233 | BY89: 120338.8054 | BZ89: 128831.9204 | CA89: 136879.0001 | CB89: 145251.4401 | CC89: 154382.3825 | CD89: 163018.0959
B90: =Inputs!$C84 -> 0 | C90: NA | D90: =IF($C90="NA","",'Smoothed Prices'!D90+$D$7) ->  | I90: =IF($C90="NA","",'Smoothed Prices'!I90+$I$7) ->  | AA90: =IFERROR(VLOOKUP($B90,Volumes!$B$39:$H$81,MATCH(AA$11,Volumes!$B$4:$H$4,0),FALSE),0) -> 0 | AB90: =IFERROR(VLOOKUP($B90,Volumes!$B$39:$H$81,MATCH(AB$11,Volumes!$B$4:$H$4,0),FALSE),0) -> 0 | AC90: =IFERROR(VLOOKUP($B90,Volumes!$B$39:$H$81,MATCH(AC$11,Volumes!$B$4:$H$4,0),FALSE),0) -> 0 | AD90: =IFERROR(VLOOKUP($B90,Volumes!$B$39:$H$81,MATCH(AD$11,Volumes!$B$4:$H$4,0),FALSE),0) -> 0 | AE90: =IFERROR(VLOOKUP($B90,Volumes!$B$39:$H$81,MATCH(AE$11,Volumes!$B$4:$H$4,0),FALSE),0) -> 0 | AF90: =IFERROR(VLOOKUP($B90,Volumes!$B$39:$M$81,MATCH(AF$11,Volumes!$B$4:$M$4,0),FALSE),0) -> 0 | AG90: =IFERROR(VLOOKUP($B90,Volumes!$B$39:$M$81,MATCH(AG$11,Volumes!$B$4:$M$4,0),FALSE),0) -> 0 | AH90: =IFERROR(VLOOKUP($B90,Volumes!$B$39:$M$81,MATCH(AH$11,Volumes!$B$4:$M$4,0),FALSE),0) -> 0 | AI90: =IFERROR(VLOOKUP($B90,Volumes!$B$39:$M$81,MATCH(AI$11,Volumes!$B$4:$M$4,0),FALSE),0) -> 0 | AJ90: =IFERROR(VLOOKUP($B90,Volumes!$B$39:$M$81,MATCH(AJ$11,Volumes!$B$4:$M$4,0),FALSE),0) -> 0 | BI90: 0 | BJ90: 0 | BK90: 0 | BL90: 0 | BM90: 0 | BN90: 0 | BO90: 0 | BP90: 0 | BQ90: 0 | BR90: 0 | BU90: 0 | BV90: 0 | BW90: 0 | BX90: 0 | BY90: 0 | BZ90: 0 | CA90: 0 | CB90: 0 | CC90: 0 | CD90: 0
B91: =Inputs!$C85 -> 150W Sodium Vapour | C91: Offered | D91: =IF($C91="NA","",'Smoothed Prices'!D91+$D$7) -> 48.37394418 | E91: 50.37611549 | F91: 52.39907141 | G91: 54.44302769 | H91: 56.50820234 | I91: =IF($C91="NA","",'Smoothed Prices'!I91+$I$7) -> 59.08892796 | J91: 61.18781008 | K91: 63.29020456 | L91: 65.39611728 | M91: 67.50555414 | P91: 49.55910581 | Q91: 52.87478342 | R91: 56.34553137 | S91: 59.97774317 | T91: 63.77806008 | U91: 68.32472418 | V91: 72.48508444 | W91: 76.81255324 | X91: 81.31293339 | Y91: 85.99221466 | AA91: =IFERROR(VLOOKUP($B91,Volumes!$B$39:$H$81,MATCH(AA$11,Volumes!$B$4:$H$4,0),FALSE),0) -> 5322 | AB91: =IFERROR(VLOOKUP($B91,Volumes!$B$39:$H$81,MATCH(AB$11,Volumes!$B$4:$H$4,0),FALSE),0) -> 5588 | AC91: =IFERROR(VLOOKUP($B91,Volumes!$B$39:$H$81,MATCH(AC$11,Volumes!$B$4:$H$4,0),FALSE),0) -> 5868 | AD91: =IFERROR(VLOOKUP($B91,Volumes!$B$39:$H$81,MATCH(AD$11,Volumes!$B$4:$H$4,0),FALSE),0) -> 6161 | AE91: =IFERROR(VLOOKUP($B91,Volumes!$B$39:$H$81,MATCH(AE$11,Volumes!$B$4:$H$4,0),FALSE),0) -> 6469 | AF91: =IFERROR(VLOOKUP($B91,Volumes!$B$39:$M$81,MATCH(AF$11,Volumes!$B$4:$M$4,0),FALSE),0) -> 6469 | AG91: =IFERROR(VLOOKUP($B91,Volumes!$B$39:$M$81,MATCH(AG$11,Volumes!$B$4:$M$4,0),FALSE),0) -> 6469 | AH91: =IFERROR(VLOOKUP($B91,Volumes!$B$39:$M$81,MATCH(AH$11,Volumes!$B$4:$M$4,0),FALSE),0) -> 6469 | AI91: =IFERROR(VLOOKUP($B91,Volumes!$B$39:$M$81,MATCH(AI$11,Volumes!$B$4:$M$4,0),FALSE),0) -> 6469 | AJ91: =IFERROR(VLOOKUP($B91,Volumes!$B$39:$M$81,MATCH(AJ$11,Volumes!$B$4:$M$4,0),FALSE),0) -> 6469 | AL91: 177.0486357 | AM91: 183.8728216 | AN91: 191.2566106 | AO91: 198.7170511 | AP91: 206.8200206 | AQ91: 215.6745871 | AR91: 223.3355068 | AS91: 231.0092466 | AT91: 239.3497892 | AU91: 246.3952726 | AW91: 181.3863273 | AX91: 192.9929595 | AY91: 205.6611895 | AZ91: 218.9187626 | BA91: 233.4276999 | BB91: 249.3852432 | BC91: 264.5705582 | BD91: 280.3658193 | BE91: 297.6053362 | BF91: 313.8715835 | BI91: 942252.8391 | BJ91: 1027481.327 | BK91: 1122293.791 | BL91: 1224295.752 | BM91: 1337918.713 | BN91: 1395198.904 | BO91: 1444757.393 | BP91: 1494398.816 | BQ91: 1548353.787 | BR91: 1593931.018 | BU91: 965338.0337 | BV91: 1078444.658 | BW91: 1206819.86 | BX91: 1348758.496 | BY91: 1510043.791 | BZ91: 1613273.139 | CA91: 1711506.941 | CB91: 1813686.485 | CC91: 1925208.92 | CD91: 2030435.274
B92: =Inputs!$C86 -> 0 | C92: NA | D92: =IF($C92="NA","",'Smoothed Prices'!D92+$D$7) ->  | I92: =IF($C92="NA","",'Smoothed Prices'!I92+$I$7) ->  | AA92: =IFERROR(VLOOKUP($B92,Volumes!$B$39:$H$81,MATCH(AA$11,Volumes!$B$4:$H$4,0),FALSE),0) -> 0 | AB92: =IFERROR(VLOOKUP($B92,Volumes!$B$39:$H$81,MATCH(AB$11,Volumes!$B$4:$H$4,0),FALSE),0) -> 0 | AC92: =IFERROR(VLOOKUP($B92,Volumes!$B$39:$H$81,MATCH(AC$11,Volumes!$B$4:$H$4,0),FALSE),0) -> 0 | AD92: =IFERROR(VLOOKUP($B92,Volumes!$B$39:$H$81,MATCH(AD$11,Volumes!$B$4:$H$4,0),FALSE),0) -> 0 | AE92: =IFERROR(VLOOKUP($B92,Volumes!$B$39:$H$81,MATCH(AE$11,Volumes!$B$4:$H$4,0),FALSE),0) -> 0 | AF92: =IFERROR(VLOOKUP($B92,Volumes!$B$39:$M$81,MATCH(AF$11,Volumes!$B$4:$M$4,0),FALSE),0) -> 0 | AG92: =IFERROR(VLOOKUP($B92,Volumes!$B$39:$M$81,MATCH(AG$11,Volumes!$B$4:$M$4,0),FALSE),0) -> 0 | AH92: =IFERROR(VLOOKUP($B92,Volumes!$B$39:$M$81,MATCH(AH$11,Volumes!$B$4:$M$4,0),FALSE),0) -> 0 | AI92: =IFERROR(VLOOKUP($B92,Volumes!$B$39:$M$81,MATCH(AI$11,Volumes!$B$4:$M$4,0),FALSE),0) -> 0 | AJ92: =IFERROR(VLOOKUP($B92,Volumes!$B$39:$M$81,MATCH(AJ$11,Volumes!$B$4:$M$4,0),FALSE),0) -> 0 | BI92: 0 | BJ92: 0 | BK92: 0 | BL92: 0 | BM92: 0 | BN92: 0 | BO92: 0 | BP92: 0 | BQ92: 0 | BR92: 0 | BU92: 0 | BV92: 0 | BW92: 0 | BX92: 0 | BY92: 0 | BZ92: 0 | CA92: 0 | CB92: 0 | CC92: 0 | CD92: 0
B93: =Inputs!$C87 -> 0 | C93: NA | D93: =IF($C93="NA","",'Smoothed Prices'!D93+$D$7) ->  | I93: =IF($C93="NA","",'Smoothed Prices'!I93+$I$7) ->  | AA93: =IFERROR(VLOOKUP($B93,Volumes!$B$39:$H$81,MATCH(AA$11,Volumes!$B$4:$H$4,0),FALSE),0) -> 0 | AB93: =IFERROR(VLOOKUP($B93,Volumes!$B$39:$H$81,MATCH(AB$11,Volumes!$B$4:$H$4,0),FALSE),0) -> 0 | AC93: =IFERROR(VLOOKUP($B93,Volumes!$B$39:$H$81,MATCH(AC$11,Volumes!$B$4:$H$4,0),FALSE),0) -> 0 | AD93: =IFERROR(VLOOKUP($B93,Volumes!$B$39:$H$81,MATCH(AD$11,Volumes!$B$4:$H$4,0),FALSE),0) -> 0 | AE93: =IFERROR(VLOOKUP($B93,Volumes!$B$39:$H$81,MATCH(AE$11,Volumes!$B$4:$H$4,0),FALSE),0) -> 0 | AF93: =IFERROR(VLOOKUP($B93,Volumes!$B$39:$M$81,MATCH(AF$11,Volumes!$B$4:$M$4,0),FALSE),0) -> 0 | AG93: =IFERROR(VLOOKUP($B93,Volumes!$B$39:$M$81,MATCH(AG$11,Volumes!$B$4:$M$4,0),FALSE),0) -> 0 | AH93: =IFERROR(VLOOKUP($B93,Volumes!$B$39:$M$81,MATCH(AH$11,Volumes!$B$4:$M$4,0),FALSE),0) -> 0 | AI93: =IFERROR(VLOOKUP($B93,Volumes!$B$39:$M$81,MATCH(AI$11,Volumes!$B$4:$M$4,0),FALSE),0) -> 0 | AJ93: =IFERROR(VLOOKUP($B93,Volumes!$B$39:$M$81,MATCH(AJ$11,Volumes!$B$4:$M$4,0),FALSE),0) -> 0 | BI93: 0 | BJ93: 0 | BK93: 0 | BL93: 0 | BM93: 0 | BN93: 0 | BO93: 0 | BP93: 0 | BQ93: 0 | BR93: 0 | BU93: 0 | BV93: 0 | BW93: 0 | BX93: 0 | BY93: 0 | BZ93: 0 | CA93: 0 | CB93: 0 | CC93: 0 | CD93: 0
B94: =Inputs!$C88 -> 0 | C94: NA | D94: =IF($C94="NA","",'Smoothed Prices'!D94+$D$7) ->  | I94: =IF($C94="NA","",'Smoothed Prices'!I94+$I$7) ->  | AA94: =IFERROR(VLOOKUP($B94,Volumes!$B$39:$H$81,MATCH(AA$11,Volumes!$B$4:$H$4,0),FALSE),0) -> 0 | AB94: =IFERROR(VLOOKUP($B94,Volumes!$B$39:$H$81,MATCH(AB$11,Volumes!$B$4:$H$4,0),FALSE),0) -> 0 | AC94: =IFERROR(VLOOKUP($B94,Volumes!$B$39:$H$81,MATCH(AC$11,Volumes!$B$4:$H$4,0),FALSE),0) -> 0 | AD94: =IFERROR(VLOOKUP($B94,Volumes!$B$39:$H$81,MATCH(AD$11,Volumes!$B$4:$H$4,0),FALSE),0) -> 0 | AE94: =IFERROR(VLOOKUP($B94,Volumes!$B$39:$H$81,MATCH(AE$11,Volumes!$B$4:$H$4,0),FALSE),0) -> 0 | AF94: =IFERROR(VLOOKUP($B94,Volumes!$B$39:$M$81,MATCH(AF$11,Volumes!$B$4:$M$4,0),FALSE),0) -> 0 | AG94: =IFERROR(VLOOKUP($B94,Volumes!$B$39:$M$81,MATCH(AG$11,Volumes!$B$4:$M$4,0),FALSE),0) -> 0 | AH94: =IFERROR(VLOOKUP($B94,Volumes!$B$39:$M$81,MATCH(AH$11,Volumes!$B$4:$M$4,0),FALSE),0) -> 0 | AI94: =IFERROR(VLOOKUP($B94,Volumes!$B$39:$M$81,MATCH(AI$11,Volumes!$B$4:$M$4,0),FALSE),0) -> 0 | AJ94: =IFERROR(VLOOKUP($B94,Volumes!$B$39:$M$81,MATCH(AJ$11,Volumes!$B$4:$M$4,0),FALSE),0) -> 0 | BI94: 0 | BJ94: 0 | BK94: 0 | BL94: 0 | BM94: 0 | BN94: 0 | BO94: 0 | BP94: 0 | BQ94: 0 | BR94: 0 | BU94: 0 | BV94: 0 | BW94: 0 | BX94: 0 | BY94: 0 | BZ94: 0 | CA94: 0 | CB94: 0 | CC94: 0 | CD94: 0
B95: =Inputs!$C89 -> 250W Sodium Vapour | C95: Offered | D95: =IF($C95="NA","",'Smoothed Prices'!D95+$D$7) -> 49.62086659 | E95: =IF($C95="NA","",D95*(1+D$9)+$E$7) -> 51.63598225 | F95: =IF($C95="NA","",E95*(1+D$9)+$F$7) -> 53.67201688 | G95: =IF($C95="NA","",F95*(1+D$9)+$G$7) -> 55.72918764 | H95: =IF($C95="NA","",G95*(1+D$9)+$H$7) -> 57.80771396 | I95: =IF($C95="NA","",'Smoothed Prices'!I95+$I$7) -> 60.38843958 | J95: 62.48949635 | K95: 64.59406914 | L95: 66.70216381 | M95: 68.81378626 | P95: 50.83657782 | Q95: 54.19713988 | R95: 57.71434931 | S95: 61.39465502 | T95: 65.24475564 | U95: 69.82735379 | V95: 74.02710465 | W95: 78.39499665 | X95: 82.93685968 | Y95: 87.65871128 | AA95: =IFERROR(VLOOKUP($B95,Volumes!$B$39:$H$81,MATCH(AA$11,Volumes!$B$4:$H$4,0),FALSE),0) -> 6615 | AB95: =IFERROR(VLOOKUP($B95,Volumes!$B$39:$H$81,MATCH(AB$11,Volumes!$B$4:$H$4,0),FALSE),0) -> 6946 | AC95: =IFERROR(VLOOKUP($B95,Volumes!$B$39:$H$81,MATCH(AC$11,Volumes!$B$4:$H$4,0),FALSE),0) -> 7293 | AD95: =IFERROR(VLOOKUP($B95,Volumes!$B$39:$H$81,MATCH(AD$11,Volumes!$B$4:$H$4,0),FALSE),0) -> 7658 | AE95: =IFERROR(VLOOKUP($B95,Volumes!$B$39:$H$81,MATCH(AE$11,Volumes!$B$4:$H$4,0),FALSE),0) -> 8041 | AF95: =IFERROR(VLOOKUP($B95,Volumes!$B$39:$M$81,MATCH(AF$11,Volumes!$B$4:$M$4,0),FALSE),0) -> 8041 | AG95: =IFERROR(VLOOKUP($B95,Volumes!$B$39:$M$81,MATCH(AG$11,Volumes!$B$4:$M$4,0),FALSE),0) -> 8041 | AH95: =IFERROR(VLOOKUP($B95,Volumes!$B$39:$M$81,MATCH(AH$11,Volumes!$B$4:$M$4,0),FALSE),0) -> 8041 | AI95: =IFERROR(VLOOKUP($B95,Volumes!$B$39:$M$81,MATCH(AI$11,Volumes!$B$4:$M$4,0),FALSE),0) -> 8041 | AJ95: =IFERROR(VLOOKUP($B95,Volumes!$B$39:$M$81,MATCH(AJ$11,Volumes!$B$4:$M$4,0),FALSE),0) -> 8041 | AL95: 181.6123717 | AM95: 188.4713352 | AN95: 195.9028616 | AO95: 203.4115349 | AP95: 211.5762331 | AQ95: 220.4178045 | AR95: 228.0866617 | AS95: 235.7683523 | AT95: 244.1299195 | AU95: 251.1703198 | AW95: 186.0618748 | AX95: 197.8195606 | AY95: 210.657375 | AZ95: 224.0904908 | BA95: 238.7958057 | BB95: 254.8698413 | BC95: 270.198932 | BD95: 286.1417378 | BE95: 303.5489064 | BF95: 319.9542962 | BI95: 1201365.839 | BJ95: 1309121.894 | BK95: 1428719.57 | BL95: 1557725.534 | BM95: 1701284.49 | BN95: 1772379.566 | BO95: 1834044.847 | BP95: 1895813.321 | BQ95: 1963048.683 | BR95: 2019660.542 | BU95: 1230799.302 | BV95: 1374054.668 | BW95: 1536324.236 | BX95: 1716084.979 | BY95: 1920157.073 | BZ95: 2049408.394 | CA95: 2172669.612 | CB95: 2300865.713 | CC95: 2440836.757 | CD95: 2572752.495
B96: =Inputs!$C90 -> 0 | C96: NA | D96: =IF($C96="NA","",'Smoothed Prices'!D96+$D$7) ->  | I96: =IF($C96="NA","",'Smoothed Prices'!I96+$I$7) ->  | AA96: =IFERROR(VLOOKUP($B96,Volumes!$B$39:$H$81,MATCH(AA$11,Volumes!$B$4:$H$4,0),FALSE),0) -> 0 | AB96: =IFERROR(VLOOKUP($B96,Volumes!$B$39:$H$81,MATCH(AB$11,Volumes!$B$4:$H$4,0),FALSE),0) -> 0 | AC96: =IFERROR(VLOOKUP($B96,Volumes!$B$39:$H$81,MATCH(AC$11,Volumes!$B$4:$H$4,0),FALSE),0) -> 0 | AD96: =IFERROR(VLOOKUP($B96,Volumes!$B$39:$H$81,MATCH(AD$11,Volumes!$B$4:$H$4,0),FALSE),0) -> 0 | AE96: =IFERROR(VLOOKUP($B96,Volumes!$B$39:$H$81,MATCH(AE$11,Volumes!$B$4:$H$4,0),FALSE),0) -> 0 | AF96: =IFERROR(VLOOKUP($B96,Volumes!$B$39:$M$81,MATCH(AF$11,Volumes!$B$4:$M$4,0),FALSE),0) -> 0 | AG96: =IFERROR(VLOOKUP($B96,Volumes!$B$39:$M$81,MATCH(AG$11,Volumes!$B$4:$M$4,0),FALSE),0) -> 0 | AH96: =IFERROR(VLOOKUP($B96,Volumes!$B$39:$M$81,MATCH(AH$11,Volumes!$B$4:$M$4,0),FALSE),0) -> 0 | AI96: =IFERROR(VLOOKUP($B96,Volumes!$B$39:$M$81,MATCH(AI$11,Volumes!$B$4:$M$4,0),FALSE),0) -> 0 | AJ96: =IFERROR(VLOOKUP($B96,Volumes!$B$39:$M$81,MATCH(AJ$11,Volumes!$B$4:$M$4,0),FALSE),0) -> 0 | BI96: 0 | BJ96: 0 | BK96: 0 | BL96: 0 | BM96: 0 | BN96: 0 | BO96: 0 | BP96: 0 | BQ96: 0 | BR96: 0 | BU96: 0 | BV96: 0 | BW96: 0 | BX96: 0 | BY96: 0 | BZ96: 0 | CA96: 0 | CB96: 0 | CC96: 0 | CD96: 0
B97: =Inputs!$C91 -> 0 | C97: NA | D97: =IF($C97="NA","",'Smoothed Prices'!D97+$D$7) ->  | I97: =IF($C97="NA","",'Smoothed Prices'!I97+$I$7) ->  | AA97: =IFERROR(VLOOKUP($B97,Volumes!$B$39:$H$81,MATCH(AA$11,Volumes!$B$4:$H$4,0),FALSE),0) -> 0 | AB97: =IFERROR(VLOOKUP($B97,Volumes!$B$39:$H$81,MATCH(AB$11,Volumes!$B$4:$H$4,0),FALSE),0) -> 0 | AC97: =IFERROR(VLOOKUP($B97,Volumes!$B$39:$H$81,MATCH(AC$11,Volumes!$B$4:$H$4,0),FALSE),0) -> 0 | AD97: =IFERROR(VLOOKUP($B97,Volumes!$B$39:$H$81,MATCH(AD$11,Volumes!$B$4:$H$4,0),FALSE),0) -> 0 | AE97: =IFERROR(VLOOKUP($B97,Volumes!$B$39:$H$81,MATCH(AE$11,Volumes!$B$4:$H$4,0),FALSE),0) -> 0 | AF97: =IFERROR(VLOOKUP($B97,Volumes!$B$39:$M$81,MATCH(AF$11,Volumes!$B$4:$M$4,0),FALSE),0) -> 0 | AG97: =IFERROR(VLOOKUP($B97,Volumes!$B$39:$M$81,MATCH(AG$11,Volumes!$B$4:$M$4,0),FALSE),0) -> 0 | AH97: =IFERROR(VLOOKUP($B97,Volumes!$B$39:$M$81,MATCH(AH$11,Volumes!$B$4:$M$4,0),FALSE),0) -> 0 | AI97: =IFERROR(VLOOKUP($B97,Volumes!$B$39:$M$81,MATCH(AI$11,Volumes!$B$4:$M$4,0),FALSE),0) -> 0 | AJ97: =IFERROR(VLOOKUP($B97,Volumes!$B$39:$M$81,MATCH(AJ$11,Volumes!$B$4:$M$4,0),FALSE),0) -> 0 | BI97: 0 | BJ97: 0 | BK97: 0 | BL97: 0 | BM97: 0 | BN97: 0 | BO97: 0 | BP97: 0 | BQ97: 0 | BR97: 0 | BU97: 0 | BV97: 0 | BW97: 0 | BX97: 0 | BY97: 0 | BZ97: 0 | CA97: 0 | CB97: 0 | CC97: 0 | CD97: 0
B98: =Inputs!$C92 -> 0 | C98: NA | D98: =IF($C98="NA","",'Smoothed Prices'!D98+$D$7) ->  | I98: =IF($C98="NA","",'Smoothed Prices'!I98+$I$7) ->  | AA98: =IFERROR(VLOOKUP($B98,Volumes!$B$39:$H$81,MATCH(AA$11,Volumes!$B$4:$H$4,0),FALSE),0) -> 0 | AB98: =IFERROR(VLOOKUP($B98,Volumes!$B$39:$H$81,MATCH(AB$11,Volumes!$B$4:$H$4,0),FALSE),0) -> 0 | AC98: =IFERROR(VLOOKUP($B98,Volumes!$B$39:$H$81,MATCH(AC$11,Volumes!$B$4:$H$4,0),FALSE),0) -> 0 | AD98: =IFERROR(VLOOKUP($B98,Volumes!$B$39:$H$81,MATCH(AD$11,Volumes!$B$4:$H$4,0),FALSE),0) -> 0 | AE98: =IFERROR(VLOOKUP($B98,Volumes!$B$39:$H$81,MATCH(AE$11,Volumes!$B$4:$H$4,0),FALSE),0) -> 0 | AF98: =IFERROR(VLOOKUP($B98,Volumes!$B$39:$M$81,MATCH(AF$11,Volumes!$B$4:$M$4,0),FALSE),0) -> 0 | AG98: =IFERROR(VLOOKUP($B98,Volumes!$B$39:$M$81,MATCH(AG$11,Volumes!$B$4:$M$4,0),FALSE),0) -> 0 | AH98: =IFERROR(VLOOKUP($B98,Volumes!$B$39:$M$81,MATCH(AH$11,Volumes!$B$4:$M$4,0),FALSE),0) -> 0 | AI98: =IFERROR(VLOOKUP($B98,Volumes!$B$39:$M$81,MATCH(AI$11,Volumes!$B$4:$M$4,0),FALSE),0) -> 0 | AJ98: =IFERROR(VLOOKUP($B98,Volumes!$B$39:$M$81,MATCH(AJ$11,Volumes!$B$4:$M$4,0),FALSE),0) -> 0 | BI98: 0 | BJ98: 0 | BK98: 0 | BL98: 0 | BM98: 0 | BN98: 0 | BO98: 0 | BP98: 0 | BQ98: 0 | BR98: 0 | BU98: 0 | BV98: 0 | BW98: 0 | BX98: 0 | BY98: 0 | BZ98: 0 | CA98: 0 | CB98: 0 | CC98: 0 | CD98: 0
B99: =Inputs!$C93 -> 250W Sodium Vapour - Flood Light | C99: Offered | D99: =IF($C99="NA","",'Smoothed Prices'!D99+$D$7) -> 53.44665128 | E99: 55.50148252 | F99: 57.57764502 | G99: 59.67536022 | H99: 61.79485187 | I99: =IF($C99="NA","",'Smoothed Prices'!I99+$I$7) -> 64.37557749 | J99: 66.48330652 | K99: 68.59456273 | L99: 70.70935201 | M99: 72.82768028 | P99: 54.75609424 | Q99: 58.25436993 | R99: 61.91413162 | S99: 65.74199821 | T99: 69.74484432 | U99: 74.43769463 | V99: 78.75830302 | W99: 83.25022077 | X99: 87.9193608 | Y99: 92.7718259 | AA99: =IFERROR(VLOOKUP($B99,Volumes!$B$39:$H$81,MATCH(AA$11,Volumes!$B$4:$H$4,0),FALSE),0) -> 36 | AB99: =IFERROR(VLOOKUP($B99,Volumes!$B$39:$H$81,MATCH(AB$11,Volumes!$B$4:$H$4,0),FALSE),0) -> 38 | AC99: =IFERROR(VLOOKUP($B99,Volumes!$B$39:$H$81,MATCH(AC$11,Volumes!$B$4:$H$4,0),FALSE),0) -> 40 | AD99: =IFERROR(VLOOKUP($B99,Volumes!$B$39:$H$81,MATCH(AD$11,Volumes!$B$4:$H$4,0),FALSE),0) -> 42 | AE99: =IFERROR(VLOOKUP($B99,Volumes!$B$39:$H$81,MATCH(AE$11,Volumes!$B$4:$H$4,0),FALSE),0) -> 44 | AF99: =IFERROR(VLOOKUP($B99,Volumes!$B$39:$M$81,MATCH(AF$11,Volumes!$B$4:$M$4,0),FALSE),0) -> 44 | AG99: =IFERROR(VLOOKUP($B99,Volumes!$B$39:$M$81,MATCH(AG$11,Volumes!$B$4:$M$4,0),FALSE),0) -> 44 | AH99: =IFERROR(VLOOKUP($B99,Volumes!$B$39:$M$81,MATCH(AH$11,Volumes!$B$4:$M$4,0),FALSE),0) -> 44 | AI99: =IFERROR(VLOOKUP($B99,Volumes!$B$39:$M$81,MATCH(AI$11,Volumes!$B$4:$M$4,0),FALSE),0) -> 44 | AJ99: =IFERROR(VLOOKUP($B99,Volumes!$B$39:$M$81,MATCH(AJ$11,Volumes!$B$4:$M$4,0),FALSE),0) -> 44 | AL99: 195.6147437 | AM99: 202.5804112 | AN99: 210.1584043 | AO99: 217.8150648 | AP99: 226.1691578 | AQ99: 234.9708578 | AR99: 242.6640688 | AS99: 250.370154 | AT99: 258.7962284 | AU99: 265.821033 | AW99: 200.4073049 | AX99: 212.6284502 | AY99: 225.9865804 | AZ99: 239.9582935 | BA99: 255.2661302 | BB99: 271.6975854 | BC99: 287.467806 | BD99: 303.8633058 | BE99: 321.7848605 | BF99: 338.6171645 | BI99: 7042.130773 | BJ99: 7698.055625 | BK99: 8406.336173 | BL99: 9148.232722 | BM99: 9951.442945 | BN99: 10338.71774 | BO99: 10677.21903 | BP99: 11016.28677 | BQ99: 11387.03405 | BR99: 11696.12545 | BU99: 7214.662977 | BV99: 8079.881109 | BW99: 9039.463216 | BX99: 10078.24833 | BY99: 11231.70973 | BZ99: 11954.69376 | CA99: 12648.58347 | CB99: 13369.98545 | CC99: 14158.53386 | CD99: 14899.15524
B100: =Inputs!$C94 -> 400W Sodium Vapour | C100: Offered | D100: =IF($C100="NA","",'Smoothed Prices'!D100+$D$7) -> 50.20549268 | E100: 52.22667735 | F100: 54.268844 | G100: 56.33221045 | H100: 58.41699676 | I100: =IF($C100="NA","",'Smoothed Prices'!I100+$I$7) -> 60.99772238 | J100: 63.09979876 | K100: 65.20539285 | L100: 67.31451054 | M100: 69.42715772 | P100: 51.43552725 | Q100: 54.8171336 | R100: 58.35612674 | S100: 62.05898154 | T100: 65.93242352 | U100: 70.53186952 | V100: 74.75008887 | W100: 79.13693351 | X100: 83.698246 | Y100: 88.44005691 | AA100: =IFERROR(VLOOKUP($B100,Volumes!$B$39:$H$81,MATCH(AA$11,Volumes!$B$4:$H$4,0),FALSE),0) -> 674 | AB100: =IFERROR(VLOOKUP($B100,Volumes!$B$39:$H$81,MATCH(AB$11,Volumes!$B$4:$H$4,0),FALSE),0) -> 708 | AC100: =IFERROR(VLOOKUP($B100,Volumes!$B$39:$H$81,MATCH(AC$11,Volumes!$B$4:$H$4,0),FALSE),0) -> 743 | AD100: =IFERROR(VLOOKUP($B100,Volumes!$B$39:$H$81,MATCH(AD$11,Volumes!$B$4:$H$4,0),FALSE),0) -> 780 | AE100: =IFERROR(VLOOKUP($B100,Volumes!$B$39:$H$81,MATCH(AE$11,Volumes!$B$4:$H$4,0),FALSE),0) -> 819 | AF100: =IFERROR(VLOOKUP($B100,Volumes!$B$39:$M$81,MATCH(AF$11,Volumes!$B$4:$M$4,0),FALSE),0) -> 819 | AG100: =IFERROR(VLOOKUP($B100,Volumes!$B$39:$M$81,MATCH(AG$11,Volumes!$B$4:$M$4,0),FALSE),0) -> 819 | AH100: =IFERROR(VLOOKUP($B100,Volumes!$B$39:$M$81,MATCH(AH$11,Volumes!$B$4:$M$4,0),FALSE),0) -> 819 | AI100: =IFERROR(VLOOKUP($B100,Volumes!$B$39:$M$81,MATCH(AI$11,Volumes!$B$4:$M$4,0),FALSE),0) -> 819 | AJ100: =IFERROR(VLOOKUP($B100,Volumes!$B$39:$M$81,MATCH(AJ$11,Volumes!$B$4:$M$4,0),FALSE),0) -> 819 | AL100: 183.7521032 | AM100: 190.6273723 | AN100: 198.0812806 | AO100: 205.6125681 | AP100: 213.8062081 | AQ100: 222.6416867 | AR100: 230.3142655 | AS100: 237.9996839 | AT100: 246.3711086 | AU100: 253.4091257 | AW100: 188.2540297 | AX100: 200.0825377 | AY100: 212.9998626 | AZ100: 226.5152826 | BA100: 241.3126701 | BB100: 257.4413237 | BC100: 272.8378244 | BD100: 288.8498073 | BE100: 306.3355803 | BF100: 322.8062077 | BI100: 123848.9176 | BJ100: 134964.1796 | BK100: 147174.3915 | BL100: 160377.8031 | BM100: 175107.2845 | BN100: 182343.5414 | BO100: 188627.3834 | BP100: 194921.7411 | BQ100: 201777.9379 | BR100: 207542.0739 | BU100: 126883.216 | BV100: 141658.4367 | BW100: 158258.8979 | BX100: 176681.9204 | BY100: 197635.0768 | BZ100: 210844.4442 | CA100: 223454.1782 | CB100: 236567.9922 | CC100: 250888.8403 | CD100: 264378.2841
B101: =Inputs!$C95 -> 0 | C101: NA | D101: =IF($C101="NA","",'Smoothed Prices'!D101+$D$7) ->  | I101: =IF($C101="NA","",'Smoothed Prices'!I101+$I$7) ->  | AA101: =IFERROR(VLOOKUP($B101,Volumes!$B$39:$H$81,MATCH(AA$11,Volumes!$B$4:$H$4,0),FALSE),0) -> 0 | AB101: =IFERROR(VLOOKUP($B101,Volumes!$B$39:$H$81,MATCH(AB$11,Volumes!$B$4:$H$4,0),FALSE),0) -> 0 | AC101: =IFERROR(VLOOKUP($B101,Volumes!$B$39:$H$81,MATCH(AC$11,Volumes!$B$4:$H$4,0),FALSE),0) -> 0 | AD101: =IFERROR(VLOOKUP($B101,Volumes!$B$39:$H$81,MATCH(AD$11,Volumes!$B$4:$H$4,0),FALSE),0) -> 0 | AE101: =IFERROR(VLOOKUP($B101,Volumes!$B$39:$H$81,MATCH(AE$11,Volumes!$B$4:$H$4,0),FALSE),0) -> 0 | AF101: =IFERROR(VLOOKUP($B101,Volumes!$B$39:$M$81,MATCH(AF$11,Volumes!$B$4:$M$4,0),FALSE),0) -> 0 | AG101: =IFERROR(VLOOKUP($B101,Volumes!$B$39:$M$81,MATCH(AG$11,Volumes!$B$4:$M$4,0),FALSE),0) -> 0 | AH101: =IFERROR(VLOOKUP($B101,Volumes!$B$39:$M$81,MATCH(AH$11,Volumes!$B$4:$M$4,0),FALSE),0) -> 0 | AI101: =IFERROR(VLOOKUP($B101,Volumes!$B$39:$M$81,MATCH(AI$11,Volumes!$B$4:$M$4,0),FALSE),0) -> 0 | AJ101: =IFERROR(VLOOKUP($B101,Volumes!$B$39:$M$81,MATCH(AJ$11,Volumes!$B$4:$M$4,0),FALSE),0) -> 0 | BI101: 0 | BJ101: 0 | BK101: 0 | BL101: 0 | BM101: 0 | BN101: 0 | BO101: 0 | BP101: 0 | BQ101: 0 | BR101: 0 | BU101: 0 | BV101: 0 | BW101: 0 | BX101: 0 | BY101: 0 | BZ101: 0 | CA101: 0 | CB101: 0 | CC101: 0 | CD101: 0
B102: =Inputs!$C96 -> 400W Sodium Vapour - Flood Light | C102: Offered | D102: =IF($C102="NA","",'Smoothed Prices'!D102+$D$7) -> 52.72872625 | E102: 54.77610469 | F102: 56.84473702 | G102: 58.93484389 | H102: 61.04664821 | I102: =IF($C102="NA","",'Smoothed Prices'!I102+$I$7) -> 63.62737383 | J102: 65.73385079 | K102: 67.84385282 | L102: 69.95738583 | M102: 72.07445572 | P102: 54.02058005 | Q102: 57.49301318 | R102: 61.12602432 | S102: 64.92620047 | T102: 68.90038323 | U102: 73.57254425 | V102: 77.8704732 | W102: 82.33911698 | X102: 86.98437293 | Y102: 91.81232785 | AA102: =IFERROR(VLOOKUP($B102,Volumes!$B$39:$H$81,MATCH(AA$11,Volumes!$B$4:$H$4,0),FALSE),0) -> 36 | AB102: =IFERROR(VLOOKUP($B102,Volumes!$B$39:$H$81,MATCH(AB$11,Volumes!$B$4:$H$4,0),FALSE),0) -> 38 | AC102: =IFERROR(VLOOKUP($B102,Volumes!$B$39:$H$81,MATCH(AC$11,Volumes!$B$4:$H$4,0),FALSE),0) -> 40 | AD102: =IFERROR(VLOOKUP($B102,Volumes!$B$39:$H$81,MATCH(AD$11,Volumes!$B$4:$H$4,0),FALSE),0) -> 42 | AE102: =IFERROR(VLOOKUP($B102,Volumes!$B$39:$H$81,MATCH(AE$11,Volumes!$B$4:$H$4,0),FALSE),0) -> 44 | AF102: =IFERROR(VLOOKUP($B102,Volumes!$B$39:$M$81,MATCH(AF$11,Volumes!$B$4:$M$4,0),FALSE),0) -> 44 | AG102: =IFERROR(VLOOKUP($B102,Volumes!$B$39:$M$81,MATCH(AG$11,Volumes!$B$4:$M$4,0),FALSE),0) -> 44 | AH102: =IFERROR(VLOOKUP($B102,Volumes!$B$39:$M$81,MATCH(AH$11,Volumes!$B$4:$M$4,0),FALSE),0) -> 44 | AI102: =IFERROR(VLOOKUP($B102,Volumes!$B$39:$M$81,MATCH(AI$11,Volumes!$B$4:$M$4,0),FALSE),0) -> 44 | AJ102: =IFERROR(VLOOKUP($B102,Volumes!$B$39:$M$81,MATCH(AJ$11,Volumes!$B$4:$M$4,0),FALSE),0) -> 44 | AL102: 192.9871381 | AM102: 199.9327821 | AN102: 207.4832901 | AO102: 215.1121802 | AP102: 223.4307324 | AQ102: 232.2399145 | AR102: 239.9285554 | AS102: 247.6300628 | AT102: 256.0440321 | AU102: 263.0717634 | AW102: 197.715323 | AX102: 209.8494981 | AY102: 223.1099888 | AZ102: 236.9806317 | BA102: 252.1754026 | BB102: 268.5397865 | BC102: 284.2272272 | BD102: 300.537777 | BE102: 318.3628049 | BF102: 335.1149966 | BI102: 6947.536971 | BJ102: 7597.445721 | BK102: 8299.331605 | BL102: 9034.711568 | BM102: 9830.952228 | BN102: 10218.55624 | BO102: 10556.85644 | BP102: 10895.72276 | BQ102: 11265.93741 | BR102: 11575.15759 | BU102: 7117.751627 | BV102: 7974.280928 | BW102: 8924.399551 | BX102: 9953.186533 | BY102: 11095.71772 | BZ102: 11815.75061 | CA102: 12505.998 | CB102: 13223.66219 | CC102: 14007.96342 | CD102: 14745.05985
B103: =Inputs!$C97 -> 70W Sodium Vapour | C103: Offered | D103: =IF($C103="NA","",'Smoothed Prices'!D103+$D$7) -> 38.90027268 | E103: 40.80409754 | F103: 42.72768606 | G103: 44.67124341 | H103: 46.63497688 | I103: =IF($C103="NA","",'Smoothed Prices'!I103+$I$7) -> 49.2157025 | J103: 51.29806231 | K103: 53.38390684 | L103: 55.47324191 | M103: 57.56607337 | P103: 39.85332936 | Q103: 42.82799098 | R103: 45.94574123 | S103: 49.2125526 | T103: 52.63463062 | U103: 56.9082807 | V103: 60.76936523 | W103: 64.78971295 | X103: 68.97492101 | Y103: 73.33076814 | AA103: =IFERROR(VLOOKUP($B103,Volumes!$B$39:$H$81,MATCH(AA$11,Volumes!$B$4:$H$4,0),FALSE),0) -> 236 | AB103: =IFERROR(VLOOKUP($B103,Volumes!$B$39:$H$81,MATCH(AB$11,Volumes!$B$4:$H$4,0),FALSE),0) -> 248 | AC103: =IFERROR(VLOOKUP($B103,Volumes!$B$39:$H$81,MATCH(AC$11,Volumes!$B$4:$H$4,0),FALSE),0) -> 260 | AD103: =IFERROR(VLOOKUP($B103,Volumes!$B$39:$H$81,MATCH(AD$11,Volumes!$B$4:$H$4,0),FALSE),0) -> 273 | AE103: =IFERROR(VLOOKUP($B103,Volumes!$B$39:$H$81,MATCH(AE$11,Volumes!$B$4:$H$4,0),FALSE),0) -> 287 | AF103: =IFERROR(VLOOKUP($B103,Volumes!$B$39:$M$81,MATCH(AF$11,Volumes!$B$4:$M$4,0),FALSE),0) -> 287 | AG103: =IFERROR(VLOOKUP($B103,Volumes!$B$39:$M$81,MATCH(AG$11,Volumes!$B$4:$M$4,0),FALSE),0) -> 287 | AH103: =IFERROR(VLOOKUP($B103,Volumes!$B$39:$M$81,MATCH(AH$11,Volumes!$B$4:$M$4,0),FALSE),0) -> 287 | AI103: =IFERROR(VLOOKUP($B103,Volumes!$B$39:$M$81,MATCH(AI$11,Volumes!$B$4:$M$4,0),FALSE),0) -> 287 | AJ103: =IFERROR(VLOOKUP($B103,Volumes!$B$39:$M$81,MATCH(AJ$11,Volumes!$B$4:$M$4,0),FALSE),0) -> 287 | AL103: 142.374998 | AM103: 148.934956 | AN103: 155.9560541 | AO103: 163.0500384 | AP103: 170.6840154 | AQ103: 179.6373141 | AR103: 187.2379274 | AS103: 194.8512599 | AT103: 203.0320654 | AU103: 210.1161678 | AW103: 145.8631855 | AX103: 156.3221671 | AY103: 167.7019555 | AZ103: 179.625817 | BA103: 192.6427481 | BB103: 207.7152246 | BC103: 221.8081831 | BD103: 236.4824523 | BE103: 252.4482109 | BF103: 267.6573037 | BI103: 33600.49953 | BJ103: 36935.86909 | BK103: 40548.57407 | BL103: 44512.66049 | BM103: 48986.31242 | BN103: 51555.90916 | BO103: 53737.28517 | BP103: 55922.31161 | BQ103: 58270.20276 | BR103: 60303.34016 | BU103: 34423.71177 | BV103: 38767.89743 | BW103: 43602.50842 | BX103: 49037.84804 | BY103: 55288.4687 | BZ103: 59614.26945 | CA103: 63658.94855 | CB103: 67870.4638 | CC103: 72452.63653 | CD103: 76817.64616
B104: =Inputs!$C98 -> 0 | C104: NA | D104: =IF($C104="NA","",'Smoothed Prices'!D104+$D$7) ->  | I104: =IF($C104="NA","",'Smoothed Prices'!I104+$I$7) ->  | AA104: =IFERROR(VLOOKUP($B104,Volumes!$B$39:$H$81,MATCH(AA$11,Volumes!$B$4:$H$4,0),FALSE),0) -> 0 | AB104: =IFERROR(VLOOKUP($B104,Volumes!$B$39:$H$81,MATCH(AB$11,Volumes!$B$4:$H$4,0),FALSE),0) -> 0 | AC104: =IFERROR(VLOOKUP($B104,Volumes!$B$39:$H$81,MATCH(AC$11,Volumes!$B$4:$H$4,0),FALSE),0) -> 0 | AD104: =IFERROR(VLOOKUP($B104,Volumes!$B$39:$H$81,MATCH(AD$11,Volumes!$B$4:$H$4,0),FALSE),0) -> 0 | AE104: =IFERROR(VLOOKUP($B104,Volumes!$B$39:$H$81,MATCH(AE$11,Volumes!$B$4:$H$4,0),FALSE),0) -> 0 | AF104: =IFERROR(VLOOKUP($B104,Volumes!$B$39:$M$81,MATCH(AF$11,Volumes!$B$4:$M$4,0),FALSE),0) -> 0 | AG104: =IFERROR(VLOOKUP($B104,Volumes!$B$39:$M$81,MATCH(AG$11,Volumes!$B$4:$M$4,0),FALSE),0) -> 0 | AH104: =IFERROR(VLOOKUP($B104,Volumes!$B$39:$M$81,MATCH(AH$11,Volumes!$B$4:$M$4,0),FALSE),0) -> 0 | AI104: =IFERROR(VLOOKUP($B104,Volumes!$B$39:$M$81,MATCH(AI$11,Volumes!$B$4:$M$4,0),FALSE),0) -> 0 | AJ104: =IFERROR(VLOOKUP($B104,Volumes!$B$39:$M$81,MATCH(AJ$11,Volumes!$B$4:$M$4,0),FALSE),0) -> 0 | BI104: 0 | BJ104: 0 | BK104: 0 | BL104: 0 | BM104: 0 | BN104: 0 | BO104: 0 | BP104: 0 | BQ104: 0 | BR104: 0 | BU104: 0 | BV104: 0 | BW104: 0 | BX104: 0 | BY104: 0 | BZ104: 0 | CA104: 0 | CB104: 0 | CC104: 0 | CD104: 0
B105: =Inputs!$C99 -> 100W Incandescent | C105: Old light no volumes | D105: =IF($C105="NA","",'Smoothed Prices'!D105+$D$7) -> 42.4993442 | E105: 44.44053113 | F105: 46.40186957 | G105: 48.38356872 | H105: 50.38583996 | I105: =IF($C105="NA","",'Smoothed Prices'!I105+$I$7) -> 52.96656558 | J105: 55.05520225 | K105: 57.14733414 | L105: 59.24296711 | M105: 61.342107 | P105: 43.54057814 | Q105: 46.64479258 | R105: 49.89664754 | S105: 53.30227545 | T105: 56.86804737 | U105: 61.24541616 | V105: 65.22019629 | W105: 69.35722008 | X105: 73.66216281 | Y105: 78.14088337 | AA105: =IFERROR(VLOOKUP($B105,Volumes!$B$39:$H$81,MATCH(AA$11,Volumes!$B$4:$H$4,0),FALSE),0) -> 0 | AB105: =IFERROR(VLOOKUP($B105,Volumes!$B$39:$H$81,MATCH(AB$11,Volumes!$B$4:$H$4,0),FALSE),0) -> 0 | AC105: =IFERROR(VLOOKUP($B105,Volumes!$B$39:$H$81,MATCH(AC$11,Volumes!$B$4:$H$4,0),FALSE),0) -> 0 | AD105: =IFERROR(VLOOKUP($B105,Volumes!$B$39:$H$81,MATCH(AD$11,Volumes!$B$4:$H$4,0),FALSE),0) -> 0 | AE105: =IFERROR(VLOOKUP($B105,Volumes!$B$39:$H$81,MATCH(AE$11,Volumes!$B$4:$H$4,0),FALSE),0) -> 0 | AF105: =IFERROR(VLOOKUP($B105,Volumes!$B$39:$M$81,MATCH(AF$11,Volumes!$B$4:$M$4,0),FALSE),0) -> 0 | AG105: =IFERROR(VLOOKUP($B105,Volumes!$B$39:$M$81,MATCH(AG$11,Volumes!$B$4:$M$4,0),FALSE),0) -> 0 | AH105: =IFERROR(VLOOKUP($B105,Volumes!$B$39:$M$81,MATCH(AH$11,Volumes!$B$4:$M$4,0),FALSE),0) -> 0 | AI105: =IFERROR(VLOOKUP($B105,Volumes!$B$39:$M$81,MATCH(AI$11,Volumes!$B$4:$M$4,0),FALSE),0) -> 0 | AJ105: =IFERROR(VLOOKUP($B105,Volumes!$B$39:$M$81,MATCH(AJ$11,Volumes!$B$4:$M$4,0),FALSE),0) -> 0 | AL105: 155.5475998 | AM105: 162.2079386 | AN105: 169.3668239 | AO105: 176.6000258 | AP105: 184.4121742 | AQ105: 193.3279644 | AR105: 200.9514882 | AS105: 208.5877696 | AT105: 216.8292596 | AU105: 223.8986905 | AW105: 159.358516 | AX105: 170.2534929 | AY105: 182.1227635 | AZ105: 194.5533054 | BA105: 208.1370534 | BB105: 223.545769 | BC105: 238.0537165 | BD105: 253.1538533 | BE105: 269.6035159 | BF105: 285.2142243 | BI105: 0 | BJ105: 0 | BK105: 0 | BL105: 0 | BM105: 0 | BN105: 0 | BO105: 0 | BP105: 0 | BQ105: 0 | BR105: 0 | BU105: 0 | BV105: 0 | BW105: 0 | BX105: 0 | BY105: 0 | BZ105: 0 | CA105: 0 | CB105: 0 | CC105: 0 | CD105: 0
B106: =Inputs!$C100 -> 60W Incandescent | C106: Old light no volumes | D106: =IF($C106="NA","",'Smoothed Prices'!D106+$D$7) -> 35.93620795 | E106: 37.80926276 | F106: 39.70176182 | G106: 41.61390696 | H106: 43.54590213 | I106: =IF($C106="NA","",'Smoothed Prices'!I106+$I$7) -> 46.12662775 | J106: 48.20381816 | K106: 50.28448464 | L106: 52.36863299 | M106: 54.45626906 | P106: 36.81664504 | Q106: 39.68461165 | R106: 42.69191812 | S106: 45.84440524 | T106: 49.14814217 | U106: 53.33637328 | V106: 57.10382224 | W106: 61.02807978 | X106: 65.11467872 | Y106: 69.36933173 | AA106: =IFERROR(VLOOKUP($B106,Volumes!$B$39:$H$81,MATCH(AA$11,Volumes!$B$4:$H$4,0),FALSE),0) -> 0 | AB106: =IFERROR(VLOOKUP($B106,Volumes!$B$39:$H$81,MATCH(AB$11,Volumes!$B$4:$H$4,0),FALSE),0) -> 0 | AC106: =IFERROR(VLOOKUP($B106,Volumes!$B$39:$H$81,MATCH(AC$11,Volumes!$B$4:$H$4,0),FALSE),0) -> 0 | AD106: =IFERROR(VLOOKUP($B106,Volumes!$B$39:$H$81,MATCH(AD$11,Volumes!$B$4:$H$4,0),FALSE),0) -> 0 | AE106: =IFERROR(VLOOKUP($B106,Volumes!$B$39:$H$81,MATCH(AE$11,Volumes!$B$4:$H$4,0),FALSE),0) -> 0 | AF106: =IFERROR(VLOOKUP($B106,Volumes!$B$39:$M$81,MATCH(AF$11,Volumes!$B$4:$M$4,0),FALSE),0) -> 0 | AG106: =IFERROR(VLOOKUP($B106,Volumes!$B$39:$M$81,MATCH(AG$11,Volumes!$B$4:$M$4,0),FALSE),0) -> 0 | AH106: =IFERROR(VLOOKUP($B106,Volumes!$B$39:$M$81,MATCH(AH$11,Volumes!$B$4:$M$4,0),FALSE),0) -> 0 | AI106: =IFERROR(VLOOKUP($B106,Volumes!$B$39:$M$81,MATCH(AI$11,Volumes!$B$4:$M$4,0),FALSE),0) -> 0 | AJ106: =IFERROR(VLOOKUP($B106,Volumes!$B$39:$M$81,MATCH(AJ$11,Volumes!$B$4:$M$4,0),FALSE),0) -> 0 | AL106: 131.5265211 | AM106: 138.0038091 | AN106: 144.9114306 | AO106: 151.8907604 | AP106: 159.3780018 | AQ106: 168.3621913 | AR106: 175.9439363 | AS106: 183.5383689 | AT106: 191.6691968 | AU106: 198.7653821 | AW106: 134.7489208 | AX106: 144.8488325 | AY106: 155.8255011 | AZ106: 167.3320791 | BA106: 179.8822003 | BB106: 194.6777625 | BC106: 208.4289512 | BD106: 222.7524912 | BE106: 238.3197241 | BF106: 253.1980608 | BI106: 0 | BJ106: 0 | BK106: 0 | BL106: 0 | BM106: 0 | BN106: 0 | BO106: 0 | BP106: 0 | BQ106: 0 | BR106: 0 | BU106: 0 | BV106: 0 | BW106: 0 | BX106: 0 | BY106: 0 | BZ106: 0 | CA106: 0 | CB106: 0 | CC106: 0 | CD106: 0
B107: =Inputs!$C101 -> 18W LED | C107: Offered | D107: =IF($C107="NA","",'Smoothed Prices'!D107+$D$7) -> 37.0592778 | E107: 38.94399124 | F107: 40.84826994 | G107: 42.77231702 | H107: 44.71633768 | I107: =IF($C107="NA","",'Smoothed Prices'!I107+$I$7) -> 47.2970633 | J107: 49.37621237 | K107: 51.45884078 | L107: 53.54495436 | M107: 55.63455894 | P107: =IF($C107="NA","",D107*P$9) -> 37.96723011 | Q107: =IF($C107="NA","",E107*Q$9) -> 40.87562294 | R107: =IF($C107="NA","",F107*R$9) -> 43.92477602 | S107: =IF($C107="NA","",G107*S$9) -> 47.12058005 | T107: =IF($C107="NA","",H107*T$9) -> 50.46915585 | U107: =IF($C107="NA","",I107*U$9) -> 54.6897518 | V107: =IF($C107="NA","",J107*V$9) -> 58.49267882 | W107: =IF($C107="NA","",K107*W$9) -> 62.45334447 | X107: =IF($C107="NA","",L107*X$9) -> 66.57730594 | Y107: =IF($C107="NA","",M107*Y$9) -> 70.87030091 | AA107: =IFERROR(VLOOKUP($B107,Volumes!$B$39:$H$81,MATCH(AA$11,Volumes!$B$4:$H$4,0),FALSE),0) -> 360 | AB107: =IFERROR(VLOOKUP($B107,Volumes!$B$39:$H$81,MATCH(AB$11,Volumes!$B$4:$H$4,0),FALSE),0) -> 360 | AC107: =IFERROR(VLOOKUP($B107,Volumes!$B$39:$H$81,MATCH(AC$11,Volumes!$B$4:$H$4,0),FALSE),0) -> 360 | AD107: =IFERROR(VLOOKUP($B107,Volumes!$B$39:$H$81,MATCH(AD$11,Volumes!$B$4:$H$4,0),FALSE),0) -> 360 | AE107: =IFERROR(VLOOKUP($B107,Volumes!$B$39:$H$81,MATCH(AE$11,Volumes!$B$4:$H$4,0),FALSE),0) -> 360 | AF107: =IFERROR(VLOOKUP($B107,Volumes!$B$39:$M$81,MATCH(AF$11,Volumes!$B$4:$M$4,0),FALSE),0) -> 360 | AG107: =IFERROR(VLOOKUP($B107,Volumes!$B$39:$M$81,MATCH(AG$11,Volumes!$B$4:$M$4,0),FALSE),0) -> 360 | AH107: =IFERROR(VLOOKUP($B107,Volumes!$B$39:$M$81,MATCH(AH$11,Volumes!$B$4:$M$4,0),FALSE),0) -> 360 | AI107: =IFERROR(VLOOKUP($B107,Volumes!$B$39:$M$81,MATCH(AI$11,Volumes!$B$4:$M$4,0),FALSE),0) -> 360 | AJ107: =IFERROR(VLOOKUP($B107,Volumes!$B$39:$M$81,MATCH(AJ$11,Volumes!$B$4:$M$4,0),FALSE),0) -> 360 | AL107: =IF($C107="NA","",(D107*AL$9)/100) -> 135.6369567 | AM107: =IF($C107="NA","",(E107*AM$9)/100) -> 142.145568 | AN107: =IF($C107="NA","",(F107*AN$9)/100) -> 149.0961853 | AO107: =IF($C107="NA","",(G107*AO$9)/100) -> 156.1189571 | AP107: =IF($C107="NA","",(H107*AP$9)/100) -> 163.6617959 | AQ107: =IF($C107="NA","",(I107*AQ$9)/100) -> 172.634281 | AR107: =IF($C107="NA","",(J107*AR$9)/100) -> 180.2231751 | AS107: =IF($C107="NA","",(K107*AS$9)/100) -> 187.8247689 | AT107: =IF($C107="NA","",(L107*AT$9)/100) -> 195.974533 | AU107: =IF($C107="NA","",(M107*AU$9)/100) -> 203.0661401 | AW107: =IF($C107="NA","",(P107*AW$9)/100) -> 138.9600622 | AX107: =IF($C107="NA","",(Q107*AX$9)/100) -> 149.1960237 | AY107: =IF($C107="NA","",(R107*AY$9)/100) -> 160.3254325 | AZ107: =IF($C107="NA","",(S107*AZ$9)/100) -> 171.9901172 | BA107: =IF($C107="NA","",(T107*BA$9)/100) -> 184.7171104 | BB107: =IF($C107="NA","",(U107*BB$9)/100) -> 199.6175941 | BC107: =IF($C107="NA","",(V107*BC$9)/100) -> 213.4982777 | BD107: =IF($C107="NA","",(W107*BD$9)/100) -> 227.9547073 | BE107: =IF($C107="NA","",(X107*BE$9)/100) -> 243.6729397 | BF107: =IF($C107="NA","",(Y107*BF$9)/100) -> 258.6765983 | BI107: =IFERROR(AL107*AA107,0) -> 48829.30443 | BJ107: =IFERROR(AM107*AB107,0) -> 51172.40449 | BK107: =IFERROR(AN107*AC107,0) -> 53674.6267 | BL107: =IFERROR(AO107*AD107,0) -> 56202.82456 | BM107: =IFERROR(AP107*AE107,0) -> 58918.24653 | BN107: =IFERROR(AQ107*AF107,0) -> 62148.34117 | BO107: =IFERROR(AR107*AG107,0) -> 64880.34305 | BP107: =IFERROR(AS107*AH107,0) -> 67616.91679 | BQ107: =IFERROR(AT107*AI107,0) -> 70550.83186 | BR107: =IFERROR(AU107*AJ107,0) -> 73103.81044 | BU107: =IFERROR(AW107*AA107,0) -> 50025.62239 | BV107: =IFERROR(AX107*AB107,0) -> 53710.56854 | BW107: =IFERROR(AY107*AC107,0) -> 57717.15569 | BX107: =IFERROR(AZ107*AD107,0) -> 61916.44219 | BY107: =IFERROR(BA107*AE107,0) -> 66498.15975 | BZ107: =IFERROR(BB107*AF107,0) -> 71862.33387 | CA107: =IFERROR(BC107*AG107,0) -> 76859.37997 | CB107: =IFERROR(BD107*AH107,0) -> 82063.69464 | CC107: =IFERROR(BE107*AI107,0) -> 87722.2583 | CD107: =IFERROR(BF107*AJ107,0) -> 93123.57539
B108: =Inputs!$C102 -> 18W LED Decorative - Bottom Pole Entry | C108: Offered | D108: =IF($C108="NA","",'Smoothed Prices'!D108+$D$7) -> 37.0592778 | E108: 38.94399124 | F108: 40.84826994 | G108: 42.77231702 | H108: 44.71633768 | I108: =IF($C108="NA","",'Smoothed Prices'!I108+$I$7) -> 47.2970633 | J108: 49.37621237 | K108: 51.45884078 | L108: 53.54495436 | M108: 55.63455894 | P108: 37.96723011 | Q108: 40.87562294 | R108: 43.92477602 | S108: 47.12058005 | T108: 50.46915585 | U108: 54.6897518 | V108: 58.49267882 | W108: 62.45334447 | X108: 66.57730594 | Y108: 70.87030091 | AA108: =IFERROR(VLOOKUP($B108,Volumes!$B$39:$H$81,MATCH(AA$11,Volumes!$B$4:$H$4,0),FALSE),0) -> 36 | AB108: =IFERROR(VLOOKUP($B108,Volumes!$B$39:$H$81,MATCH(AB$11,Volumes!$B$4:$H$4,0),FALSE),0) -> 38 | AC108: =IFERROR(VLOOKUP($B108,Volumes!$B$39:$H$81,MATCH(AC$11,Volumes!$B$4:$H$4,0),FALSE),0) -> 40 | AD108: =IFERROR(VLOOKUP($B108,Volumes!$B$39:$H$81,MATCH(AD$11,Volumes!$B$4:$H$4,0),FALSE),0) -> 42 | AE108: =IFERROR(VLOOKUP($B108,Volumes!$B$39:$H$81,MATCH(AE$11,Volumes!$B$4:$H$4,0),FALSE),0) -> 44 | AF108: =IFERROR(VLOOKUP($B108,Volumes!$B$39:$M$81,MATCH(AF$11,Volumes!$B$4:$M$4,0),FALSE),0) -> 44 | AG108: =IFERROR(VLOOKUP($B108,Volumes!$B$39:$M$81,MATCH(AG$11,Volumes!$B$4:$M$4,0),FALSE),0) -> 44 | AH108: =IFERROR(VLOOKUP($B108,Volumes!$B$39:$M$81,MATCH(AH$11,Volumes!$B$4:$M$4,0),FALSE),0) -> 44 | AI108: =IFERROR(VLOOKUP($B108,Volumes!$B$39:$M$81,MATCH(AI$11,Volumes!$B$4:$M$4,0),FALSE),0) -> 44 | AJ108: =IFERROR(VLOOKUP($B108,Volumes!$B$39:$M$81,MATCH(AJ$11,Volumes!$B$4:$M$4,0),FALSE),0) -> 44 | AL108: 135.6369567 | AM108: 142.145568 | AN108: 149.0961853 | AO108: 156.1189571 | AP108: 163.6617959 | AQ108: 172.634281 | AR108: 180.2231751 | AS108: 187.8247689 | AT108: 195.974533 | AU108: 203.0661401 | AW108: 138.9600622 | AX108: 149.1960237 | AY108: 160.3254325 | AZ108: 171.9901172 | BA108: 184.7171104 | BB108: 199.6175941 | BC108: 213.4982777 | BD108: 227.9547073 | BE108: 243.6729397 | BF108: 258.6765983 | BI108: 4882.930443 | BJ108: 5401.531585 | BK108: 5963.847411 | BL108: 6556.996198 | BM108: 7201.11902 | BN108: 7595.908366 | BO108: 7929.819706 | BP108: 8264.289829 | BQ108: 8622.87945 | BR108: 8934.910165 | BU108: 5002.562239 | BV108: 5669.448902 | BW108: 6413.017299 | BX108: 7223.584922 | BY108: 8127.552859 | BZ108: 8783.174139 | CA108: 9393.924219 | CB108: 10030.00712 | CC108: 10721.60935 | CD108: 11381.77033
B109: =Inputs!$C103 -> 18W LED Decorative - Side Entry | C109: Offered | D109: =IF($C109="NA","",'Smoothed Prices'!D109+$D$7) -> 37.0592778 | E109: 38.94399124 | F109: 40.84826994 | G109: 42.77231702 | H109: 44.71633768 | I109: =IF($C109="NA","",'Smoothed Prices'!I109+$I$7) -> 47.2970633 | J109: 49.37621237 | K109: 51.45884078 | L109: 53.54495436 | M109: 55.63455894 | P109: 37.96723011 | Q109: 40.87562294 | R109: 43.92477602 | S109: 47.12058005 | T109: 50.46915585 | U109: 54.6897518 | V109: 58.49267882 | W109: 62.45334447 | X109: 66.57730594 | Y109: 70.87030091 | AA109: =IFERROR(VLOOKUP($B109,Volumes!$B$39:$H$81,MATCH(AA$11,Volumes!$B$4:$H$4,0),FALSE),0) -> 36 | AB109: =IFERROR(VLOOKUP($B109,Volumes!$B$39:$H$81,MATCH(AB$11,Volumes!$B$4:$H$4,0),FALSE),0) -> 38 | AC109: =IFERROR(VLOOKUP($B109,Volumes!$B$39:$H$81,MATCH(AC$11,Volumes!$B$4:$H$4,0),FALSE),0) -> 40 | AD109: =IFERROR(VLOOKUP($B109,Volumes!$B$39:$H$81,MATCH(AD$11,Volumes!$B$4:$H$4,0),FALSE),0) -> 42 | AE109: =IFERROR(VLOOKUP($B109,Volumes!$B$39:$H$81,MATCH(AE$11,Volumes!$B$4:$H$4,0),FALSE),0) -> 44 | AF109: =IFERROR(VLOOKUP($B109,Volumes!$B$39:$M$81,MATCH(AF$11,Volumes!$B$4:$M$4,0),FALSE),0) -> 44 | AG109: =IFERROR(VLOOKUP($B109,Volumes!$B$39:$M$81,MATCH(AG$11,Volumes!$B$4:$M$4,0),FALSE),0) -> 44 | AH109: =IFERROR(VLOOKUP($B109,Volumes!$B$39:$M$81,MATCH(AH$11,Volumes!$B$4:$M$4,0),FALSE),0) -> 44 | AI109: =IFERROR(VLOOKUP($B109,Volumes!$B$39:$M$81,MATCH(AI$11,Volumes!$B$4:$M$4,0),FALSE),0) -> 44 | AJ109: =IFERROR(VLOOKUP($B109,Volumes!$B$39:$M$81,MATCH(AJ$11,Volumes!$B$4:$M$4,0),FALSE),0) -> 44 | AL109: 135.6369567 | AM109: 142.145568 | AN109: 149.0961853 | AO109: 156.1189571 | AP109: 163.6617959 | AQ109: 172.634281 | AR109: 180.2231751 | AS109: 187.8247689 | AT109: 195.974533 | AU109: 203.0661401 | AW109: 138.9600622 | AX109: 149.1960237 | AY109: 160.3254325 | AZ109: 171.9901172 | BA109: 184.7171104 | BB109: 199.6175941 | BC109: 213.4982777 | BD109: 227.9547073 | BE109: 243.6729397 | BF109: 258.6765983 | BI109: 4882.930443 | BJ109: 5401.531585 | BK109: 5963.847411 | BL109: 6556.996198 | BM109: 7201.11902 | BN109: 7595.908366 | BO109: 7929.819706 | BP109: 8264.289829 | BQ109: 8622.87945 | BR109: 8934.910165 | BU109: 5002.562239 | BV109: 5669.448902 | BW109: 6413.017299 | BX109: 7223.584922 | BY109: 8127.552859 | BZ109: 8783.174139 | CA109: 9393.924219 | CB109: 10030.00712 | CC109: 10721.60935 | CD109: 11381.77033
B110: =Inputs!$C104 -> 18W LED Decorative - Top Entry | C110: Offered | D110: =IF($C110="NA","",'Smoothed Prices'!D110+$D$7) -> 37.0592778 | E110: 38.94399124 | F110: 40.84826994 | G110: 42.77231702 | H110: 44.71633768 | I110: =IF($C110="NA","",'Smoothed Prices'!I110+$I$7) -> 47.2970633 | J110: 49.37621237 | K110: 51.45884078 | L110: 53.54495436 | M110: 55.63455894 | P110: 37.96723011 | Q110: 40.87562294 | R110: 43.92477602 | S110: 47.12058005 | T110: 50.46915585 | U110: 54.6897518 | V110: 58.49267882 | W110: 62.45334447 | X110: 66.57730594 | Y110: 70.87030091 | AA110: =IFERROR(VLOOKUP($B110,Volumes!$B$39:$H$81,MATCH(AA$11,Volumes!$B$4:$H$4,0),FALSE),0) -> 36 | AB110: =IFERROR(VLOOKUP($B110,Volumes!$B$39:$H$81,MATCH(AB$11,Volumes!$B$4:$H$4,0),FALSE),0) -> 38 | AC110: =IFERROR(VLOOKUP($B110,Volumes!$B$39:$H$81,MATCH(AC$11,Volumes!$B$4:$H$4,0),FALSE),0) -> 40 | AD110: =IFERROR(VLOOKUP($B110,Volumes!$B$39:$H$81,MATCH(AD$11,Volumes!$B$4:$H$4,0),FALSE),0) -> 42 | AE110: =IFERROR(VLOOKUP($B110,Volumes!$B$39:$H$81,MATCH(AE$11,Volumes!$B$4:$H$4,0),FALSE),0) -> 44 | AF110: =IFERROR(VLOOKUP($B110,Volumes!$B$39:$M$81,MATCH(AF$11,Volumes!$B$4:$M$4,0),FALSE),0) -> 44 | AG110: =IFERROR(VLOOKUP($B110,Volumes!$B$39:$M$81,MATCH(AG$11,Volumes!$B$4:$M$4,0),FALSE),0) -> 44 | AH110: =IFERROR(VLOOKUP($B110,Volumes!$B$39:$M$81,MATCH(AH$11,Volumes!$B$4:$M$4,0),FALSE),0) -> 44 | AI110: =IFERROR(VLOOKUP($B110,Volumes!$B$39:$M$81,MATCH(AI$11,Volumes!$B$4:$M$4,0),FALSE),0) -> 44 | AJ110: =IFERROR(VLOOKUP($B110,Volumes!$B$39:$M$81,MATCH(AJ$11,Volumes!$B$4:$M$4,0),FALSE),0) -> 44 | AL110: 135.6369567 | AM110: 142.145568 | AN110: 149.0961853 | AO110: 156.1189571 | AP110: 163.6617959 | AQ110: 172.634281 | AR110: 180.2231751 | AS110: 187.8247689 | AT110: 195.974533 | AU110: 203.0661401 | AW110: 138.9600622 | AX110: 149.1960237 | AY110: 160.3254325 | AZ110: 171.9901172 | BA110: 184.7171104 | BB110: 199.6175941 | BC110: 213.4982777 | BD110: 227.9547073 | BE110: 243.6729397 | BF110: 258.6765983 | BI110: 4882.930443 | BJ110: 5401.531585 | BK110: 5963.847411 | BL110: 6556.996198 | BM110: 7201.11902 | BN110: 7595.908366 | BO110: 7929.819706 | BP110: 8264.289829 | BQ110: 8622.87945 | BR110: 8934.910165 | BU110: 5002.562239 | BV110: 5669.448902 | BW110: 6413.017299 | BX110: 7223.584922 | BY110: 8127.552859 | BZ110: 8783.174139 | CA110: 9393.924219 | CB110: 10030.00712 | CC110: 10721.60935 | CD110: 11381.77033
B111: =Inputs!$C105 -> 25W LED | C111: Offered | D111: =IF($C111="NA","",'Smoothed Prices'!D111+$D$7) -> 37.29858614 | E111: 39.18578385 | F111: 41.09257261 | G111: 43.01915579 | H111: 44.9657389 | I111: =IF($C111="NA","",'Smoothed Prices'!I111+$I$7) -> 47.54646452 | J111: 49.62603095 | K111: 51.70907742 | L111: 53.79560975 | M111: 55.88563379 | P111: 38.2124015 | Q111: 41.12940852 | R111: 44.18747845 | S111: 47.39251263 | T111: 50.75064288 | U111: 54.97813526 | V111: 58.7886221 | W111: 62.75704574 | X111: 66.88896856 | Y111: 71.19013359 | AA111: =IFERROR(VLOOKUP($B111,Volumes!$B$39:$H$81,MATCH(AA$11,Volumes!$B$4:$H$4,0),FALSE),0) -> 21 | AB111: =IFERROR(VLOOKUP($B111,Volumes!$B$39:$H$81,MATCH(AB$11,Volumes!$B$4:$H$4,0),FALSE),0) -> 21 | AC111: =IFERROR(VLOOKUP($B111,Volumes!$B$39:$H$81,MATCH(AC$11,Volumes!$B$4:$H$4,0),FALSE),0) -> 21 | AD111: =IFERROR(VLOOKUP($B111,Volumes!$B$39:$H$81,MATCH(AD$11,Volumes!$B$4:$H$4,0),FALSE),0) -> 21 | AE111: =IFERROR(VLOOKUP($B111,Volumes!$B$39:$H$81,MATCH(AE$11,Volumes!$B$4:$H$4,0),FALSE),0) -> 21 | AF111: =IFERROR(VLOOKUP($B111,Volumes!$B$39:$M$81,MATCH(AF$11,Volumes!$B$4:$M$4,0),FALSE),0) -> 21 | AG111: =IFERROR(VLOOKUP($B111,Volumes!$B$39:$M$81,MATCH(AG$11,Volumes!$B$4:$M$4,0),FALSE),0) -> 21 | AH111: =IFERROR(VLOOKUP($B111,Volumes!$B$39:$M$81,MATCH(AH$11,Volumes!$B$4:$M$4,0),FALSE),0) -> 21 | AI111: =IFERROR(VLOOKUP($B111,Volumes!$B$39:$M$81,MATCH(AI$11,Volumes!$B$4:$M$4,0),FALSE),0) -> 21 | AJ111: =IFERROR(VLOOKUP($B111,Volumes!$B$39:$M$81,MATCH(AJ$11,Volumes!$B$4:$M$4,0),FALSE),0) -> 21 | AL111: 136.5128253 | AM111: 143.028111 | AN111: 149.98789 | AO111: 157.0199186 | AP111: 164.5746044 | AQ111: 173.5445955 | AR111: 181.135013 | AS111: 188.7381326 | AT111: 196.8919317 | AU111: 203.9825633 | AW111: 139.8573895 | AX111: 150.1223411 | AY111: 161.2842964 | AZ111: 172.9826711 | BA111: 185.7473529 | BB111: 200.6701937 | BC111: 214.5784707 | BD111: 229.0632169 | BE111: 244.8136249 | BF111: 259.8439876 | BI111: 2866.769331 | BJ111: 3003.590332 | BK111: 3149.74569 | BL111: 3297.418292 | BM111: 3456.066692 | BN111: 3644.436505 | BO111: 3803.835272 | BP111: 3963.500784 | BQ111: 4134.730566 | BR111: 4283.63383 | BU111: 2937.005179 | BV111: 3152.569163 | BW111: 3386.970224 | BX111: 3632.636093 | BY111: 3900.694412 | BZ111: 4214.074068 | CA111: 4506.147884 | CB111: 4810.327556 | CC111: 5141.086123 | CD111: 5456.72374
B112: =Inputs!$C106 -> 25W LED Decorative - Bottom Pole Entry | C112: Offered | D112: =IF($C112="NA","",'Smoothed Prices'!D112+$D$7) -> 37.29858614 | E112: 39.18578385 | F112: 41.09257261 | G112: 43.01915579 | H112: 44.9657389 | I112: =IF($C112="NA","",'Smoothed Prices'!I112+$I$7) -> 47.54646452 | J112: 49.62603095 | K112: 51.70907742 | L112: 53.79560975 | M112: 55.88563379 | P112: 38.2124015 | Q112: 41.12940852 | R112: 44.18747845 | S112: 47.39251263 | T112: 50.75064288 | U112: 54.97813526 | V112: 58.7886221 | W112: 62.75704574 | X112: 66.88896856 | Y112: 71.19013359 | AA112: =IFERROR(VLOOKUP($B112,Volumes!$B$39:$H$81,MATCH(AA$11,Volumes!$B$4:$H$4,0),FALSE),0) -> 36 | AB112: =IFERROR(VLOOKUP($B112,Volumes!$B$39:$H$81,MATCH(AB$11,Volumes!$B$4:$H$4,0),FALSE),0) -> 38 | AC112: =IFERROR(VLOOKUP($B112,Volumes!$B$39:$H$81,MATCH(AC$11,Volumes!$B$4:$H$4,0),FALSE),0) -> 40 | AD112: =IFERROR(VLOOKUP($B112,Volumes!$B$39:$H$81,MATCH(AD$11,Volumes!$B$4:$H$4,0),FALSE),0) -> 42 | AE112: =IFERROR(VLOOKUP($B112,Volumes!$B$39:$H$81,MATCH(AE$11,Volumes!$B$4:$H$4,0),FALSE),0) -> 44 | AF112: =IFERROR(VLOOKUP($B112,Volumes!$B$39:$M$81,MATCH(AF$11,Volumes!$B$4:$M$4,0),FALSE),0) -> 44 | AG112: =IFERROR(VLOOKUP($B112,Volumes!$B$39:$M$81,MATCH(AG$11,Volumes!$B$4:$M$4,0),FALSE),0) -> 44 | AH112: =IFERROR(VLOOKUP($B112,Volumes!$B$39:$M$81,MATCH(AH$11,Volumes!$B$4:$M$4,0),FALSE),0) -> 44 | AI112: =IFERROR(VLOOKUP($B112,Volumes!$B$39:$M$81,MATCH(AI$11,Volumes!$B$4:$M$4,0),FALSE),0) -> 44 | AJ112: =IFERROR(VLOOKUP($B112,Volumes!$B$39:$M$81,MATCH(AJ$11,Volumes!$B$4:$M$4,0),FALSE),0) -> 44 | AL112: 136.5128253 | AM112: 143.028111 | AN112: 149.98789 | AO112: 157.0199186 | AP112: 164.5746044 | AQ112: 173.5445955 | AR112: 181.135013 | AS112: 188.7381326 | AT112: 196.8919317 | AU112: 203.9825633 | AW112: 139.8573895 | AX112: 150.1223411 | AY112: 161.2842964 | AZ112: 172.9826711 | BA112: 185.7473529 | BB112: 200.6701937 | BC112: 214.5784707 | BD112: 229.0632169 | BE112: 244.8136249 | BF112: 259.8439876 | BI112: 4914.46171 | BJ112: 5435.06822 | BK112: 5999.5156 | BL112: 6594.836583 | BM112: 7241.282592 | BN112: 7635.962202 | BO112: 7969.94057 | BP112: 8304.477833 | BQ112: 8663.244995 | BR112: 8975.232786 | BU112: 5034.866022 | BV112: 5704.648962 | BW112: 6451.371854 | BX112: 7265.272186 | BY112: 8172.88353 | BZ112: 8829.488523 | CA112: 9441.452709 | CB112: 10078.78155 | CC112: 10771.7995 | CD112: 11433.13546
B113: =Inputs!$C107 -> 25W LED Decorative - Side Entry | C113: Offered | D113: =IF($C113="NA","",'Smoothed Prices'!D113+$D$7) -> 37.29858614 | E113: 39.18578385 | F113: 41.09257261 | G113: 43.01915579 | H113: 44.9657389 | I113: =IF($C113="NA","",'Smoothed Prices'!I113+$I$7) -> 47.54646452 | J113: 49.62603095 | K113: 51.70907742 | L113: 53.79560975 | M113: 55.88563379 | P113: 38.2124015 | Q113: 41.12940852 | R113: 44.18747845 | S113: 47.39251263 | T113: 50.75064288 | U113: 54.97813526 | V113: 58.7886221 | W113: 62.75704574 | X113: 66.88896856 | Y113: 71.19013359 | AA113: =IFERROR(VLOOKUP($B113,Volumes!$B$39:$H$81,MATCH(AA$11,Volumes!$B$4:$H$4,0),FALSE),0) -> 36 | AB113: =IFERROR(VLOOKUP($B113,Volumes!$B$39:$H$81,MATCH(AB$11,Volumes!$B$4:$H$4,0),FALSE),0) -> 38 | AC113: =IFERROR(VLOOKUP($B113,Volumes!$B$39:$H$81,MATCH(AC$11,Volumes!$B$4:$H$4,0),FALSE),0) -> 40 | AD113: =IFERROR(VLOOKUP($B113,Volumes!$B$39:$H$81,MATCH(AD$11,Volumes!$B$4:$H$4,0),FALSE),0) -> 42 | AE113: =IFERROR(VLOOKUP($B113,Volumes!$B$39:$H$81,MATCH(AE$11,Volumes!$B$4:$H$4,0),FALSE),0) -> 44 | AF113: =IFERROR(VLOOKUP($B113,Volumes!$B$39:$M$81,MATCH(AF$11,Volumes!$B$4:$M$4,0),FALSE),0) -> 44 | AG113: =IFERROR(VLOOKUP($B113,Volumes!$B$39:$M$81,MATCH(AG$11,Volumes!$B$4:$M$4,0),FALSE),0) -> 44 | AH113: =IFERROR(VLOOKUP($B113,Volumes!$B$39:$M$81,MATCH(AH$11,Volumes!$B$4:$M$4,0),FALSE),0) -> 44 | AI113: =IFERROR(VLOOKUP($B113,Volumes!$B$39:$M$81,MATCH(AI$11,Volumes!$B$4:$M$4,0),FALSE),0) -> 44 | AJ113: =IFERROR(VLOOKUP($B113,Volumes!$B$39:$M$81,MATCH(AJ$11,Volumes!$B$4:$M$4,0),FALSE),0) -> 44 | AL113: 136.5128253 | AM113: 143.028111 | AN113: 149.98789 | AO113: 157.0199186 | AP113: 164.5746044 | AQ113: 173.5445955 | AR113: 181.135013 | AS113: 188.7381326 | AT113: 196.8919317 | AU113: 203.9825633 | AW113: 139.8573895 | AX113: 150.1223411 | AY113: 161.2842964 | AZ113: 172.9826711 | BA113: 185.7473529 | BB113: 200.6701937 | BC113: 214.5784707 | BD113: 229.0632169 | BE113: 244.8136249 | BF113: 259.8439876 | BI113: 4914.46171 | BJ113: 5435.06822 | BK113: 5999.5156 | BL113: 6594.836583 | BM113: 7241.282592 | BN113: 7635.962202 | BO113: 7969.94057 | BP113: 8304.477833 | BQ113: 8663.244995 | BR113: 8975.232786 | BU113: 5034.866022 | BV113: 5704.648962 | BW113: 6451.371854 | BX113: 7265.272186 | BY113: 8172.88353 | BZ113: 8829.488523 | CA113: 9441.452709 | CB113: 10078.78155 | CC113: 10771.7995 | CD113: 11433.13546
B114: =Inputs!$C108 -> 25W LED Decorative - Top Entry | C114: Offered | D114: =IF($C114="NA","",'Smoothed Prices'!D114+$D$7) -> 37.29858614 | E114: 39.18578385 | F114: 41.09257261 | G114: 43.01915579 | H114: 44.9657389 | I114: =IF($C114="NA","",'Smoothed Prices'!I114+$I$7) -> 47.54646452 | J114: 49.62603095 | K114: 51.70907742 | L114: 53.79560975 | M114: 55.88563379 | P114: 38.2124015 | Q114: 41.12940852 | R114: 44.18747845 | S114: 47.39251263 | T114: 50.75064288 | U114: 54.97813526 | V114: 58.7886221 | W114: 62.75704574 | X114: 66.88896856 | Y114: 71.19013359 | AA114: =IFERROR(VLOOKUP($B114,Volumes!$B$39:$H$81,MATCH(AA$11,Volumes!$B$4:$H$4,0),FALSE),0) -> 36 | AB114: =IFERROR(VLOOKUP($B114,Volumes!$B$39:$H$81,MATCH(AB$11,Volumes!$B$4:$H$4,0),FALSE),0) -> 38 | AC114: =IFERROR(VLOOKUP($B114,Volumes!$B$39:$H$81,MATCH(AC$11,Volumes!$B$4:$H$4,0),FALSE),0) -> 40 | AD114: =IFERROR(VLOOKUP($B114,Volumes!$B$39:$H$81,MATCH(AD$11,Volumes!$B$4:$H$4,0),FALSE),0) -> 42 | AE114: =IFERROR(VLOOKUP($B114,Volumes!$B$39:$H$81,MATCH(AE$11,Volumes!$B$4:$H$4,0),FALSE),0) -> 44 | AF114: =IFERROR(VLOOKUP($B114,Volumes!$B$39:$M$81,MATCH(AF$11,Volumes!$B$4:$M$4,0),FALSE),0) -> 44 | AG114: =IFERROR(VLOOKUP($B114,Volumes!$B$39:$M$81,MATCH(AG$11,Volumes!$B$4:$M$4,0),FALSE),0) -> 44 | AH114: =IFERROR(VLOOKUP($B114,Volumes!$B$39:$M$81,MATCH(AH$11,Volumes!$B$4:$M$4,0),FALSE),0) -> 44 | AI114: =IFERROR(VLOOKUP($B114,Volumes!$B$39:$M$81,MATCH(AI$11,Volumes!$B$4:$M$4,0),FALSE),0) -> 44 | AJ114: =IFERROR(VLOOKUP($B114,Volumes!$B$39:$M$81,MATCH(AJ$11,Volumes!$B$4:$M$4,0),FALSE),0) -> 44 | AL114: 136.5128253 | AM114: 143.028111 | AN114: 149.98789 | AO114: 157.0199186 | AP114: 164.5746044 | AQ114: 173.5445955 | AR114: 181.135013 | AS114: 188.7381326 | AT114: 196.8919317 | AU114: 203.9825633 | AW114: 139.8573895 | AX114: 150.1223411 | AY114: 161.2842964 | AZ114: 172.9826711 | BA114: 185.7473529 | BB114: 200.6701937 | BC114: 214.5784707 | BD114: 229.0632169 | BE114: 244.8136249 | BF114: 259.8439876 | BI114: 4914.46171 | BJ114: 5435.06822 | BK114: 5999.5156 | BL114: 6594.836583 | BM114: 7241.282592 | BN114: 7635.962202 | BO114: 7969.94057 | BP114: 8304.477833 | BQ114: 8663.244995 | BR114: 8975.232786 | BU114: 5034.866022 | BV114: 5704.648962 | BW114: 6451.371854 | BX114: 7265.272186 | BY114: 8172.88353 | BZ114: 8829.488523 | CA114: 9441.452709 | CB114: 10078.78155 | CC114: 10771.7995 | CD114: 11433.13546
B115: =Inputs!$C109 -> 30W LED | C115: Not Offered | D115: =IF($C115="NA","",'Smoothed Prices'!D115+$D$7) -> 37.29858614 | E115: 39.18578385 | F115: 41.09257261 | G115: 43.01915579 | H115: 44.9657389 | I115: =IF($C115="NA","",'Smoothed Prices'!I115+$I$7) -> 47.54646452 | J115: 49.62603095 | K115: 51.70907742 | L115: 53.79560975 | M115: 55.88563379 | P115: 38.2124015 | Q115: 41.12940852 | R115: 44.18747845 | S115: 47.39251263 | T115: 50.75064288 | U115: 54.97813526 | V115: 58.7886221 | W115: 62.75704574 | X115: 66.88896856 | Y115: 71.19013359 | AA115: =IFERROR(VLOOKUP($B115,Volumes!$B$39:$H$81,MATCH(AA$11,Volumes!$B$4:$H$4,0),FALSE),0) -> 0 | AB115: =IFERROR(VLOOKUP($B115,Volumes!$B$39:$H$81,MATCH(AB$11,Volumes!$B$4:$H$4,0),FALSE),0) -> 0 | AC115: =IFERROR(VLOOKUP($B115,Volumes!$B$39:$H$81,MATCH(AC$11,Volumes!$B$4:$H$4,0),FALSE),0) -> 0 | AD115: =IFERROR(VLOOKUP($B115,Volumes!$B$39:$H$81,MATCH(AD$11,Volumes!$B$4:$H$4,0),FALSE),0) -> 0 | AE115: =IFERROR(VLOOKUP($B115,Volumes!$B$39:$H$81,MATCH(AE$11,Volumes!$B$4:$H$4,0),FALSE),0) -> 0 | AF115: =IFERROR(VLOOKUP($B115,Volumes!$B$39:$M$81,MATCH(AF$11,Volumes!$B$4:$M$4,0),FALSE),0) -> 0 | AG115: =IFERROR(VLOOKUP($B115,Volumes!$B$39:$M$81,MATCH(AG$11,Volumes!$B$4:$M$4,0),FALSE),0) -> 0 | AH115: =IFERROR(VLOOKUP($B115,Volumes!$B$39:$M$81,MATCH(AH$11,Volumes!$B$4:$M$4,0),FALSE),0) -> 0 | AI115: =IFERROR(VLOOKUP($B115,Volumes!$B$39:$M$81,MATCH(AI$11,Volumes!$B$4:$M$4,0),FALSE),0) -> 0 | AJ115: =IFERROR(VLOOKUP($B115,Volumes!$B$39:$M$81,MATCH(AJ$11,Volumes!$B$4:$M$4,0),FALSE),0) -> 0 | AL115: 136.5128253 | AM115: 143.028111 | AN115: 149.98789 | AO115: 157.0199186 | AP115: 164.5746044 | AQ115: 173.5445955 | AR115: 181.135013 | AS115: 188.7381326 | AT115: 196.8919317 | AU115: 203.9825633 | AW115: 139.8573895 | AX115: 150.1223411 | AY115: 161.2842964 | AZ115: 172.9826711 | BA115: 185.7473529 | BB115: 200.6701937 | BC115: 214.5784707 | BD115: 229.0632169 | BE115: 244.8136249 | BF115: 259.8439876 | BI115: 0 | BJ115: 0 | BK115: 0 | BL115: 0 | BM115: 0 | BN115: 0 | BO115: 0 | BP115: 0 | BQ115: 0 | BR115: 0 | BU115: 0 | BV115: 0 | BW115: 0 | BX115: 0 | BY115: 0 | BZ115: 0 | CA115: 0 | CB115: 0 | CC115: 0 | CD115: 0
B116: =Inputs!$C110 -> 88 LED Light | C116: Not Offered | D116: =IF($C116="NA","",'Smoothed Prices'!D116+$D$7) -> 37.29858614 | E116: 39.18578385 | F116: 41.09257261 | G116: 43.01915579 | H116: 44.9657389 | I116: =IF($C116="NA","",'Smoothed Prices'!I116+$I$7) -> 47.54646452 | J116: 49.62603095 | K116: 51.70907742 | L116: 53.79560975 | M116: 55.88563379 | P116: 38.2124015 | Q116: 41.12940852 | R116: 44.18747845 | S116: 47.39251263 | T116: 50.75064288 | U116: 54.97813526 | V116: 58.7886221 | W116: 62.75704574 | X116: 66.88896856 | Y116: 71.19013359 | AA116: =IFERROR(VLOOKUP($B116,Volumes!$B$39:$H$81,MATCH(AA$11,Volumes!$B$4:$H$4,0),FALSE),0) -> 0 | AB116: =IFERROR(VLOOKUP($B116,Volumes!$B$39:$H$81,MATCH(AB$11,Volumes!$B$4:$H$4,0),FALSE),0) -> 0 | AC116: =IFERROR(VLOOKUP($B116,Volumes!$B$39:$H$81,MATCH(AC$11,Volumes!$B$4:$H$4,0),FALSE),0) -> 0 | AD116: =IFERROR(VLOOKUP($B116,Volumes!$B$39:$H$81,MATCH(AD$11,Volumes!$B$4:$H$4,0),FALSE),0) -> 0 | AE116: =IFERROR(VLOOKUP($B116,Volumes!$B$39:$H$81,MATCH(AE$11,Volumes!$B$4:$H$4,0),FALSE),0) -> 0 | AF116: =IFERROR(VLOOKUP($B116,Volumes!$B$39:$M$81,MATCH(AF$11,Volumes!$B$4:$M$4,0),FALSE),0) -> 0 | AG116: =IFERROR(VLOOKUP($B116,Volumes!$B$39:$M$81,MATCH(AG$11,Volumes!$B$4:$M$4,0),FALSE),0) -> 0 | AH116: =IFERROR(VLOOKUP($B116,Volumes!$B$39:$M$81,MATCH(AH$11,Volumes!$B$4:$M$4,0),FALSE),0) -> 0 | AI116: =IFERROR(VLOOKUP($B116,Volumes!$B$39:$M$81,MATCH(AI$11,Volumes!$B$4:$M$4,0),FALSE),0) -> 0 | AJ116: =IFERROR(VLOOKUP($B116,Volumes!$B$39:$M$81,MATCH(AJ$11,Volumes!$B$4:$M$4,0),FALSE),0) -> 0 | AL116: 136.5128253 | AM116: 143.028111 | AN116: 149.98789 | AO116: 157.0199186 | AP116: 164.5746044 | AQ116: 173.5445955 | AR116: 181.135013 | AS116: 188.7381326 | AT116: 196.8919317 | AU116: 203.9825633 | AW116: 139.8573895 | AX116: 150.1223411 | AY116: 161.2842964 | AZ116: 172.9826711 | BA116: 185.7473529 | BB116: 200.6701937 | BC116: 214.5784707 | BD116: 229.0632169 | BE116: 244.8136249 | BF116: 259.8439876 | BI116: 0 | BJ116: 0 | BK116: 0 | BL116: 0 | BM116: 0 | BN116: 0 | BO116: 0 | BP116: 0 | BQ116: 0 | BR116: 0 | BU116: 0 | BV116: 0 | BW116: 0 | BX116: 0 | BY116: 0 | BZ116: 0 | CA116: 0 | CB116: 0 | CC116: 0 | CD116: 0
B117: =Inputs!$C111 -> 100W Metal Halide | C117: Offered | D117: =IF($C117="NA","",'Smoothed Prices'!D117+$D$7) -> 46.06167979 | E117: 48.03984743 | F117: 50.03855048 | G117: 52.05800212 | H117: 54.09841775 | I117: =IF($C117="NA","",'Smoothed Prices'!I117+$I$7) -> 56.67914337 | J117: 58.77399284 | K117: 60.87234793 | L117: 62.97421451 | M117: 65.07959844 | P117: 47.19019095 | Q117: 50.42263587 | R117: 53.80722673 | S117: 57.35025427 | T117: 61.0582534 | U117: 65.53828223 | V117: 69.62559746 | W117: 73.8781064 | X117: 78.30156166 | Y117: 82.90190149 | AA117: =IFERROR(VLOOKUP($B117,Volumes!$B$39:$H$81,MATCH(AA$11,Volumes!$B$4:$H$4,0),FALSE),0) -> 18 | AB117: =IFERROR(VLOOKUP($B117,Volumes!$B$39:$H$81,MATCH(AB$11,Volumes!$B$4:$H$4,0),FALSE),0) -> 19 | AC117: =IFERROR(VLOOKUP($B117,Volumes!$B$39:$H$81,MATCH(AC$11,Volumes!$B$4:$H$4,0),FALSE),0) -> 20 | AD117: =IFERROR(VLOOKUP($B117,Volumes!$B$39:$H$81,MATCH(AD$11,Volumes!$B$4:$H$4,0),FALSE),0) -> 21 | AE117: =IFERROR(VLOOKUP($B117,Volumes!$B$39:$H$81,MATCH(AE$11,Volumes!$B$4:$H$4,0),FALSE),0) -> 22 | AF117: =IFERROR(VLOOKUP($B117,Volumes!$B$39:$M$81,MATCH(AF$11,Volumes!$B$4:$M$4,0),FALSE),0) -> 22 | AG117: =IFERROR(VLOOKUP($B117,Volumes!$B$39:$M$81,MATCH(AG$11,Volumes!$B$4:$M$4,0),FALSE),0) -> 22 | AH117: =IFERROR(VLOOKUP($B117,Volumes!$B$39:$M$81,MATCH(AH$11,Volumes!$B$4:$M$4,0),FALSE),0) -> 22 | AI117: =IFERROR(VLOOKUP($B117,Volumes!$B$39:$M$81,MATCH(AI$11,Volumes!$B$4:$M$4,0),FALSE),0) -> 22 | AJ117: =IFERROR(VLOOKUP($B117,Volumes!$B$39:$M$81,MATCH(AJ$11,Volumes!$B$4:$M$4,0),FALSE),0) -> 22 | AL117: 168.585748 | AM117: 175.3454431 | AN117: 182.6407092 | AO117: 190.0117077 | AP117: 198.000209 | AQ117: 206.8788733 | AR117: 214.5250739 | AS117: 222.18407 | AT117: 230.4856251 | AU117: 237.5405343 | AW117: 172.7160989 | AX117: 184.0426209 | AY117: 196.3963776 | AZ117: 209.3284281 | BA117: 223.4732074 | BB117: 239.2147302 | BC117: 254.1334307 | BD117: 269.6550884 | BE117: 286.5837157 | BF117: 302.5919404 | BI117: 3034.543465 | BJ117: 3331.563419 | BK117: 3652.814185 | BL117: 3990.245863 | BM117: 4356.004597 | BN117: 4551.335213 | BO117: 4719.551625 | BP117: 4888.049539 | BQ117: 5070.683752 | BR117: 5225.891755 | BU117: 3108.88978 | BV117: 3496.809798 | BW117: 3927.927551 | BX117: 4395.89699 | BY117: 4916.410564 | BZ117: 5262.724063 | CA117: 5590.935476 | CB117: 5932.411944 | CC117: 6304.841745 | CD117: 6657.022689
B118: =Inputs!$C112 -> 150W Metal Halide | C118: Offered | D118: =IF($C118="NA","",'Smoothed Prices'!D118+$D$7) -> 48.92288393 | E118: 50.9307538 | F118: 52.95946744 | G118: 55.0092412 | H118: 57.08029373 | I118: =IF($C118="NA","",'Smoothed Prices'!I118+$I$7) -> 59.66101935 | J118: 61.76085883 | K118: 63.86421228 | L118: 65.97108557 | M118: 68.08148461 | P118: 50.12149458 | Q118: 53.45693193 | R118: 56.94813388 | S118: 60.60151834 | T118: 64.42375181 | U118: 68.98623536 | V118: 73.16393677 | W118: 77.50920131 | X118: 82.0278437 | Y118: 86.72586595 | AA118: =IFERROR(VLOOKUP($B118,Volumes!$B$39:$H$81,MATCH(AA$11,Volumes!$B$4:$H$4,0),FALSE),0) -> 15 | AB118: =IFERROR(VLOOKUP($B118,Volumes!$B$39:$H$81,MATCH(AB$11,Volumes!$B$4:$H$4,0),FALSE),0) -> 15 | AC118: =IFERROR(VLOOKUP($B118,Volumes!$B$39:$H$81,MATCH(AC$11,Volumes!$B$4:$H$4,0),FALSE),0) -> 15 | AD118: =IFERROR(VLOOKUP($B118,Volumes!$B$39:$H$81,MATCH(AD$11,Volumes!$B$4:$H$4,0),FALSE),0) -> 16 | AE118: =IFERROR(VLOOKUP($B118,Volumes!$B$39:$H$81,MATCH(AE$11,Volumes!$B$4:$H$4,0),FALSE),0) -> 16 | AF118: =IFERROR(VLOOKUP($B118,Volumes!$B$39:$M$81,MATCH(AF$11,Volumes!$B$4:$M$4,0),FALSE),0) -> 16 | AG118: =IFERROR(VLOOKUP($B118,Volumes!$B$39:$M$81,MATCH(AG$11,Volumes!$B$4:$M$4,0),FALSE),0) -> 16 | AH118: =IFERROR(VLOOKUP($B118,Volumes!$B$39:$M$81,MATCH(AH$11,Volumes!$B$4:$M$4,0),FALSE),0) -> 16 | AI118: =IFERROR(VLOOKUP($B118,Volumes!$B$39:$M$81,MATCH(AI$11,Volumes!$B$4:$M$4,0),FALSE),0) -> 16 | AJ118: =IFERROR(VLOOKUP($B118,Volumes!$B$39:$M$81,MATCH(AJ$11,Volumes!$B$4:$M$4,0),FALSE),0) -> 16 | AL118: 179.0577552 | AM118: 185.8972514 | AN118: 193.3020561 | AO118: 200.7837304 | AP118: 208.9138751 | AQ118: 217.7627206 | AR118: 225.4271347 | AS118: 233.1043748 | AT118: 241.4541732 | AU118: 248.4974188 | AW118: 183.4446702 | AX118: 195.1178015 | AY118: 207.8606887 | AZ118: 221.1955419 | BA118: 235.7909316 | BB118: 251.7997591 | BC118: 267.0483692 | BD118: 282.9085848 | BE118: 300.2219079 | BF118: 316.5494107 | BI118: 2685.866328 | BJ118: 2788.458771 | BK118: 2899.530842 | BL118: 3212.539686 | BM118: 3342.622001 | BN118: 3484.20353 | BO118: 3606.834156 | BP118: 3729.669997 | BQ118: 3863.266771 | BR118: 3975.958701 | BU118: 2751.670053 | BV118: 2926.767023 | BW118: 3117.91033 | BX118: 3539.128671 | BY118: 3772.654906 | BZ118: 4028.796145 | CA118: 4272.773907 | CB118: 4526.537356 | CC118: 4803.550527 | CD118: 5064.790571
B119: =Inputs!$C113 -> 250W Metal Halide | C119: Offered | D119: =IF($C119="NA","",'Smoothed Prices'!D119+$D$7) -> 49.90320845 | E119: 51.92125511 | F119: 53.96025116 | G119: 56.0204141 | H119: 58.10196364 | I119: =IF($C119="NA","",'Smoothed Prices'!I119+$I$7) -> 60.68268926 | J119: 62.78423845 | K119: 64.88930447 | L119: 66.9978932 | M119: 69.11001054 | P119: 51.12583706 | Q119: 54.49656234 | R119: 58.02429209 | S119: 61.71548776 | T119: 65.57686095 | U119: 70.16759568 | V119: 74.37626579 | W119: 78.75331086 | X119: 83.3045669 | Y119: 88.03605773 | AA119: =IFERROR(VLOOKUP($B119,Volumes!$B$39:$H$81,MATCH(AA$11,Volumes!$B$4:$H$4,0),FALSE),0) -> 91 | AB119: =IFERROR(VLOOKUP($B119,Volumes!$B$39:$H$81,MATCH(AB$11,Volumes!$B$4:$H$4,0),FALSE),0) -> 93 | AC119: =IFERROR(VLOOKUP($B119,Volumes!$B$39:$H$81,MATCH(AC$11,Volumes!$B$4:$H$4,0),FALSE),0) -> 95 | AD119: =IFERROR(VLOOKUP($B119,Volumes!$B$39:$H$81,MATCH(AD$11,Volumes!$B$4:$H$4,0),FALSE),0) -> 97 | AE119: =IFERROR(VLOOKUP($B119,Volumes!$B$39:$H$81,MATCH(AE$11,Volumes!$B$4:$H$4,0),FALSE),0) -> 99 | AF119: =IFERROR(VLOOKUP($B119,Volumes!$B$39:$M$81,MATCH(AF$11,Volumes!$B$4:$M$4,0),FALSE),0) -> 99 | AG119: =IFERROR(VLOOKUP($B119,Volumes!$B$39:$M$81,MATCH(AG$11,Volumes!$B$4:$M$4,0),FALSE),0) -> 99 | AH119: =IFERROR(VLOOKUP($B119,Volumes!$B$39:$M$81,MATCH(AH$11,Volumes!$B$4:$M$4,0),FALSE),0) -> 99 | AI119: =IFERROR(VLOOKUP($B119,Volumes!$B$39:$M$81,MATCH(AI$11,Volumes!$B$4:$M$4,0),FALSE),0) -> 99 | AJ119: =IFERROR(VLOOKUP($B119,Volumes!$B$39:$M$81,MATCH(AJ$11,Volumes!$B$4:$M$4,0),FALSE),0) -> 99 | AL119: 182.6457429 | AM119: 189.5125811 | AN119: 196.9549167 | AO119: 204.4745115 | AP119: 212.6531869 | AQ119: 221.4918158 | AR119: 229.1624703 | AS119: 236.8459613 | AT119: 245.2122891 | AU119: 252.2515385 | AW119: 187.1205636 | AX119: 198.9124525 | AY119: 211.7886661 | AZ119: 225.2615303 | BA119: 240.0113111 | BB119: 256.1117242 | BC119: 271.4733701 | BD119: 287.4495846 | BE119: 304.8947148 | BF119: 321.3316107 | BI119: 16620.76261 | BJ119: 17624.67005 | BK119: 18710.71709 | BL119: 19834.02761 | BM119: 21052.66551 | BN119: 21927.68976 | BO119: 22687.08456 | BP119: 23447.75017 | BQ119: 24276.01662 | BR119: 24972.90231 | BU119: 17027.97129 | BV119: 18498.85809 | BW119: 20119.92328 | BX119: 21850.36844 | BY119: 23761.1198 | BZ119: 25355.0607 | CA119: 26875.86364 | CB119: 28457.50888 | CC119: 30184.57677 | CD119: 31811.82946
B120: =Inputs!$C114 -> 400W Metal Halide | C120: Not Offered | D120: =IF($C120="NA","",'Smoothed Prices'!D120+$D$7) -> 54.7471032 | E120: 56.81543446 | F120: 58.90523714 | G120: 61.01673411 | H120: 63.1501506 | I120: =IF($C120="NA","",'Smoothed Prices'!I120+$I$7) -> 65.73087622 | J120: 67.84087327 | K120: 69.9544013 | L120: 72.07146619 | M120: 74.19207388 | P120: 56.08840722 | Q120: 59.63349422 | R120: 63.34171194 | S120: 67.21973709 | T120: 71.27450409 | U120: 76.00483107 | V120: 80.36652107 | W120: 84.90059736 | X120: 89.6130011 | Y120: 94.50986404 | AA120: =IFERROR(VLOOKUP($B120,Volumes!$B$39:$H$81,MATCH(AA$11,Volumes!$B$4:$H$4,0),FALSE),0) -> 18 | AB120: =IFERROR(VLOOKUP($B120,Volumes!$B$39:$H$81,MATCH(AB$11,Volumes!$B$4:$H$4,0),FALSE),0) -> 19 | AC120: =IFERROR(VLOOKUP($B120,Volumes!$B$39:$H$81,MATCH(AC$11,Volumes!$B$4:$H$4,0),FALSE),0) -> 20 | AD120: =IFERROR(VLOOKUP($B120,Volumes!$B$39:$H$81,MATCH(AD$11,Volumes!$B$4:$H$4,0),FALSE),0) -> 21 | AE120: =IFERROR(VLOOKUP($B120,Volumes!$B$39:$H$81,MATCH(AE$11,Volumes!$B$4:$H$4,0),FALSE),0) -> 22 | AF120: =IFERROR(VLOOKUP($B120,Volumes!$B$39:$M$81,MATCH(AF$11,Volumes!$B$4:$M$4,0),FALSE),0) -> 22 | AG120: =IFERROR(VLOOKUP($B120,Volumes!$B$39:$M$81,MATCH(AG$11,Volumes!$B$4:$M$4,0),FALSE),0) -> 22 | AH120: =IFERROR(VLOOKUP($B120,Volumes!$B$39:$M$81,MATCH(AH$11,Volumes!$B$4:$M$4,0),FALSE),0) -> 22 | AI120: =IFERROR(VLOOKUP($B120,Volumes!$B$39:$M$81,MATCH(AI$11,Volumes!$B$4:$M$4,0),FALSE),0) -> 22 | AJ120: =IFERROR(VLOOKUP($B120,Volumes!$B$39:$M$81,MATCH(AJ$11,Volumes!$B$4:$M$4,0),FALSE),0) -> 22 | AL120: 200.3743977 | AM120: 207.3763358 | AN120: 215.0041155 | AO120: 222.7110795 | AP120: 231.1295512 | AQ120: 239.9176982 | AR120: 247.6191875 | AS120: 255.3335647 | AT120: 263.7815663 | AU120: 270.8010697 | AW120: 205.2835704 | AX120: 217.6622539 | AY120: 231.1972486 | AZ120: 245.3520404 | BA120: 260.864685 | BB120: 277.4176334 | BC120: 293.3378019 | BD120: 309.8871804 | BE120: 327.983584 | BF120: 344.9610037 | BI120: 3606.739159 | BJ120: 3940.15038 | BK120: 4300.082311 | BL120: 4676.93267 | BM120: 5084.850126 | BN120: 5278.18936 | BO120: 5447.622124 | BP120: 5617.338424 | BQ120: 5803.194458 | BR120: 5957.623533 | BU120: 3695.104268 | BV120: 4135.582824 | BW120: 4623.944972 | BX120: 5152.392848 | BY120: 5739.023069 | BZ120: 6103.187935 | CA120: 6453.431642 | CB120: 6817.517968 | CC120: 7215.638848 | CD120: 7589.142082
B121: =Inputs!$C115 -> 70W Metal Halide | C121: Old light no volumes | D121: =IF($C121="NA","",'Smoothed Prices'!D121+$D$7) -> 37.91574976 | E121: 39.80935426 | F121: 41.72261632 | G121: 43.65574001 | H121: 45.60893152 | I121: =IF($C121="NA","",'Smoothed Prices'!I121+$I$7) -> 48.18965714 | J121: 50.27029991 | K121: 52.35442453 | L121: 54.44203682 | M121: 56.53314262 | P121: 38.84468563 | Q121: 41.78390818 | R121: 44.8649742 | S121: 48.09381244 | T121: 51.47658311 | U121: 55.72186103 | V121: 59.55184422 | W121: 63.54027531 | X121: 67.69273005 | Y121: 72.01496525 | AA121: =IFERROR(VLOOKUP($B121,Volumes!$B$39:$H$81,MATCH(AA$11,Volumes!$B$4:$H$4,0),FALSE),0) -> 0 | AB121: =IFERROR(VLOOKUP($B121,Volumes!$B$39:$H$81,MATCH(AB$11,Volumes!$B$4:$H$4,0),FALSE),0) -> 0 | AC121: =IFERROR(VLOOKUP($B121,Volumes!$B$39:$H$81,MATCH(AC$11,Volumes!$B$4:$H$4,0),FALSE),0) -> 0 | AD121: =IFERROR(VLOOKUP($B121,Volumes!$B$39:$H$81,MATCH(AD$11,Volumes!$B$4:$H$4,0),FALSE),0) -> 0 | AE121: =IFERROR(VLOOKUP($B121,Volumes!$B$39:$H$81,MATCH(AE$11,Volumes!$B$4:$H$4,0),FALSE),0) -> 0 | AF121: =IFERROR(VLOOKUP($B121,Volumes!$B$39:$M$81,MATCH(AF$11,Volumes!$B$4:$M$4,0),FALSE),0) -> 0 | AG121: =IFERROR(VLOOKUP($B121,Volumes!$B$39:$M$81,MATCH(AG$11,Volumes!$B$4:$M$4,0),FALSE),0) -> 0 | AH121: =IFERROR(VLOOKUP($B121,Volumes!$B$39:$M$81,MATCH(AH$11,Volumes!$B$4:$M$4,0),FALSE),0) -> 0 | AI121: =IFERROR(VLOOKUP($B121,Volumes!$B$39:$M$81,MATCH(AI$11,Volumes!$B$4:$M$4,0),FALSE),0) -> 0 | AJ121: =IFERROR(VLOOKUP($B121,Volumes!$B$39:$M$81,MATCH(AJ$11,Volumes!$B$4:$M$4,0),FALSE),0) -> 0 | AL121: 138.7716441 | AM121: 145.3041431 | AN121: 152.2875496 | AO121: 159.343451 | AP121: 166.9286893 | AQ121: 175.8922485 | AR121: 183.4865947 | AS121: 191.0936495 | AT121: 199.2578548 | AU121: 206.3459706 | AW121: 142.1715494 | AX121: 152.5112649 | AY121: 163.7571558 | AZ121: 175.5424154 | BA121: 188.4042942 | BB121: 203.3847927 | BC121: 217.3642314 | BD121: 231.9220049 | BE121: 247.755392 | BF121: 262.8546232 | BI121: 0 | BJ121: 0 | BK121: 0 | BL121: 0 | BM121: 0 | BN121: 0 | BO121: 0 | BP121: 0 | BQ121: 0 | BR121: 0 | BU121: 0 | BV121: 0 | BW121: 0 | BX121: 0 | BY121: 0 | BZ121: 0 | CA121: 0 | CB121: 0 | CC121: 0 | CD121: 0
B122: =Inputs!$C116 -> 250W Metal Halide - Flood Light | C122: Obsolete, no new Connections | D122: =IF($C122="NA","",'Smoothed Prices'!D122+$D$7) -> 55.07772656 | E122: 57.14949004 | F122: 59.24276056 | G122: 61.35776137 | H122: 63.49471807 | I122: =IF($C122="NA","",'Smoothed Prices'!I122+$I$7) -> 66.07544369 | J122: 68.18601736 | K122: 70.30012296 | L122: 72.41776641 | M122: 74.53895361 | P122: 56.42713087 | Q122: 59.98411903 | R122: 63.70465609 | S122: 67.59543341 | T122: 71.66340064 | U122: 76.40325558 | V122: 80.77539006 | W122: 85.32018463 | X122: 90.04358761 | Y122: 94.95173814 | AA122: =IFERROR(VLOOKUP($B122,Volumes!$B$39:$H$81,MATCH(AA$11,Volumes!$B$4:$H$4,0),FALSE),0) -> 36 | AB122: =IFERROR(VLOOKUP($B122,Volumes!$B$39:$H$81,MATCH(AB$11,Volumes!$B$4:$H$4,0),FALSE),0) -> 38 | AC122: =IFERROR(VLOOKUP($B122,Volumes!$B$39:$H$81,MATCH(AC$11,Volumes!$B$4:$H$4,0),FALSE),0) -> 40 | AD122: =IFERROR(VLOOKUP($B122,Volumes!$B$39:$H$81,MATCH(AD$11,Volumes!$B$4:$H$4,0),FALSE),0) -> 42 | AE122: =IFERROR(VLOOKUP($B122,Volumes!$B$39:$H$81,MATCH(AE$11,Volumes!$B$4:$H$4,0),FALSE),0) -> 44 | AF122: =IFERROR(VLOOKUP($B122,Volumes!$B$39:$M$81,MATCH(AF$11,Volumes!$B$4:$M$4,0),FALSE),0) -> 44 | AG122: =IFERROR(VLOOKUP($B122,Volumes!$B$39:$M$81,MATCH(AG$11,Volumes!$B$4:$M$4,0),FALSE),0) -> 44 | AH122: =IFERROR(VLOOKUP($B122,Volumes!$B$39:$M$81,MATCH(AH$11,Volumes!$B$4:$M$4,0),FALSE),0) -> 44 | AI122: =IFERROR(VLOOKUP($B122,Volumes!$B$39:$M$81,MATCH(AI$11,Volumes!$B$4:$M$4,0),FALSE),0) -> 44 | AJ122: =IFERROR(VLOOKUP($B122,Volumes!$B$39:$M$81,MATCH(AJ$11,Volumes!$B$4:$M$4,0),FALSE),0) -> 44 | AL122: 201.5844792 | AM122: 208.5956387 | AN122: 216.236076 | AO122: 223.955829 | AP122: 232.3906681 | AQ122: 241.1753695 | AR122: 248.8789634 | AS122: 256.5954488 | AT122: 265.049025 | AU122: 272.0671807 | AW122: 206.523299 | AX122: 218.9420345 | AY122: 232.5219947 | AZ122: 246.7233319 | BA122: 262.2880463 | BB122: 278.8718829 | BC122: 294.8301737 | BD122: 311.4186739 | BE122: 329.5595307 | BF122: 346.5738442 | BI122: 7257.041252 | BJ122: 7926.634269 | BK122: 8649.443041 | BL122: 9406.144818 | BM122: 10225.1894 | BN122: 10611.71626 | BO122: 10950.67439 | BP122: 11290.19975 | BQ122: 11662.1571 | BR122: 11970.95595 | BU122: 7434.838763 | BV122: 8319.79731 | BW122: 9300.879789 | BX122: 10362.37994 | BY122: 11540.67404 | BZ122: 12270.36285 | CA122: 12972.52764 | CB122: 13702.42165 | CC122: 14500.61935 | CD122: 15249.24915
B123: =Inputs!$C117 -> 400W Metal Halide - Flood Light | C123: Obsolete, no new Connections | D123: =IF($C123="NA","",'Smoothed Prices'!D123+$D$7) -> 54.7471032 | E123: 56.81543446 | F123: 58.90523714 | G123: 61.01673411 | H123: 63.1501506 | I123: =IF($C123="NA","",'Smoothed Prices'!I123+$I$7) -> 65.73087622 | J123: 67.84087327 | K123: 69.9544013 | L123: 72.07146619 | M123: 74.19207388 | P123: 56.08840722 | Q123: 59.63349422 | R123: 63.34171194 | S123: 67.21973709 | T123: 71.27450409 | U123: 76.00483107 | V123: 80.36652107 | W123: 84.90059736 | X123: 89.6130011 | Y123: 94.50986404 | AA123: =IFERROR(VLOOKUP($B123,Volumes!$B$39:$H$81,MATCH(AA$11,Volumes!$B$4:$H$4,0),FALSE),0) -> 36 | AB123: =IFERROR(VLOOKUP($B123,Volumes!$B$39:$H$81,MATCH(AB$11,Volumes!$B$4:$H$4,0),FALSE),0) -> 38 | AC123: =IFERROR(VLOOKUP($B123,Volumes!$B$39:$H$81,MATCH(AC$11,Volumes!$B$4:$H$4,0),FALSE),0) -> 40 | AD123: =IFERROR(VLOOKUP($B123,Volumes!$B$39:$H$81,MATCH(AD$11,Volumes!$B$4:$H$4,0),FALSE),0) -> 42 | AE123: =IFERROR(VLOOKUP($B123,Volumes!$B$39:$H$81,MATCH(AE$11,Volumes!$B$4:$H$4,0),FALSE),0) -> 44 | AF123: =IFERROR(VLOOKUP($B123,Volumes!$B$39:$M$81,MATCH(AF$11,Volumes!$B$4:$M$4,0),FALSE),0) -> 44 | AG123: =IFERROR(VLOOKUP($B123,Volumes!$B$39:$M$81,MATCH(AG$11,Volumes!$B$4:$M$4,0),FALSE),0) -> 44 | AH123: =IFERROR(VLOOKUP($B123,Volumes!$B$39:$M$81,MATCH(AH$11,Volumes!$B$4:$M$4,0),FALSE),0) -> 44 | AI123: =IFERROR(VLOOKUP($B123,Volumes!$B$39:$M$81,MATCH(AI$11,Volumes!$B$4:$M$4,0),FALSE),0) -> 44 | AJ123: =IFERROR(VLOOKUP($B123,Volumes!$B$39:$M$81,MATCH(AJ$11,Volumes!$B$4:$M$4,0),FALSE),0) -> 44 | AL123: 200.3743977 | AM123: 207.3763358 | AN123: 215.0041155 | AO123: 222.7110795 | AP123: 231.1295512 | AQ123: 239.9176982 | AR123: 247.6191875 | AS123: 255.3335647 | AT123: 263.7815663 | AU123: 270.8010697 | AW123: 205.2835704 | AX123: 217.6622539 | AY123: 231.1972486 | AZ123: 245.3520404 | BA123: 260.864685 | BB123: 277.4176334 | BC123: 293.3378019 | BD123: 309.8871804 | BE123: 327.983584 | BF123: 344.9610037 | BI123: 7213.478317 | BJ123: 7880.30076 | BK123: 8600.164622 | BL123: 9353.865339 | BM123: 10169.70025 | BN123: 10556.37872 | BO123: 10895.24425 | BP123: 11234.67685 | BQ123: 11606.38892 | BR123: 11915.24707 | BU123: 7390.208536 | BV123: 8271.165648 | BW123: 9247.889943 | BX123: 10304.7857 | BY123: 11478.04614 | BZ123: 12206.37587 | CA123: 12906.86328 | CB123: 13635.03594 | CC123: 14431.2777 | CD123: 15178.28416
B124: =Inputs!$C118 -> 125W Mercury Vapour | C124: Obsolete, no new Connections | D124: =IF($C124="NA","",'Smoothed Prices'!D124+$D$7) -> 46.09841572 | E124: 48.07696472 | F124: 50.07605308 | G124: 52.09589404 | H124: 54.13670303 | I124: =IF($C124="NA","",'Smoothed Prices'!I124+$I$7) -> 56.71742865 | J124: 58.81234219 | K124: 60.91076145 | L124: 63.01269231 | M124: 65.11814063 | P124: 47.22782691 | Q124: 50.46159418 | R124: 53.84755386 | S124: 57.3919983 | T124: 61.10146413 | U124: 65.58255163 | V124: 69.67102735 | W124: 73.92472721 | X124: 78.3494046 | Y124: 82.95099861 | AA124: =IFERROR(VLOOKUP($B124,Volumes!$B$39:$H$81,MATCH(AA$11,Volumes!$B$4:$H$4,0),FALSE),0) -> 0 | AB124: =IFERROR(VLOOKUP($B124,Volumes!$B$39:$H$81,MATCH(AB$11,Volumes!$B$4:$H$4,0),FALSE),0) -> 0 | AC124: =IFERROR(VLOOKUP($B124,Volumes!$B$39:$H$81,MATCH(AC$11,Volumes!$B$4:$H$4,0),FALSE),0) -> 0 | AD124: =IFERROR(VLOOKUP($B124,Volumes!$B$39:$H$81,MATCH(AD$11,Volumes!$B$4:$H$4,0),FALSE),0) -> 0 | AE124: =IFERROR(VLOOKUP($B124,Volumes!$B$39:$H$81,MATCH(AE$11,Volumes!$B$4:$H$4,0),FALSE),0) -> 0 | AF124: =IFERROR(VLOOKUP($B124,Volumes!$B$39:$M$81,MATCH(AF$11,Volumes!$B$4:$M$4,0),FALSE),0) -> 0 | AG124: =IFERROR(VLOOKUP($B124,Volumes!$B$39:$M$81,MATCH(AG$11,Volumes!$B$4:$M$4,0),FALSE),0) -> 0 | AH124: =IFERROR(VLOOKUP($B124,Volumes!$B$39:$M$81,MATCH(AH$11,Volumes!$B$4:$M$4,0),FALSE),0) -> 0 | AI124: =IFERROR(VLOOKUP($B124,Volumes!$B$39:$M$81,MATCH(AI$11,Volumes!$B$4:$M$4,0),FALSE),0) -> 0 | AJ124: =IFERROR(VLOOKUP($B124,Volumes!$B$39:$M$81,MATCH(AJ$11,Volumes!$B$4:$M$4,0),FALSE),0) -> 0 | AL124: 168.7202016 | AM124: 175.4809212 | AN124: 182.7775937 | AO124: 190.1500132 | AP124: 198.1403331 | AQ124: 207.0186146 | AR124: 214.665049 | AS124: 222.3242793 | AT124: 230.6264538 | AU124: 237.6812133 | AW124: 172.8538465 | AX124: 184.1848188 | AY124: 196.5435716 | AZ124: 209.4807938 | BA124: 223.6313587 | BB124: 239.3763134 | BC124: 254.2992498 | BD124: 269.8252543 | BE124: 286.7588208 | BF124: 302.7711449 | BI124: 0 | BJ124: 0 | BK124: 0 | BL124: 0 | BM124: 0 | BN124: 0 | BO124: 0 | BP124: 0 | BQ124: 0 | BR124: 0 | BU124: 0 | BV124: 0 | BW124: 0 | BX124: 0 | BY124: 0 | BZ124: 0 | CA124: 0 | CB124: 0 | CC124: 0 | CD124: 0
B125: =Inputs!$C119 -> 250W Mercury Vapour | C125: Obsolete, no new Connections | D125: =IF($C125="NA","",'Smoothed Prices'!D125+$D$7) -> 46.55289166 | E125: 48.53615857 | F125: 50.54001384 | G125: 52.56467119 | H125: 54.61034657 | I125: =IF($C125="NA","",'Smoothed Prices'!I125+$I$7) -> 57.19107219 | J125: 59.28677835 | K125: 61.38599156 | L125: 63.48871768 | M125: 65.59496261 | P125: 47.6934375 | Q125: 50.94356417 | R125: 54.34645804 | S125: 57.90843166 | T125: 61.63604256 | U125: 66.13022723 | V125: 70.23305997 | W125: 74.5014932 | X125: 78.94129019 | Y125: 83.55840016 | AA125: =IFERROR(VLOOKUP($B125,Volumes!$B$39:$H$81,MATCH(AA$11,Volumes!$B$4:$H$4,0),FALSE),0) -> 386 | AB125: =IFERROR(VLOOKUP($B125,Volumes!$B$39:$H$81,MATCH(AB$11,Volumes!$B$4:$H$4,0),FALSE),0) -> 366 | AC125: =IFERROR(VLOOKUP($B125,Volumes!$B$39:$H$81,MATCH(AC$11,Volumes!$B$4:$H$4,0),FALSE),0) -> 348 | AD125: =IFERROR(VLOOKUP($B125,Volumes!$B$39:$H$81,MATCH(AD$11,Volumes!$B$4:$H$4,0),FALSE),0) -> 331 | AE125: =IFERROR(VLOOKUP($B125,Volumes!$B$39:$H$81,MATCH(AE$11,Volumes!$B$4:$H$4,0),FALSE),0) -> 314 | AF125: =IFERROR(VLOOKUP($B125,Volumes!$B$39:$M$81,MATCH(AF$11,Volumes!$B$4:$M$4,0),FALSE),0) -> 314 | AG125: =IFERROR(VLOOKUP($B125,Volumes!$B$39:$M$81,MATCH(AG$11,Volumes!$B$4:$M$4,0),FALSE),0) -> 314 | AH125: =IFERROR(VLOOKUP($B125,Volumes!$B$39:$M$81,MATCH(AH$11,Volumes!$B$4:$M$4,0),FALSE),0) -> 314 | AI125: =IFERROR(VLOOKUP($B125,Volumes!$B$39:$M$81,MATCH(AI$11,Volumes!$B$4:$M$4,0),FALSE),0) -> 314 | AJ125: =IFERROR(VLOOKUP($B125,Volumes!$B$39:$M$81,MATCH(AJ$11,Volumes!$B$4:$M$4,0),FALSE),0) -> 314 | AL125: 170.3835835 | AM125: 177.1569788 | AN125: 184.4710505 | AO125: 191.8610499 | AP125: 199.8738685 | AQ125: 208.7474135 | AR125: 216.396741 | AS125: 224.0588692 | AT125: 232.3687067 | AU125: 239.4216135 | AW125: 174.5579813 | AX125: 185.9440092 | AY125: 198.3645718 | AZ125: 211.3657756 | BA125: 225.5879158 | BB125: 241.3753294 | BC125: 256.3506689 | BD125: 271.9304502 | BE125: 288.9251221 | BF125: 304.9881606 | BI125: 65768.06322 | BJ125: 64839.45424 | BK125: 64195.92559 | BL125: 63506.0075 | BM125: 62760.39469 | BN125: 65546.68784 | BO125: 67948.57667 | BP125: 70354.48492 | BQ125: 72963.77391 | BR125: 75178.38664 | BU125: 67379.38076 | BV125: 68055.50738 | BW125: 69030.871 | BX125: 69962.07172 | BY125: 70834.60555 | BZ125: 75791.85343 | CA125: 80494.11003 | CB125: 85386.16136 | CC125: 90722.48834 | CD125: 95766.28242
B126: =Inputs!$C120 -> 0 | C126: NA | D126: =IF($C126="NA","",'Smoothed Prices'!D126+$D$7) ->  | I126: =IF($C126="NA","",'Smoothed Prices'!I126+$I$7) ->  | AA126: =IFERROR(VLOOKUP($B126,Volumes!$B$39:$H$81,MATCH(AA$11,Volumes!$B$4:$H$4,0),FALSE),0) -> 0 | AB126: =IFERROR(VLOOKUP($B126,Volumes!$B$39:$H$81,MATCH(AB$11,Volumes!$B$4:$H$4,0),FALSE),0) -> 0 | AC126: =IFERROR(VLOOKUP($B126,Volumes!$B$39:$H$81,MATCH(AC$11,Volumes!$B$4:$H$4,0),FALSE),0) -> 0 | AD126: =IFERROR(VLOOKUP($B126,Volumes!$B$39:$H$81,MATCH(AD$11,Volumes!$B$4:$H$4,0),FALSE),0) -> 0 | AE126: =IFERROR(VLOOKUP($B126,Volumes!$B$39:$H$81,MATCH(AE$11,Volumes!$B$4:$H$4,0),FALSE),0) -> 0 | AF126: =IFERROR(VLOOKUP($B126,Volumes!$B$39:$M$81,MATCH(AF$11,Volumes!$B$4:$M$4,0),FALSE),0) -> 0 | AG126: =IFERROR(VLOOKUP($B126,Volumes!$B$39:$M$81,MATCH(AG$11,Volumes!$B$4:$M$4,0),FALSE),0) -> 0 | AH126: =IFERROR(VLOOKUP($B126,Volumes!$B$39:$M$81,MATCH(AH$11,Volumes!$B$4:$M$4,0),FALSE),0) -> 0 | AI126: =IFERROR(VLOOKUP($B126,Volumes!$B$39:$M$81,MATCH(AI$11,Volumes!$B$4:$M$4,0),FALSE),0) -> 0 | AJ126: =IFERROR(VLOOKUP($B126,Volumes!$B$39:$M$81,MATCH(AJ$11,Volumes!$B$4:$M$4,0),FALSE),0) -> 0 | BI126: 0 | BJ126: 0 | BK126: 0 | BL126: 0 | BM126: 0 | BN126: 0 | BO126: 0 | BP126: 0 | BQ126: 0 | BR126: 0 | BU126: 0 | BV126: 0 | BW126: 0 | BX126: 0 | BY126: 0 | BZ126: 0 | CA126: 0 | CB126: 0 | CC126: 0 | CD126: 0
B127: =Inputs!$C121 -> 400W Mercury Vapour | C127: Obsolete, no new Connections | D127: =IF($C127="NA","",'Smoothed Prices'!D127+$D$7) -> 48.13568543 | E127: 50.13538338 | F127: 52.15584025 | G127: 54.19727154 | H127: 56.25989499 | I127: =IF($C127="NA","",'Smoothed Prices'!I127+$I$7) -> 58.84062061 | J127: 60.93908719 | K127: 63.04106545 | L127: 65.14656125 | M127: 67.25558049 | P127: 49.31500972 | Q127: 52.62211093 | R127: 56.08398115 | S127: 59.70700328 | T127: 63.49780764 | U127: 68.03760556 | V127: 72.19043916 | W127: 76.510184 | X127: 81.00263771 | Y127: 85.67378475 | AA127: =IFERROR(VLOOKUP($B127,Volumes!$B$39:$H$81,MATCH(AA$11,Volumes!$B$4:$H$4,0),FALSE),0) -> 29 | AB127: =IFERROR(VLOOKUP($B127,Volumes!$B$39:$H$81,MATCH(AB$11,Volumes!$B$4:$H$4,0),FALSE),0) -> 28 | AC127: =IFERROR(VLOOKUP($B127,Volumes!$B$39:$H$81,MATCH(AC$11,Volumes!$B$4:$H$4,0),FALSE),0) -> 26 | AD127: =IFERROR(VLOOKUP($B127,Volumes!$B$39:$H$81,MATCH(AD$11,Volumes!$B$4:$H$4,0),FALSE),0) -> 25 | AE127: =IFERROR(VLOOKUP($B127,Volumes!$B$39:$H$81,MATCH(AE$11,Volumes!$B$4:$H$4,0),FALSE),0) -> 24 | AF127: =IFERROR(VLOOKUP($B127,Volumes!$B$39:$M$81,MATCH(AF$11,Volumes!$B$4:$M$4,0),FALSE),0) -> 24 | AG127: =IFERROR(VLOOKUP($B127,Volumes!$B$39:$M$81,MATCH(AG$11,Volumes!$B$4:$M$4,0),FALSE),0) -> 24 | AH127: =IFERROR(VLOOKUP($B127,Volumes!$B$39:$M$81,MATCH(AH$11,Volumes!$B$4:$M$4,0),FALSE),0) -> 24 | AI127: =IFERROR(VLOOKUP($B127,Volumes!$B$39:$M$81,MATCH(AI$11,Volumes!$B$4:$M$4,0),FALSE),0) -> 24 | AJ127: =IFERROR(VLOOKUP($B127,Volumes!$B$39:$M$81,MATCH(AJ$11,Volumes!$B$4:$M$4,0),FALSE),0) -> 24 | AL127: 176.1766087 | AM127: 182.9941493 | AN127: 190.3688169 | AO127: 197.8200411 | AP127: 205.9112156 | AQ127: 214.7682652 | AR127: 222.4276683 | AS127: 230.0998889 | AT127: 238.4364142 | AU127: 245.4828688 | AW127: 180.4929356 | AX127: 192.0707049 | AY127: 204.7065312 | AZ127: 217.930562 | BA127: 232.401976 | BB127: 248.3372603 | BC127: 263.4951029 | BD127: 279.2621716 | BE127: 296.469654 | BF127: 312.7093143 | BI127: 5109.121652 | BJ127: 5123.836181 | BK127: 4949.589239 | BL127: 4945.501028 | BM127: 4941.869176 | BN127: 5154.438365 | BO127: 5338.264038 | BP127: 5522.397333 | BQ127: 5722.47394 | BR127: 5891.588851 | BU127: 5234.295132 | BV127: 5377.979737 | BW127: 5322.369811 | BX127: 5448.264049 | BY127: 5577.647423 | BZ127: 5960.094247 | CA127: 6323.88247 | CB127: 6702.292118 | CC127: 7115.271696 | CD127: 7505.023544
B128: =Inputs!$C122 -> 50W Mercury Vapour | C128: Obsolete, no new Connections | D128: =IF($C128="NA","",'Smoothed Prices'!D128+$D$7) -> 36.4305686 | E128: 38.30875539 | F128: 40.20643969 | G128: 42.12382391 | H128: 44.06111255 | I128: =IF($C128="NA","",'Smoothed Prices'!I128+$I$7) -> 46.64183817 | J128: 48.71989075 | K128: 50.80142085 | L128: 52.88643427 | M128: 54.97493685 | P128: 37.32311753 | Q128: 40.20887923 | R128: 43.23460604 | S128: 46.40616069 | T128: 49.72963511 | U128: 53.9321128 | V128: 57.71517873 | W128: 61.65546265 | X128: 65.75850808 | Y128: 70.03003873 | AA128: =IFERROR(VLOOKUP($B128,Volumes!$B$39:$H$81,MATCH(AA$11,Volumes!$B$4:$H$4,0),FALSE),0) -> 0 | AB128: =IFERROR(VLOOKUP($B128,Volumes!$B$39:$H$81,MATCH(AB$11,Volumes!$B$4:$H$4,0),FALSE),0) -> 0 | AC128: =IFERROR(VLOOKUP($B128,Volumes!$B$39:$H$81,MATCH(AC$11,Volumes!$B$4:$H$4,0),FALSE),0) -> 0 | AD128: =IFERROR(VLOOKUP($B128,Volumes!$B$39:$H$81,MATCH(AD$11,Volumes!$B$4:$H$4,0),FALSE),0) -> 0 | AE128: =IFERROR(VLOOKUP($B128,Volumes!$B$39:$H$81,MATCH(AE$11,Volumes!$B$4:$H$4,0),FALSE),0) -> 0 | AF128: =IFERROR(VLOOKUP($B128,Volumes!$B$39:$M$81,MATCH(AF$11,Volumes!$B$4:$M$4,0),FALSE),0) -> 0 | AG128: =IFERROR(VLOOKUP($B128,Volumes!$B$39:$M$81,MATCH(AG$11,Volumes!$B$4:$M$4,0),FALSE),0) -> 0 | AH128: =IFERROR(VLOOKUP($B128,Volumes!$B$39:$M$81,MATCH(AH$11,Volumes!$B$4:$M$4,0),FALSE),0) -> 0 | AI128: =IFERROR(VLOOKUP($B128,Volumes!$B$39:$M$81,MATCH(AI$11,Volumes!$B$4:$M$4,0),FALSE),0) -> 0 | AJ128: =IFERROR(VLOOKUP($B128,Volumes!$B$39:$M$81,MATCH(AJ$11,Volumes!$B$4:$M$4,0),FALSE),0) -> 0 | AL128: 133.3358811 | AM128: 139.8269572 | AN128: 146.7535049 | AO128: 153.7519573 | AP128: 161.2636719 | AQ128: 170.2427093 | AR128: 177.8276012 | AS128: 185.4251861 | AT128: 193.5643494 | AU128: 200.6585195 | AW128: 136.6026102 | AX128: 146.7624092 | AY128: 157.806312 | AZ128: 169.3824865 | BA128: 182.0104645 | BB128: 196.8522117 | BC128: 210.6604024 | BD128: 225.0424387 | BE128: 240.6761396 | BF128: 255.6096413 | BI128: 0 | BJ128: 0 | BK128: 0 | BL128: 0 | BM128: 0 | BN128: 0 | BO128: 0 | BP128: 0 | BQ128: 0 | BR128: 0 | BU128: 0 | BV128: 0 | BW128: 0 | BX128: 0 | BY128: 0 | BZ128: 0 | CA128: 0 | CB128: 0 | CC128: 0 | CD128: 0
B129: =Inputs!$C123 -> 80W Mercury Vapour Art decorative | C129: Obsolete, no new Connections | D129: =IF($C129="NA","",'Smoothed Prices'!D129+$D$7) -> 53.30285636 | E129: 55.35619485 | F129: 57.43084912 | G129: 59.52704043 | H129: 61.64499236 | I129: =IF($C129="NA","",'Smoothed Prices'!I129+$I$7) -> 64.22571798 | J129: 66.33319624 | K129: 68.44420124 | L129: 70.5587389 | M129: 72.67681512 | P129: 54.60877634 | Q129: 58.10187596 | R129: 61.75627972 | S129: 65.57860012 | T129: 69.57570518 | U129: 74.26441159 | V129: 78.58047746 | W129: 83.0677336 | X129: 87.73208984 | Y129: 92.57964573 | AA129: =IFERROR(VLOOKUP($B129,Volumes!$B$39:$H$81,MATCH(AA$11,Volumes!$B$4:$H$4,0),FALSE),0) -> 40 | AB129: =IFERROR(VLOOKUP($B129,Volumes!$B$39:$H$81,MATCH(AB$11,Volumes!$B$4:$H$4,0),FALSE),0) -> 40 | AC129: =IFERROR(VLOOKUP($B129,Volumes!$B$39:$H$81,MATCH(AC$11,Volumes!$B$4:$H$4,0),FALSE),0) -> 40 | AD129: =IFERROR(VLOOKUP($B129,Volumes!$B$39:$H$81,MATCH(AD$11,Volumes!$B$4:$H$4,0),FALSE),0) -> 40 | AE129: =IFERROR(VLOOKUP($B129,Volumes!$B$39:$H$81,MATCH(AE$11,Volumes!$B$4:$H$4,0),FALSE),0) -> 40 | AF129: =IFERROR(VLOOKUP($B129,Volumes!$B$39:$M$81,MATCH(AF$11,Volumes!$B$4:$M$4,0),FALSE),0) -> 40 | AG129: =IFERROR(VLOOKUP($B129,Volumes!$B$39:$M$81,MATCH(AG$11,Volumes!$B$4:$M$4,0),FALSE),0) -> 40 | AH129: =IFERROR(VLOOKUP($B129,Volumes!$B$39:$M$81,MATCH(AH$11,Volumes!$B$4:$M$4,0),FALSE),0) -> 40 | AI129: =IFERROR(VLOOKUP($B129,Volumes!$B$39:$M$81,MATCH(AI$11,Volumes!$B$4:$M$4,0),FALSE),0) -> 40 | AJ129: =IFERROR(VLOOKUP($B129,Volumes!$B$39:$M$81,MATCH(AJ$11,Volumes!$B$4:$M$4,0),FALSE),0) -> 40 | AL129: 195.0884543 | AM129: 202.0501112 | AN129: 209.6225993 | AO129: 217.2736976 | AP129: 225.6206721 | AQ129: 234.4238706 | AR129: 242.1161663 | AS129: 249.8213345 | AT129: 258.2449844 | AU129: 265.2703752 | AW129: 199.8681214 | AX129: 212.0718472 | AY129: 225.410421 | AZ129: 239.3618905 | BA129: 254.647081 | BB129: 271.0651023 | BC129: 286.8187427 | BD129: 303.1972277 | BE129: 321.0994488 | BF129: 337.9157069 | BI129: 7803.538171 | BJ129: 8082.004449 | BK129: 8384.903971 | BL129: 8690.947903 | BM129: 9024.826882 | BN129: 9376.954826 | BO129: 9684.646651 | BP129: 9992.853382 | BQ129: 10329.79938 | BR129: 10610.81501 | BU129: 7994.724856 | BV129: =IFERROR(AX129*AB129,0) -> 8482.87389 | BW129: 9016.416839 | BX129: 9574.475618 | BY129: 10185.88324 | BZ129: 10842.60409 | CA129: 11472.74971 | CB129: 12127.88911 | CC129: 12843.97795 | CD129: 13516.62828
B130: =Inputs!$C124 -> 80W Mercury Vapour | C130: Obsolete, no new Connections | D130: =IF($C130="NA","",'Smoothed Prices'!D130+$D$7) -> 36.4284694 | E130: 38.3066344 | F130: 40.20429669 | G130: 42.12165866 | H130: 44.05892482 | I130: =IF($C130="NA","",'Smoothed Prices'!I130+$I$7) -> 46.63965044 | J130: 48.71769936 | K130: 50.79922579 | L130: 52.88423554 | M130: 54.97273444 | P130: 37.32096691 | Q130: 40.20665305 | R130: 43.23230163 | S130: 46.40377532 | T130: 49.72716592 | U130: 53.92958312 | V130: 57.71258274 | W130: 61.65279861 | X130: 65.7557742 | Y130: 70.02723318 | AA130: =IFERROR(VLOOKUP($B130,Volumes!$B$39:$H$81,MATCH(AA$11,Volumes!$B$4:$H$4,0),FALSE),0) -> 3200 | AB130: =IFERROR(VLOOKUP($B130,Volumes!$B$39:$H$81,MATCH(AB$11,Volumes!$B$4:$H$4,0),FALSE),0) -> 0 | AC130: =IFERROR(VLOOKUP($B130,Volumes!$B$39:$H$81,MATCH(AC$11,Volumes!$B$4:$H$4,0),FALSE),0) -> 0 | AD130: =IFERROR(VLOOKUP($B130,Volumes!$B$39:$H$81,MATCH(AD$11,Volumes!$B$4:$H$4,0),FALSE),0) -> 0 | AE130: =IFERROR(VLOOKUP($B130,Volumes!$B$39:$H$81,MATCH(AE$11,Volumes!$B$4:$H$4,0),FALSE),0) -> 0 | AF130: =IFERROR(VLOOKUP($B130,Volumes!$B$39:$M$81,MATCH(AF$11,Volumes!$B$4:$M$4,0),FALSE),0) -> 0 | AG130: =IFERROR(VLOOKUP($B130,Volumes!$B$39:$M$81,MATCH(AG$11,Volumes!$B$4:$M$4,0),FALSE),0) -> 0 | AH130: =IFERROR(VLOOKUP($B130,Volumes!$B$39:$M$81,MATCH(AH$11,Volumes!$B$4:$M$4,0),FALSE),0) -> 0 | AI130: =IFERROR(VLOOKUP($B130,Volumes!$B$39:$M$81,MATCH(AI$11,Volumes!$B$4:$M$4,0),FALSE),0) -> 0 | AJ130: =IFERROR(VLOOKUP($B130,Volumes!$B$39:$M$81,MATCH(AJ$11,Volumes!$B$4:$M$4,0),FALSE),0) -> 0 | AL130: 133.328198 | AM130: 139.8192156 | AN130: 146.7456829 | AO130: 153.7440541 | AP130: 161.2556648 | AQ130: 170.2347241 | AR130: 177.8196027 | AS130: 185.4171741 | AT130: 193.5563021 | AU130: 200.6504807 | AW130: 136.5947389 | AX130: 146.7542836 | AY130: 157.7979009 | AZ130: 169.3737799 | BA130: 182.0014273 | BB130: 196.8429784 | BC130: 210.650927 | BD130: 225.0327149 | BE130: 240.6661336 | BF130: 255.5994011 | BI130: 426650.2337 | BJ130: 0 | BK130: 0 | BL130: 0 | BM130: 0 | BN130: 0 | BO130: 0 | BP130: 0 | BQ130: 0 | BR130: 0 | BU130: 437103.1644 | BV130: 0 | BW130: 0 | BX130: 0 | BY130: 0 | BZ130: 0 | CA130: 0 | CB130: 0 | CC130: 0 | CD130: 0
B131: =Inputs!$C125 -> 14W LED | C131: Offered | D131: =IF($C131="NA","",'Smoothed Prices'!D131+$D$7) -> 35.14691025 | E131: 37.01177135 | F131: 38.89599162 | G131: 40.79977204 | H131: 42.72331566 | I131: =IF($C131="NA","",'Smoothed Prices'!I131+$I$7) -> 45.30404128 | J131: 47.37985513 | K131: 49.45914275 | L131: 51.54190994 | M131: 53.62816253 | P131: 36.00800955 | Q131: =IF($C131="NA","",E131*Q$9) -> 38.84756446 | R131: 41.82546097 | S131: 44.9475048 | T131: 48.21972881 | U131: 52.3852138 | V131: 56.12772864 | W131: 60.02639843 | X131: 64.08673885 | Y131: 68.31444499 | AA131: =IFERROR(VLOOKUP($B131,Volumes!$B$39:$H$81,MATCH(AA$11,Volumes!$B$4:$H$4,0),FALSE),0) -> 18300 | AB131: =IFERROR(VLOOKUP($B131,Volumes!$B$39:$H$81,MATCH(AB$11,Volumes!$B$4:$H$4,0),FALSE),0) -> 20010 | AC131: =IFERROR(VLOOKUP($B131,Volumes!$B$39:$H$81,MATCH(AC$11,Volumes!$B$4:$H$4,0),FALSE),0) -> 20100 | AD131: =IFERROR(VLOOKUP($B131,Volumes!$B$39:$H$81,MATCH(AD$11,Volumes!$B$4:$H$4,0),FALSE),0) -> 20200 | AE131: =IFERROR(VLOOKUP($B131,Volumes!$B$39:$H$81,MATCH(AE$11,Volumes!$B$4:$H$4,0),FALSE),0) -> 20300 | AF131: =IFERROR(VLOOKUP($B131,Volumes!$B$39:$M$81,MATCH(AF$11,Volumes!$B$4:$M$4,0),FALSE),0) -> 20300 | AG131: =IFERROR(VLOOKUP($B131,Volumes!$B$39:$M$81,MATCH(AG$11,Volumes!$B$4:$M$4,0),FALSE),0) -> 20300 | AH131: =IFERROR(VLOOKUP($B131,Volumes!$B$39:$M$81,MATCH(AH$11,Volumes!$B$4:$M$4,0),FALSE),0) -> 20300 | AI131: =IFERROR(VLOOKUP($B131,Volumes!$B$39:$M$81,MATCH(AI$11,Volumes!$B$4:$M$4,0),FALSE),0) -> 20300 | AJ131: =IFERROR(VLOOKUP($B131,Volumes!$B$39:$M$81,MATCH(AJ$11,Volumes!$B$4:$M$4,0),FALSE),0) -> 20300 | AL131: 128.6376915 | AM131: 135.0929654 | AN131: 141.9703694 | AO131: 148.9191679 | AP131: 156.3673353 | AQ131: 165.3597507 | AR131: 172.9364712 | AS131: 180.525871 | AT131: 188.6433904 | AU131: 195.7427932 | AW131: 131.789315 | AX131: =IF($C131="NA","",(Q131*AX$9)/100) -> 141.7936103 | AY131: 152.6629325 | AZ131: 164.0583925 | BA131: 176.4842075 | BB131: 191.2060304 | BC131: 204.8662095 | BD131: 219.0963543 | BE131: 234.5574642 | BF131: 249.3477242 | BI131: 2354069.755 | BJ131: 2703210.238 | BK131: 2853604.425 | BL131: 3008167.192 | BM131: 3174256.907 | BN131: 3356802.938 | BO131: 3510610.366 | BP131: 3664675.182 | BQ131: 3829460.825 | BR131: 3973578.703 | BU131: 2411744.464 | BV131: =IFERROR(AX131*AB131,0) -> 2837290.142 | BW131: 3068524.944 | BX131: 3313979.529 | BY131: 3582629.411 | BZ131: 3881482.416 | CA131: 4158784.053 | CB131: 4447655.992 | CC131: 4761516.523 | CD131: 5061758.801
B132: =Inputs!$C126 -> New technology - Minor | C132: Offered | D132: =IF($C132="NA","",'Smoothed Prices'!D132+$D$7) -> 35.14691025 | E132: 37.01177135 | F132: 38.89599162 | G132: 40.79977204 | H132: 42.72331566 | I132: =IF($C132="NA","",'Smoothed Prices'!I132+$I$7) -> 45.30404128 | J132: 47.37985513 | K132: 49.45914275 | L132: 51.54190994 | M132: 53.62816253 | P132: 36.00800955 | Q132: 38.84756446 | R132: 41.82546097 | S132: 44.9475048 | T132: 48.21972881 | U132: 52.3852138 | V132: 56.12772864 | W132: 60.02639843 | X132: 64.08673885 | Y132: 68.31444499 | AA132: =IFERROR(VLOOKUP($B132,Volumes!$B$39:$H$81,MATCH(AA$11,Volumes!$B$4:$H$4,0),FALSE),0) -> 0 | AB132: =IFERROR(VLOOKUP($B132,Volumes!$B$39:$H$81,MATCH(AB$11,Volumes!$B$4:$H$4,0),FALSE),0) -> 0 | AC132: =IFERROR(VLOOKUP($B132,Volumes!$B$39:$H$81,MATCH(AC$11,Volumes!$B$4:$H$4,0),FALSE),0) -> 0 | AD132: =IFERROR(VLOOKUP($B132,Volumes!$B$39:$H$81,MATCH(AD$11,Volumes!$B$4:$H$4,0),FALSE),0) -> 0 | AE132: =IFERROR(VLOOKUP($B132,Volumes!$B$39:$H$81,MATCH(AE$11,Volumes!$B$4:$H$4,0),FALSE),0) -> 0 | AF132: =IFERROR(VLOOKUP($B132,Volumes!$B$39:$M$81,MATCH(AF$11,Volumes!$B$4:$M$4,0),FALSE),0) -> 0 | AG132: =IFERROR(VLOOKUP($B132,Volumes!$B$39:$M$81,MATCH(AG$11,Volumes!$B$4:$M$4,0),FALSE),0) -> 0 | AH132: =IFERROR(VLOOKUP($B132,Volumes!$B$39:$M$81,MATCH(AH$11,Volumes!$B$4:$M$4,0),FALSE),0) -> 0 | AI132: =IFERROR(VLOOKUP($B132,Volumes!$B$39:$M$81,MATCH(AI$11,Volumes!$B$4:$M$4,0),FALSE),0) -> 0 | AJ132: =IFERROR(VLOOKUP($B132,Volumes!$B$39:$M$81,MATCH(AJ$11,Volumes!$B$4:$M$4,0),FALSE),0) -> 0 | AL132: 128.6376915 | AM132: 135.0929654 | AN132: 141.9703694 | AO132: 148.9191679 | AP132: 156.3673353 | AQ132: 165.3597507 | AR132: 172.9364712 | AS132: 180.525871 | AT132: 188.6433904 | AU132: 195.7427932 | AW132: 131.789315 | AX132: 141.7936103 | AY132: 152.6629325 | AZ132: 164.0583925 | BA132: 176.4842075 | BB132: 191.2060304 | BC132: 204.8662095 | BD132: 219.0963543 | BE132: 234.5574642 | BF132: 249.3477242 | BI132: 0 | BJ132: 0 | BK132: 0 | BL132: 0 | BM132: 0 | BN132: 0 | BO132: 0 | BP132: 0 | BQ132: 0 | BR132: 0 | BU132: 0 | BV132: 0 | BW132: 0 | BX132: 0 | BY132: 0 | BZ132: 0 | CA132: 0 | CB132: 0 | CC132: 0 | CD132: 0
B133: =Inputs!$C127 -> New technology - Major | C133: Offered | D133: =IF($C133="NA","",'Smoothed Prices'!D133+$D$7) -> 47.43245478 | E133: 49.42485246 | F133: 51.43793329 | G133: 53.47191197 | H133: 55.52700544 | I133: =IF($C133="NA","",'Smoothed Prices'!I133+$I$7) -> 58.10773106 | J133: 60.20497119 | K133: 62.30572095 | L133: 64.40998619 | M133: 66.51777281 | P133: 48.59454992 | Q133: 51.8763375 | R133: 55.3120047 | S133: 58.90790316 | T133: 62.67063085 | U133: 67.19016293 | V133: 71.3207813 | W133: 75.61772854 | X133: 80.08678702 | Y133: 84.73392555 | AA133: =IFERROR(VLOOKUP($B133,Volumes!$B$39:$H$81,MATCH(AA$11,Volumes!$B$4:$H$4,0),FALSE),0) -> 0 | AB133: =IFERROR(VLOOKUP($B133,Volumes!$B$39:$H$81,MATCH(AB$11,Volumes!$B$4:$H$4,0),FALSE),0) -> 0 | AC133: =IFERROR(VLOOKUP($B133,Volumes!$B$39:$H$81,MATCH(AC$11,Volumes!$B$4:$H$4,0),FALSE),0) -> 0 | AD133: =IFERROR(VLOOKUP($B133,Volumes!$B$39:$H$81,MATCH(AD$11,Volumes!$B$4:$H$4,0),FALSE),0) -> 0 | AE133: =IFERROR(VLOOKUP($B133,Volumes!$B$39:$H$81,MATCH(AE$11,Volumes!$B$4:$H$4,0),FALSE),0) -> 0 | AF133: =IFERROR(VLOOKUP($B133,Volumes!$B$39:$M$81,MATCH(AF$11,Volumes!$B$4:$M$4,0),FALSE),0) -> 0 | AG133: =IFERROR(VLOOKUP($B133,Volumes!$B$39:$M$81,MATCH(AG$11,Volumes!$B$4:$M$4,0),FALSE),0) -> 0 | AH133: =IFERROR(VLOOKUP($B133,Volumes!$B$39:$M$81,MATCH(AH$11,Volumes!$B$4:$M$4,0),FALSE),0) -> 0 | AI133: =IFERROR(VLOOKUP($B133,Volumes!$B$39:$M$81,MATCH(AI$11,Volumes!$B$4:$M$4,0),FALSE),0) -> 0 | AJ133: =IFERROR(VLOOKUP($B133,Volumes!$B$39:$M$81,MATCH(AJ$11,Volumes!$B$4:$M$4,0),FALSE),0) -> 0 | AL133: 173.6027845 | AM133: 180.4007115 | AN133: 187.7484565 | AO133: 195.1724787 | AP133: 203.2288399 | AQ133: 212.0932184 | AR133: 219.7481449 | AS133: 227.4158815 | AT133: 235.7405495 | AU133: 242.7898708 | AW133: 177.8560527 | AX133: 189.3486319 | AY133: 201.8888172 | AZ133: 215.0138465 | BA133: 229.3745089 | BB133: 245.2440947 | BC133: 260.3208517 | BD133: 276.0047092 | BE133: 293.1176405 | BF133: 309.2788282 | BI133: 0 | BJ133: 0 | BK133: 0 | BL133: 0 | BM133: 0 | BN133: 0 | BO133: 0 | BP133: 0 | BQ133: 0 | BR133: 0 | BU133: 0 | BV133: 0 | BW133: 0 | BX133: 0 | BY133: 0 | BZ133: 0 | CA133: 0 | CB133: 0 | CC133: 0 | CD133: 0
AA134: =SUM(AA75:AA131) -> 41064 | AB134: 40142 | AC134: 40632 | AD134: 41356 | AE134: 41995 | AF134: 41995 | AG134: 41995 | AH134: 41995 | AI134: 41995 | AJ134: 41995 | BI134: =SUM(BI75:BI133) -> 6070041.463 | BJ134: 6233688.703 | BK134: 6619386.482 | BL134: 7054741.88 | BM134: 7511571.89 | BN134: 7886626.609 | BO134: 8206387.95 | BP134: 8526684.396 | BQ134: 8871756.611 | BR134: 9168886.179 | BU134: =SUM(BU75:BU133) -> 6218757.479 | BV134: 6542881.221 | BW134: 7117928.594 | BX134: 7771931.771 | BY134: 8477945.916 | BZ134: 9119332.612 | CA134: 9721556.022 | CB134: 10348463.93 | CC134: 11031060.93 | CD134: 11679821.59
AA135: =Volumes!D82=AA134 -> TRUE | AB135: =Volumes!E82=AB134 -> TRUE | AC135: =Volumes!F82=AC134 -> TRUE | AD135: =Volumes!G82=AD134 -> TRUE | AE135: =Volumes!H82=AE134 -> TRUE | AF135: =Volumes!I82=AF134 -> TRUE | AG135: =Volumes!J82=AG134 -> TRUE | AH135: =Volumes!K82=AH134 -> TRUE | AI135: =Volumes!L82=AI134 -> TRUE | AJ135: =Volumes!M82=AJ134 -> TRUE
B136: Total | O136: =P10 -> Price (cents) per Light per day Nominal Smoothed | P136: =SUM(P71,P134) -> 0 | Q136: =SUM(Q71,Q134) -> 0 | R136: =SUM(R71,R134) -> 0 | S136: 0 | T136: 0 | U136: =SUM(U71,U134) -> 0 | V136: =SUM(V71,V134) -> 0 | W136: =SUM(W71,W134) -> 0 | X136: 0 | Y136: 0 | AA136: =SUM(AA71,AA134) -> 53675 | AB136: 53635 | AC136: 54128 | AD136: 54855 | AE136: 55487 | AF136: 55487 | AG136: 55487 | AH136: 55487 | AI136: 55487 | AJ136: 55487 | BI136: =BI134+BI71 -> 6783043.142 | BJ136: 7048460.809 | BK136: 7491628.491 | BL136: 7985082.572 | BM136: 8502611.103 | BN136: 8941884.762 | BO136: 9324969.271 | BP136: 9708694.852 | BQ136: 10120714.8 | BR136: 10478073.52 | BU136: =BU134+BU71 -> 6949227.699 | BV136: 7398066.227 | BW136: 8055863.908 | BX136: 8796851.535 | BY136: 9596483.684 | BZ136: 10339531.13 | CA136: 11046664.1 | CB136: 11783018.33 | CC136: 12584004.11 | CD136: 13347535.01
AA137: =Volumes!D86=AA136 -> TRUE | AB137: =Volumes!E86=AB136 -> TRUE | AC137: =Volumes!F86=AC136 -> TRUE | AD137: =Volumes!G86=AD136 -> TRUE | AE137: =Volumes!H86=AE136 -> TRUE | AF137: =Volumes!I86=AF136 -> TRUE | AG137: =Volumes!J86=AG136 -> TRUE | AH137: =Volumes!K86=AH136 -> TRUE | AI137: =Volumes!L86=AI136 -> TRUE | AJ137: =Volumes!M86=AJ136 -> TRUE
O138: Nominal Vanilla WACC | P138: ='Master Data'!B49 -> 0.0589 | U138: =P138 -> 0.0589
P140: =D11 -> 2019-20 | Q140: 2020-21 | R140: 2021-22 | S140: 2022-23 | T140: 2023-24 | U140: 2024-25 | V140: 2025-26 | W140: 2026-27 | X140: 2027-28 | Y140: 2028-29
O141: Unsmoothed Nominal Revenue | P141: ='Unsmoothed Prices'!Q137*10^6 -> 10376033.73 | Q141: ='Unsmoothed Prices'!R137*10^6 -> 10606340.5 | R141: ='Unsmoothed Prices'!S137*10^6 -> 10508421.96 | S141: ='Unsmoothed Prices'!T137*10^6 -> 10790041.22 | T141: ='Unsmoothed Prices'!U137*10^6 -> 11129348.87 | U141: ='Unsmoothed Prices'!V137*10^6 -> 11809523.4 | V141: ='Unsmoothed Prices'!W137*10^6 -> 12434815.85 | W141: ='Unsmoothed Prices'!X137*10^6 -> 12804680.31 | X141: ='Unsmoothed Prices'!Y137*10^6 -> 13197163.63 | Y141: ='Unsmoothed Prices'!Z137*10^6 -> 13262798.53
O142: NPV | P142: =NPV($P$138,P141:T141) -> 45050781.73 | U142: =NPV($U$138,U141:Y141) -> 53486389.03
O144: Smoothed Nominal Revenue | P144: =BU136 -> 6949227.699 | Q144: =BV136 -> 7398066.227 | R144: =BW136 -> 8055863.908 | S144: 8796851.535 | T144: 9596483.684 | U144: =BZ136 -> 10339531.13 | V144: =CA136 -> 11046664.1 | W144: 11783018.33 | X144: 12584004.11 | Y144: 13347535.01
P145: =NPV($P$138,P144:T144) -> 34150888.91 | U145: =NPV($U$138,U144:Y144) -> 49575610.39
O146: Difference in NPVs | P146: =P145-P142 -> -10899892.82 | U146: =U145-U142 -> -3910778.645
O148: X Factor 2019-20 | P148: ='Smoothed Prices'!P148 -> 0.01038102901 | U148: ='Smoothed Prices'!U148 -> 0.001673445752
O149: Adjustment ('A') - Contract Lighting | P149: =D6 -> -10 | Q149: =E6 -> 1 | R149: =F6 -> 1 | S149: =G6 -> 1 | T149: =H6 -> 1 | U149: =I6 -> -5 | V149: =J6 -> 1.25 | W149: =K6 -> 1.25 | X149: =L6 -> 1.25 | Y149: =M6 -> 1.25
O150: Adjustment ('A') - Public Ligthing | P150: =D7 -> -16 | Q150: =E7 -> 1.5 | R150: 1.5 | S150: 1.5 | T150: 1.5 | U150: -8 | V150: 2 | W150: 2 | X150: 2 | Y150: 2

Sheet Smoothed Prices
B1: $2018-19 base data
P3: THIS TAKES 18/19 SMOOTHED PRICES ADDS CPI | AL3: THIS TAKES 18/19 SMOOTHED PRICES and multiplys by no.days in year/100 to convert $s into cents | AW3: THIS TAKES nominal and multiplys by no days in year/100
B4: Private Contract Lights
D8: X Factor | I8: X Factor | O8: Days | P8: ='Master Data'!K28 -> 366 | Q8: ='Master Data'!L28 -> 365 | R8: ='Master Data'!M28 -> 365 | S8: ='Master Data'!N28 -> 365 | T8: ='Master Data'!O28 -> 366 | U8: ='Master Data'!P28 -> 365 | V8: ='Master Data'!Q28 -> 365 | W8: ='Master Data'!R28 -> 365 | X8: ='Master Data'!S28 -> 366 | Y8: ='Master Data'!T28 -> 365
D9: =P148 -> 0.01038102901 | I9: =U148 -> 0.001673445752 | O9: CPI | P9: ='Master Data'!K39 -> 1.0245 | Q9: ='Master Data'!L39 -> 1.04960025 | R9: ='Master Data'!M39 -> 1.075315456 | S9: ='Master Data'!N39 -> 1.101660685 | T9: ='Master Data'!O39 -> 1.128651372 | U9: ='Master Data'!P39 -> 1.15630333 | V9: ='Master Data'!Q39 -> 1.184632762 | W9: ='Master Data'!R39 -> 1.213656264 | X9: ='Master Data'!S39 -> 1.243390843 | Y9: ='Master Data'!T39 -> 1.273853919 | AL9: =HLOOKUP(AL11,'Master Data'!$B$25:$P$28,4,FALSE) -> 366 | AM9: =HLOOKUP(AM11,'Master Data'!$B$25:$P$28,4,FALSE) -> 365 | AN9: =HLOOKUP(AN11,'Master Data'!$B$25:$P$28,4,FALSE) -> 365 | AO9: =HLOOKUP(AO11,'Master Data'!$B$25:$P$28,4,FALSE) -> 365 | AP9: =HLOOKUP(AP11,'Master Data'!$B$25:$P$28,4,FALSE) -> 366 | AQ9: =HLOOKUP(AQ11,'Master Data'!$B$25:$T$28,4,FALSE) -> 365 | AR9: =HLOOKUP(AR11,'Master Data'!$B$25:$T$28,4,FALSE) -> 365 | AS9: =HLOOKUP(AS11,'Master Data'!$B$25:$T$28,4,FALSE) -> 365 | AT9: =HLOOKUP(AT11,'Master Data'!$B$25:$T$28,4,FALSE) -> 366 | AU9: =HLOOKUP(AU11,'Master Data'!$B$25:$T$28,4,FALSE) -> 365 | AW9: =HLOOKUP(AW11,'Master Data'!$B$25:$P$28,4,FALSE) -> 366 | AX9: =HLOOKUP(AX11,'Master Data'!$B$25:$P$28,4,FALSE) -> 365 | AY9: =HLOOKUP(AY11,'Master Data'!$B$25:$P$28,4,FALSE) -> 365 | AZ9: =HLOOKUP(AZ11,'Master Data'!$B$25:$P$28,4,FALSE) -> 365 | BA9: =HLOOKUP(BA11,'Master Data'!$B$25:$P$28,4,FALSE) -> 366 | BB9: =HLOOKUP(BB11,'Master Data'!$B$25:$T$28,4,FALSE) -> 365 | BC9: =HLOOKUP(BC11,'Master Data'!$B$25:$T$28,4,FALSE) -> 365 | BD9: =HLOOKUP(BD11,'Master Data'!$B$25:$T$28,4,FALSE) -> 365 | BE9: =HLOOKUP(BE11,'Master Data'!$B$25:$T$28,4,FALSE) -> 366 | BF9: =HLOOKUP(BF11,'Master Data'!$B$25:$T$28,4,FALSE) -> 365
B10: Private Contract Lights | D10: Price (cents) per Light per day Real 2018/19 Smoothed | I10: Price (cents) per Light per day Real 2018/19 Smoothed | P10: Price (cents) per Light per day Nominal Smoothed | AA10: Volumes | AL10: Smooth Real 2018/19 Cost Dollars Per Year | AW10: Smooth Nominal Cost Dollars Per Year | BI10: Revenue Real Real Dollars Per Year | BU10: Revenue Nominal Dollars Per Year | BZ10: Revenue Nominal Dollars Per Year
C11: Offered / No Longer Offered / NA | D11: ='Master Data'!K$34 -> 2019-20 | E11: ='Master Data'!L$34 -> 2020-21 | F11: ='Master Data'!M$34 -> 2021-22 | G11: ='Master Data'!N$34 -> 2022-23 | H11: ='Master Data'!O$34 -> 2023-24 | I11: ='Master Data'!P$34 -> 2024-25 | J11: ='Master Data'!Q$34 -> 2025-26 | K11: ='Master Data'!R$34 -> 2026-27 | L11: ='Master Data'!S$34 -> 2027-28 | M11: ='Master Data'!T$34 -> 2028-29 | P11: ='Master Data'!K$34 -> 2019-20 | Q11: ='Master Data'!L$34 -> 2020-21 | R11: ='Master Data'!M$34 -> 2021-22 | S11: ='Master Data'!N$34 -> 2022-23 | T11: ='Master Data'!O$34 -> 2023-24 | U11: ='Master Data'!P$34 -> 2024-25 | V11: ='Master Data'!Q$34 -> 2025-26 | W11: ='Master Data'!R$34 -> 2026-27 | X11: ='Master Data'!S$34 -> 2027-28 | Y11: ='Master Data'!T$34 -> 2028-29 | AA11: ='Master Data'!K$34 -> 2019-20 | AB11: ='Master Data'!L$34 -> 2020-21 | AC11: ='Master Data'!M$34 -> 2021-22 | AD11: ='Master Data'!N$34 -> 2022-23 | AE11: ='Master Data'!O$34 -> 2023-24 | AF11: ='Master Data'!P$34 -> 2024-25 | AG11: ='Master Data'!Q$34 -> 2025-26 | AH11: ='Master Data'!R$34 -> 2026-27 | AI11: ='Master Data'!S$34 -> 2027-28 | AJ11: ='Master Data'!T$34 -> 2028-29 | AL11: ='Master Data'!K$34 -> 2019-20 | AM11: ='Master Data'!L$34 -> 2020-21 | AN11: ='Master Data'!M$34 -> 2021-22 | AO11: ='Master Data'!N$34 -> 2022-23 | AP11: ='Master Data'!O$34 -> 2023-24 | AQ11: ='Master Data'!P$34 -> 2024-25 | AR11: ='Master Data'!Q$34 -> 2025-26 | AS11: ='Master Data'!R$34 -> 2026-27 | AT11: ='Master Data'!S$34 -> 2027-28 | AU11: ='Master Data'!T$34 -> 2028-29 | AW11: ='Master Data'!K$34 -> 2019-20 | AX11: ='Master Data'!L$34 -> 2020-21 | AY11: ='Master Data'!M$34 -> 2021-22 | AZ11: ='Master Data'!N$34 -> 2022-23 | BA11: ='Master Data'!O$34 -> 2023-24 | BB11: ='Master Data'!P$34 -> 2024-25 | BC11: ='Master Data'!Q$34 -> 2025-26 | BD11: ='Master Data'!R$34 -> 2026-27 | BE11: ='Master Data'!S$34 -> 2027-28 | BF11: ='Master Data'!T$34 -> 2028-29 | BI11: ='Master Data'!K$34 -> 2019-20 | BJ11: ='Master Data'!L$34 -> 2020-21 | BK11: ='Master Data'!M$34 -> 2021-22 | BL11: ='Master Data'!N$34 -> 2022-23 | BM11: ='Master Data'!O$34 -> 2023-24 | BN11: ='Master Data'!P$34 -> 2024-25 | BO11: ='Master Data'!Q$34 -> 2025-26 | BP11: ='Master Data'!R$34 -> 2026-27 | BQ11: ='Master Data'!S$34 -> 2027-28 | BR11: ='Master Data'!T$34 -> 2028-29 | BU11: ='Master Data'!K$34 -> 2019-20 | BV11: ='Master Data'!L$34 -> 2020-21 | BW11: ='Master Data'!M$34 -> 2021-22 | BX11: ='Master Data'!N$34 -> 2022-23 | BY11: ='Master Data'!O$34 -> 2023-24 | BZ11: ='Master Data'!P$34 -> 2024-25 | CA11: ='Master Data'!Q$34 -> 2025-26 | CB11: ='Master Data'!R$34 -> 2026-27 | CC11: ='Master Data'!S$34 -> 2027-28 | CD11: ='Master Data'!T$34 -> 2028-29
B12: =Inputs!$C69 -> 32W Compact Fluorescent | C12: Old light no volumes | D12: =IF($C12="NA","",'Unsmoothed Prices'!E10) -> 30.04369298 | E12: =IF($C12="NA","",D12*(1+D$9)) -> 30.35557743 | F12: =IF($C12="NA","",E12*(1+D$9)) -> 30.67069956 | G12: =IF($C12="NA","",F12*(1+D$9)) -> 30.98909298 | H12: =IF($C12="NA","",G12*(1+D$9)) -> 31.31079166 | I12: =IF($C12="NA","",H12) -> 31.31079166 | J12: =IF($C12="NA","",I12*(1+I$9)) -> 31.36318857 | K12: =IF($C12="NA","",J12*(1+I$9)) -> 31.41567316 | L12: =IF($C12="NA","",K12*(1+I$9)) -> 31.46824559 | M12: =IF($C12="NA","",L12*(1+I$9)) -> 31.52090599 | P12: =IF($C12="NA","",D12*P$9) -> 30.77976346 | Q12: 31.86122166 | R12: 32.98067729 | S12: 34.1394654 | T12: 35.33896795 | U12: 36.20477266 | V12: 37.15386069 | W12: 38.12782854 | X12: 39.12732841 | Y12: 40.15302961 | AA12: =IFERROR(VLOOKUP($B12,Volumes!$B$4:$H$33,MATCH(AA$11,Volumes!$B$4:$H$4,0),FALSE),0) -> 0 | AB12: =IFERROR(VLOOKUP($B12,Volumes!$B$4:$H$33,MATCH(AB$11,Volumes!$B$4:$H$4,0),FALSE),0) -> 0 | AC12: =IFERROR(VLOOKUP($B12,Volumes!$B$4:$H$33,MATCH(AC$11,Volumes!$B$4:$H$4,0),FALSE),0) -> 0 | AD12: =IFERROR(VLOOKUP($B12,Volumes!$B$4:$H$33,MATCH(AD$11,Volumes!$B$4:$H$4,0),FALSE),0) -> 0 | AE12: =IFERROR(VLOOKUP($B12,Volumes!$B$4:$H$33,MATCH(AE$11,Volumes!$B$4:$H$4,0),FALSE),0) -> 0 | AF12: =IFERROR(VLOOKUP($B12,Volumes!$B$4:$M$33,MATCH(AF$11,Volumes!$B$4:$M$4,0),FALSE),0) -> 0 | AG12: =IFERROR(VLOOKUP($B12,Volumes!$B$4:$M$33,MATCH(AG$11,Volumes!$B$4:$M$4,0),FALSE),0) -> 0 | AH12: =IFERROR(VLOOKUP($B12,Volumes!$B$4:$M$33,MATCH(AH$11,Volumes!$B$4:$M$4,0),FALSE),0) -> 0 | AI12: =IFERROR(VLOOKUP($B12,Volumes!$B$4:$M$33,MATCH(AI$11,Volumes!$B$4:$M$4,0),FALSE),0) -> 0 | AJ12: =IFERROR(VLOOKUP($B12,Volumes!$B$4:$M$33,MATCH(AJ$11,Volumes!$B$4:$M$4,0),FALSE),0) -> 0 | AL12: =IF($C12="NA","",(D12*AL$9)/100) -> 109.9599163 | AM12: 110.7978576 | AN12: 111.9480534 | AO12: 113.1101894 | AP12: 114.5974975 | AQ12: 114.2843895 | AR12: 114.4756383 | AS12: 114.667207 | AT12: 115.1737789 | AU12: 115.0513069 | AW12: =IF($C12="NA","",(P12*AW$9)/100) -> 112.6539343 | AX12: 116.2934591 | AY12: 120.3794721 | AZ12: 124.6090487 | BA12: 129.3406227 | BB12: 132.1474202 | BC12: 135.6115915 | BD12: 139.1665742 | BE12: 143.206022 | BF12: 146.5585581 | BI12: =IFERROR(AL12*AA12,0) -> 0 | BJ12: 0 | BK12: 0 | BL12: 0 | BM12: 0 | BN12: 0 | BO12: 0 | BP12: 0 | BQ12: 0 | BR12: 0 | BU12: =IFERROR(AW12*AA12,0) -> 0 | BV12: 0 | BW12: 0 | BX12: 0 | BY12: 0 | BZ12: 0 | CA12: 0 | CB12: 0 | CC12: 0 | CD12: 0
B13: =Inputs!$C70 -> 42W Compact Fluorescent | C13: Old light no volumes | D13: =IF($C13="NA","",'Unsmoothed Prices'!E11) -> 30.04369298 | E13: =IF($C13="NA","",D13*(1+D$9)) -> 30.35557743 | F13: =IF($C13="NA","",E13*(1+D$9)) -> 30.67069956 | G13: =IF($C13="NA","",F13*(1+D$9)) -> 30.98909298 | H13: =IF($C13="NA","",G13*(1+D$9)) -> 31.31079166 | I13: =IF($C13="NA","",H13) -> 31.31079166 | J13: =IF($C13="NA","",I13*(1+I$9)) -> 31.36318857 | K13: =IF($C13="NA","",J13*(1+I$9)) -> 31.41567316 | L13: =IF($C13="NA","",K13*(1+I$9)) -> 31.46824559 | M13: =IF($C13="NA","",L13*(1+I$9)) -> 31.52090599 | P13: 30.77976346 | Q13: 31.86122166 | R13: 32.98067729 | S13: 34.1394654 | T13: 35.33896795 | U13: 36.20477266 | V13: 37.15386069 | W13: 38.12782854 | X13: 39.12732841 | Y13: 40.15302961 | AA13: =IFERROR(VLOOKUP($B13,Volumes!$B$4:$H$33,MATCH(AA$11,Volumes!$B$4:$H$4,0),FALSE),0) -> 0 | AB13: =IFERROR(VLOOKUP($B13,Volumes!$B$4:$H$33,MATCH(AB$11,Volumes!$B$4:$H$4,0),FALSE),0) -> 0 | AC13: =IFERROR(VLOOKUP($B13,Volumes!$B$4:$H$33,MATCH(AC$11,Volumes!$B$4:$H$4,0),FALSE),0) -> 0 | AD13: =IFERROR(VLOOKUP($B13,Volumes!$B$4:$H$33,MATCH(AD$11,Volumes!$B$4:$H$4,0),FALSE),0) -> 0 | AE13: =IFERROR(VLOOKUP($B13,Volumes!$B$4:$H$33,MATCH(AE$11,Volumes!$B$4:$H$4,0),FALSE),0) -> 0 | AF13: =IFERROR(VLOOKUP($B13,Volumes!$B$4:$M$33,MATCH(AF$11,Volumes!$B$4:$M$4,0),FALSE),0) -> 0 | AG13: =IFERROR(VLOOKUP($B13,Volumes!$B$4:$M$33,MATCH(AG$11,Volumes!$B$4:$M$4,0),FALSE),0) -> 0 | AH13: =IFERROR(VLOOKUP($B13,Volumes!$B$4:$M$33,MATCH(AH$11,Volumes!$B$4:$M$4,0),FALSE),0) -> 0 | AI13: =IFERROR(VLOOKUP($B13,Volumes!$B$4:$M$33,MATCH(AI$11,Volumes!$B$4:$M$4,0),FALSE),0) -> 0 | AJ13: =IFERROR(VLOOKUP($B13,Volumes!$B$4:$M$33,MATCH(AJ$11,Volumes!$B$4:$M$4,0),FALSE),0) -> 0 | AL13: 109.9599163 | AM13: 110.7978576 | AN13: 111.9480534 | AO13: 113.1101894 | AP13: 114.5974975 | AQ13: 114.2843895 | AR13: 114.4756383 | AS13: 114.667207 | AT13: 115.1737789 | AU13: 115.0513069 | AW13: 112.6539343 | AX13: 116.2934591 | AY13: 120.3794721 | AZ13: 124.6090487 | BA13: 129.3406227 | BB13: 132.1474202 | BC13: 135.6115915 | BD13: 139.1665742 | BE13: 143.206022 | BF13: 146.5585581 | BI13: 0 | BJ13: 0 | BK13: 0 | BL13: 0 | BM13: 0 | BN13: 0 | BO13: 0 | BP13: 0 | BQ13: 0 | BR13: 0 | BU13: 0 | BV13: 0 | BW13: 0 | BX13: 0 | BY13: 0 | BZ13: 0 | CA13: 0 | CB13: 0 | CC13: 0 | CD13: 0
B14: =Inputs!$C71 -> 42W Compact Fluorescent - Bottom Pole Entry | C14: Old light no volumes | D14: =IF($C14="NA","",'Unsmoothed Prices'!E12) -> 30.04369298 | E14: 30.35557743 | F14: 30.67069956 | G14: 30.98909298 | H14: 31.31079166 | I14: 31.31079166 | J14: =IF($C14="NA","",I14*(1+I$9)) -> 31.36318857 | K14: 31.41567316 | L14: 31.46824559 | M14: 31.52090599 | P14: 30.77976346 | Q14: 31.86122166 | R14: 32.98067729 | S14: 34.1394654 | T14: 35.33896795 | U14: 36.20477266 | V14: 37.15386069 | W14: 38.12782854 | X14: 39.12732841 | Y14: 40.15302961 | AA14: =IFERROR(VLOOKUP($B14,Volumes!$B$4:$H$33,MATCH(AA$11,Volumes!$B$4:$H$4,0),FALSE),0) -> 0 | AB14: =IFERROR(VLOOKUP($B14,Volumes!$B$4:$H$33,MATCH(AB$11,Volumes!$B$4:$H$4,0),FALSE),0) -> 0 | AC14: =IFERROR(VLOOKUP($B14,Volumes!$B$4:$H$33,MATCH(AC$11,Volumes!$B$4:$H$4,0),FALSE),0) -> 0 | AD14: =IFERROR(VLOOKUP($B14,Volumes!$B$4:$H$33,MATCH(AD$11,Volumes!$B$4:$H$4,0),FALSE),0) -> 0 | AE14: =IFERROR(VLOOKUP($B14,Volumes!$B$4:$H$33,MATCH(AE$11,Volumes!$B$4:$H$4,0),FALSE),0) -> 0 | AF14: =IFERROR(VLOOKUP($B14,Volumes!$B$4:$M$33,MATCH(AF$11,Volumes!$B$4:$M$4,0),FALSE),0) -> 0 | AG14: =IFERROR(VLOOKUP($B14,Volumes!$B$4:$M$33,MATCH(AG$11,Volumes!$B$4:$M$4,0),FALSE),0) -> 0 | AH14: =IFERROR(VLOOKUP($B14,Volumes!$B$4:$M$33,MATCH(AH$11,Volumes!$B$4:$M$4,0),FALSE),0) -> 0 | AI14: =IFERROR(VLOOKUP($B14,Volumes!$B$4:$M$33,MATCH(AI$11,Volumes!$B$4:$M$4,0),FALSE),0) -> 0 | AJ14: =IFERROR(VLOOKUP($B14,Volumes!$B$4:$M$33,MATCH(AJ$11,Volumes!$B$4:$M$4,0),FALSE),0) -> 0 | AL14: 109.9599163 | AM14: 110.7978576 | AN14: 111.9480534 | AO14: 113.1101894 | AP14: 114.5974975 | AQ14: 114.2843895 | AR14: 114.4756383 | AS14: 114.667207 | AT14: 115.1737789 | AU14: 115.0513069 | AW14: 112.6539343 | AX14: 116.2934591 | AY14: 120.3794721 | AZ14: 124.6090487 | BA14: 129.3406227 | BB14: 132.1474202 | BC14: 135.6115915 | BD14: 139.1665742 | BE14: 143.206022 | BF14: 146.5585581 | BI14: 0 | BJ14: 0 | BK14: 0 | BL14: 0 | BM14: 0 | BN14: 0 | BO14: 0 | BP14: 0 | BQ14: 0 | BR14: 0 | BU14: 0 | BV14: 0 | BW14: 0 | BX14: 0 | BY14: 0 | BZ14: 0 | CA14: 0 | CB14: 0 | CC14: 0 | CD14: 0
B15: =Inputs!$C72 -> 2x24W Compact Fluorescent | C15: Old light no volumes | D15: =IF($C15="NA","",'Unsmoothed Prices'!E13) -> 30.35857238 | E15: 30.6737256 | F15: 30.99215044 | G15: 31.31388085 | H15: 31.63895116 | I15: 31.63895116 | J15: 31.69189722 | K15: 31.7449319 | L15: 31.79805532 | M15: 31.85126764 | P15: 31.10235741 | Q15: 32.19515006 | R15: 33.32633838 | S15: 34.49727142 | T15: 35.70934562 | U15: 36.58422459 | V15: 37.54325974 | W15: 38.52743546 | X15: 39.5374108 | Y15: 40.57386209 | AA15: =IFERROR(VLOOKUP($B15,Volumes!$B$4:$H$33,MATCH(AA$11,Volumes!$B$4:$H$4,0),FALSE),0) -> 0 | AB15: =IFERROR(VLOOKUP($B15,Volumes!$B$4:$H$33,MATCH(AB$11,Volumes!$B$4:$H$4,0),FALSE),0) -> 0 | AC15: =IFERROR(VLOOKUP($B15,Volumes!$B$4:$H$33,MATCH(AC$11,Volumes!$B$4:$H$4,0),FALSE),0) -> 0 | AD15: =IFERROR(VLOOKUP($B15,Volumes!$B$4:$H$33,MATCH(AD$11,Volumes!$B$4:$H$4,0),FALSE),0) -> 0 | AE15: =IFERROR(VLOOKUP($B15,Volumes!$B$4:$H$33,MATCH(AE$11,Volumes!$B$4:$H$4,0),FALSE),0) -> 0 | AF15: =IFERROR(VLOOKUP($B15,Volumes!$B$4:$M$33,MATCH(AF$11,Volumes!$B$4:$M$4,0),FALSE),0) -> 0 | AG15: =IFERROR(VLOOKUP($B15,Volumes!$B$4:$M$33,MATCH(AG$11,Volumes!$B$4:$M$4,0),FALSE),0) -> 0 | AH15: =IFERROR(VLOOKUP($B15,Volumes!$B$4:$M$33,MATCH(AH$11,Volumes!$B$4:$M$4,0),FALSE),0) -> 0 | AI15: =IFERROR(VLOOKUP($B15,Volumes!$B$4:$M$33,MATCH(AI$11,Volumes!$B$4:$M$4,0),FALSE),0) -> 0 | AJ15: =IFERROR(VLOOKUP($B15,Volumes!$B$4:$M$33,MATCH(AJ$11,Volumes!$B$4:$M$4,0),FALSE),0) -> 0 | AL15: 111.1123749 | AM15: 111.9590984 | AN15: 113.1213491 | AO15: 114.2956651 | AP15: 115.7985612 | AQ15: 115.4821717 | AR15: 115.6754249 | AS15: 115.8690014 | AT15: 116.3808825 | AU15: 116.2571269 | AW15: 113.8346281 | AX15: 117.5122977 | AY15: 121.6411351 | AZ15: 125.9150407 | BA15: 130.696205 | BB15: 133.5324197 | BC15: 137.032898 | BD15: 140.6251394 | BE15: 144.7069235 | BF15: 148.0945966 | BI15: 0 | BJ15: 0 | BK15: 0 | BL15: 0 | BM15: 0 | BN15: 0 | BO15: 0 | BP15: 0 | BQ15: 0 | BR15: 0 | BU15: 0 | BV15: 0 | BW15: 0 | BX15: 0 | BY15: 0 | BZ15: 0 | CA15: 0 | CB15: 0 | CC15: 0 | CD15: 0
B16: =Inputs!$C73 -> 1x20W Fluorescent | C16: Obsolete, no new Connections | D16: =IF($C16="NA","",'Unsmoothed Prices'!E14) -> 30.01745303 | E16: 30.32906508 | F16: 30.64391199 | G16: 30.96202733 | H16: 31.28344503 | I16: 31.28344503 | J16: 31.33579618 | K16: 31.38823494 | L16: 31.44076144 | M16: 31.49337585 | P16: 30.75288063 | Q16: 31.8333943 | R16: 32.9518722 | S16: 34.10964823 | T16: 35.30810314 | U16: 36.17315167 | V16: 37.12141077 | W16: 38.09452796 | X16: 39.09315487 | Y16: 40.11796024 | AA16: =IFERROR(VLOOKUP($B16,Volumes!$B$4:$H$33,MATCH(AA$11,Volumes!$B$4:$H$4,0),FALSE),0) -> 0 | AB16: =IFERROR(VLOOKUP($B16,Volumes!$B$4:$H$33,MATCH(AB$11,Volumes!$B$4:$H$4,0),FALSE),0) -> 0 | AC16: =IFERROR(VLOOKUP($B16,Volumes!$B$4:$H$33,MATCH(AC$11,Volumes!$B$4:$H$4,0),FALSE),0) -> 0 | AD16: =IFERROR(VLOOKUP($B16,Volumes!$B$4:$H$33,MATCH(AD$11,Volumes!$B$4:$H$4,0),FALSE),0) -> 0 | AE16: =IFERROR(VLOOKUP($B16,Volumes!$B$4:$H$33,MATCH(AE$11,Volumes!$B$4:$H$4,0),FALSE),0) -> 0 | AF16: =IFERROR(VLOOKUP($B16,Volumes!$B$4:$M$33,MATCH(AF$11,Volumes!$B$4:$M$4,0),FALSE),0) -> 0 | AG16: =IFERROR(VLOOKUP($B16,Volumes!$B$4:$M$33,MATCH(AG$11,Volumes!$B$4:$M$4,0),FALSE),0) -> 0 | AH16: =IFERROR(VLOOKUP($B16,Volumes!$B$4:$M$33,MATCH(AH$11,Volumes!$B$4:$M$4,0),FALSE),0) -> 0 | AI16: =IFERROR(VLOOKUP($B16,Volumes!$B$4:$M$33,MATCH(AI$11,Volumes!$B$4:$M$4,0),FALSE),0) -> 0 | AJ16: =IFERROR(VLOOKUP($B16,Volumes!$B$4:$M$33,MATCH(AJ$11,Volumes!$B$4:$M$4,0),FALSE),0) -> 0 | AL16: 109.8638781 | AM16: 110.7010876 | AN16: 111.8502788 | AO16: 113.0113997 | AP16: 114.4974088 | AQ16: 114.1845744 | AR16: 114.3756561 | AS16: 114.5670575 | AT16: 115.0731869 | AU16: 114.9508219 | AW16: 112.5555431 | AX16: 116.1918892 | AY16: 120.2743335 | AZ16: 124.500216 | BA16: 129.2276575 | BB16: 132.0320036 | BC16: 135.4931493 | BD16: 139.0450271 | BE16: 143.0809468 | BF16: 146.4305549 | BI16: 0 | BJ16: 0 | BK16: 0 | BL16: 0 | BM16: 0 | BN16: 0 | BO16: 0 | BP16: 0 | BQ16: 0 | BR16: 0 | BU16: 0 | BV16: 0 | BW16: 0 | BX16: 0 | BY16: 0 | BZ16: 0 | CA16: 0 | CB16: 0 | CC16: 0 | CD16: 0
B17: =Inputs!$C74 -> 1x40W Fluorescent | C17: Obsolete, no new Connections | D17: =IF($C17="NA","",'Unsmoothed Prices'!E15) -> 30.0363458 | E17: 30.34815398 | F17: 30.66319904 | G17: 30.9815146 | H17: 31.3031346 | I17: 31.3031346 | J17: 31.3555187 | K17: 31.40799046 | L17: 31.46055003 | M17: 31.51319755 | P17: 30.77223627 | Q17: 31.85343 | R17: 32.97261186 | S17: 34.13111659 | T17: 35.3303258 | U17: 36.19591879 | V17: 37.14477471 | W17: 38.11850437 | X17: 39.11775982 | Y17: 40.14321019 | AA17: =IFERROR(VLOOKUP($B17,Volumes!$B$4:$H$33,MATCH(AA$11,Volumes!$B$4:$H$4,0),FALSE),0) -> 0 | AB17: =IFERROR(VLOOKUP($B17,Volumes!$B$4:$H$33,MATCH(AB$11,Volumes!$B$4:$H$4,0),FALSE),0) -> 0 | AC17: =IFERROR(VLOOKUP($B17,Volumes!$B$4:$H$33,MATCH(AC$11,Volumes!$B$4:$H$4,0),FALSE),0) -> 0 | AD17: =IFERROR(VLOOKUP($B17,Volumes!$B$4:$H$33,MATCH(AD$11,Volumes!$B$4:$H$4,0),FALSE),0) -> 0 | AE17: =IFERROR(VLOOKUP($B17,Volumes!$B$4:$H$33,MATCH(AE$11,Volumes!$B$4:$H$4,0),FALSE),0) -> 0 | AF17: =IFERROR(VLOOKUP($B17,Volumes!$B$4:$M$33,MATCH(AF$11,Volumes!$B$4:$M$4,0),FALSE),0) -> 0 | AG17: =IFERROR(VLOOKUP($B17,Volumes!$B$4:$M$33,MATCH(AG$11,Volumes!$B$4:$M$4,0),FALSE),0) -> 0 | AH17: =IFERROR(VLOOKUP($B17,Volumes!$B$4:$M$33,MATCH(AH$11,Volumes!$B$4:$M$4,0),FALSE),0) -> 0 | AI17: =IFERROR(VLOOKUP($B17,Volumes!$B$4:$M$33,MATCH(AI$11,Volumes!$B$4:$M$4,0),FALSE),0) -> 0 | AJ17: =IFERROR(VLOOKUP($B17,Volumes!$B$4:$M$33,MATCH(AJ$11,Volumes!$B$4:$M$4,0),FALSE),0) -> 0 | AL17: 109.9330256 | AM17: 110.770762 | AN17: 111.9206765 | AO17: 113.0825283 | AP17: 114.5694726 | AQ17: 114.2564413 | AR17: 114.4476433 | AS17: 114.6391652 | AT17: 115.1456131 | AU17: 115.0231711 | AW17: 112.6263847 | AX17: 116.2650195 | AY17: 120.3500333 | AZ17: 124.5785756 | BA17: 129.3089924 | BB17: 132.1151036 | BC17: 135.5784277 | BD17: 139.132541 | BE17: 143.1710009 | BF17: 146.5227172 | BI17: 0 | BJ17: 0 | BK17: 0 | BL17: 0 | BM17: 0 | BN17: 0 | BO17: 0 | BP17: 0 | BQ17: 0 | BR17: 0 | BU17: 0 | BV17: 0 | BW17: 0 | BX17: 0 | BY17: 0 | BZ17: 0 | CA17: 0 | CB17: 0 | CC17: 0 | CD17: 0
B18: =Inputs!$C75 -> 2x20W Fluorescent | C18: Obsolete, no new Connections | D18: =IF($C18="NA","",'Unsmoothed Prices'!E16) -> 30.30714208 | E18: 30.6217614 | F18: 30.9396468 | G18: 31.26083217 | H18: 31.58535177 | I18: 31.58535177 | J18: =IF($C18="NA","",I18*(1+I$9)) -> 31.63820814 | K18: 31.69115297 | L18: 31.74418639 | M18: 31.79730857 | P18: 31.04966706 | Q18: 32.14060842 | R18: 33.26988041 | S18: 34.43882977 | T18: 35.6488506 | U18: 36.52224744 | V18: 37.47965789 | W18: 38.46216633 | X18: 39.47043068 | Y18: 40.50512612 | AA18: =IFERROR(VLOOKUP($B18,Volumes!$B$4:$H$33,MATCH(AA$11,Volumes!$B$4:$H$4,0),FALSE),0) -> 0 | AB18: =IFERROR(VLOOKUP($B18,Volumes!$B$4:$H$33,MATCH(AB$11,Volumes!$B$4:$H$4,0),FALSE),0) -> 0 | AC18: =IFERROR(VLOOKUP($B18,Volumes!$B$4:$H$33,MATCH(AC$11,Volumes!$B$4:$H$4,0),FALSE),0) -> 0 | AD18: =IFERROR(VLOOKUP($B18,Volumes!$B$4:$H$33,MATCH(AD$11,Volumes!$B$4:$H$4,0),FALSE),0) -> 0 | AE18: =IFERROR(VLOOKUP($B18,Volumes!$B$4:$H$33,MATCH(AE$11,Volumes!$B$4:$H$4,0),FALSE),0) -> 0 | AF18: =IFERROR(VLOOKUP($B18,Volumes!$B$4:$M$33,MATCH(AF$11,Volumes!$B$4:$M$4,0),FALSE),0) -> 0 | AG18: =IFERROR(VLOOKUP($B18,Volumes!$B$4:$M$33,MATCH(AG$11,Volumes!$B$4:$M$4,0),FALSE),0) -> 0 | AH18: =IFERROR(VLOOKUP($B18,Volumes!$B$4:$M$33,MATCH(AH$11,Volumes!$B$4:$M$4,0),FALSE),0) -> 0 | AI18: =IFERROR(VLOOKUP($B18,Volumes!$B$4:$M$33,MATCH(AI$11,Volumes!$B$4:$M$4,0),FALSE),0) -> 0 | AJ18: =IFERROR(VLOOKUP($B18,Volumes!$B$4:$M$33,MATCH(AJ$11,Volumes!$B$4:$M$4,0),FALSE),0) -> 0 | AL18: 110.92414 | AM18: 111.7694291 | AN18: 112.9297108 | AO18: 114.1020374 | AP18: 115.6023875 | AQ18: 115.286534 | AR18: 115.4794597 | AS18: 115.6727083 | AT18: 116.1837222 | AU18: 116.0601763 | AW18: 113.6417814 | AX18: 117.3132207 | AY18: 121.4350635 | AZ18: 125.7017287 | BA18: 130.4747932 | BB18: 133.3062032 | BC18: 136.8007513 | BD18: 140.3869071 | BE18: 144.4617763 | BF18: 147.8437103 | BI18: 0 | BJ18: 0 | BK18: 0 | BL18: 0 | BM18: 0 | BN18: 0 | BO18: 0 | BP18: 0 | BQ18: 0 | BR18: 0 | BU18: 0 | BV18: 0 | BW18: 0 | BX18: 0 | BY18: 0 | BZ18: 0 | CA18: 0 | CB18: 0 | CC18: 0 | CD18: 0
B19: =Inputs!$C76 -> 2x24W Fluorescent | C19: Old light no volumes | D19: =IF($C19="NA","",'Unsmoothed Prices'!E17) -> 30.140256 | E19: 30.45314287 | F19: 30.76927783 | G19: 31.0886946 | H19: 31.41142724 | I19: 31.41142724 | J19: 31.46399256 | K19: 31.51664584 | L19: 31.56938724 | M19: 31.6222169 | P19: 30.87869227 | Q19: 31.96362637 | R19: 33.08668003 | S19: 34.24919258 | T19: 35.45255043 | U19: 36.32113792 | V19: 37.2732764 | W19: 38.25037466 | X19: 39.25308701 | Y19: 40.28208491 | AA19: =IFERROR(VLOOKUP($B19,Volumes!$B$4:$H$33,MATCH(AA$11,Volumes!$B$4:$H$4,0),FALSE),0) -> 0 | AB19: =IFERROR(VLOOKUP($B19,Volumes!$B$4:$H$33,MATCH(AB$11,Volumes!$B$4:$H$4,0),FALSE),0) -> 0 | AC19: =IFERROR(VLOOKUP($B19,Volumes!$B$4:$H$33,MATCH(AC$11,Volumes!$B$4:$H$4,0),FALSE),0) -> 0 | AD19: =IFERROR(VLOOKUP($B19,Volumes!$B$4:$H$33,MATCH(AD$11,Volumes!$B$4:$H$4,0),FALSE),0) -> 0 | AE19: =IFERROR(VLOOKUP($B19,Volumes!$B$4:$H$33,MATCH(AE$11,Volumes!$B$4:$H$4,0),FALSE),0) -> 0 | AF19: =IFERROR(VLOOKUP($B19,Volumes!$B$4:$M$33,MATCH(AF$11,Volumes!$B$4:$M$4,0),FALSE),0) -> 0 | AG19: =IFERROR(VLOOKUP($B19,Volumes!$B$4:$M$33,MATCH(AG$11,Volumes!$B$4:$M$4,0),FALSE),0) -> 0 | AH19: =IFERROR(VLOOKUP($B19,Volumes!$B$4:$M$33,MATCH(AH$11,Volumes!$B$4:$M$4,0),FALSE),0) -> 0 | AI19: =IFERROR(VLOOKUP($B19,Volumes!$B$4:$M$33,MATCH(AI$11,Volumes!$B$4:$M$4,0),FALSE),0) -> 0 | AJ19: =IFERROR(VLOOKUP($B19,Volumes!$B$4:$M$33,MATCH(AJ$11,Volumes!$B$4:$M$4,0),FALSE),0) -> 0 | AL19: 110.313337 | AM19: 111.1539715 | AN19: 112.3078641 | AO19: 113.4737353 | AP19: 114.9658237 | AQ19: 114.6517094 | AR19: 114.8435728 | AS19: 115.0357573 | AT19: 115.5439573 | AU19: 115.4210917 | AW19: 113.0160137 | AX19: 116.6672363 | AY19: 120.7663821 | AZ19: 125.0095529 | BA19: 129.7563346 | BB19: 132.5721534 | BC19: 136.0474589 | BD19: 139.6138675 | BE19: 143.6662985 | BF19: 147.0296099 | BI19: 0 | BJ19: 0 | BK19: 0 | BL19: 0 | BM19: 0 | BN19: 0 | BO19: 0 | BP19: 0 | BQ19: 0 | BR19: 0 | BU19: 0 | BV19: 0 | BW19: 0 | BX19: 0 | BY19: 0 | BZ19: 0 | CA19: 0 | CB19: 0 | CC19: 0 | CD19: 0
B20: =Inputs!$C77 -> T5 Fluorescent 2 x 24W | C20: Old light no volumes | D20: =IF($C20="NA","",'Unsmoothed Prices'!E18) -> 30.30714208 | E20: 30.6217614 | F20: 30.9396468 | G20: 31.26083217 | H20: 31.58535177 | I20: 31.58535177 | J20: 31.63820814 | K20: 31.69115297 | L20: 31.74418639 | M20: 31.79730857 | P20: 31.04966706 | Q20: 32.14060842 | R20: 33.26988041 | S20: 34.43882977 | T20: 35.6488506 | U20: 36.52224744 | V20: 37.47965789 | W20: 38.46216633 | X20: 39.47043068 | Y20: 40.50512612 | AA20: =IFERROR(VLOOKUP($B20,Volumes!$B$4:$H$33,MATCH(AA$11,Volumes!$B$4:$H$4,0),FALSE),0) -> 0 | AB20: =IFERROR(VLOOKUP($B20,Volumes!$B$4:$H$33,MATCH(AB$11,Volumes!$B$4:$H$4,0),FALSE),0) -> 0 | AC20: =IFERROR(VLOOKUP($B20,Volumes!$B$4:$H$33,MATCH(AC$11,Volumes!$B$4:$H$4,0),FALSE),0) -> 0 | AD20: =IFERROR(VLOOKUP($B20,Volumes!$B$4:$H$33,MATCH(AD$11,Volumes!$B$4:$H$4,0),FALSE),0) -> 0 | AE20: =IFERROR(VLOOKUP($B20,Volumes!$B$4:$H$33,MATCH(AE$11,Volumes!$B$4:$H$4,0),FALSE),0) -> 0 | AF20: =IFERROR(VLOOKUP($B20,Volumes!$B$4:$M$33,MATCH(AF$11,Volumes!$B$4:$M$4,0),FALSE),0) -> 0 | AG20: =IFERROR(VLOOKUP($B20,Volumes!$B$4:$M$33,MATCH(AG$11,Volumes!$B$4:$M$4,0),FALSE),0) -> 0 | AH20: =IFERROR(VLOOKUP($B20,Volumes!$B$4:$M$33,MATCH(AH$11,Volumes!$B$4:$M$4,0),FALSE),0) -> 0 | AI20: =IFERROR(VLOOKUP($B20,Volumes!$B$4:$M$33,MATCH(AI$11,Volumes!$B$4:$M$4,0),FALSE),0) -> 0 | AJ20: =IFERROR(VLOOKUP($B20,Volumes!$B$4:$M$33,MATCH(AJ$11,Volumes!$B$4:$M$4,0),FALSE),0) -> 0 | AL20: 110.92414 | AM20: 111.7694291 | AN20: 112.9297108 | AO20: 114.1020374 | AP20: 115.6023875 | AQ20: 115.286534 | AR20: 115.4794597 | AS20: 115.6727083 | AT20: 116.1837222 | AU20: 116.0601763 | AW20: 113.6417814 | AX20: 117.3132207 | AY20: 121.4350635 | AZ20: 125.7017287 | BA20: 130.4747932 | BB20: 133.3062032 | BC20: 136.8007513 | BD20: 140.3869071 | BE20: 144.4617763 | BF20: 147.8437103 | BI20: 0 | BJ20: 0 | BK20: 0 | BL20: 0 | BM20: 0 | BN20: 0 | BO20: 0 | BP20: 0 | BQ20: 0 | BR20: 0 | BU20: 0 | BV20: 0 | BW20: 0 | BX20: 0 | BY20: 0 | BZ20: 0 | CA20: 0 | CB20: 0 | CC20: 0 | CD20: 0
